Workbook

Sheet HONORARIOS (hidden)
E1: 877803
A3: NIVEL ASISTENCIAL
A4: CATEGORIA | B4: ESTUDIOS / EXPERIENCIA | D4: HONORARIOS (SMLMV) | F4: VLOR DIA | G4: Valor Hora
A5: 1 | B5: PERSONA NATURAL CON 4 AÑOS DE EDUCACION BASICA SEUNDARIA DESDE UN AÑO DE EXPERIENCIA | D5: 1.5 | E5: =+$E$1*D5 -> 1316704.5 | F5: =+(E5/30) -> 43890.15 | G5: =+(E5/30)/8 -> 5486.26875
A6: 2 | B6: PERSONA NATURAL CON TITULO DE BACHILLER EN CUALQUIER MODALIDAD SIN EXPERIENCIA LABORAL | D6: 2 | E6: =+$E$1*D6 -> 1755606 | F6: =+(E6/30) -> 58520.2 | G6: =+(E6/30)/8 -> 7315.025
A7: 3 | B7: PERSONA NATURAL CON TITULO DE BACHILLER EN CUALQUIER MODALIDAD DESDE UNO (1) HASTA (5) AÑOS DE EXPERIENCIA LABORAL | D7: 2.5 | E7: 2194507.5 | F7: 73150.25 | G7: 9143.78125
A8: 4 | B8: PERSONA NATURAL CON TITULO DE BACHILLER EN CUALQUIER MODALIDAD MAS DE CINCO (5) AÑOS DE EXPERIENCIA | D8: 3 | E8: 2633409 | F8: 87780.3 | G8: 10972.5375 | J8: Servicios (10%) | K8: Basicos 7%
A9: 5 | B9: FORMACION TECNICA O 2 AÑOS DE EDUCACION SUPERIOR SIN EXPERIENCIA LABORAL | D9: 3 | E9: 2633409 | F9: 87780.3 | G9: 10972.5375 | J9: Directo (20%) | K9: Detallados 15%
A10: 6 | B10: FORMACION TECNICA O 2 AÑOS DE EDUCACION SUPERIOR DESDE UNO (1) HASTA TRES (3) AÑOS DE EXPERIENCIA | D10: 3.5 | E10: 3072310.5 | F10: 102410.35 | G10: 12801.29375 | I10: Aplica | J10: Consultoria (25%) | K10: Avanzados 25%
A11: 7 | B11: FORMACION TECNICA O TRES (3) AÑOS DE EDUCACION SUPERIOR DESDE TRES (3) HASTA CINCO (5) AÑOS DE EXPERIENCIA | D11: 4 | E11: 3511212 | F11: 117040.4 | G11: 14630.05 | I11: No Aplica | J11: Obra (30%) | K11: No Aplica
A12: 8 | B12: FORMACION PROFESIONAL O TECNOLOGIA O 3 AÑOS DE EDUCACION SUPERIOR MAS DE 5 AÑOS DE EXPERIENCIA LABORAL | D12: 4.5 | E12: 3950113.5 | F12: 131670.45 | G12: 16458.80625 | J12: No Aplica
A13: 9 | B13: TITULO PROFESIONAL SIN EXPERIENCIA PROFESIONAL | D13: 4.5 | E13: 3950113.5 | F13: 131670.45 | G13: 16458.80625 | K13: 0.1
A14: 10 | B14: TITULO PROFESIONAL DESDE UNO (1) HASTA TRES (3) AÑOS DE EXPERIENCIA PROFESIONAL | D14: 5.5 | E14: 4827916.5 | F14: 160930.55 | G14: 20116.31875 | K14: 0.2
A15: 11 | B15: TITULO PROFESIONAL DESDE TRES (3) HASTA SEIS (6) AÑOS DE EXPERIENCIA PROFESIONAL | D15: 6.5 | E15: 5705719.5 | F15: 190190.65 | G15: 23773.83125 | J15: =+(G15*200)*2 -> 9509532.5 | K15: 0.3
A16: 12 | B16: TITULO PROFESIONAL MAS DE SEIS (6) AÑOS DE EXPERIENCIA PROFESIONAL | D16: 7.5 | E16: 6583522.5 | F16: 219450.75 | G16: 27431.34375 | K16: 0.4
A17: 13 | B17: TITULO PROFESIONAL Y TITULO DE POSGRADO DESDE UNO (1) HASTA TRES (3) AÑOS DE EXPERIENCIA PROFESIONAL | D17: 8 | E17: 7022424 | F17: 234080.8 | G17: 29260.1 | K17: 0.5
A18: 14 | B18: TITULO PROFESIONAL Y TITULO DE POSGRADO DESDE TRES (3) HASTA SEIS (6) AÑOS DE EXPERIENCIA PROFESIONAL | D18: 9 | E18: 7900227 | F18: 263340.9 | G18: 32917.6125 | K18: 0.6
A19: 15 | B19: TITULO PROFESIONAL Y TITULO DE POSGRADO DESDE SEIS (6) AÑOS HASTA OCHO (8) AÑOS DE EXPERIENCIA PROFESIONAL | D19: 10.5 | E19: 9216931.5 | F19: 307231.05 | G19: 38403.88125 | K19: 0.7
A20: 16 | B20: TITULO PROFESIONAL Y TITULO DE POSGRADO DESDE OCHO (8) HASTA DIEZ (10) AÑOS DE EXPERIENCIA PROFESIONAL | D20: 11.5 | E20: 10094734.5 | F20: 336491.15 | G20: 42061.39375 | K20: 0.8
A21: 17 | B21: TITULO PROFESIONAL Y TITULO DE POSGRADO MAS DE DIEZ (10) AÑOS DE EXPERIENCIA PROFESIONAL | D21: 13 | E21: 11411439 | F21: 380381.3 | G21: 47547.6625 | K21: 0.9
A22: 18 | B22: TITULO PROFESIONAL Y TITULO DE POSGRADO DE CINCO (5) HASTA OCHO (8) AÑOS DE EXPERIENCIA PROFESIONAL ESPECIALIZADA RELACIONADA CON EL OBJETOA CONTRATAR. FUNCIONES ALTAMENTE CALIFICADAS | D22: 14 | E22: 12289242 | F22: 409641.4 | G22: 51205.175 | K22: 1
A23: 19 | B23: TITULO PROFESIONAL Y TITULO DE POSGRADO DE OCHO (8) HASTA DOCE (12) AÑOS DE EXPERIENCIA PROFESIONAL ESPECIALIZADA RELACIONADA CON EL OBJETOA CONTRATAR. FUNCIONES ALTAMENTE CALIFICADAS | D23: 15 | E23: =+$E$1*D23 -> 13167045 | F23: 438901.5 | G23: 54862.6875 | K23: 0
A24: 20 | B24: TITULO PROFESIONAL Y TITULO DE POSGRADO EN LA MODALIDAD DE MAESTRIA O DOCTORADO DE DOCE (12) HASTA QUINCE (15) AÑOS DE EXPERIENCIA PROFESIONAL ESPECIALIZADA RELACIONADA CON EL OBJETOA CONTRATAR. FUNCIONES ALTAMENTE CALIFICADAS | D24: 16 | E24: 14044848 | F24: 468161.6 | G24: 58520.2
A25: 21 | B25: TITULO PROFESIONAL Y TITULO DE POSGRADO EN LA MODALIDAD DE MAESTRIA O DOCTORADO MAS DE QUINCE(15) AÑOS DE EXPERIENCIA PROFESIONAL ESPECIALIZADA RELACIONADA CON EL OBJETO A CONTRATAR. FUNCIONES ALTAMENTE CALIFICADA | D25: 17 | E25: 14922651 | F25: 497421.7 | G25: 62177.7125
A26: M2 | B26: COSTOS IMPLEMENTACION FRECUENCIAS DE LAVADO | E26: 280.83
A27: Mobiliario | B27: Mobiliario para presentación de residuos | E27: 20000000
A28: Atencion Punto Critico | B28: Valor estimado atencion punto critico | E28: 2500000000
A29: CRT | B29: La meta es reducir en un 10% los residuos organicos dispuestos RSDJ | E29: 90000

Sheet Macro1 (hidden)

Sheet Proyecciones
E2: (Cifras expresadas en Millones de pesos)
A3: PROYECCIONES PROGRAMA RURAL
A5: PROYECTO | B5: ACTIVIDAD | C5: 2021 | D5: 2022 | E5: 2023 | F5: 2024 | G5: 2025 | H5: 2026 | I5: 2027 | J5: 2028 | K5: 2029 | L5: 2030 | M5: 2031 | N5: 2032
A6: Proyecto 1. Implementar esquemas diferenciales con enfoque territorial para la gestión de residuos sólidos en zonas de difícil acceso ubicadas en áreas rurales | B6: Realizar un diagnóstico de las zonas rurales en cuanto a población, así como las actividades productivas en la zona, equipamientos e infraestructura rural y estado de las vías. | C6: =+'PROGRAMA RURAL'!AT12 -> 184556028.3 | D6: =+'PROGRAMA RURAL'!AV12 -> 0 | E6: =+'PROGRAMA RURAL'!AX12 -> 0 | F6: =+'PROGRAMA RURAL'!AZ12 -> 0 | G6: =+'PROGRAMA RURAL'!BB12 -> 0 | H6: =+'PROGRAMA RURAL'!BD12 -> 0 | I6: =+'PROGRAMA RURAL'!BF12 -> 0 | J6: =+'PROGRAMA RURAL'!BH12 -> 229387282.1 | K6: =+'PROGRAMA RURAL'!BJ12 -> 0 | L6: =+'PROGRAMA RURAL'!BL12 -> 0 | M6: =+'PROGRAMA RURAL'!BN12 -> 0 | N6: =+'PROGRAMA RURAL'!BP12 -> 0
B7: Realizar una caracterización de los residuos sólidos que se producen en las zonas rurales del Distrito Capital | C7: ='PROGRAMA RURAL'!AT25 -> 528643538.7 | D7: =+'PROGRAMA RURAL'!AV25 -> 0 | E7: =+'PROGRAMA RURAL'!AX25 -> 0 | F7: =+'PROGRAMA RURAL'!AZ25 -> 0 | G7: =+'PROGRAMA RURAL'!BB25 -> 0 | H7: =+'PROGRAMA RURAL'!BD25 -> 0 | I7: =+'PROGRAMA RURAL'!BF25 -> 0 | J7: =+'PROGRAMA RURAL'!BH25 -> 657058486.1 | K7: =+'PROGRAMA RURAL'!BJ25 -> 0 | L7: =+'PROGRAMA RURAL'!BL25 -> 0 | M7: =+'PROGRAMA RURAL'!BN25 -> 0 | N7: =+'PROGRAMA RURAL'!BP25 -> 0
B8: Diseñar modelo diferencial para la implementación de proyecto piloto de gestión de residuos sólidos insitu o local en la ruralidad | C8: =+'PROGRAMA RURAL'!AT38 -> 0 | D8: =+'PROGRAMA RURAL'!AV38 -> 222914226.1 | E8: =+'PROGRAMA RURAL'!AX38 -> 0 | F8: =+'PROGRAMA RURAL'!AZ38 -> 0 | G8: =+'PROGRAMA RURAL'!BB38 -> 0 | H8: =+'PROGRAMA RURAL'!BD38 -> 0 | I8: =+'PROGRAMA RURAL'!BF38 -> 0 | J8: =+'PROGRAMA RURAL'!BH38 -> 0 | K8: =+'PROGRAMA RURAL'!BJ38 -> 276389973.3 | L8: =+'PROGRAMA RURAL'!BL38 -> 0 | M8: =+'PROGRAMA RURAL'!BN38 -> 0 | N8: =+'PROGRAMA RURAL'!BP38 -> 0
B9: Implementar un piloto de manejo integral de residuos sólidos provenientes de las zonas rurales | C9: =+'PROGRAMA RURAL'!AT50 -> 0 | D9: =+'PROGRAMA RURAL'!AV50 -> 0 | E9: =+'PROGRAMA RURAL'!AX50 -> 275981775 | F9: =+'PROGRAMA RURAL'!AZ50 -> 223775395.6 | G9: =+'PROGRAMA RURAL'!BB50 -> 230850934.8 | H9: =+'PROGRAMA RURAL'!BD50 -> 238082056.2 | I9: =+'PROGRAMA RURAL'!BF50 -> 245429011.4 | J9: =+'PROGRAMA RURAL'!BH50 -> 252883842.4 | K9: =+'PROGRAMA RURAL'!BJ50 -> 331598304.4 | L9: ='PROGRAMA RURAL'!BL50 -> 268569017.6 | M9: =+'PROGRAMA RURAL'!BN50 -> 276688538.4 | N9: =+'PROGRAMA RURAL'!BP50 -> 285134111.5
B10: Seguimiento y monitoreo del piloto de manejo integral de residuos sólidos en zona rural. | C10: =+'PROGRAMA RURAL'!AT60 -> 0 | D10: =+'PROGRAMA RURAL'!AV60 -> 0 | E10: =+'PROGRAMA RURAL'!AX60 -> 76532761.12 | F10: =+'PROGRAMA RURAL'!AZ60 -> 78979551.39 | G10: =+'PROGRAMA RURAL'!BB60 -> 81476800.53 | H10: =+'PROGRAMA RURAL'!BD60 -> 84028961.01 | I10: =+'PROGRAMA RURAL'!BF60 -> 86622004.02 | J10: =+'PROGRAMA RURAL'!BH60 -> 89253120.83 | K10: =+'PROGRAMA RURAL'!BJ60 -> 91955832.32 | L10: ='PROGRAMA RURAL'!BL60 -> 94789065.05 | M10: =+'PROGRAMA RURAL'!BN60 -> 97654778.25 | N10: =+'PROGRAMA RURAL'!BP60 -> 100635568.8
A11: VALOR TOTAL PROYECTO | C11: =+SUM(C6:C10) -> 713199567 | D11: =+SUM(D6:D10) -> 222914226.1 | E11: 352514536.1 | F11: 302754947 | G11: 312327735.4 | H11: 322111017.2 | I11: 332051015.4 | J11: 1228582731 | K11: 699944110.1 | L11: 363358082.7 | M11: 374343316.6 | N11: 385769680.3
A12: Proyecto 2. Implementar mesas interinstitucionales para la actualización de la estratificación en áreas rurales | B12: Propiciar y consolidar una mesa de trabajo interinstitucional en donde se definan las competencias, productos, tiempos relativos. | C12: =+'PROGRAMA RURAL'!AT75 -> 20744986.13 | D12: =+'PROGRAMA RURAL'!AV75 -> 21425236.27 | E12: =+'PROGRAMA RURAL'!AX75 -> 22109464.32 | F12: =+'PROGRAMA RURAL'!AZ75 -> 22816314.85 | G12: =+'PROGRAMA RURAL'!BB75 -> 23537742.38 | H12: =+'PROGRAMA RURAL'!BD75 -> 24275033.18 | I12: =+'PROGRAMA RURAL'!BF75 -> 25024134.49 | J12: =+'PROGRAMA RURAL'!BH75 -> 25784234.91 | K12: =+'PROGRAMA RURAL'!BJ75 -> 26565018.23 | L12: =+'PROGRAMA RURAL'!BL75 -> 27383507.68 | M12: =+'PROGRAMA RURAL'!BN75 -> 28211380.38 | N12: =+'PROGRAMA RURAL'!BP75 -> 29072497.65
B13: Documento técnico compilatorio de las necesidades y novedades identificadas desde la prestación del servicio público de aseo | C13: =+'PROGRAMA RURAL'!AT86 -> 25931232.67 | D13: =+'PROGRAMA RURAL'!AV86 -> 26781545.34 | E13: =+'PROGRAMA RURAL'!AX86 -> 27636830.41 | F13: =+'PROGRAMA RURAL'!AZ86 -> 28520393.56 | G13: =+'PROGRAMA RURAL'!BB86 -> 29422177.97 | H13: =+'PROGRAMA RURAL'!BD86 -> 30343791.48 | I13: ='PROGRAMA RURAL'!BF86 -> 31280168.12 | J13: =+'PROGRAMA RURAL'!BH86 -> 32230293.63 | K13: =+'PROGRAMA RURAL'!BJ86 -> 33206272.78 | L13: =+'PROGRAMA RURAL'!BL86 -> 34229384.6 | M13: =+'PROGRAMA RURAL'!BN86 -> 35264225.48 | N13: =+'PROGRAMA RURAL'!BP86 -> 36340622.06
A14: VALOR TOTAL PROYECTO | C14: =+SUM(C12:C13) -> 46676218.8 | D14: =+SUM(D12:D13) -> 48206781.61 | E14: 49746294.73 | F14: 51336708.4 | G14: 52959920.34 | H14: 54618824.66 | I14: 56304302.61 | J14: 58014528.54 | K14: 59771291.01 | L14: 61612892.28 | M14: 63475605.86 | N14: 65413119.7
A15: Proyecto 3. Ampliar la prestación de las actividades complementarias del servicio público de aseo en aquellas áreas rurales donde se determine su viabilidad | B15: Diagnostico de las características físicas y socioeconómicas para determinar necesidades de prestación de servicio para actividades complementarias | C15: =+'PROGRAMA RURAL'!AT103 -> 365983988.3 | D15: =+'PROGRAMA RURAL'!AV103 -> 0 | E15: =+'PROGRAMA RURAL'!AX103 -> 0 | F15: =+'PROGRAMA RURAL'!AZ103 -> 0 | G15: =+'PROGRAMA RURAL'!BB103 -> 0 | H15: =+'PROGRAMA RURAL'!BD103 -> 0 | I15: =+'PROGRAMA RURAL'!BD103 -> 0 | J15: =+'PROGRAMA RURAL'!BH103 -> 0 | K15: =+'PROGRAMA RURAL'!BJ103 -> 0 | L15: =+'PROGRAMA RURAL'!BL103 -> 0 | M15: =+'PROGRAMA RURAL'!BN103 -> 0 | N15: =+'PROGRAMA RURAL'!BP103 -> 0
B16: Diagnostico participativo con enfoque diferencial para priorizar las actividades y las zonas | C16: =+'PROGRAMA RURAL'!AT115 -> 197068301.4 | D16: =+'PROGRAMA RURAL'!AV115 -> 0 | E16: =+'PROGRAMA RURAL'!AX115 -> 0 | F16: =+'PROGRAMA RURAL'!AZ115 -> 0 | G16: =+'PROGRAMA RURAL'!BB115 -> 0 | H16: =+'PROGRAMA RURAL'!BD115 -> 0 | I16: =+'PROGRAMA RURAL'!BD115 -> 0 | J16: =+'PROGRAMA RURAL'!BH115 -> 0 | K16: =+'PROGRAMA RURAL'!BJ115 -> 0 | L16: =+'PROGRAMA RURAL'!BL115 -> 0 | M16: =+'PROGRAMA RURAL'!BN115 -> 0 | N16: =+'PROGRAMA RURAL'!BP115 -> 0
A17: VALOR TOTAL PROYECTO | C17: =+SUM(C15:C16) -> 563052289.7 | D17: =+SUM(D15:D16) -> 0 | E17: 0 | F17: 0 | G17: 0 | H17: 0 | I17: 0 | J17: 0 | K17: 0 | L17: 0 | M17: 0 | N17: 0
A18: TOTAL DEL PROGRAMA | C18: =+SUM(C11+C14+C17) -> 1322928075 | D18: =+D11+D14+D17 -> 271121007.7 | E18: 402260830.8 | F18: 354091655.4 | G18: 365287655.7 | H18: 376729841.9 | I18: 388355318 | J18: 1286597260 | K18: 759715401.1 | L18: 424970975 | M18: 437818922.5 | N18: 451182800
A20: PROYECCIONES PROGRAMA BARRIDO
A22: PROYECTO | B22: ACTIVIDAD | C22: 2021 | D22: 2022 | E22: 2023 | F22: 2024 | G22: 2025 | H22: 2026 | I22: 2027 | J22: 2028 | K22: 2029 | L22: 2030 | M22: 2031 | N22: 2032
A23: Proyecto 1. Identificar las necesidades particulares de barrido y limpieza en las diferentes zonas de la ciudad | B23: Mesa interinstitucional anual en la que se alojen las instituciones que tengan injerencia en el desarrollo de la ciudad y el espacio público | C23: =+'PROGRAMA BARRIDO'!AT12 -> 45678863.7 | D23: =+'PROGRAMA BARRIDO'!AV12 -> 47176722.17 | E23: =+'PROGRAMA BARRIDO'!AX12 -> 48683339.72 | F23: =+'PROGRAMA BARRIDO'!AZ12 -> 50239770.19 | G23: =+'PROGRAMA BARRIDO'!BB12 -> 51828298.11 | H23: =+'PROGRAMA BARRIDO'!BD12 -> 53451755.75 | I23: =+'PROGRAMA BARRIDO'!BF12 -> 55101219.22 | J23: =+'PROGRAMA BARRIDO'!BH12 -> 56774901.86 | K23: =+'PROGRAMA BARRIDO'!BJ12 -> 58494126.67 | L23: =+'PROGRAMA BARRIDO'!BL12 -> 60296377.49 | M23: =+'PROGRAMA BARRIDO'!BN12 -> 62119289.5 | N23: =+'PROGRAMA BARRIDO'!BP12 -> 64015403.47
B24: Elaboración de un documento metodológico que involucre las dinámicas de uso de suelo y desarrollo de actividad económica para la asignación de frecuencias de barrido | C24: =+'PROGRAMA BARRIDO'!AT24 -> 0 | D24: =+'PROGRAMA BARRIDO'!AV24 -> 102818660.1 | E24: =+'PROGRAMA BARRIDO'!AX24 -> 0 | F24: =+'PROGRAMA BARRIDO'!AZ24 -> 0 | G24: =+'PROGRAMA BARRIDO'!BB24 -> 0 | H24: =+'PROGRAMA BARRIDO'!BD24 -> 116494695.9 | I24: =+'PROGRAMA BARRIDO'!BF24 -> 0 | J24: =+'PROGRAMA BARRIDO'!BH24 -> 0 | K24: =+'PROGRAMA BARRIDO'!BJ24 -> 0 | L24: =+'PROGRAMA BARRIDO'!BL24 -> 0 | M24: =+'PROGRAMA BARRIDO'!BN24 -> 0 | N24: =+'PROGRAMA BARRIDO'!BP24 -> 0
B25: Generación de un inventario de zonas con cobertura vegetal deficiente | C25: =+'PROGRAMA BARRIDO'!AT36 -> 0 | D25: =+'PROGRAMA BARRIDO'!AV36 -> 310141532 | E25: =+'PROGRAMA BARRIDO'!AX36 -> 0 | F25: =+'PROGRAMA BARRIDO'!AZ36 -> 99083437.2 | G25: =+'PROGRAMA BARRIDO'!BB36 -> 0 | H25: =+'PROGRAMA BARRIDO'!BD36 -> 105418151.1 | I25: =+'PROGRAMA BARRIDO'!BF36 -> 0 | J25: =+'PROGRAMA BARRIDO'!BH36 -> 111972097 | K25: =+'PROGRAMA BARRIDO'!BJ36 -> 0 | L25: =+'PROGRAMA BARRIDO'!BL36 -> 118917190.7 | M25: =+'PROGRAMA BARRIDO'!BN36 -> 0 | N25: =+'PROGRAMA BARRIDO'!BP36 -> 126251895.4
B26: Monitoreo de las acciones encaminadas al reverdecimiento de la ciudad en zonas con cobertura vegetal deficiente. | C26: =+'PROGRAMA BARRIDO'!AT47 -> 0 | D26: =+'PROGRAMA BARRIDO'!AV47 -> 0 | E26: =+'PROGRAMA BARRIDO'!AX47 -> 5102184.075 | F26: =+'PROGRAMA BARRIDO'!AZ47 -> 5265303.426 | G26: =+'PROGRAMA BARRIDO'!BB47 -> 5431786.702 | H26: =+'PROGRAMA BARRIDO'!BD47 -> 5601930.734 | I26: =+'PROGRAMA BARRIDO'!BF47 -> 5774800.268 | J26: =+'PROGRAMA BARRIDO'!BH47 -> 5950208.055 | K26: =+'PROGRAMA BARRIDO'!BJ47 -> 6130388.822 | L26: =+'PROGRAMA BARRIDO'!BL47 -> 6319271.003 | M26: =+'PROGRAMA BARRIDO'!BN47 -> 6510318.55 | N26: =+'PROGRAMA BARRIDO'!BP47 -> 6709037.918
A27: VALOR TOTAL PROYECTO | C27: =+SUM(C23:C26) -> 45678863.7 | D27: =+SUM(D23:D26) -> 460136914.3 | E27: 53785523.79 | F27: 154588510.8 | G27: 57260084.82 | H27: 280966533.5 | I27: 60876019.49 | J27: 174697207 | K27: 64624515.49 | L27: 185532839.2 | M27: 68629608.05 | N27: 196976336.8
A28: Proyecto 2. Realizar un diagnóstico que permita identificar las necesidades de instalación, distribución, retiro y reposición de cestas públicas | B28: Establecer una mesa interinstitucional anual en la que se involucren las instituciones que tengan ingerencia en el desarrollo de la ciudad y el espacio público, y en la cual se establezcan las responsabilidades. | C28: =+'PROGRAMA BARRIDO'!AT62 -> 6527689.146 | D28: =+'PROGRAMA BARRIDO'!AV62 -> 6741739.009 | E28: =+'PROGRAMA BARRIDO'!AX62 -> 6957040.577 | F28: =+'PROGRAMA BARRIDO'!AZ62 -> 7179460.609 | G28: =+'PROGRAMA BARRIDO'!BB62 -> 7406467.493 | H28: =+'PROGRAMA BARRIDO'!BD62 -> 7638465.97 | I28: =+'PROGRAMA BARRIDO'!BF62 -> 7874180.782 | J28: =+'PROGRAMA BARRIDO'!BH62 -> 8113356.609 | K28: =+'PROGRAMA BARRIDO'!BJ62 -> 8359040.591 | L28: =+'PROGRAMA BARRIDO'!BL62 -> 8616589.316 | M28: =+'PROGRAMA BARRIDO'!BN62 -> 8877090.606 | N28: =+'PROGRAMA BARRIDO'!BP62 -> 9148052.745 | XFD28: =+'PROGRAMA BARRIDO'!#REF! -> 
B29: Generación de Inventario dinámico interinstitucional de las cestas en espacio público | C29: =+'PROGRAMA BARRIDO'!AT74 -> 0 | D29: =+'PROGRAMA BARRIDO'!AV74 -> 53048060.96 | E29: =+'PROGRAMA BARRIDO'!AX74 -> 0 | F29: =+'PROGRAMA BARRIDO'!AZ74 -> 56492318.01 | G29: =+'PROGRAMA BARRIDO'!BB74 -> 0 | H29: =+'PROGRAMA BARRIDO'!BD74 -> 60104048.5 | I29: =+'PROGRAMA BARRIDO'!BF74 -> 0 | J29: =+'PROGRAMA BARRIDO'!BH74 -> 63840773.93 | K29: =+'PROGRAMA BARRIDO'!BJ74 -> 0 | L29: =+'PROGRAMA BARRIDO'!BL74 -> 67800511.8 | M29: =+'PROGRAMA BARRIDO'!BN74 -> 0 | N29: =+'PROGRAMA BARRIDO'!BP74 -> 71982386
B30: Metodología para la determinación de indicadores que determinen una eficiciente distribución y mantenimiento de cestas de la ciudad. | C30: =+'PROGRAMA BARRIDO'!AT86 -> 29122768.99 | D30: =+'PROGRAMA BARRIDO'!AV86 -> 0 | E30: =+'PROGRAMA BARRIDO'!AX86 -> 0 | F30: =+'PROGRAMA BARRIDO'!AZ86 -> 0 | G30: =+'PROGRAMA BARRIDO'!BB86 -> 33043369.1 | H30: =+'PROGRAMA BARRIDO'!BD86 -> 0 | I30: =+'PROGRAMA BARRIDO'!BF86 -> 0 | J30: =+'PROGRAMA BARRIDO'!BH86 -> 0 | K30: =+'PROGRAMA BARRIDO'!BJ86 -> 37293198.66 | L30: =+'PROGRAMA BARRIDO'!BL86 -> 0 | M30: =+'PROGRAMA BARRIDO'!BN86 -> 0 | N30: =+'PROGRAMA BARRIDO'!BP86 -> 0
B31: Elaboración y ejecución de un plan de trabajo para la ejecución de las actividades encaminadas a la instalación, retiro, reubicación y reposición de cestas públicas. | C31: =+'PROGRAMA BARRIDO'!AT98 -> 97242122.5 | D31: =+'PROGRAMA BARRIDO'!AV98 -> 0 | E31: =+'PROGRAMA BARRIDO'!AX98 -> 0 | F31: =+'PROGRAMA BARRIDO'!AZ98 -> 0 | G31: =+'PROGRAMA BARRIDO'!BB98 -> 0 | H31: =+'PROGRAMA BARRIDO'!BD98 -> 0 | I31: =+'PROGRAMA BARRIDO'!BF98 -> 0 | J31: =+'PROGRAMA BARRIDO'!BH98 -> 0 | K31: =+'PROGRAMA BARRIDO'!BJ98 -> 0 | L31: =+'PROGRAMA BARRIDO'!BL98 -> 0 | M31: =+'PROGRAMA BARRIDO'!BN98 -> 0 | N31: =+'PROGRAMA BARRIDO'!BP98 -> 0 | XFD31: =+'PROGRAMA BARRIDO'!#REF! -> 
... 35 more rows

Sheet Proyecciones UAESP
E2: (Cifras expresadas en Millones de pesos)
A3: PROYECCIONES PROGRAMA RURAL
A5: PROYECTO | B5: ACTIVIDAD | C5: 2021 | D5: 2022 | E5: 2023 | F5: 2024 | G5: 2025 | H5: 2026 | I5: 2027 | J5: 2028 | K5: 2029 | L5: 2030 | M5: 2031 | N5: 2032
A6: Proyecto 1. Implementar esquemas diferenciales con enfoque territorial para la gestión de residuos sólidos en zonas de difícil acceso ubicadas en áreas rurales | B6: Realizar un diagnóstico de las zonas rurales en cuanto a población, así como las actividades productivas en la zona, equipamientos e infraestructura rural y estado de las vías. | C6: =+'PROGRAMA RURAL'!AU12 -> 184556028.3 | D6: =+'PROGRAMA RURAL'!AW12 -> 0 | E6: =+'PROGRAMA RURAL'!AY12 -> 0 | F6: =+'PROGRAMA RURAL'!BA12 -> 0 | G6: =+'PROGRAMA RURAL'!BC12 -> 0 | H6: =+'PROGRAMA RURAL'!BE12 -> 0 | I6: =+'PROGRAMA RURAL'!BG12 -> 0 | J6: =+'PROGRAMA RURAL'!BI12 -> 229387282.1 | K6: =+'PROGRAMA RURAL'!BK12 -> 0 | L6: =+'PROGRAMA RURAL'!BM12 -> 0 | M6: =+'PROGRAMA RURAL'!BO12 -> 0 | N6: =+'PROGRAMA RURAL'!BQ12 -> 0
B7: Realizar una caracterización de los residuos sólidos que se producen en las zonas rurales del Distrito Capital | C7: =+'PROGRAMA RURAL'!AU25 -> 528643538.7 | D7: =+'PROGRAMA RURAL'!AW25 -> 0 | E7: =+'PROGRAMA RURAL'!AY25 -> 0 | F7: =+'PROGRAMA RURAL'!BA25 -> 0 | G7: =+'PROGRAMA RURAL'!BC25 -> 0 | H7: =+'PROGRAMA RURAL'!BE25 -> 0 | I7: =+'PROGRAMA RURAL'!BG25 -> 0 | J7: =+'PROGRAMA RURAL'!BI25 -> 657058486.1 | K7: =+'PROGRAMA RURAL'!BK25 -> 0 | L7: =+'PROGRAMA RURAL'!BM25 -> 0 | M7: =+'PROGRAMA RURAL'!BO25 -> 0 | N7: =+'PROGRAMA RURAL'!BQ25 -> 0
B8: Diseñar modelo diferencial para la implementación de proyecto piloto de gestión de residuos sólidos insitu o local en la ruralidad | C8: =+'PROGRAMA RURAL'!AU38 -> 0 | D8: =+'PROGRAMA RURAL'!AW38 -> 222914226.1 | E8: =+'PROGRAMA RURAL'!AY38 -> 0 | F8: =+'PROGRAMA RURAL'!BA38 -> 0 | G8: =+'PROGRAMA RURAL'!BC38 -> 0 | H8: =+'PROGRAMA RURAL'!BE38 -> 0 | I8: =+'PROGRAMA RURAL'!BG38 -> 0 | J8: =+'PROGRAMA RURAL'!BI38 -> 0 | K8: =+'PROGRAMA RURAL'!BK38 -> 276389973.3 | L8: =+'PROGRAMA RURAL'!BM38 -> 0 | M8: =+'PROGRAMA RURAL'!BO38 -> 0 | N8: =+'PROGRAMA RURAL'!BQ38 -> 0
B9: Implementar un piloto de manejo integral de residuos sólidos provenientes de las zonas rurales | C9: =+'PROGRAMA RURAL'!AU50 -> 0 | D9: =+'PROGRAMA RURAL'!AW50 -> 0 | E9: =+'PROGRAMA RURAL'!AY50 -> 275981775 | F9: =+'PROGRAMA RURAL'!BA50 -> 223775395.6 | G9: =+'PROGRAMA RURAL'!BC50 -> 230850934.8 | H9: =+'PROGRAMA RURAL'!BE50 -> 238082056.2 | I9: =+'PROGRAMA RURAL'!BG50 -> 245429011.4 | J9: =+'PROGRAMA RURAL'!BI50 -> 252883842.4 | K9: =+'PROGRAMA RURAL'!BK50 -> 331598304.4 | L9: =+'PROGRAMA RURAL'!BM50 -> 268569017.6 | M9: =+'PROGRAMA RURAL'!BO50 -> 276688538.4 | N9: =+'PROGRAMA RURAL'!BQ50 -> 349937318.7
B10: Seguimiento y monitoreo del piloto de manejo integral de residuos sólidos en zona rural. | C10: =+'PROGRAMA RURAL'!AU60 -> 0 | D10: =+'PROGRAMA RURAL'!AW60 -> 0 | E10: =+'PROGRAMA RURAL'!AY60 -> 76532761.12 | F10: =+'PROGRAMA RURAL'!BA60 -> 78979551.39 | G10: =+'PROGRAMA RURAL'!BC60 -> 81476800.53 | H10: =+'PROGRAMA RURAL'!BE60 -> 84028961.01 | I10: =+'PROGRAMA RURAL'!BG60 -> 86622004.02 | J10: =+'PROGRAMA RURAL'!BI60 -> 89253120.83 | K10: =+'PROGRAMA RURAL'!BK60 -> 91955832.32 | L10: =+'PROGRAMA RURAL'!BM60 -> 94789065.05 | M10: =+'PROGRAMA RURAL'!BO60 -> 97654778.25 | N10: =+'PROGRAMA RURAL'!BQ60 -> 100635568.8
A11: VALOR TOTAL PROYECTO | C11: =+SUM(C6:C10) -> 713199567 | D11: =+SUM(D6:D10) -> 222914226.1 | E11: 352514536.1 | F11: 302754947 | G11: 312327735.4 | H11: 322111017.2 | I11: 332051015.4 | J11: 1228582731 | K11: 699944110.1 | L11: 363358082.7 | M11: 374343316.6 | N11: 450572887.5
A12: Proyecto 2. Implementar mesas interinstitucionales para la actualización de la estratificación en áreas rurales | B12: Propiciar y consolidar una mesa de trabajo interinstitucional en donde se definan las competencias, productos, tiempos relativos. | C12: =+'PROGRAMA RURAL'!AU75 -> 7779369.8 | D12: =+'PROGRAMA RURAL'!AW75 -> 8034463.601 | E12: =+'PROGRAMA RURAL'!AY75 -> 8291049.122 | F12: =+'PROGRAMA RURAL'!BA75 -> 8556118.067 | G12: =+'PROGRAMA RURAL'!BC75 -> 8826653.391 | H12: =+'PROGRAMA RURAL'!BE75 -> 9103137.443 | I12: =+'PROGRAMA RURAL'!BG75 -> 9384050.435 | J12: =+'PROGRAMA RURAL'!BI75 -> 9669088.09 | K12: =+'PROGRAMA RURAL'!BK75 -> 9961881.835 | L12: =+'PROGRAMA RURAL'!BM75 -> 10268815.38 | M12: =+'PROGRAMA RURAL'!BO75 -> 10579267.64 | N12: =+'PROGRAMA RURAL'!BQ75 -> 10902186.62
B13: Documento técnico compilatorio de las necesidades y novedades identificadas desde la prestación del servicio público de aseo | C13: =+'PROGRAMA RURAL'!AU86 -> 25931232.67 | D13: =+'PROGRAMA RURAL'!AW86 -> 26781545.34 | E13: =+'PROGRAMA RURAL'!AY86 -> 27636830.41 | F13: =+'PROGRAMA RURAL'!BA86 -> 28520393.56 | G13: =+'PROGRAMA RURAL'!BC86 -> 29422177.97 | H13: =+'PROGRAMA RURAL'!BE86 -> 30343791.48 | I13: =+'PROGRAMA RURAL'!BG86 -> 31280168.12 | J13: =+'PROGRAMA RURAL'!BI86 -> 32230293.63 | K13: =+'PROGRAMA RURAL'!BK86 -> 33206272.78 | L13: =+'PROGRAMA RURAL'!BM86 -> 34229384.6 | M13: =+'PROGRAMA RURAL'!BO86 -> 35264225.48 | N13: =+'PROGRAMA RURAL'!BQ86 -> 36340622.06
A14: VALOR TOTAL PROYECTO | C14: =+SUM(C12:C13) -> 33710602.47 | D14: =+SUM(D12:D13) -> 34816008.94 | E14: 35927879.53 | F14: 37076511.62 | G14: 38248831.36 | H14: 39446928.92 | I14: 40664218.55 | J14: 41899381.72 | K14: 43168154.62 | L14: 44498199.98 | M14: 45843493.12 | N14: 47242808.67
A15: Proyecto 3. Ampliar la prestación de las actividades complementarias del servicio público de aseo en aquellas áreas rurales donde se determine su viabilidad | B15: Diagnostico de las características físicas y socioeconómicas para determinar necesidades de prestación de servicio para actividades complementarias | C15: =+'PROGRAMA RURAL'!AU103 -> 365983988.3 | D15: =+'PROGRAMA RURAL'!AW103 -> 0 | E15: =+'PROGRAMA RURAL'!AY103 -> 0 | F15: =+'PROGRAMA RURAL'!BA103 -> 0 | G15: =+'PROGRAMA RURAL'!BC103 -> 0 | H15: =+'PROGRAMA RURAL'!BE103 -> 0 | I15: =+'PROGRAMA RURAL'!BG103 -> 0 | J15: =+'PROGRAMA RURAL'!BI103 -> 0 | K15: =+'PROGRAMA RURAL'!BK103 -> 0 | L15: =+'PROGRAMA RURAL'!BM103 -> 0 | M15: =+'PROGRAMA RURAL'!BO103 -> 0 | N15: =+'PROGRAMA RURAL'!BQ103 -> 0
B16: Diagnostico participativo con enfoque diferencial para priorizar las actividades y las zonas | C16: =+'PROGRAMA RURAL'!AU115 -> 197068301.4 | D16: =+'PROGRAMA RURAL'!AW115 -> 0 | E16: =+'PROGRAMA RURAL'!AY115 -> 0 | F16: =+'PROGRAMA RURAL'!BA115 -> 0 | G16: =+'PROGRAMA RURAL'!BC115 -> 0 | H16: =+'PROGRAMA RURAL'!BE115 -> 0 | I16: =+'PROGRAMA RURAL'!BG115 -> 0 | J16: =+'PROGRAMA RURAL'!BI115 -> 0 | K16: =+'PROGRAMA RURAL'!BK115 -> 0 | L16: =+'PROGRAMA RURAL'!BM115 -> 0 | M16: =+'PROGRAMA RURAL'!BO115 -> 0 | N16: =+'PROGRAMA RURAL'!BQ115 -> 0
A17: VALOR TOTAL PROYECTO | C17: =+SUM(C15:C16) -> 563052289.7 | D17: =+SUM(D15:D16) -> 0 | E17: 0 | F17: 0 | G17: 0 | H17: 0 | I17: 0 | J17: 0 | K17: 0 | L17: 0 | M17: 0 | N17: 0
A18: TOTAL DEL PROGRAMA | C18: =+SUM(C11+C14+C17) -> 1309962459 | D18: =+D11+D14+D17 -> 257730235.1 | E18: 388442415.6 | F18: 339831458.6 | G18: 350576566.7 | H18: 361557946.1 | I18: 372715233.9 | J18: 1270482113 | K18: 743112264.7 | L18: 407856282.7 | M18: 420186809.7 | N18: 497815696.1
A20: PROYECCIONES PROGRAMA BARRIDO
A22: PROYECTO | B22: ACTIVIDAD | C22: 2021 | D22: 2022 | E22: 2023 | F22: 2024 | G22: 2025 | H22: 2026 | I22: 2027 | J22: 2028 | K22: 2029 | L22: 2030 | M22: 2031 | N22: 2032
A23: Proyecto 1. Identificar las necesidades particulares de barrido y limpieza en las diferentes zonas de la ciudad | B23: Mesa interinstitucional anual en la que se alojen las instituciones que tengan injerencia en el desarrollo de la ciudad y el espacio público | C23: =+'PROGRAMA BARRIDO'!AU12 -> 12766145.31 | D23: =+'PROGRAMA BARRIDO'!AW12 -> 13184760.78 | E23: =+'PROGRAMA BARRIDO'!AY12 -> 13605824.2 | F23: =+'PROGRAMA BARRIDO'!BA12 -> 14040809.14 | G23: =+'PROGRAMA BARRIDO'!BC12 -> 14484764.54 | H23: =+'PROGRAMA BARRIDO'!BE12 -> 14938481.96 | I23: =+'PROGRAMA BARRIDO'!BG12 -> 15399467.38 | J23: =+'PROGRAMA BARRIDO'!BI12 -> 15867221.48 | K23: =+'PROGRAMA BARRIDO'!BK12 -> 16347703.52 | L23: =+'PROGRAMA BARRIDO'!BM12 -> 16851389.34 | M23: =+'PROGRAMA BARRIDO'!BO12 -> 17360849.47 | N23: =+'PROGRAMA BARRIDO'!BQ12 -> 17890767.78
B24: Elaboración de un documento metodológico que involucre las dinámicas de uso de suelo y desarrollo de actividad económica para la asignación de frecuencias de barrido | C24: =+'PROGRAMA BARRIDO'!AU24 -> 0 | D24: =+'PROGRAMA BARRIDO'!AW24 -> 102818660.1 | E24: =+'PROGRAMA BARRIDO'!AY24 -> 0 | F24: =+'PROGRAMA BARRIDO'!BA24 -> 0 | G24: =+'PROGRAMA BARRIDO'!BC24 -> 0 | H24: =+'PROGRAMA BARRIDO'!BE24 -> 116494695.9 | I24: =+'PROGRAMA BARRIDO'!BG24 -> 0 | J24: =+'PROGRAMA BARRIDO'!BI24 -> 0 | K24: =+'PROGRAMA BARRIDO'!BK24 -> 0 | L24: =+'PROGRAMA BARRIDO'!BM24 -> 0 | M24: =+'PROGRAMA BARRIDO'!BO24 -> 0 | N24: =+'PROGRAMA BARRIDO'!BQ24 -> 0
B25: Generación de un inventario de zonas con cobertura vegetal deficiente | C25: =+'PROGRAMA BARRIDO'!AU36 -> 0 | D25: =+'PROGRAMA BARRIDO'!AW36 -> 310141532 | E25: =+'PROGRAMA BARRIDO'!AY36 -> 0 | F25: =+'PROGRAMA BARRIDO'!BA36 -> 99083437.2 | G25: =+'PROGRAMA BARRIDO'!BC36 -> 0 | H25: =+'PROGRAMA BARRIDO'!BE36 -> 105418151.1 | I25: =+'PROGRAMA BARRIDO'!BG36 -> 0 | J25: =+'PROGRAMA BARRIDO'!BI36 -> 111972097 | K25: =+'PROGRAMA BARRIDO'!BK36 -> 0 | L25: =+'PROGRAMA BARRIDO'!BM36 -> 118917190.7 | M25: =+'PROGRAMA BARRIDO'!BO36 -> 0 | N25: =+'PROGRAMA BARRIDO'!BQ36 -> 126251895.4
B26: Monitoreo de las acciones encaminadas al reverdecimiento de la ciudad en zonas con cobertura vegetal deficiente. | C26: =+'PROGRAMA BARRIDO'!AU47 -> 0 | D26: =+'PROGRAMA BARRIDO'!AW47 -> 0 | E26: =+'PROGRAMA BARRIDO'!AY47 -> 5102184.075 | F26: =+'PROGRAMA BARRIDO'!BA47 -> 5265303.426 | G26: =+'PROGRAMA BARRIDO'!BC47 -> 5431786.702 | H26: =+'PROGRAMA BARRIDO'!BE47 -> 5601930.734 | I26: =+'PROGRAMA BARRIDO'!BG47 -> 5774800.268 | J26: =+'PROGRAMA BARRIDO'!BI47 -> 5950208.055 | K26: =+'PROGRAMA BARRIDO'!BK47 -> 6130388.822 | L26: =+'PROGRAMA BARRIDO'!BM47 -> 6319271.003 | M26: =+'PROGRAMA BARRIDO'!BO47 -> 6510318.55 | N26: =+'PROGRAMA BARRIDO'!BQ47 -> 6709037.918
A27: VALOR TOTAL PROYECTO | C27: =+SUM(C23:C26) -> 12766145.31 | D27: =+SUM(D23:D26) -> 426144952.9 | E27: 18708008.27 | F27: 118389549.8 | G27: 19916551.24 | H27: 242453259.7 | I27: 21174267.65 | J27: 133789526.6 | K27: 22478092.35 | L27: 142087851 | M27: 23871168.02 | N27: 150851701.1
A28: Proyecto 2. Realizar un diagnóstico que permita identificar las necesidades de instalación, distribución, retiro y reposición de cestas públicas | B28: Establecer una mesa interinstitucional anual en la que se involucren las instituciones que tengan ingerencia en el desarrollo de la ciudad y el espacio público, y en la cual se establezcan las responsabilidades. | C28: =+'PROGRAMA BARRIDO'!AU62 -> 4388362.451 | D28: =+'PROGRAMA BARRIDO'!AW62 -> 4532261.519 | E28: =+'PROGRAMA BARRIDO'!AY62 -> 4677002.069 | F28: =+'PROGRAMA BARRIDO'!BA62 -> 4826528.14 | G28: =+'PROGRAMA BARRIDO'!BC62 -> 4979137.81 | H28: =+'PROGRAMA BARRIDO'!BE62 -> 5135103.173 | I28: =+'PROGRAMA BARRIDO'!BG62 -> 5293566.912 | J28: =+'PROGRAMA BARRIDO'!BI62 -> 5454357.384 | K28: =+'PROGRAMA BARRIDO'!BK62 -> 5619523.086 | L28: =+'PROGRAMA BARRIDO'!BM62 -> 5792665.086 | M28: =+'PROGRAMA BARRIDO'!BO62 -> 5967792.004 | N28: =+'PROGRAMA BARRIDO'!BQ62 -> 6149951.425
B29: Generación de Inventario dinámico interinstitucional de las cestas en espacio público | C29: =+'PROGRAMA BARRIDO'!AU74 -> 0 | D29: =+'PROGRAMA BARRIDO'!AW74 -> 7725445.77 | E29: =+'PROGRAMA BARRIDO'!AY74 -> 0 | F29: =+'PROGRAMA BARRIDO'!BA74 -> 8227036.603 | G29: =+'PROGRAMA BARRIDO'!BC74 -> 0 | H29: =+'PROGRAMA BARRIDO'!BE74 -> 8753016.772 | I29: =+'PROGRAMA BARRIDO'!BG74 -> 0 | J29: =+'PROGRAMA BARRIDO'!BI74 -> 9297200.086 | K29: =+'PROGRAMA BARRIDO'!BK74 -> 0 | L29: =+'PROGRAMA BARRIDO'!BM74 -> 9873860.942 | M29: =+'PROGRAMA BARRIDO'!BO74 -> 0 | N29: =+'PROGRAMA BARRIDO'!BQ74 -> 10482871.75
B30: Metodología para la determinación de indicadores que determinen una eficiciente distribución y mantenimiento de cestas de la ciudad. | C30: =+'PROGRAMA BARRIDO'!AU86 -> 29122768.99 | D30: =+'PROGRAMA BARRIDO'!AW86 -> 0 | E30: =+'PROGRAMA BARRIDO'!AY86 -> 0 | F30: =+'PROGRAMA BARRIDO'!BA86 -> 0 | G30: =+'PROGRAMA BARRIDO'!BC86 -> 33043369.1 | H30: =+'PROGRAMA BARRIDO'!BE86 -> 0 | I30: =+'PROGRAMA BARRIDO'!BG86 -> 0 | J30: =+'PROGRAMA BARRIDO'!BI86 -> 0 | K30: =+'PROGRAMA BARRIDO'!BK86 -> 37293198.66 | L30: =+'PROGRAMA BARRIDO'!BM86 -> 0 | M30: =+'PROGRAMA BARRIDO'!BO86 -> 0 | N30: =+'PROGRAMA BARRIDO'!BQ86 -> 0
B31: Elaboración y ejecución de un plan de trabajo para la ejecución de las actividades encaminadas a la instalación, retiro, reubicación y reposición de cestas públicas. | C31: =+'PROGRAMA BARRIDO'!AU98 -> 97242122.5 | D31: =+'PROGRAMA BARRIDO'!AW98 -> 0 | E31: =+'PROGRAMA BARRIDO'!AY98 -> 0 | F31: =+'PROGRAMA BARRIDO'!BA98 -> 0 | G31: =+'PROGRAMA BARRIDO'!BC98 -> 0 | H31: =+'PROGRAMA BARRIDO'!BE98 -> 0 | I31: =+'PROGRAMA BARRIDO'!BG98 -> 0 | J31: =+'PROGRAMA BARRIDO'!BI98 -> 0 | K31: =+'PROGRAMA BARRIDO'!BK98 -> 0 | L31: =+'PROGRAMA BARRIDO'!BM98 -> 0 | M31: =+'PROGRAMA BARRIDO'!BO98 -> 0 | N31: =+'PROGRAMA BARRIDO'!BQ98 -> 0
... 35 more rows

Sheet PROGRAMA LAVADO
AT3: =+R6 -> Propiciar y consolidar mesas interinstitucionales anuales en las que participen las instituciones que tengan injerencia en la oferta y mantenimiento de baños públicos en la ciudad.
A4: Proyecto 1. Reducir los puntos críticos sanitarios en la ciudad. | S4: Proyecto 1. Reducir los puntos críticos sanitarios en la ciudad. | AT4: 1.032904259 | AV4: 1.066774287 | AX4: 1.100842377 | AZ4: 1.136036853 | BB4: 1.171957126 | BD4: 1.208667241 | BF4: 1.245965407 | BH4: 1.283811224 | BJ4: 1.322686854 | BL4: 1.363439894 | BN4: 1.404660131 | BP4: 1.447535633
A5: COSTO DE LA ACTIVIDAD | N5: Personal Designado UAESP | S5: ASIGNACION DE RECURSOS POR PERIODO | AS5: ITEM | AT5: COSTO POR PERIODOS
A6: ACTIVIDAD | B6: ALCANCE | C6: ITEM | D6: DESCRIPCION | E6: PERSONAL TOTAL | F6: CATEGORIA | G6: ESPECIFICACION | H6: CANTIDAD POR CATEGORIA | I6: VALOR UNITARIO (Cifras expresadas en Millones de pesos) | J6: VALOR MES * CANTIDAD (Cifras expresadas en Millones de pesos) | K6: TIEMPO DE DEDICACION (MESES) | L6: VALOR TOTAL 2020 (Cifras expresadas en Millones de pesos) | N6: Lista | O6: Cantidad por Categoría | P6: Valor Mensual X Cantidad y X Tiempo | R6: Propiciar y consolidar mesas interinstitucionales anuales en las que participen las instituciones que tengan injerencia en la oferta y mantenimiento de baños públicos en la ciudad. | S6: ITEM | T6: 2021 | V6: 2022 | X6: 2023 | Z6: 2024 | AB6: 2025 | AD6: 2026 | AF6: 2027 | AH6: 2028 | AJ6: 2029 | AL6: 2030 | AN6: 2031 | AP6: 2032 | AT6: 2021 | AV6: 2022 | AX6: 2023 | AZ6: 2024 | BB6: 2025 | BD6: 2026 | BF6: 2027 | BH6: 2028 | BJ6: 2029 | BL6: 2030 | BN6: 2031 | BP6: 2032
A7: Propiciar y consolidar mesas interinstitucionales anuales en las que participen las instituciones que tengan injerencia en la oferta y mantenimiento de baños públicos en la ciudad. | B7: 1 mesa técnica anual | C7: Detalle del Personal | D7: Profesional, Ing. ambiental o a fines, con 3 años o mas años de experiencia. | E7: 13 | F7: 11 | G7: =VLOOKUP(F7,HONORARIOS!A5:G25,2,0) -> TITULO PROFESIONAL DESDE TRES (3) HASTA SEIS (6) AÑOS DE EXPERIENCIA PROFESIONAL | H7: 13 | I7: =VLOOKUP(F7,HONORARIOS!A5:G25,5,0) -> 5705719.5 | J7: =+I7*H7 -> 74174353.5 | K7: 0.833 | L7: =+J7*K7 -> 61787236.47 | O7: 5 | P7: =+(O7*I7)*K7 -> 23764321.72 | S7: Costos del Personal | T7: Aplica | U7: Aplica | V7: Aplica | W7: =+IF(V7="Aplica","Aplica","No Aplica") -> Aplica | X7: Aplica | Y7: =+IF(X7="Aplica","Aplica","No Aplica") -> Aplica | Z7: No Aplica | AA7: =+IF(Z7="Aplica","Aplica","No Aplica") -> No Aplica | AB7: No Aplica | AC7: No Aplica | AD7: No Aplica | AE7: No Aplica | AF7: No Aplica | AG7: No Aplica | AH7: No Aplica | AI7: No Aplica | AJ7: No Aplica | AK7: No Aplica | AL7: No Aplica | AM7: No Aplica | AN7: No Aplica | AO7: No Aplica | AP7: No Aplica | AQ7: No Aplica | AS7: Costos del Personal | AT7: =IF(T7="aplica",($L8*T8)*AT4,0) -> 63820299.67 | AU7: =IF(U7="aplica",($P8*U8)*AT4,0) -> 24546269.1 | AV7: =IF(V7="aplica",($L8*V8)*AV4,0) -> 65913035.1 | AW7: =IF(W7="aplica",($P8*W8)*AV4,0) -> 25351167.35 | AX7: =IF(X7="aplica",($L8*X8)*AX4,0) -> 68018008.29 | AY7: =IF(Y7="aplica",($P8*Y8)*AX4,0) -> 26160772.42 | AZ7: =IF(Z7="aplica",($L8*Z8)*AZ4,0) -> 0 | BA7: =IF(AA7="aplica",($P8*AA8)*AZ4,0) -> 0 | BB7: =IF(AB7="aplica",($L8*AB8)*BB4,0) -> 0 | BC7: =IF(AC7="aplica",($P8*AC8)*BB4,0) -> 0 | BD7: =IF(AD7="aplica",($L8*AD8)*BD4,0) -> 0 | BE7: =IF(AE7="aplica",($P8*AE8)*BD4,0) -> 0 | BF7: =IF(AF7="aplica",($L8*AF8)*BF4,0) -> 0 | BG7: =IF(AG7="aplica",($P8*AG8)*BF4,0) -> 0 | BH7: =IF(AH7="aplica",($L8*AH8)*BH4,0) -> 0 | BI7: =IF(AI7="aplica",($P8*AI8)*BH4,0) -> 0 | BJ7: =IF(AJ7="aplica",($L8*AJ8)*BJ4,0) -> 0 | BK7: =IF(AK7="aplica",($P8*AK8)*BJ4,0) -> 0 | BL7: =IF(AL7="aplica",($L8*AL8)*BL4,0) -> 0 | BM7: =IF(AM7="aplica",($P8*AM8)*BL4,0) -> 0 | BN7: =IF(AN7="aplica",($L8*AN8)*BN4,0) -> 0 | BO7: =IF(AO7="aplica",($P8*AO8)*BN4,0) -> 0 | BP7: =IF(AP7="aplica",($L8*AP8)*BP4,0) -> 0 | BQ7: =IF(AQ7="aplica",($P8*AQ8)*BP4,0) -> 0
C8: Subtotal | L8: =SUM(L7) -> 61787236.47 | N8: Subtotal Personal | P8: =+P7 -> 23764321.72 | S8: Porcentaje | T8: 1 | U8: 1 | V8: 1 | W8: 1 | X8: 1 | Y8: 1 | Z8: 1 | AA8: 1 | AB8: 1 | AC8: 1 | AD8: 1 | AE8: 1 | AF8: 1 | AG8: 1 | AH8: 1 | AI8: 1 | AJ8: 1 | AK8: 1 | AL8: 1 | AM8: 1 | AN8: 1 | AO8: 1 | AP8: 1 | AQ8: 1 | AS8: Costos Indirectos y Operacionales | AT8: =+IF(T9="Consultoria (25%)",AT7*25%,0)+IF(T9="Obra (30%)",AT7*30%,0)+IF(T9="Directo (20%)",AT7*20%,0)+IF(T9="No aplica",0,0)+IF(T9="Servicios (10%)",AT7*10%,0) -> 6382029.967 | AU8: =+IF(U9="Consultoria (25%)",AU7*25%,0)+IF(U9="Obra (30%)",AU7*30%,0)+IF(U9="Directo (20%)",AU7*20%,0)+IF(U9="No aplica",0,0)+IF(U9="Servicios (10%)",AU7*10%,0) -> 2454626.91 | AV8: =+IF(V9="Consultoria (25%)",AV7*25%,0)+IF(V9="Obra (30%)",AV7*30%,0)+IF(V9="Directo (20%)",AV7*20%,0)+IF(V9="No aplica",0,0)+IF(V9="Servicios (10%)",AV7*10%,0) -> 6591303.51 | AW8: 2535116.735 | AX8: 6801800.829 | AY8: 2616077.242 | AZ8: 0 | BA8: 0 | BB8: 0 | BC8: 0 | BD8: 0 | BE8: 0 | BF8: 0 | BG8: 0 | BH8: 0 | BI8: 0 | BJ8: 0 | BK8: 0 | BL8: 0 | BM8: 0 | BN8: 0 | BO8: 0 | BP8: 0 | BQ8: 0
C9: Costos Indirectos y Operacionales | D9: Servicios (10%) | L9: =+IF(D9="Consultoria (25%)",L8*25%,0)+IF(D9="Obra (30%)",L8*30%,0)+IF(D9="Directo (20%)",L8*20%,0)+IF(D9="No aplica",0,0)+IF(D9="Servicios (10%)",L8*10%,0) -> 6178723.647 | N9: Costos Indirectos y Operacionales | O9: Servicios (10%) | P9: =+IF(O9="Consultoria (25%)",P8*25%,0)+IF(O9="Obra (30%)",P8*30%,0)+IF(O9="Directo (20%)",P8*20%,0)+IF(O9="No aplica",0,0)+IF(O9="Servicios (10%)",P8*10%,0) -> 2376432.172 | S9: Costos Indirectos y Operacionales | T9: Servicios (10%) | U9: Servicios (10%) | V9: Servicios (10%) | W9: Servicios (10%) | X9: Servicios (10%) | Y9: Servicios (10%) | Z9: Directo (20%) | AA9: No Aplica | AB9: Directo (20%) | AC9: No Aplica | AD9: Directo (20%) | AE9: No Aplica | AF9: Directo (20%) | AG9: No Aplica | AH9: Consultoría (25%) | AI9: Consultoría (25%) | AJ9: Directo (20%) | AK9: No Aplica | AL9: Directo (20%) | AM9: No Aplica | AN9: Directo (20%) | AO9: No Aplica | AP9: Directo (20%) | AQ9: No Aplica | AS9: Seguimiento e Interventoría (10%) | AT9: =+IF(T10="Aplica",AT7*10%,0) -> 0 | AU9: =+IF(U10="Aplica",AU7*10%,0) -> 0 | AV9: =+IF(V10="Aplica",AV7*10%,0) -> 0 | AW9: 0 | AX9: 0 | AY9: 0 | AZ9: 0 | BA9: 0 | BB9: 0 | BC9: 0 | BD9: 0 | BE9: 0 | BF9: 0 | BG9: 0 | BH9: 0 | BI9: 0 | BJ9: 0 | BK9: 0 | BL9: 0 | BM9: 0 | BN9: 0 | BO9: 0 | BP9: 0 | BQ9: 0
C10: Seguimiento e Interventoría (10%) | D10: Aplica | L10: =+IF(D10="Aplica",L8*10%,0) -> 6178723.647 | N10: Seguimiento e Interventoría (10%) | O10: Aplica | P10: =+IF(O10="Aplica",P8*10%,0) -> 2376432.172 | S10: Seguimiento e Interventoría (10%) | T10: No Aplica | U10: No Aplica | V10: No Aplica | W10: No Aplica | X10: No Aplica | Y10: No Aplica | Z10: No Aplica | AA10: No Aplica | AB10: Aplica | AC10: No Aplica | AD10: Aplica | AE10: No Aplica | AF10: Aplica | AG10: NO | AH10: Aplica | AI10: Aplica | AJ10: Aplica | AK10: No Aplica | AL10: Aplica | AM10: No Aplica | AN10: Aplica | AO10: No Aplica | AP10: Aplica | AQ10: No Aplica | AS10: Licencias y estudios de campo | AT10: =+IF(T11="Basicos 7%",AT7*7%,IF(T11="Detallados 15%",AT7*15%,IF(T11="Avanzados 25%",AT7*25%,0))) -> 0 | AU10: =+IF(U11="Basicos 7%",AU7*7%,IF(U11="Detallados 15%",AU7*15%,IF(U11="Avanzados 25%",AU7*25%,0))) -> 0 | AV10: =+IF(V11="Basicos 7%",AV7*7%,IF(V11="Detallados 15%",AV7*15%,IF(V11="Avanzados 25%",AV7*25%,0))) -> 0 | AW10: 0 | AX10: 0 | AY10: 0 | AZ10: 0 | BA10: 0 | BB10: 0 | BC10: 0 | BD10: 0 | BE10: 0 | BF10: 0 | BG10: 0 | BH10: 0 | BI10: 0 | BJ10: 0 | BK10: 0 | BL10: 0 | BM10: 0 | BN10: 0 | BO10: 0 | BP10: 0 | BQ10: 0
C11: Licencias y estudios de campo | D11: No Aplica | L11: =+IF(D11="Basicos 7%",L8*7%,IF(D11="Detallados 15%",L8*15%,IF(D11="Avanzados 25%",L8*25%,0))) -> 0 | N11: Licencias y estudios de campo | O11: No Aplica | P11: =+IF(O11="Basicos 7%",P8*7%,IF(O11="Detallados 15%",P8*15%,IF(O11="Avanzados 25%",P8*25%,0))) -> 0 | S11: Licencias y estudios de campo | T11: No Aplica | U11: No Aplica | V11: No Aplica | W11: No Aplica | X11: No Aplica | Y11: No Aplica | Z11: Básicos 7% | AA11: No Aplica | AB11: Básicos 7% | AC11: No Aplica | AD11: Básicos 7% | AE11: No Aplica | AF11: Básicos 7% | AG11: No Aplica | AH11: No Aplica | AI11: No Aplica | AJ11: Básicos 7% | AK11: No Aplica | AL11: Básicos 7% | AM11: No Aplica | AN11: Básicos 7% | AO11: No Aplica | AP11: Básicos 7% | AQ11: No Aplica | AS11: Imprevistos (5%) | AT11: =+IF(T12="Aplica",AT7*5%,0) -> 0 | AU11: =+IF(U12="Aplica",AU7*5%,0) -> 0 | AV11: =+IF(V12="Aplica",AV7*5%,0) -> 3295651.755 | AW11: 0 | AX11: 0 | AY11: 0 | AZ11: 0 | BA11: 0 | BB11: 0 | BC11: 0 | BD11: 0 | BE11: 0 | BF11: 0 | BG11: 0 | BH11: 0 | BI11: 0 | BJ11: 0 | BK11: 0 | BL11: 0 | BM11: 0 | BN11: 0 | BO11: 0 | BP11: 0 | BQ11: 0
C12: Imprevistos (5%) | D12: Aplica | L12: =+IF(D12="Aplica",L8*5%,0) -> 3089361.823 | N12: Imprevistos (5%) | O12: Aplica | P12: =+IF(O12="Aplica",P8*5%,0) -> 1188216.086 | S12: Imprevistos (5%) | T12: No Aplica | U12: No Aplica | V12: Aplica | W12: No Aplica | X12: No Aplica | Y12: No Aplica | Z12: No Aplica | AA12: No Aplica | AB12: No Aplica | AC12: No Aplica | AD12: No Aplica | AE12: No Aplica | AF12: No Aplica | AG12: NO | AH12: Aplica | AI12: No Aplica | AJ12: No Aplica | AK12: No Aplica | AL12: No Aplica | AM12: No Aplica | AN12: No Aplica | AO12: No Aplica | AP12: No Aplica | AQ12: No Aplica | AT12: =SUM(AT7:AT11) -> 70202329.63 | AU12: 27000896.01 | AV12: =SUM(AV7:AV11) -> 75799990.37 | AW12: =SUM(AW7:AW11) -> 27886284.08 | AX12: =SUM(AX7:AX11) -> 74819809.12 | AY12: =SUM(AY7:AY11) -> 28776849.66 | AZ12: =SUM(AZ7:AZ11) -> 0 | BA12: =SUM(BA7:BA11) -> 0 | BB12: =SUM(BB7:BB11) -> 0 | BC12: =SUM(BC7:BC11) -> 0 | BD12: =SUM(BD7:BD11) -> 0 | BE12: =SUM(BE7:BE11) -> 0 | BF12: =SUM(BF7:BF11) -> 0 | BG12: =SUM(BG7:BG11) -> 0 | BH12: =SUM(BH7:BH11) -> 0 | BI12: =SUM(BI7:BI11) -> 0 | BJ12: =SUM(BJ7:BJ11) -> 0 | BK12: =SUM(BK7:BK11) -> 0 | BL12: =SUM(BL7:BL11) -> 0 | BM12: =SUM(BM7:BM11) -> 0 | BN12: =SUM(BN7:BN11) -> 0 | BO12: =SUM(BO7:BO11) -> 0 | BP12: =SUM(BP7:BP11) -> 0 | BQ12: =SUM(BQ7:BQ11) -> 0
A13: VALOR TOTAL ESTIMADO DE LA ACTIVIDAD | L13: =SUM(L8:L12) -> 77234045.58 | N13: Total Personal | P13: =SUM(P8:P12) -> 29705402.15
A15: VALOR ESTIMADO DEL PROYECTO | L15: =+L13 -> 77234045.58 | N15: VALOR ESTIMADO DEL PERSONAL | P15: =+P13 -> 29705402.15 | AT15: =+AT12 -> 70202329.63 | AU15: =+AU12 -> 27000896.01 | AV15: 75799990.37 | AW15: 27886284.08 | AX15: 74819809.12 | AY15: 28776849.66 | AZ15: 0 | BA15: 0 | BB15: 0 | BC15: 0 | BD15: 0 | BE15: 0 | BF15: 0 | BG15: 0 | BH15: 0 | BI15: 0 | BJ15: 0 | BK15: 0 | BL15: 0 | BM15: 0 | BN15: 0 | BO15: 0 | BP15: 0 | BQ15: 0
L16: =+letras(L15) -> Setenta y Siete Millones Doscientos Treinta y Cuatro Mil Cuarenta y Seis
A18: Proyecto 2. Optimizar las frecuencias en los sitios identificados que requieren la actividad de lavado priorizado | S18: Proyecto 2. Optimizar las frecuencias en los sitios identificados que requieren la actividad de lavado priorizado | AT18: =+R20 -> Generación de un inventario de las áreas públicas y puentes peatonales objetos de lavado en la ciudad
A19: COSTO DE LA ACTIVIDAD | N19: Personal Designado UAESP | S19: ASIGNACION DE RECURSOS POR PERIODO | AT19: 1.032904259 | AV19: 1.066774287 | AX19: 1.100842377 | AZ19: 1.136036853 | BB19: 1.171957126 | BD19: 1.208667241 | BF19: 1.245965407 | BH19: 1.283811224 | BJ19: 1.322686854 | BL19: 1.363439894 | BN19: 1.404660131 | BP19: 1.447535633
A20: ACTIVIDAD | B20: ALCANCE | C20: ITEM | D20: DESCRIPCION | E20: PERSONAL TOTAL | F20: CATEGORIA | G20: ESPECIFICACION | H20: CANTIDAD POR CATEGORIA | I20: VALOR UNITARIO (Cifras expresadas en Millones de pesos) | J20: VALOR MES * CANTIDAD (Cifras expresadas en Millones de pesos) | K20: TIEMPO DE DEDICACION (MESES) | L20: VALOR TOTAL 2020 (Cifras expresadas en Millones de pesos) | N20: Lista | O20: Cantidad por Categoría | P20: Valor Mensual X Cantidad y X Tiempo | R20: Generación de un inventario de las áreas públicas y puentes peatonales objetos de lavado en la ciudad | S20: ITEM | T20: 2021 | V20: 2022 | X20: 2023 | Z20: 2024 | AB20: 2025 | AD20: 2026 | AF20: 2027 | AH20: 2028 | AJ20: 2029 | AL20: 2030 | AN20: 2031 | AP20: 2032 | AS20: ITEM | AT20: COSTO POR PERIODOS
A21: Generación de un inventario de las áreas públicas y puentes peatonales objetos de lavado en la ciudad | B21: Un Inventario Anual | C21: Detalle del Personal | D21: Profesional en ingeniería Ambiental sin experiencia. | E21: =+SUM(H21:H22) -> 11 | F21: 9 | G21: =VLOOKUP(F21,HONORARIOS!A5:G25,2,0) -> TITULO PROFESIONAL SIN EXPERIENCIA PROFESIONAL | H21: 5 | I21: =VLOOKUP(F21,HONORARIOS!A5:G25,5,0) -> 3950113.5 | J21: =+I21*H21 -> 19750567.5 | K21: 3 | L21: =+J21*K21 -> 59251702.5 | O21: 5 | P21: =+(O21*I21)*K21 -> 59251702.5 | T21: Proyección Actividad | U21: Proyección UAESP | V21: Proyección Actividad | W21: Proyección UAESP | X21: Proyección Actividad | Y21: Proyección UAESP | Z21: Proyección Actividad | AA21: Proyección UAESP | AB21: Proyección Actividad | AC21: Proyección UAESP | AD21: Proyección Actividad | AE21: Proyección UAESP | AF21: Proyección Actividad | AG21: Proyección UAESP | AH21: Proyección Actividad | AI21: Proyección UAESP | AJ21: Proyección Actividad | AK21: Proyección UAESP | AL21: Proyección Actividad | AM21: Proyección UAESP | AN21: Proyección Actividad | AO21: Proyección UAESP | AP21: Proyección Actividad | AQ21: Proyección UAESP | AT21: 2021 | AV21: 2022 | AX21: 2023 | AZ21: 2024 | BB21: 2025 | BD21: 2026 | BF21: 2027 | BH21: 2028 | BJ21: 2029 | BL21: 2030 | BN21: 2031 | BP21: 2032
D22: Profesional Especializado en Ing. Catastral con experiencia de 3 años de experiencia | F22: 13 | G22: =VLOOKUP(F22,HONORARIOS!$A$5:$G$25,2,0) -> TITULO PROFESIONAL Y TITULO DE POSGRADO DESDE UNO (1) HASTA TRES (3) AÑOS DE EXPERIENCIA PROFESIONAL | H22: 6 | I22: =VLOOKUP(F22,HONORARIOS!$A$5:$G$25,5,0) -> 7022424 | J22: =+I22*H22 -> 42134544 | K22: 3 | L22: =+J22*K22 -> 126403632 | O22: 1 | P22: =+(O22*I22)*K22 -> 21067272 | S22: Costos del Personal | T22: Aplica | U22: =+IF(T22="Aplica","Aplica","No Aplica") -> Aplica | V22: Aplica | W22: =+IF(V22="Aplica","Aplica","No Aplica") -> Aplica | X22: Aplica | Y22: =+IF(X22="Aplica","Aplica","No Aplica") -> Aplica | Z22: Aplica | AA22: =+IF(Z22="Aplica","Aplica","No Aplica") -> Aplica | AB22: Aplica | AC22: =+IF(AB22="Aplica","Aplica","No Aplica") -> Aplica | AD22: Aplica | AE22: =+IF(AD22="Aplica","Aplica","No Aplica") -> Aplica | AF22: Aplica | AG22: =+IF(AF22="Aplica","Aplica","No Aplica") -> Aplica | AH22: Aplica | AI22: =+IF(AH22="Aplica","Aplica","No Aplica") -> Aplica | AJ22: Aplica | AK22: =+IF(AJ22="Aplica","Aplica","No Aplica") -> Aplica | AL22: Aplica | AM22: =+IF(AL22="Aplica","Aplica","No Aplica") -> Aplica | AN22: Aplica | AO22: =+IF(AN22="Aplica","Aplica","No Aplica") -> Aplica | AP22: Aplica | AQ22: =+IF(AP22="Aplica","Aplica","No Aplica") -> Aplica | AS22: Costos del Personal | AT22: =IF(T22="aplica",($L23*T23)*AT19,0) -> 191764185.6 | AU22: =IF(U22="aplica",($P23*U23)*AT19,0) -> 82961810.8 | AV22: =IF(V22="aplica",($L23*V23)*AV19,0) -> 198052337 | AW22: =IF(W22="aplica",($P23*W23)*AV19,0) -> 85682216.73 | AX22: =IF(X22="aplica",($L23*X23)*AX19,0) -> 204377259.8 | AY22: =IF(Y22="aplica",($P23*Y23)*AX19,0) -> 88418530.84 | AZ22: =IF(Z22="aplica",($L23*Z23)*AZ19,0) -> 210911302 | BA22: =IF(AA22="aplica",($P23*AA23)*AZ19,0) -> 91245315.05 | BB22: =IF(AB22="aplica",($L23*AB23)*BB19,0) -> 217580092.3 | BC22: =IF(AC22="aplica",($P23*AC23)*BB19,0) -> 94130394.55 | BD22: =IF(AD22="aplica",($L23*AD23)*BD19,0) -> 224395520.9 | BE22: =IF(AE22="aplica",($P23*AE23)*BD19,0) -> 97078913.29 | BF22: =IF(AF22="aplica",($L23*AF23)*BF19,0) -> 231320124.4 | BG22: =IF(AG22="aplica",($P23*AG23)*BF19,0) -> 100074663.7 | BH22: =IF(AH22="aplica",($L23*AH23)*BH19,0) -> 238346402.2 | BI22: =IF(AI22="aplica",($P23*AI23)*BH19,0) -> 103114401 | BJ22: =IF(AJ22="aplica",($L23*AJ23)*BJ19,0) -> 245563870.4 | BK22: =IF(AK22="aplica",($P23*AK23)*BJ19,0) -> 106236851.7 | BL22: =IF(AL22="aplica",($L23*AL23)*BL19,0) -> 253129889.6 | BM22: =IF(AM22="aplica",($P23*AM23)*BL19,0) -> 109510094.1 | BN22: =IF(AN22="aplica",($L23*AN23)*BN19,0) -> 260782646.5 | BO22: =IF(AO22="aplica",($P23*AO23)*BN19,0) -> 112820861.2 | BP22: =IF(AP22="aplica",($L23*AP23)*BP19,0) -> 268742712.1 | BQ22: =IF(AQ22="aplica",($P23*AQ23)*BP19,0) -> 116264577.6
C23: Subtotal | L23: =SUM(L21:L22) -> 185655334.5 | N23: Subtotal Personal | P23: =SUM(P21:P22) -> 80318974.5 | S23: Porcentaje | T23: 1 | U23: 1 | V23: 1 | W23: 1 | X23: 1 | Y23: 1 | Z23: 1 | AA23: 1 | AB23: 1 | AC23: 1 | AD23: 1 | AE23: 1 | AF23: 1 | AG23: 1 | AH23: 1 | AI23: 1 | AJ23: 1 | AK23: 1 | AL23: 1 | AM23: 1 | AN23: 1 | AO23: 1 | AP23: 1 | AQ23: 1 | AS23: Costos Indirectos y Operacionales | AT23: =+IF(T24="Consultoria (25%)",AT22*25%,0)+IF(T24="Obra (30%)",AT22*30%,0)+IF(T24="Directo (20%)",AT22*20%,0)+IF(T24="No aplica",0,0)+IF(T24="Servicios (10%)",AT22*10%,0) -> 38352837.12 | AU23: =+IF(U24="Consultoria (25%)",AU22*25%,0)+IF(U24="Obra (30%)",AU22*30%,0)+IF(U24="Directo (20%)",AU22*20%,0)+IF(U24="No aplica",0,0)+IF(U24="Servicios (10%)",AU22*10%,0) -> 16592362.16 | AV23: =+IF(V24="Consultoria (25%)",AV22*25%,0)+IF(V24="Obra (30%)",AV22*30%,0)+IF(V24="Directo (20%)",AV22*20%,0)+IF(V24="No aplica",0,0)+IF(V24="Servicios (10%)",AV22*10%,0) -> 39610467.4 | AW23: 17136443.35 | AX23: 40875451.96 | AY23: 17683706.17 | AZ23: 42182260.4 | BA23: 18249063.01 | BB23: 43516018.46 | BC23: 18826078.91 | BD23: 44879104.18 | BE23: 19415782.66 | BF23: 46264024.87 | BG23: 20014932.75 | BH23: 47669280.44 | BI23: 20622880.19 | BJ23: 49112774.08 | BK23: 21247370.35 | BL23: 50625977.92 | BM23: 21902018.82 | BN23: 52156529.29 | BO23: 22564172.25 | BP23: 53748542.41 | BQ23: 23252915.51
C24: Costos Indirectos y Operacionales | D24: Directo (20%) | L24: =+IF(D24="Consultoria (25%)",L23*25%,0)+IF(D24="Obra (30%)",L23*30%,0)+IF(D24="Directo (20%)",L23*20%,0)+IF(D24="No aplica",0,0)+IF(D24="Servicios (10%)",L23*10%,0) -> 37131066.9 | N24: Costos Indirectos y Operacionales | O24: Directo (20%) | P24: =+IF(O24="Consultoria (25%)",P23*25%,0)+IF(O24="Obra (30%)",P23*30%,0)+IF(O24="Directo (20%)",P23*20%,0)+IF(O24="No aplica",0,0)+IF(O24="Servicios (10%)",P23*10%,0) -> 16063794.9 | S24: Costos Indirectos y Operacionales | T24: Directo (20%) | U24: Directo (20%) | V24: Directo (20%) | W24: Directo (20%) | X24: Directo (20%) | Y24: Directo (20%) | Z24: Directo (20%) | AA24: Directo (20%) | AB24: Directo (20%) | AC24: Directo (20%) | AD24: Directo (20%) | AE24: Directo (20%) | AF24: Directo (20%) | AG24: Directo (20%) | AH24: Directo (20%) | AI24: Directo (20%) | AJ24: Directo (20%) | AK24: Directo (20%) | AL24: Directo (20%) | AM24: Directo (20%) | AN24: Directo (20%) | AO24: Directo (20%) | AP24: Directo (20%) | AQ24: Directo (20%) | AS24: Seguimiento e Interventoría (10%) | AT24: =+IF(T25="Aplica",AT22*10%,0) -> 0 | AU24: =+IF(U25="Aplica",AU22*10%,0) -> 0 | AV24: =+IF(V25="Aplica",AV22*10%,0) -> 0 | AW24: 0 | AX24: 0 | AY24: 0 | AZ24: 0 | BA24: 0 | BB24: 0 | BC24: 0 | BD24: 0 | BE24: 0 | BF24: 0 | BG24: 0 | BH24: 0 | BI24: 0 | BJ24: 0 | BK24: 0 | BL24: 0 | BM24: 0 | BN24: 0 | BO24: 0 | BP24: 0 | BQ24: 0
C25: Seguimiento e Interventoría (10%) | D25: No Aplica | L25: =+IF(D25="Aplica",L23*10%,0) -> 0 | N25: Seguimiento e Interventoría (10%) | O25: No Aplica | P25: =+IF(O25="Aplica",P23*10%,0) -> 0 | S25: Seguimiento e Interventoría (10%) | T25: No Aplica | U25: No Aplica | V25: No Aplica | W25: No Aplica | X25: No Aplica | Y25: No Aplica | Z25: No Aplica | AA25: No Aplica | AB25: No Aplica | AC25: No Aplica | AD25: No Aplica | AE25: No Aplica | AF25: No Aplica | AG25: No Aplica | AH25: No Aplica | AI25: No Aplica | AJ25: No Aplica | AK25: No Aplica | AL25: No Aplica | AM25: No Aplica | AN25: No Aplica | AO25: No Aplica | AP25: No Aplica | AQ25: No Aplica | AS25: Licencias y estudios de campo | AT25: =+IF(T26="Basicos 7%",AT22*7%,IF(T26="Detallados 15%",AT22*15%,IF(T26="Avanzados 25%",AT22*25%,0))) -> 0 | AU25: =+IF(U26="Basicos 7%",AU22*7%,IF(U26="Detallados 15%",AU22*15%,IF(U26="Avanzados 25%",AU22*25%,0))) -> 0 | AV25: =+IF(V26="Basicos 7%",AV22*7%,IF(V26="Detallados 15%",AV22*15%,IF(V26="Avanzados 25%",AV22*25%,0))) -> 0 | AW25: 0 | AX25: 0 | AY25: 0 | AZ25: 0 | BA25: 0 | BB25: 0 | BC25: 0 | BD25: 0 | BE25: 0 | BF25: 0 | BG25: 0 | BH25: 0 | BI25: 0 | BJ25: 0 | BK25: 0 | BL25: 0 | BM25: 0 | BN25: 0 | BO25: 0 | BP25: 0 | BQ25: 0
C26: Licencias y estudios de campo | D26: No Aplica | L26: =+IF(D26="Basicos 7%",L23*7%,IF(D26="Detallados 15%",L23*15%,IF(D26="Avanzados 25%",L23*25%,0))) -> 0 | N26: Licencias y estudios de campo | O26: No Aplica | P26: =+IF(O26="Basicos 7%",P23*7%,IF(O26="Detallados 15%",P23*15%,IF(O26="Avanzados 25%",P23*25%,0))) -> 0 | S26: Licencias y estudios de campo | T26: No Aplica | U26: No Aplica | V26: No Aplica | W26: No Aplica | X26: No Aplica | Y26: No Aplica | Z26: No Aplica | AA26: No Aplica | AB26: No Aplica | AC26: No Aplica | AD26: No Aplica | AE26: No Aplica | AF26: No Aplica | AG26: No Aplica | AH26: No Aplica | AI26: No Aplica | AJ26: No Aplica | AK26: No Aplica | AL26: No Aplica | AM26: No Aplica | AN26: No Aplica | AO26: No Aplica | AP26: No Aplica | AQ26: No Aplica | AS26: Imprevistos (5%) | AT26: =+IF(T27="Aplica",AT22*5%,0) -> 0 | AU26: =+IF(U27="Aplica",AU22*5%,0) -> 0 | AV26: =+IF(V27="Aplica",AV22*5%,0) -> 0 | AW26: 0 | AX26: 0 | AY26: 0 | AZ26: 0 | BA26: 0 | BB26: 0 | BC26: 0 | BD26: 0 | BE26: 0 | BF26: 0 | BG26: 0 | BH26: 0 | BI26: 0 | BJ26: 0 | BK26: 0 | BL26: 0 | BM26: 0 | BN26: 0 | BO26: 0 | BP26: 0 | BQ26: 0
C27: Imprevistos (5%) | D27: No Aplica | L27: =+IF(D27="Aplica",L23*5%,0) -> 0 | N27: Imprevistos (5%) | O27: No Aplica | P27: =+IF(O27="Aplica",P23*5%,0) -> 0 | S27: Imprevistos (5%) | T27: No Aplica | U27: No Aplica | V27: No Aplica | W27: No Aplica | X27: No Aplica | Y27: No Aplica | Z27: No Aplica | AA27: No Aplica | AB27: No Aplica | AC27: No Aplica | AD27: No Aplica | AE27: No Aplica | AF27: No Aplica | AG27: No Aplica | AH27: No Aplica | AI27: No Aplica | AJ27: No Aplica | AK27: No Aplica | AL27: No Aplica | AM27: No Aplica | AN27: No Aplica | AO27: No Aplica | AP27: No Aplica | AQ27: No Aplica | AT27: =SUM(AT22:AT26) -> 230117022.7 | AU27: =SUM(AU22:AU26) -> 99554172.96 | AV27: =SUM(AV22:AV26) -> 237662804.4 | AW27: =SUM(AW22:AW26) -> 102818660.1 | AX27: =SUM(AX22:AX26) -> 245252711.8 | AY27: =SUM(AY22:AY26) -> 106102237 | AZ27: =SUM(AZ22:AZ26) -> 253093562.4 | BA27: =SUM(BA22:BA26) -> 109494378.1 | BB27: =SUM(BB22:BB26) -> 261096110.8 | BC27: =SUM(BC22:BC26) -> 112956473.5 | BD27: =SUM(BD22:BD26) -> 269274625.1 | BE27: =SUM(BE22:BE26) -> 116494695.9 | BF27: =SUM(BF22:BF26) -> 277584149.2 | BG27: =SUM(BG22:BG26) -> 120089596.5 | BH27: =SUM(BH22:BH26) -> 286015682.7 | BI27: =SUM(BI22:BI26) -> 123737281.2 | BJ27: =SUM(BJ22:BJ26) -> 294676644.5 | BK27: =SUM(BK22:BK26) -> 127484222.1 | BL27: =SUM(BL22:BL26) -> 303755867.5 | BM27: =SUM(BM22:BM26) -> 131412112.9 | BN27: =SUM(BN22:BN26) -> 312939175.8 | BO27: =SUM(BO22:BO26) -> 135385033.5 | BP27: =SUM(BP22:BP26) -> 322491254.5 | BQ27: =SUM(BQ22:BQ26) -> 139517493.1
A28: VALOR TOTAL ESTIMADO DE LA ACTIVIDAD | L28: =SUM(L23:L27) -> 222786401.4 | N28: Total Personal | P28: =SUM(P23:P27) -> 96382769.4
AT30: =+R32 -> Elaboración de documento técnico con la identificación de las zonas o áreas públicas que requieren intervención a través de mayores frecuencias de lavado
A31: COSTO DE LA ACTIVIDAD | N31: Personal Designado UAESP | S31: ASIGNACION DE RECURSOS POR PERIODO | AT31: 1.032904259 | AV31: 1.066774287 | AX31: 1.100842377 | AZ31: 1.136036853 | BB31: 1.171957126 | BD31: 1.208667241 | BF31: 1.245965407 | BH31: 1.283811224 | BJ31: 1.322686854 | BL31: 1.363439894 | BN31: 1.404660131 | BP31: 1.447535633
A32: ACTIVIDAD | B32: ALCANCE | C32: ITEM | D32: DESCRIPCION | E32: PERSONAL TOTAL | F32: CATEGORIA | G32: ESPECIFICACION | H32: CANTIDAD POR CATEGORIA | I32: VALOR UNITARIO (Cifras expresadas en Millones de pesos) | J32: VALOR MES * CANTIDAD (Cifras expresadas en Millones de pesos) | K32: TIEMPO DE DEDICACION (MESES) | L32: VALOR TOTAL 2020 (Cifras expresadas en Millones de pesos) | N32: Lista | O32: Cantidad por Categoría | P32: Valor Mensual X Cantidad y X Tiempo | R32: Elaboración de documento técnico con la identificación de las zonas o áreas públicas que requieren intervención a través de mayores frecuencias de lavado | S32: ITEM | T32: 2021 | V32: 2022 | X32: 2023 | Z32: 2024 | AB32: 2025 | AD32: 2026 | AF32: 2027 | AH32: 2028 | AJ32: 2029 | AL32: 2030 | AN32: 2031 | AP32: 2032 | AS32: ITEM | AT32: COSTO POR PERIODOS
A33: Elaboración de documento técnico con la identificación de las zonas o áreas públicas que requieren intervención a través de mayores frecuencias de lavado | B33: Un Documento Técnico | C33: Detalle del Personal | D33: Profesional especializado en ingeniería Geodesta y 4 años de experiencia | E33: =+SUM(H33:H34) -> 6 | F33: 13 | G33: =VLOOKUP(F33,HONORARIOS!$A$5:$G$25,2,0) -> TITULO PROFESIONAL Y TITULO DE POSGRADO DESDE UNO (1) HASTA TRES (3) AÑOS DE EXPERIENCIA PROFESIONAL | H33: 3 | I33: =VLOOKUP(F33,HONORARIOS!$A$5:$G$25,5,0) -> 7022424 | J33: =+I33*H33 -> 21067272 | K33: 0.5 | L33: =+J33*K33 -> 10533636 | O33: 3 | P33: =+(O33*I33)*K33 -> 10533636 | T33: Proyección Actividad | U33: Proyección UAESP | V33: Proyección Actividad | W33: Proyección UAESP | X33: Proyección Actividad | Y33: Proyección UAESP | Z33: Proyección Actividad | AA33: Proyección UAESP | AB33: Proyección Actividad | AC33: Proyección UAESP | AD33: Proyección Actividad | AE33: Proyección UAESP | AF33: Proyección Actividad | AG33: Proyección UAESP | AH33: Proyección Actividad | AI33: Proyección UAESP | AJ33: Proyección Actividad | AK33: Proyección UAESP | AL33: Proyección Actividad | AM33: Proyección UAESP | AN33: Proyección Actividad | AO33: Proyección UAESP | AP33: Proyección Actividad | AQ33: Proyección UAESP | AT33: 2021 | AV33: 2022 | AX33: 2023 | AZ33: 2024 | BB33: 2025 | BD33: 2026 | BF33: 2027 | BH33: 2028 | BJ33: 2029 | BL33: 2030 | BN33: 2031 | BP33: 2032
D34: Profesional en ingeniería Ambiental sin experiencia. | F34: 9 | G34: =VLOOKUP(F34,HONORARIOS!A5:G25,2,0) -> TITULO PROFESIONAL SIN EXPERIENCIA PROFESIONAL | H34: 3 | I34: =VLOOKUP(F34,HONORARIOS!A5:G25,5,0) -> 3950113.5 | J34: =+I34*H34 -> 11850340.5 | K34: 0.5 | L34: =+J34*K34 -> 5925170.25 | O34: 3 | P34: =+(O34*I34)*K34 -> 5925170.25 | S34: Costos del Personal | T34: Aplica | U34: =+IF(T34="Aplica","Aplica","No Aplica") -> Aplica | V34: Aplica | W34: =+IF(V34="Aplica","Aplica","No Aplica") -> Aplica | X34: Aplica | Y34: =+IF(X34="Aplica","Aplica","No Aplica") -> Aplica | Z34: Aplica | AA34: =+IF(Z34="Aplica","Aplica","No Aplica") -> Aplica | AB34: Aplica | AC34: =+IF(AB34="Aplica","Aplica","No Aplica") -> Aplica | AD34: Aplica | AE34: =+IF(AD34="Aplica","Aplica","No Aplica") -> Aplica | AF34: Aplica | AG34: =+IF(AF34="Aplica","Aplica","No Aplica") -> Aplica | AH34: Aplica | AI34: =+IF(AH34="Aplica","Aplica","No Aplica") -> Aplica | AJ34: Aplica | AK34: =+IF(AJ34="Aplica","Aplica","No Aplica") -> Aplica | AL34: Aplica | AM34: =+IF(AL34="Aplica","Aplica","No Aplica") -> Aplica | AN34: Aplica | AO34: =+IF(AN34="Aplica","Aplica","No Aplica") -> Aplica | AP34: Aplica | AQ34: =+IF(AP34="Aplica","Aplica","No Aplica") -> Aplica | AS34: Costos del Personal | AT34: =IF(T34="aplica",($L35*T35)*AT31,0) -> 17000371.07 | AU34: =IF(U34="aplica",($P35*U35)*AT31,0) -> 17000371.07 | AV34: =IF(V34="aplica",($L35*V35)*AV31,0) -> 17557831.3 | AW34: =IF(W34="aplica",($P35*W35)*AV31,0) -> 17557831.3 | AX34: =IF(X34="aplica",($L35*X35)*AX31,0) -> 18118551.4 | AY34: =IF(Y34="aplica",($P35*Y35)*AX31,0) -> 18118551.4 | AZ34: =IF(Z34="aplica",($L35*Z35)*AZ31,0) -> 18697810.46 | BA34: =IF(AA34="aplica",($P35*AA35)*AZ31,0) -> 18697810.46 | BB34: =IF(AB34="aplica",($L35*AB35)*BB31,0) -> 19289015.28 | BC34: =IF(AC34="aplica",($P35*AC35)*BB31,0) -> 19289015.28 | BD34: =IF(AD34="aplica",($L35*AD35)*BD31,0) -> 19893219.94 | BE34: =IF(AE34="aplica",($P35*AE35)*BD31,0) -> 19893219.94 | BF34: =IF(AF34="aplica",($L35*AF35)*BF31,0) -> 20507103.22 | BG34: =IF(AG34="aplica",($P35*AG35)*BF31,0) -> 20507103.22 | BH34: =IF(AH34="aplica",($L35*AH35)*BH31,0) -> 21130000.2 | BI34: =IF(AI34="aplica",($P35*AI35)*BH31,0) -> 21130000.2 | BJ34: =IF(AJ34="aplica",($L35*AJ35)*BJ31,0) -> 21769846.67 | BK34: =IF(AK34="aplica",($P35*AK35)*BJ31,0) -> 21769846.67 | BL34: =IF(AL34="aplica",($L35*AL35)*BL31,0) -> 22440593.05 | BM34: =IF(AM34="aplica",($P35*AM35)*BL31,0) -> 22440593.05 | BN34: =IF(AN34="aplica",($L35*AN35)*BN31,0) -> 23119028.94 | BO34: =IF(AO34="aplica",($P35*AO35)*BN31,0) -> 23119028.94 | BP34: =IF(AP34="aplica",($L35*AP35)*BP31,0) -> 23824708.52 | BQ34: =IF(AQ34="aplica",($P35*AQ35)*BP31,0) -> 23824708.52
C35: Subtotal | L35: =SUM(L33:L34) -> 16458806.25 | N35: Subtotal Personal | P35: =SUM(P33:P34) -> 16458806.25 | S35: Porcentaje | T35: 1 | U35: 1 | V35: 1 | W35: 1 | X35: 1 | Y35: 1 | Z35: 1 | AA35: 1 | AB35: 1 | AC35: 1 | AD35: 1 | AE35: 1 | AF35: 1 | AG35: 1 | AH35: 1 | AI35: 1 | AJ35: 1 | AK35: 1 | AL35: 1 | AM35: 1 | AN35: 1 | AO35: 1 | AP35: 1 | AQ35: 1 | AS35: Costos Indirectos y Operacionales | AT35: =+IF(T36="Consultoria (25%)",AT34*25%,0)+IF(T36="Obra (30%)",AT34*30%,0)+IF(T36="Directo (20%)",AT34*20%,0)+IF(T36="No aplica",0,0)+IF(T36="Servicios (10%)",AT34*10%,0) -> 3400074.213 | AU35: =+IF(U36="Consultoria (25%)",AU34*25%,0)+IF(U36="Obra (30%)",AU34*30%,0)+IF(U36="Directo (20%)",AU34*20%,0)+IF(U36="No aplica",0,0)+IF(U36="Servicios (10%)",AU34*10%,0) -> 3400074.213 | AV35: =+IF(V36="Consultoria (25%)",AV34*25%,0)+IF(V36="Obra (30%)",AV34*30%,0)+IF(V36="Directo (20%)",AV34*20%,0)+IF(V36="No aplica",0,0)+IF(V36="Servicios (10%)",AV34*10%,0) -> 3511566.259 | AW35: 3511566.259 | AX35: 3623710.281 | AY35: 3623710.281 | AZ35: 3739562.092 | BA35: 3739562.092 | BB35: 3857803.055 | BC35: 3857803.055 | BD35: 3978643.987 | BE35: 3978643.987 | BF35: 4101420.645 | BG35: 4101420.645 | BH35: 4226000.039 | BI35: 4226000.039 | BJ35: 4353969.334 | BK35: 4353969.334 | BL35: 4488118.61 | BM35: 4488118.61 | BN35: 4623805.788 | BO35: 4623805.788 | BP35: 4764941.703 | BQ35: 4764941.703
C36: Costos Indirectos y Operacionales | D36: Directo (20%) | L36: =+IF(D36="Consultoria (25%)",L35*25%,0)+IF(D36="Obra (30%)",L35*30%,0)+IF(D36="Directo (20%)",L35*20%,0)+IF(D36="No aplica",0,0)+IF(D36="Servicios (10%)",L35*10%,0) -> 3291761.25 | N36: Costos Indirectos y Operacionales | O36: Directo (20%) | P36: =+IF(O36="Consultoria (25%)",P35*25%,0)+IF(O36="Obra (30%)",P35*30%,0)+IF(O36="Directo (20%)",P35*20%,0)+IF(O36="No aplica",0,0)+IF(O36="Servicios (10%)",P35*10%,0) -> 3291761.25 | S36: Costos Indirectos y Operacionales | T36: Directo (20%) | U36: Directo (20%) | V36: Directo (20%) | W36: Directo (20%) | X36: Directo (20%) | Y36: Directo (20%) | Z36: Directo (20%) | AA36: Directo (20%) | AB36: Directo (20%) | AC36: Directo (20%) | AD36: Directo (20%) | AE36: Directo (20%) | AF36: Directo (20%) | AG36: Directo (20%) | AH36: Directo (20%) | AI36: Directo (20%) | AJ36: Directo (20%) | AK36: Directo (20%) | AL36: Directo (20%) | AM36: Directo (20%) | AN36: Directo (20%) | AO36: Directo (20%) | AP36: Directo (20%) | AQ36: Directo (20%) | AS36: Seguimiento e Interventoría (10%) | AT36: =+IF(T37="Aplica",AT34*10%,0) -> 0 | AU36: =+IF(U37="Aplica",AU34*10%,0) -> 0 | AV36: =+IF(V37="Aplica",AV34*10%,0) -> 0 | AW36: 0 | AX36: 0 | AY36: 0 | AZ36: 0 | BA36: 0 | BB36: 0 | BC36: 0 | BD36: 0 | BE36: 0 | BF36: 0 | BG36: 0 | BH36: 0 | BI36: 0 | BJ36: 0 | BK36: 0 | BL36: 0 | BM36: 0 | BN36: 0 | BO36: 0 | BP36: 0 | BQ36: 0
C37: Seguimiento e Interventoría (10%) | D37: No Aplica | L37: =+IF(D37="Aplica",L35*10%,0) -> 0 | N37: Seguimiento e Interventoría (10%) | O37: No Aplica | P37: =+IF(O37="Aplica",P35*10%,0) -> 0 | S37: Seguimiento e Interventoría (10%) | T37: No Aplica | U37: No Aplica | V37: No Aplica | W37: No Aplica | X37: No Aplica | Y37: No Aplica | Z37: No Aplica | AA37: No Aplica | AB37: No Aplica | AC37: No Aplica | AD37: No Aplica | AE37: No Aplica | AF37: No Aplica | AG37: No Aplica | AH37: No Aplica | AI37: No Aplica | AJ37: No Aplica | AK37: No Aplica | AL37: No Aplica | AM37: No Aplica | AN37: No Aplica | AO37: No Aplica | AP37: No Aplica | AQ37: No Aplica | AS37: Licencias y estudios de campo | AT37: =+IF(T38="Basicos 7%",AT34*7%,IF(T38="Detallados 15%",AT34*15%,IF(T38="Avanzados 25%",AT34*25%,0))) -> 0 | AU37: =+IF(U38="Basicos 7%",AU34*7%,IF(U38="Detallados 15%",AU34*15%,IF(U38="Avanzados 25%",AU34*25%,0))) -> 0 | AV37: =+IF(V38="Basicos 7%",AV34*7%,IF(V38="Detallados 15%",AV34*15%,IF(V38="Avanzados 25%",AV34*25%,0))) -> 0 | AW37: 0 | AX37: 0 | AY37: 0 | AZ37: 0 | BA37: 0 | BB37: 0 | BC37: 0 | BD37: 0 | BE37: 0 | BF37: 0 | BG37: 0 | BH37: 0 | BI37: 0 | BJ37: 0 | BK37: 0 | BL37: 0 | BM37: 0 | BN37: 0 | BO37: 0 | BP37: 0 | BQ37: 0
C38: Licencias y estudios de campo | D38: No Aplica | L38: =+IF(D38="Basicos 7%",L35*7%,IF(D38="Detallados 15%",L35*15%,IF(D38="Avanzados 25%",L35*25%,0))) -> 0 | N38: Licencias y estudios de campo | O38: No Aplica | P38: =+IF(O38="Basicos 7%",P35*7%,IF(O38="Detallados 15%",P35*15%,IF(O38="Avanzados 25%",P35*25%,0))) -> 0 | S38: Licencias y estudios de campo | T38: No Aplica | U38: No Aplica | V38: No Aplica | W38: No Aplica | X38: No Aplica | Y38: No Aplica | Z38: No Aplica | AA38: No Aplica | AB38: No Aplica | AC38: No Aplica | AD38: No Aplica | AE38: No Aplica | AF38: No Aplica | AG38: No Aplica | AH38: No Aplica | AI38: No Aplica | AJ38: No Aplica | AK38: No Aplica | AL38: No Aplica | AM38: No Aplica | AN38: No Aplica | AO38: No Aplica | AP38: No Aplica | AQ38: No Aplica | AS38: Imprevistos (5%) | AT38: =+IF(T39="Aplica",AT34*5%,0) -> 0 | AU38: =+IF(U39="Aplica",AU34*5%,0) -> 0 | AV38: =+IF(V39="Aplica",AV34*5%,0) -> 0 | AW38: 0 | AX38: 0 | AY38: 0 | AZ38: 0 | BA38: 0 | BB38: 0 | BC38: 0 | BD38: 0 | BE38: 0 | BF38: 0 | BG38: 0 | BH38: 0 | BI38: 0 | BJ38: 0 | BK38: 0 | BL38: 0 | BM38: 0 | BN38: 0 | BO38: 0 | BP38: 0 | BQ38: 0
C39: Imprevistos (5%) | D39: No Aplica | L39: =+IF(D39="Aplica",L35*5%,0) -> 0 | N39: Imprevistos (5%) | O39: No Aplica | P39: =+IF(O39="Aplica",P35*5%,0) -> 0 | S39: Imprevistos (5%) | T39: No Aplica | U39: No Aplica | V39: No Aplica | W39: No Aplica | X39: No Aplica | Y39: No Aplica | Z39: No Aplica | AA39: No Aplica | AB39: No Aplica | AC39: No Aplica | AD39: No Aplica | AE39: No Aplica | AF39: No Aplica | AG39: No Aplica | AH39: No Aplica | AI39: No Aplica | AJ39: No Aplica | AK39: No Aplica | AL39: No Aplica | AM39: No Aplica | AN39: No Aplica | AO39: No Aplica | AP39: No Aplica | AQ39: No Aplica | AT39: =SUM(AT34:AT38) -> 20400445.28 | AU39: =SUM(AU34:AU38) -> 20400445.28 | AV39: =SUM(AV34:AV38) -> 21069397.56 | AW39: =SUM(AW34:AW38) -> 21069397.56 | AX39: =SUM(AX34:AX38) -> 21742261.68 | AY39: =SUM(AY34:AY38) -> 21742261.68 | AZ39: =SUM(AZ34:AZ38) -> 22437372.55 | BA39: =SUM(BA34:BA38) -> 22437372.55 | BB39: =SUM(BB34:BB38) -> 23146818.33 | BC39: =SUM(BC34:BC38) -> 23146818.33 | BD39: =SUM(BD34:BD38) -> 23871863.92 | BE39: =SUM(BE34:BE38) -> 23871863.92 | BF39: =SUM(BF34:BF38) -> 24608523.87 | BG39: =SUM(BG34:BG38) -> 24608523.87 | BH39: =SUM(BH34:BH38) -> 25356000.24 | BI39: =SUM(BI34:BI38) -> 25356000.24 | BJ39: =SUM(BJ34:BJ38) -> 26123816 | BK39: =SUM(BK34:BK38) -> 26123816 | BL39: =SUM(BL34:BL38) -> 26928711.66 | BM39: =SUM(BM34:BM38) -> 26928711.66 | BN39: =SUM(BN34:BN38) -> 27742834.73 | BO39: =SUM(BO34:BO38) -> 27742834.73 | BP39: =SUM(BP34:BP38) -> 28589650.22 | BQ39: =SUM(BQ34:BQ38) -> 28589650.22
A40: VALOR TOTAL ESTIMADO DE LA ACTIVIDAD | L40: =SUM(L35:L39) -> 19750567.5 | N40: Total Personal | P40: =SUM(P35:P39) -> 19750567.5
AT41: =+R44 -> Implementación del esquema de atención de las mayores frecuencias de lavado en las áreas priorizadas
AT42: 1.032904259 | AV42: 1.066774287 | AX42: 1.100842377 | AZ42: 1.136036853 | BB42: 1.171957126 | BD42: 1.208667241 | BF42: 1.245965407 | BH42: 1.283811224 | BJ42: 1.322686854 | BL42: 1.363439894 | BN42: 1.404660131 | BP42: 1.447535633
A43: COSTO DE LA ACTIVIDAD | N43: Personal Designado UAESP | S43: ASIGNACION DE RECURSOS POR PERIODO | AS43: ITEM | AT43: COSTO POR PERIODOS
A44: ACTIVIDAD | B44: ALCANCE | C44: ITEM | D44: DESCRIPCION | E44: Promedio en metros cuadrados de MFL y LE | F44: CATEGORIA | G44: ESPECIFICACION | H44: M2 | I44: VALOR M2 | J44: VALOR * M2 (Cifras expresadas en Millones de pesos) | K44: TIEMPO DE DEDICACION (MESES) | L44: VALOR TOTAL 2020 (Cifras expresadas en Millones de pesos) | N44: Lista | O44: Cantidad por Categoría | P44: Valor Mensual X Cantidad y X Tiempo | R44: Implementación del esquema de atención de las mayores frecuencias de lavado en las áreas priorizadas | S44: ITEM | T44: 2021 | V44: 2022 | X44: 2023 | Z44: 2024 | AB44: 2025 | AD44: 2026 | AF44: 2027 | AH44: 2028 | AJ44: 2029 | AL44: 2030 | AN44: 2031 | AP44: 2032 | AT44: 2021 | AV44: 2022 | AX44: 2023 | AZ44: 2024 | BB44: 2025 | BD44: 2026 | BF44: 2027 | BH44: 2028 | BJ44: 2029 | BL44: 2030 | BN44: 2031 | BP44: 2032
A45: Implementación del esquema de atención de las mayores frecuencias de lavado en las áreas priorizadas | B45: Un Esquema Implementado | C45: Estimado en base metros cuadrados intervenidos año 2020 siguiendo la metodología establecida en la Resolución CRA. 720/2015. Art. 18 | D45: Promedio en metros cuadrados de MFL y LE | E45: =+H45 -> 2199885 | F45: M2 | G45: =VLOOKUP(F45,HONORARIOS!A5:G26,2,0) -> COSTOS IMPLEMENTACION FRECUENCIAS DE LAVADO | H45: 2199885 | I45: =VLOOKUP(F45,HONORARIOS!A5:G26,5,0) -> 280.83 | J45: =+I45*H45 -> 617793704.5 | K45: 12 | L45: =+J45*K45 -> 7413524455 | O45: 0 | P45: =+L45 -> 7413524455 | S45: Estimado en base metros cuadrados intervenidos año 2020 siguiendo la metodología establecida en la Resolución CRA. 720/2015. Art. 18 | T45: Aplica | U45: =+IF(T45="Aplica","Aplica","No Aplica") -> Aplica | V45: Aplica | W45: =+IF(V45="Aplica","Aplica","No Aplica") -> Aplica | X45: Aplica | Y45: =+IF(X45="Aplica","Aplica","No Aplica") -> Aplica | Z45: Aplica | AA45: =+IF(Z45="Aplica","Aplica","No Aplica") -> Aplica | AB45: Aplica | AC45: =+IF(AB45="Aplica","Aplica","No Aplica") -> Aplica | AD45: Aplica | AE45: =+IF(AD45="Aplica","Aplica","No Aplica") -> Aplica | AF45: Aplica | AG45: =+IF(AF45="Aplica","Aplica","No Aplica") -> Aplica | AH45: Aplica | AI45: =+IF(AH45="Aplica","Aplica","No Aplica") -> Aplica | AJ45: Aplica | AK45: =+IF(AJ45="Aplica","Aplica","No Aplica") -> Aplica | AL45: Aplica | AM45: =+IF(AL45="Aplica","Aplica","No Aplica") -> Aplica | AN45: Aplica | AO45: =+IF(AN45="Aplica","Aplica","No Aplica") -> Aplica | AP45: Aplica | AQ45: =+IF(AP45="Aplica","Aplica","No Aplica") -> Aplica | AS45: Costos del Personal | AT45: =IF(T45="aplica",($L46*T46)*AT42,0) -> 7657460980 | AU45: =IF(U45="aplica",($P46*U46)*AT42,0) -> 7657460980 | AV45: =IF(V45="aplica",($L46*V46)*AV42,0) -> 7908557261 | AW45: =IF(W45="aplica",($P46*W46)*AV42,0) -> 7908557261 | AX45: =IF(X45="aplica",($L46*X46)*AX42,0) -> 8161121886 | AY45: =IF(Y45="aplica",($P46*Y46)*AX42,0) -> 8161121886 | AZ45: =IF(Z45="aplica",($L46*Z46)*AZ42,0) -> 8422036993 | BA45: =IF(AA45="aplica",($P46*AA46)*AZ42,0) -> 8422036993 | BB45: =IF(AB45="aplica",($L46*AB46)*BB42,0) -> 8688332816 | BC45: =IF(AC45="aplica",($P46*AC46)*BB42,0) -> 8688332816 | BD45: =IF(AD45="aplica",($L46*AD46)*BD42,0) -> 8960484147 | BE45: =IF(AE45="aplica",($P46*AE46)*BD42,0) -> 8960484147 | BF45: =IF(AF45="aplica",($L46*AF46)*BF42,0) -> 9236995012 | BG45: =IF(AG45="aplica",($P46*AG46)*BF42,0) -> 9236995012 | BH45: =IF(AH45="aplica",($L46*AH46)*BH42,0) -> 9517565904 | BI45: =IF(AI45="aplica",($P46*AI46)*BH42,0) -> 9517565904 | BJ45: =IF(AJ45="aplica",($L46*AJ46)*BJ42,0) -> 9805771342 | BK45: =IF(AK45="aplica",($P46*AK46)*BJ42,0) -> 9805771342 | BL45: =IF(AL45="aplica",($L46*AL46)*BL42,0) -> 1.0107895e+10 | BM45: =IF(AM45="aplica",($P46*AM46)*BL42,0) -> 1.0107895e+10 | BN45: =IF(AN45="aplica",($L46*AN46)*BN42,0) -> 1.041348223e+10 | BO45: =IF(AO45="aplica",($P46*AO46)*BN42,0) -> 1.041348223e+10 | BP45: =IF(AP45="aplica",($L46*AP46)*BP42,0) -> 1.073134081e+10 | BQ45: =IF(AQ45="aplica",($P46*AQ46)*BP42,0) -> 1.073134081e+10
C46: Subtotal | L46: =SUM(L45) -> 7413524455 | N46: Subtotal Personal | P46: =+P45 -> 7413524455 | S46: Porcentaje | T46: 1 | U46: 1 | V46: 1 | W46: 1 | X46: 1 | Y46: 1 | Z46: 1 | AA46: 1 | AB46: 1 | AC46: 1 | AD46: 1 | AE46: 1 | AF46: 1 | AG46: 1 | AH46: 1 | AI46: 1 | AJ46: 1 | AK46: 1 | AL46: 1 | AM46: 1 | AN46: 1 | AO46: 1 | AP46: 1 | AQ46: 1 | AS46: Costos Indirectos y Operacionales | AT46: =+IF(T47="Consultoria (25%)",AT45*25%,0)+IF(T47="Obra (30%)",AT45*30%,0)+IF(T47="Directo (20%)",AT45*20%,0)+IF(T47="No aplica",0,0)+IF(T47="Servicios (10%)",AT45*10%,0) -> 0 | AU46: =+IF(U47="Consultoria (25%)",AU45*25%,0)+IF(U47="Obra (30%)",AU45*30%,0)+IF(U47="Directo (20%)",AU45*20%,0)+IF(U47="No aplica",0,0)+IF(U47="Servicios (10%)",AU45*10%,0) -> 0 | AV46: =+IF(V47="Consultoria (25%)",AV45*25%,0)+IF(V47="Obra (30%)",AV45*30%,0)+IF(V47="Directo (20%)",AV45*20%,0)+IF(V47="No aplica",0,0)+IF(V47="Servicios (10%)",AV45*10%,0) -> 0 | AW46: 0 | AX46: 0 | AY46: 0 | AZ46: 0 | BA46: 0 | BB46: 0 | BC46: 0 | BD46: 0 | BE46: 0 | BF46: 0 | BG46: 0 | BH46: 0 | BI46: 0 | BJ46: 0 | BK46: 0 | BL46: 0 | BM46: 0 | BN46: 0 | BO46: 0 | BP46: 0 | BQ46: 0
C47: Costos Indirectos y Operacionales | D47: No Aplica | L47: =+IF(D47="Consultoria (25%)",L46*25%,0)+IF(D47="Obra (30%)",L46*30%,0)+IF(D47="Directo (20%)",L46*20%,0)+IF(D47="No aplica",0,0)+IF(D47="Servicios (10%)",L46*10%,0) -> 0 | N47: Costos Indirectos y Operacionales | O47: No Aplica | P47: =+IF(O47="Consultoria (25%)",P46*25%,0)+IF(O47="Obra (30%)",P46*30%,0)+IF(O47="Directo (20%)",P46*20%,0)+IF(O47="No aplica",0,0)+IF(O47="Servicios (10%)",P46*10%,0) -> 0 | S47: Costos Indirectos y Operacionales | T47: No Aplica | U47: No Aplica | V47: No Aplica | W47: No Aplica | X47: No Aplica | Y47: No Aplica | Z47: No Aplica | AA47: No Aplica | AB47: No Aplica | AC47: No Aplica | AD47: No Aplica | AE47: No Aplica | AF47: No Aplica | AG47: No Aplica | AH47: No Aplica | AI47: No Aplica | AJ47: No Aplica | AK47: No Aplica | AL47: No Aplica | AM47: No Aplica | AN47: No Aplica | AO47: No Aplica | AP47: No Aplica | AQ47: No Aplica | AS47: Seguimiento e Interventoría (10%) | AT47: =+IF(T48="Aplica",AT45*10%,0) -> 0 | AU47: =+IF(U48="Aplica",AU45*10%,0) -> 0 | AV47: =+IF(V48="Aplica",AV45*10%,0) -> 0 | AW47: 0 | AX47: 0 | AY47: 0 | AZ47: 0 | BA47: 0 | BB47: 0 | BC47: 0 | BD47: 0 | BE47: 0 | BF47: 0 | BG47: 0 | BH47: 0 | BI47: 0 | BJ47: 0 | BK47: 0 | BL47: 0 | BM47: 0 | BN47: 0 | BO47: 0 | BP47: 0 | BQ47: 0
C48: Seguimiento e Interventoría (10%) | D48: No Aplica | L48: =+IF(D48="Aplica",L46*10%,0) -> 0 | N48: Seguimiento e Interventoría (10%) | O48: No Aplica | P48: =+IF(O48="Aplica",P46*10%,0) -> 0 | S48: Seguimiento e Interventoría (10%) | T48: No Aplica | U48: No Aplica | V48: No Aplica | W48: No Aplica | X48: No Aplica | Y48: No Aplica | Z48: No Aplica | AA48: No Aplica | AB48: No Aplica | AC48: No Aplica | AD48: No Aplica | AE48: No Aplica | AF48: No Aplica | AG48: No Aplica | AH48: No Aplica | AI48: No Aplica | AJ48: No Aplica | AK48: No Aplica | AL48: No Aplica | AM48: No Aplica | AN48: No Aplica | AO48: No Aplica | AP48: No Aplica | AQ48: No Aplica | AS48: Licencias y estudios de campo | AT48: =+IF(T49="Basicos 7%",AT45*7%,IF(T49="Detallados 15%",AT45*15%,IF(T49="Avanzados 25%",AT45*25%,0))) -> 0 | AU48: =+IF(U49="Basicos 7%",AU45*7%,IF(U49="Detallados 15%",AU45*15%,IF(U49="Avanzados 25%",AU45*25%,0))) -> 0 | AV48: =+IF(V49="Basicos 7%",AV45*7%,IF(V49="Detallados 15%",AV45*15%,IF(V49="Avanzados 25%",AV45*25%,0))) -> 0 | AW48: 0 | AX48: 0 | AY48: 0 | AZ48: 0 | BA48: 0 | BB48: 0 | BC48: 0 | BD48: 0 | BE48: 0 | BF48: 0 | BG48: 0 | BH48: 0 | BI48: 0 | BJ48: 0 | BK48: 0 | BL48: 0 | BM48: 0 | BN48: 0 | BO48: 0 | BP48: 0 | BQ48: 0
C49: Licencias y estudios de campo | D49: No Aplica | L49: =+IF(D49="Basicos 7%",L46*7%,IF(D49="Detallados 15%",L46*15%,IF(D49="Avanzados 25%",L46*25%,0))) -> 0 | N49: Licencias y estudios de campo | O49: No Aplica | P49: =+IF(O49="Basicos 7%",P46*7%,IF(O49="Detallados 15%",P46*15%,IF(O49="Avanzados 25%",P46*25%,0))) -> 0 | S49: Licencias y estudios de campo | T49: No Aplica | U49: No Aplica | V49: No Aplica | W49: No Aplica | X49: No Aplica | Y49: No Aplica | Z49: No Aplica | AA49: No Aplica | AB49: No Aplica | AC49: No Aplica | AD49: No Aplica | AE49: No Aplica | AF49: No Aplica | AG49: No Aplica | AH49: No Aplica | AI49: No Aplica | AJ49: No Aplica | AK49: No Aplica | AL49: No Aplica | AM49: No Aplica | AN49: No Aplica | AO49: No Aplica | AP49: No Aplica | AQ49: No Aplica | AS49: Imprevistos (5%) | AT49: =+IF(T50="Aplica",AT45*5%,0) -> 0 | AU49: =+IF(U50="Aplica",AU45*5%,0) -> 0 | AV49: =+IF(V50="Aplica",AV45*5%,0) -> 0 | AW49: 0 | AX49: 0 | AY49: 0 | AZ49: 0 | BA49: 0 | BB49: 0 | BC49: 0 | BD49: 0 | BE49: 0 | BF49: 0 | BG49: 0 | BH49: 0 | BI49: 0 | BJ49: 0 | BK49: 0 | BL49: 0 | BM49: 0 | BN49: 0 | BO49: 0 | BP49: 0 | BQ49: 0
C50: Imprevistos (5%) | D50: No Aplica | L50: =+IF(D50="Aplica",L46*5%,0) -> 0 | N50: Imprevistos (5%) | O50: No Aplica | P50: =+IF(O50="Aplica",P46*5%,0) -> 0 | S50: Imprevistos (5%) | T50: No Aplica | U50: No Aplica | V50: No Aplica | W50: No Aplica | X50: No Aplica | Y50: No Aplica | Z50: No Aplica | AA50: No Aplica | AB50: No Aplica | AC50: No Aplica | AD50: No Aplica | AE50: No Aplica | AF50: No Aplica | AG50: No Aplica | AH50: No Aplica | AI50: No Aplica | AJ50: No Aplica | AK50: No Aplica | AL50: No Aplica | AM50: No Aplica | AN50: No Aplica | AO50: No Aplica | AP50: No Aplica | AQ50: No Aplica | AT50: =SUM(AT45:AT49) -> 7657460980 | AU50: =SUM(AU45:AU49) -> 7657460980 | AV50: =SUM(AV45:AV49) -> 7908557261 | AW50: =SUM(AW45:AW49) -> 7908557261 | AX50: =SUM(AX45:AX49) -> 8161121886 | AY50: =SUM(AY45:AY49) -> 8161121886 | AZ50: =SUM(AZ45:AZ49) -> 8422036993 | BA50: =SUM(BA45:BA49) -> 8422036993 | BB50: =SUM(BB45:BB49) -> 8688332816 | BC50: =SUM(BC45:BC49) -> 8688332816 | BD50: =SUM(BD45:BD49) -> 8960484147 | BE50: =SUM(BE45:BE49) -> 8960484147 | BF50: =SUM(BF45:BF49) -> 9236995012 | BG50: =SUM(BG45:BG49) -> 9236995012 | BH50: =SUM(BH45:BH49) -> 9517565904 | BI50: =SUM(BI45:BI49) -> 9517565904 | BJ50: =SUM(BJ45:BJ49) -> 9805771342 | BK50: =SUM(BK45:BK49) -> 9805771342 | BL50: =SUM(BL45:BL49) -> 1.0107895e+10 | BM50: =SUM(BM45:BM49) -> 1.0107895e+10 | BN50: =SUM(BN45:BN49) -> 1.041348223e+10 | BO50: =SUM(BO45:BO49) -> 1.041348223e+10 | BP50: =SUM(BP45:BP49) -> 1.073134081e+10 | BQ50: =SUM(BQ45:BQ49) -> 1.073134081e+10
A51: VALOR TOTAL ESTIMADO DE LA ACTIVIDAD | L51: =SUM(L46:L50) -> 7413524455 | N51: Total Personal | P51: =SUM(P46:P50) -> 7413524455
A53: VALOR ESTIMADO DEL PROYECTO | L53: =+L28+L40+L51 -> 7656061423 | N53: VALOR ESTIMADO DEL PERSONAL | P53: =+P28+P40+P51 -> 7529657791 | AT53: =+AT27+AT39+AT50 -> 7907978448 | AU53: =+AU27+AU39+AU50 -> 7777415598 | AV53: =+AV27+AV39+AV50 -> 8167289463 | AW53: =+AW27+AW39+AW50 -> 8032445319 | AX53: =+AX27+AX39+AX50 -> 8428116860 | AY53: 8288966385 | AZ53: 8697567928 | BA53: 8553968744 | BB53: 8972575746 | BC53: 8824436108 | BD53: 9253630636 | BE53: 9100850707 | BF53: 9539187685 | BG53: 9381693133 | BH53: 9828937587 | BI53: 9666659185 | BJ53: 1.01265718e+10 | BK53: 9959379380 | BL53: 1.043857958e+10 | BM53: 1.026623582e+10 | BN53: 1.075416424e+10 | BO53: 1.05766101e+10 | BP53: 1.108242172e+10 | BQ53: 1.089944795e+10
A54: VALOR ESTIMADO DEL PROGRAMA | L54: =+L15+L53 -> 7733295469 | N54: VALOR ESTIMADO EN EL PROGRAMA | P54: =+P53+P15 -> 7559363194
AT55: =SUM(AT53+AT15) -> 7978180778 | AU55: =SUM(AU53+AU15) -> 7804416494 | AV55: 8243089454 | AW55: 8060331603 | AX55: 8502936669 | AY55: 8317743234 | AZ55: 8697567928 | BA55: 8553968744 | BB55: 8972575746 | BC55: 8824436108 | BD55: 9253630636 | BE55: 9100850707 | BF55: 9539187685 | BG55: 9381693133 | BH55: 9828937587 | BI55: 9666659185 | BJ55: 1.01265718e+10 | BK55: 9959379380 | BL55: 1.043857958e+10 | BM55: 1.026623582e+10 | BN55: 1.075416424e+10 | BO55: 1.05766101e+10 | BP55: 1.108242172e+10 | BQ55: 1.089944795e+10

Sheet PROGRAMA RIESGOS
A2: Proyecto 1. Generar una estrategia de gobernanza y gobernabilidad de normas que involucran a diferentes entidades sobre la gestión integral del riesgo asociada a la gestión integral de residuos sólidos del Distrito. | S2: Proyecto 1. Generar una estrategia de gobernanza y gobernabilidad de normas que involucran a diferentes entidades sobre la gestión integral del riesgo asociada a la gestión integral de residuos sólidos del Distrito.
A3: COSTO DE LA ACTIVIDAD | N3: Personal Designado UAESP | AT3: =+R5 -> Identificar y priorizar escenarios de riesgo asociados a la gestión integral de residuos sólidos por localidad
A4: ACTIVIDAD | B4: ALCANCE | C4: ITEM | D4: DESCRIPCION | E4: PERSONAL TOTAL | F4: CATEGORIA | G4: ESPECIFICACION | H4: CANTIDAD POR CATEGORIA | I4: VALOR UNITARIO (Cifras expresadas en Millones de pesos) | J4: VALOR MES * CANTIDAD (Cifras expresadas en Millones de pesos) | K4: TIEMPO DE DEDICACION (MESES) | L4: VALOR TOTAL 2020 (Cifras expresadas en Millones de pesos) | N4: Lista | O4: Cantida por Categoria | P4: Valor Mensual X Cantidad y X Tiempo | S4: ASIGNACION DE RECURSOS POR PERIODO | AT4: 1.032904259 | AV4: 1.066774287 | AX4: 1.100842377 | AZ4: 1.136036853 | BB4: 1.171957126 | BD4: 1.208667241 | BF4: 1.245965407 | BH4: 1.283811224 | BJ4: 1.322686854 | BL4: 1.363439894 | BN4: 1.404660131 | BP4: 1.447535633
A5: Identificar y priorizar escenarios de riesgo asociados a la gestión integral de residuos sólidos por localidad | B5: Un Documento Tecnico que cintenga 20 escenarios de riesgo asociado a residuos sólidos identificados y priorizados | C5: Detalle del Personal | D5: Un coordinador profesional en Administración ambiental o afines con maestría en el campo de las ciencias ambientales y/o Gestión integral del Riesgo y con una experiencia no menor a 5 años Un profesional ambiental o afines con 3 años experiencia Un trabajador social o antropólogo con 3 años experiencia Ingeniero geodesta, catastral o afines con 3 años experiencia Dos técnicos o ingenieros sin experiencia de apoyo operativo | E5: =+SUM(H5:H7) -> 6 | F5: 14 | G5: =VLOOKUP(F5,HONORARIOS!$A$5:$G$25,2,0) -> TITULO PROFESIONAL Y TITULO DE POSGRADO DESDE TRES (3) HASTA SEIS (6) AÑOS DE EXPERIENCIA PROFESIONAL | H5: 1 | I5: =VLOOKUP(F5,HONORARIOS!$A$5:$G$25,5,0) -> 7900227 | J5: =+I5*H5 -> 7900227 | K5: 12 | L5: =+J5*K5 -> 94802724 | O5: 1 | P5: =+(O5*I5)*K5 -> 94802724 | R5: Identificar y priorizar escenarios de riesgo asociados a la gestión integral de residuos sólidos por localidad | S5: ITEM | T5: 2021 | V5: 2022 | X5: 2023 | Z5: 2024 | AB5: 2025 | AD5: 2026 | AF5: 2027 | AH5: 2028 | AJ5: 2029 | AL5: 2030 | AN5: 2031 | AP5: 2032 | AS5: ITEM | AT5: COSTO POR PERIODOS
F6: 11 | G6: =VLOOKUP(F6,HONORARIOS!$A$5:$G$25,2,0) -> TITULO PROFESIONAL DESDE TRES (3) HASTA SEIS (6) AÑOS DE EXPERIENCIA PROFESIONAL | H6: 3 | I6: =VLOOKUP(F6,HONORARIOS!$A$5:$G$25,5,0) -> 5705719.5 | J6: =+I6*H6 -> 17117158.5 | K6: 12 | L6: =+J6*K6 -> 205405902 | O6: 3 | P6: =+(O6*I6)*K6 -> 205405902 | T6: Proyeccion Actividad | U6: Proyeccion UAESP | V6: Proyeccion Actividad | W6: Proyeccion UAESP | X6: Proyeccion Actividad | Y6: Proyeccion UAESP | Z6: Proyeccion Actividad | AA6: Proyeccion UAESP | AB6: Proyeccion Actividad | AC6: Proyeccion UAESP | AD6: Proyeccion Actividad | AE6: Proyeccion UAESP | AF6: Proyeccion Actividad | AG6: Proyeccion UAESP | AH6: Proyeccion Actividad | AI6: Proyeccion UAESP | AJ6: Proyeccion Actividad | AK6: Proyeccion UAESP | AL6: Proyeccion Actividad | AM6: Proyeccion UAESP | AN6: Proyeccion Actividad | AO6: Proyeccion UAESP | AP6: Proyeccion Actividad | AQ6: Proyeccion UAESP | AT6: 2021 | AV6: 2022 | AX6: 2023 | AZ6: 2024 | BB6: 2025 | BD6: 2026 | BF6: 2027 | BH6: 2028 | BJ6: 2029 | BL6: 2030 | BN6: 2031 | BP6: 2032
F7: 9 | G7: =VLOOKUP(F7,HONORARIOS!$A$5:$G$25,2,0) -> TITULO PROFESIONAL SIN EXPERIENCIA PROFESIONAL | H7: 2 | I7: =VLOOKUP(F7,HONORARIOS!$A$5:$G$25,5,0) -> 3950113.5 | J7: =+I7*H7 -> 7900227 | K7: 12 | L7: =+J7*K7 -> 94802724 | O7: 2 | P7: =+(O7*I7)*K7 -> 94802724 | S7: Costos del Personal | T7: Aplica | U7: Aplica | V7: No Aplica | W7: =+IF(V7="Aplica","Aplica","No Aplica") -> No Aplica | X7: No Aplica | Y7: =+IF(X7="Aplica","Aplica","No Aplica") -> No Aplica | Z7: No Aplica | AA7: =+IF(Z7="Aplica","Aplica","No Aplica") -> No Aplica | AB7: No Aplica | AC7: =+IF(AB7="Aplica","Aplica","No Aplica") -> No Aplica | AD7: No Aplica | AE7: =+IF(AD7="Aplica","Aplica","No Aplica") -> No Aplica | AF7: No Aplica | AG7: =+IF(AF7="Aplica","Aplica","No Aplica") -> No Aplica | AH7: No Aplica | AI7: =+IF(AH7="Aplica","Aplica","No Aplica") -> No Aplica | AJ7: No Aplica | AK7: =+IF(AJ7="Aplica","Aplica","No Aplica") -> No Aplica | AL7: No Aplica | AM7: =+IF(AL7="Aplica","Aplica","No Aplica") -> No Aplica | AN7: No Aplica | AO7: =+IF(AN7="Aplica","Aplica","No Aplica") -> No Aplica | AP7: No Aplica | AQ7: =+IF(AP7="Aplica","Aplica","No Aplica") -> No Aplica | AS7: Costos del Personal | AT7: =IF(T7="aplica",($L8*T8)*AT4,0) -> 408008905.6 | AU7: =IF(U7="aplica",($P8*U8)*AT4,0) -> 408008905.6 | AV7: =IF(V7="aplica",($L8*V8)*AV4,0) -> 0 | AW7: =IF(W7="aplica",($P8*W8)*AV4,0) -> 0 | AX7: =IF(X7="aplica",($L8*X8)*AX4,0) -> 0 | AY7: =IF(Y7="aplica",($P8*Y8)*AX4,0) -> 0 | AZ7: =IF(Z7="aplica",($L8*Z8)*AZ4,0) -> 0 | BA7: =IF(AA7="aplica",($P8*AA8)*AZ4,0) -> 0 | BB7: =IF(AB7="aplica",($L8*AB8)*BB4,0) -> 0 | BC7: =IF(AC7="aplica",($P8*AC8)*BB4,0) -> 0 | BD7: =IF(AD7="aplica",($L8*AD8)*BD4,0) -> 0 | BE7: =IF(AE7="aplica",($P8*AE8)*BD4,0) -> 0 | BF7: =IF(AF7="aplica",($L8*AF8)*BF4,0) -> 0 | BG7: =IF(AG7="aplica",($P8*AG8)*BF4,0) -> 0 | BH7: =IF(AH7="aplica",($L8*AH8)*BH4,0) -> 0 | BI7: =IF(AI7="aplica",($P8*AI8)*BH4,0) -> 0 | BJ7: =IF(AJ7="aplica",($L8*AJ8)*BJ4,0) -> 0 | BK7: =IF(AK7="aplica",($P8*AK8)*BJ4,0) -> 0 | BL7: =IF(AL7="aplica",($L8*AL8)*BL4,0) -> 0 | BM7: =IF(AM7="aplica",($P8*AM8)*BL4,0) -> 0 | BN7: =IF(AN7="aplica",($L8*AN8)*BN4,0) -> 0 | BO7: =IF(AO7="aplica",($P8*AO8)*BN4,0) -> 0 | BP7: =IF(AP7="aplica",($L8*AP8)*BP4,0) -> 0 | BQ7: =IF(AQ7="aplica",($P8*AQ8)*BP4,0) -> 0
C8: Subtotal | L8: =SUM(L5:L7) -> 395011350 | N8: Subtotal Personal | P8: =SUM(P5:P7) -> 395011350 | S8: Porcentaje | T8: 1 | U8: 1 | V8: 1 | W8: 1 | X8: 1 | Y8: 1 | Z8: 1 | AA8: 1 | AB8: 1 | AC8: 1 | AD8: 1 | AE8: 1 | AF8: 1 | AG8: 1 | AH8: 1 | AI8: 1 | AJ8: 1 | AK8: 1 | AL8: 1 | AM8: 1 | AN8: 1 | AO8: 1 | AP8: 1 | AQ8: 1 | AS8: Costos Indirectos y Operacionales | AT8: =+IF(T9="Consultoria (25%)",AT7*25%,0)+IF(T9="Obra (30%)",AT7*30%,0)+IF(T9="Directo (20%)",AT7*20%,0)+IF(T9="No aplica",0,0)+IF(T9="Servicios (10%)",AT7*10%,0) -> 81601781.12 | AU8: 81601781.12 | AV8: =+IF(V9="Consultoria (25%)",AV7*25%,0)+IF(V9="Obra (30%)",AV7*30%,0)+IF(V9="Directo (20%)",AV7*20%,0)+IF(V9="No aplica",0,0)+IF(V9="Servicios (10%)",AV7*10%,0) -> 0 | AW8: =+IF(W9="Consultoria (25%)",AW7*25%,0)+IF(W9="Obra (30%)",AW7*30%,0)+IF(W9="Directo (20%)",AW7*20%,0)+IF(W9="No aplica",0,0)+IF(W9="Servicios (10%)",AW7*10%,0) -> 0 | AX8: =+IF(X9="Consultoria (25%)",AX7*25%,0)+IF(X9="Obra (30%)",AX7*30%,0)+IF(X9="Directo (20%)",AX7*20%,0)+IF(X9="No aplica",0,0)+IF(X9="Servicios (10%)",AX7*10%,0) -> 0 | AY8: =+IF(Y9="Consultoria (25%)",AY7*25%,0)+IF(Y9="Obra (30%)",AY7*30%,0)+IF(Y9="Directo (20%)",AY7*20%,0)+IF(Y9="No aplica",0,0)+IF(Y9="Servicios (10%)",AY7*10%,0) -> 0 | AZ8: =+IF(Z9="Consultoria (25%)",AZ7*25%,0)+IF(Z9="Obra (30%)",AZ7*30%,0)+IF(Z9="Directo (20%)",AZ7*20%,0)+IF(Z9="No aplica",0,0)+IF(Z9="Servicios (10%)",AZ7*10%,0) -> 0 | BA8: =+IF(AA9="Consultoria (25%)",BA7*25%,0)+IF(AA9="Obra (30%)",BA7*30%,0)+IF(AA9="Directo (20%)",BA7*20%,0)+IF(AA9="No aplica",0,0)+IF(AA9="Servicios (10%)",BA7*10%,0) -> 0 | BB8: =+IF(AB9="Consultoria (25%)",BB7*25%,0)+IF(AB9="Obra (30%)",BB7*30%,0)+IF(AB9="Directo (20%)",BB7*20%,0)+IF(AB9="No aplica",0,0)+IF(AB9="Servicios (10%)",BB7*10%,0) -> 0 | BC8: =+IF(AC9="Consultoria (25%)",BC7*25%,0)+IF(AC9="Obra (30%)",BC7*30%,0)+IF(AC9="Directo (20%)",BC7*20%,0)+IF(AC9="No aplica",0,0)+IF(AC9="Servicios (10%)",BC7*10%,0) -> 0 | BD8: =+IF(AD9="Consultoria (25%)",BD7*25%,0)+IF(AD9="Obra (30%)",BD7*30%,0)+IF(AD9="Directo (20%)",BD7*20%,0)+IF(AD9="No aplica",0,0)+IF(AD9="Servicios (10%)",BD7*10%,0) -> 0 | BE8: =+IF(AE9="Consultoria (25%)",BE7*25%,0)+IF(AE9="Obra (30%)",BE7*30%,0)+IF(AE9="Directo (20%)",BE7*20%,0)+IF(AE9="No aplica",0,0)+IF(AE9="Servicios (10%)",BE7*10%,0) -> 0 | BF8: =+IF(AF9="Consultoria (25%)",BF7*25%,0)+IF(AF9="Obra (30%)",BF7*30%,0)+IF(AF9="Directo (20%)",BF7*20%,0)+IF(AF9="No aplica",0,0)+IF(AF9="Servicios (10%)",BF7*10%,0) -> 0 | BG8: =+IF(AG9="Consultoria (25%)",BG7*25%,0)+IF(AG9="Obra (30%)",BG7*30%,0)+IF(AG9="Directo (20%)",BG7*20%,0)+IF(AG9="No aplica",0,0)+IF(AG9="Servicios (10%)",BG7*10%,0) -> 0 | BH8: =+IF(AH9="Consultoria (25%)",BH7*25%,0)+IF(AH9="Obra (30%)",BH7*30%,0)+IF(AH9="Directo (20%)",BH7*20%,0)+IF(AH9="No aplica",0,0)+IF(AH9="Servicios (10%)",BH7*10%,0) -> 0 | BI8: =+IF(AI9="Consultoria (25%)",BI7*25%,0)+IF(AI9="Obra (30%)",BI7*30%,0)+IF(AI9="Directo (20%)",BI7*20%,0)+IF(AI9="No aplica",0,0)+IF(AI9="Servicios (10%)",BI7*10%,0) -> 0 | BJ8: =+IF(AJ9="Consultoria (25%)",BJ7*25%,0)+IF(AJ9="Obra (30%)",BJ7*30%,0)+IF(AJ9="Directo (20%)",BJ7*20%,0)+IF(AJ9="No aplica",0,0)+IF(AJ9="Servicios (10%)",BJ7*10%,0) -> 0 | BK8: =+IF(AK9="Consultoria (25%)",BK7*25%,0)+IF(AK9="Obra (30%)",BK7*30%,0)+IF(AK9="Directo (20%)",BK7*20%,0)+IF(AK9="No aplica",0,0)+IF(AK9="Servicios (10%)",BK7*10%,0) -> 0 | BL8: =+IF(AL9="Consultoria (25%)",BL7*25%,0)+IF(AL9="Obra (30%)",BL7*30%,0)+IF(AL9="Directo (20%)",BL7*20%,0)+IF(AL9="No aplica",0,0)+IF(AL9="Servicios (10%)",BL7*10%,0) -> 0 | BM8: =+IF(AM9="Consultoria (25%)",BM7*25%,0)+IF(AM9="Obra (30%)",BM7*30%,0)+IF(AM9="Directo (20%)",BM7*20%,0)+IF(AM9="No aplica",0,0)+IF(AM9="Servicios (10%)",BM7*10%,0) -> 0 | BN8: =+IF(AN9="Consultoria (25%)",BN7*25%,0)+IF(AN9="Obra (30%)",BN7*30%,0)+IF(AN9="Directo (20%)",BN7*20%,0)+IF(AN9="No aplica",0,0)+IF(AN9="Servicios (10%)",BN7*10%,0) -> 0 | BO8: =+IF(AO9="Consultoria (25%)",BO7*25%,0)+IF(AO9="Obra (30%)",BO7*30%,0)+IF(AO9="Directo (20%)",BO7*20%,0)+IF(AO9="No aplica",0,0)+IF(AO9="Servicios (10%)",BO7*10%,0) -> 0 | BP8: =+IF(AP9="Consultoria (25%)",BP7*25%,0)+IF(AP9="Obra (30%)",BP7*30%,0)+IF(AP9="Directo (20%)",BP7*20%,0)+IF(AP9="No aplica",0,0)+IF(AP9="Servicios (10%)",BP7*10%,0) -> 0 | BQ8: =+IF(AQ9="Consultoria (25%)",BQ7*25%,0)+IF(AQ9="Obra (30%)",BQ7*30%,0)+IF(AQ9="Directo (20%)",BQ7*20%,0)+IF(AQ9="No aplica",0,0)+IF(AQ9="Servicios (10%)",BQ7*10%,0) -> 0
C9: Costos Indirectos y Operacionales | D9: Directo (20%) | L9: =+IF(D9="Consultoria (25%)",L8*25%,0)+IF(D9="Obra (30%)",L8*30%,0)+IF(D9="Directo (20%)",L8*20%,0)+IF(D9="No aplica",0,0)+IF(D9="Servicios (10%)",L8*10%,0) -> 79002270 | N9: Costos Indirectos y Operacionales | O9: Directo (20%) | P9: =+IF(O9="Consultoria (25%)",P8*25%,0)+IF(O9="Obra (30%)",P8*30%,0)+IF(O9="Directo (20%)",P8*20%,0)+IF(O9="No aplica",0,0)+IF(O9="Servicios (10%)",P8*10%,0) -> 79002270 | S9: Costos Indirectos y Operacionales | T9: Directo (20%) | U9: Directo (20%) | V9: Directo (20%) | W9: Directo (20%) | X9: Directo (20%) | Y9: Directo (20%) | Z9: Directo (20%) | AA9: Directo (20%) | AB9: Directo (20%) | AC9: Directo (20%) | AD9: Directo (20%) | AE9: Directo (20%) | AF9: Directo (20%) | AG9: Directo (20%) | AH9: Directo (20%) | AI9: Directo (20%) | AJ9: Directo (20%) | AK9: Directo (20%) | AL9: Directo (20%) | AM9: Directo (20%) | AN9: Directo (20%) | AO9: Directo (20%) | AP9: Directo (20%) | AQ9: Directo (20%) | AS9: Seguimiento e Interventoria (10%) | AT9: =+IF(T10="Aplica",AT7*10%,0) -> 0 | AU9: 0 | AV9: =+IF(V10="Aplica",AV7*10%,0) -> 0 | AW9: =+IF(W10="Aplica",AW7*10%,0) -> 0 | AX9: =+IF(X10="Aplica",AX7*10%,0) -> 0 | AY9: =+IF(Y10="Aplica",AY7*10%,0) -> 0 | AZ9: =+IF(Z10="Aplica",AZ7*10%,0) -> 0 | BA9: =+IF(AA10="Aplica",BA7*10%,0) -> 0 | BB9: =+IF(AB10="Aplica",BB7*10%,0) -> 0 | BC9: =+IF(AC10="Aplica",BC7*10%,0) -> 0 | BD9: =+IF(AD10="Aplica",BD7*10%,0) -> 0 | BE9: =+IF(AE10="Aplica",BE7*10%,0) -> 0 | BF9: =+IF(AF10="Aplica",BF7*10%,0) -> 0 | BG9: =+IF(AG10="Aplica",BG7*10%,0) -> 0 | BH9: =+IF(AH10="Aplica",BH7*10%,0) -> 0 | BI9: =+IF(AI10="Aplica",BI7*10%,0) -> 0 | BJ9: =+IF(AJ10="Aplica",BJ7*10%,0) -> 0 | BK9: =+IF(AK10="Aplica",BK7*10%,0) -> 0 | BL9: =+IF(AL10="Aplica",BL7*10%,0) -> 0 | BM9: =+IF(AM10="Aplica",BM7*10%,0) -> 0 | BN9: =+IF(AN10="Aplica",BN7*10%,0) -> 0 | BO9: =+IF(AO10="Aplica",BO7*10%,0) -> 0 | BP9: =+IF(AP10="Aplica",BP7*10%,0) -> 0 | BQ9: =+IF(AQ10="Aplica",BQ7*10%,0) -> 0
C10: Seguimiento e Interventoria (10%) | D10: No Aplica | L10: =+IF(D10="Aplica",L8*10%,0) -> 0 | N10: Seguimiento e Interventoria (10%) | O10: No Aplica | P10: =+IF(O10="Aplica",P8*10%,0) -> 0 | S10: Seguimiento e Interventoria (10%) | T10: No Aplica | U10: No Aplica | V10: Aplica | W10: Aplica | X10: No Aplica | Y10: No Aplica | Z10: Aplica | AA10: No Aplica | AB10: Aplica | AC10: No Aplica | AD10: Aplica | AE10: No Aplica | AF10: Aplica | AG10: No Aplica | AH10: Aplica | AI10: Aplica | AJ10: Aplica | AK10: No Aplica | AL10: No Aplica | AM10: No Aplica | AN10: Aplica | AO10: No Aplica | AP10: Aplica | AQ10: No Aplica | AS10: Licencias y estudios de campo | AT10: =+IF(T11="Basicos 7%",AT7*7%,IF(T11="Detallados 15%",AT7*15%,IF(T11="Avanzados 25%",AT7*25%,0))) -> 0 | AU10: 0 | AV10: =+IF(V11="Basicos 7%",AV7*7%,IF(V11="Detallados 15%",AV7*15%,IF(V11="Avanzados 25%",AV7*25%,0))) -> 0 | AW10: =+IF(W11="Basicos 7%",AW7*7%,IF(W11="Detallados 15%",AW7*15%,IF(W11="Avanzados 25%",AW7*25%,0))) -> 0 | AX10: =+IF(X11="Basicos 7%",AX7*7%,IF(X11="Detallados 15%",AX7*15%,IF(X11="Avanzados 25%",AX7*25%,0))) -> 0 | AY10: =+IF(Y11="Basicos 7%",AY7*7%,IF(Y11="Detallados 15%",AY7*15%,IF(Y11="Avanzados 25%",AY7*25%,0))) -> 0 | AZ10: =+IF(Z11="Basicos 7%",AZ7*7%,IF(Z11="Detallados 15%",AZ7*15%,IF(Z11="Avanzados 25%",AZ7*25%,0))) -> 0 | BA10: =+IF(AA11="Basicos 7%",BA7*7%,IF(AA11="Detallados 15%",BA7*15%,IF(AA11="Avanzados 25%",BA7*25%,0))) -> 0 | BB10: =+IF(AB11="Basicos 7%",BB7*7%,IF(AB11="Detallados 15%",BB7*15%,IF(AB11="Avanzados 25%",BB7*25%,0))) -> 0 | BC10: =+IF(AC11="Basicos 7%",BC7*7%,IF(AC11="Detallados 15%",BC7*15%,IF(AC11="Avanzados 25%",BC7*25%,0))) -> 0 | BD10: =+IF(AD11="Basicos 7%",BD7*7%,IF(AD11="Detallados 15%",BD7*15%,IF(AD11="Avanzados 25%",BD7*25%,0))) -> 0 | BE10: =+IF(AE11="Basicos 7%",BE7*7%,IF(AE11="Detallados 15%",BE7*15%,IF(AE11="Avanzados 25%",BE7*25%,0))) -> 0 | BF10: =+IF(AF11="Basicos 7%",BF7*7%,IF(AF11="Detallados 15%",BF7*15%,IF(AF11="Avanzados 25%",BF7*25%,0))) -> 0 | BG10: =+IF(AG11="Basicos 7%",BG7*7%,IF(AG11="Detallados 15%",BG7*15%,IF(AG11="Avanzados 25%",BG7*25%,0))) -> 0 | BH10: =+IF(AH11="Basicos 7%",BH7*7%,IF(AH11="Detallados 15%",BH7*15%,IF(AH11="Avanzados 25%",BH7*25%,0))) -> 0 | BI10: =+IF(AI11="Basicos 7%",BI7*7%,IF(AI11="Detallados 15%",BI7*15%,IF(AI11="Avanzados 25%",BI7*25%,0))) -> 0 | BJ10: =+IF(AJ11="Basicos 7%",BJ7*7%,IF(AJ11="Detallados 15%",BJ7*15%,IF(AJ11="Avanzados 25%",BJ7*25%,0))) -> 0 | BK10: =+IF(AK11="Basicos 7%",BK7*7%,IF(AK11="Detallados 15%",BK7*15%,IF(AK11="Avanzados 25%",BK7*25%,0))) -> 0 | BL10: =+IF(AL11="Basicos 7%",BL7*7%,IF(AL11="Detallados 15%",BL7*15%,IF(AL11="Avanzados 25%",BL7*25%,0))) -> 0 | BM10: =+IF(AM11="Basicos 7%",BM7*7%,IF(AM11="Detallados 15%",BM7*15%,IF(AM11="Avanzados 25%",BM7*25%,0))) -> 0 | BN10: =+IF(AN11="Basicos 7%",BN7*7%,IF(AN11="Detallados 15%",BN7*15%,IF(AN11="Avanzados 25%",BN7*25%,0))) -> 0 | BO10: =+IF(AO11="Basicos 7%",BO7*7%,IF(AO11="Detallados 15%",BO7*15%,IF(AO11="Avanzados 25%",BO7*25%,0))) -> 0 | BP10: =+IF(AP11="Basicos 7%",BP7*7%,IF(AP11="Detallados 15%",BP7*15%,IF(AP11="Avanzados 25%",BP7*25%,0))) -> 0 | BQ10: =+IF(AQ11="Basicos 7%",BQ7*7%,IF(AQ11="Detallados 15%",BQ7*15%,IF(AQ11="Avanzados 25%",BQ7*25%,0))) -> 0
C11: Licencias y estudios de campo | D11: No Aplica | L11: =+IF(D11="Basicos 7%",L8*7%,IF(D11="Detallados 15%",L8*15%,IF(D11="Avanzados 25%",L8*25%,0))) -> 0 | N11: Licencias y estudios de campo | O11: No Aplica | P11: =+IF(O11="Basicos 7%",P8*7%,IF(O11="Detallados 15%",P8*15%,IF(O11="Avanzados 25%",P8*25%,0))) -> 0 | S11: Licencias y estudios de campo | T11: No Aplica | U11: No Aplica | V11: No Aplica | W11: No Aplica | X11: No Aplica | Y11: No Aplica | Z11: Basicos 7% | AA11: No Aplica | AB11: Basicos 7% | AC11: No Aplica | AD11: Basicos 7% | AE11: No Aplica | AF11: Basicos 7% | AG11: No Aplica | AH11: No Aplica | AI11: No Aplica | AJ11: Basicos 7% | AK11: No Aplica | AL11: Basicos 7% | AM11: No Aplica | AN11: Basicos 7% | AO11: No Aplica | AP11: Basicos 7% | AQ11: No Aplica | AS11: Imprevistos (5%) | AT11: =+IF(T12="Aplica",AT7*5%,0) -> 0 | AU11: 0 | AV11: =+IF(V12="Aplica",AV7*5%,0) -> 0 | AW11: =+IF(W12="Aplica",AW7*5%,0) -> 0 | AX11: =+IF(X12="Aplica",AX7*5%,0) -> 0 | AY11: =+IF(Y12="Aplica",AY7*5%,0) -> 0 | AZ11: =+IF(Z12="Aplica",AZ7*5%,0) -> 0 | BA11: =+IF(AA12="Aplica",BA7*5%,0) -> 0 | BB11: =+IF(AB12="Aplica",BB7*5%,0) -> 0 | BC11: =+IF(AC12="Aplica",BC7*5%,0) -> 0 | BD11: =+IF(AD12="Aplica",BD7*5%,0) -> 0 | BE11: =+IF(AE12="Aplica",BE7*5%,0) -> 0 | BF11: =+IF(AF12="Aplica",BF7*5%,0) -> 0 | BG11: =+IF(AG12="Aplica",BG7*5%,0) -> 0 | BH11: =+IF(AH12="Aplica",BH7*5%,0) -> 0 | BI11: =+IF(AI12="Aplica",BI7*5%,0) -> 0 | BJ11: =+IF(AJ12="Aplica",BJ7*5%,0) -> 0 | BK11: =+IF(AK12="Aplica",BK7*5%,0) -> 0 | BL11: =+IF(AL12="Aplica",BL7*5%,0) -> 0 | BM11: =+IF(AM12="Aplica",BM7*5%,0) -> 0 | BN11: =+IF(AN12="Aplica",BN7*5%,0) -> 0 | BO11: =+IF(AO12="Aplica",BO7*5%,0) -> 0 | BP11: =+IF(AP12="Aplica",BP7*5%,0) -> 0 | BQ11: =+IF(AQ12="Aplica",BQ7*5%,0) -> 0
C12: Imprevistos (5%) | D12: No Aplica | L12: =+IF(D12="Aplica",L8*5%,0) -> 0 | N12: Imprevistos (5%) | O12: No Aplica | P12: =+IF(O12="Aplica",P8*5%,0) -> 0 | S12: Imprevistos (5%) | T12: No Aplica | U12: No Aplica | V12: No Aplica | W12: No Aplica | X12: No Aplica | Y12: No Aplica | Z12: No Aplica | AA12: No Aplica | AB12: No Aplica | AC12: No Aplica | AD12: No Aplica | AE12: No Aplica | AF12: No Aplica | AG12: No Aplica | AH12: Aplica | AI12: Aplica | AJ12: No Aplica | AK12: No Aplica | AL12: No Aplica | AM12: No Aplica | AN12: No Aplica | AO12: No Aplica | AP12: No Aplica | AQ12: No Aplica | AT12: =SUM(AT7:AT11) -> 489610686.7 | AU12: 489610686.7 | AV12: =SUM(AV7:AV11) -> 0 | AW12: =SUM(AW7:AW11) -> 0 | AX12: =SUM(AX7:AX11) -> 0 | AY12: =SUM(AY7:AY11) -> 0 | AZ12: =SUM(AZ7:AZ11) -> 0 | BA12: =SUM(BA7:BA11) -> 0 | BB12: =SUM(BB7:BB11) -> 0 | BC12: =SUM(BC7:BC11) -> 0 | BD12: =SUM(BD7:BD11) -> 0 | BE12: =SUM(BE7:BE11) -> 0 | BF12: =SUM(BF7:BF11) -> 0 | BG12: =SUM(BG7:BG11) -> 0 | BH12: =SUM(BH7:BH11) -> 0 | BI12: =SUM(BI7:BI11) -> 0 | BJ12: =SUM(BJ7:BJ11) -> 0 | BK12: =SUM(BK7:BK11) -> 0 | BL12: =SUM(BL7:BL11) -> 0 | BM12: =SUM(BM7:BM11) -> 0 | BN12: =SUM(BN7:BN11) -> 0 | BO12: =SUM(BO7:BO11) -> 0 | BP12: =SUM(BP7:BP11) -> 0 | BQ12: =SUM(BQ7:BQ11) -> 0
A13: VALOR TOTAL ESTIMADO DE LA ACTIVIDAD | L13: =SUM(L8:L12) -> 474013620 | N13: Total Personal | P13: =SUM(P8:P12) -> 474013620
A16: COSTO DE LA ACTIVIDAD | N16: Personal Designado UAESP | AT16: =+R18 -> Caracterizar el total de escenarios de riesgo por localidad asociados a la gestión integral de residuos sólidos en los CLGRCC priorizados.
A17: ACTIVIDAD | B17: ALCANCE | C17: ITEM | D17: DESCRIPCION | E17: PERSONAL TOTAL | F17: CATEGORIA | G17: ESPECIFICACION | H17: CANTIDAD POR CATEGORIA | I17: VALOR UNITARIO (Cifras expresadas en Millones de pesos) | J17: VALOR MES * CANTIDAD (Cifras expresadas en Millones de pesos) | K17: TIEMPO DE DEDICACION (MESES) | L17: VALOR TOTAL 2020 (Cifras expresadas en Millones de pesos) | N17: Lista | O17: Cantida por Categoria | P17: Valor Mensual X Cantidad y X Tiempo | S17: ASIGNACION DE RECURSOS POR PERIODO | AT17: 1.032904259 | AV17: 1.066774287 | AX17: 1.100842377 | AZ17: 1.136036853 | BB17: 1.171957126 | BD17: 1.208667241 | BF17: 1.245965407 | BH17: 1.283811224 | BJ17: 1.322686854 | BL17: 1.363439894 | BN17: 1.404660131 | BP17: 1.447535633
A18: Caracterizar el total de escenarios de riesgo por localidad asociados a la gestión integral de residuos sólidos en los CLGRCC priorizados. Verificar mecanismos de medición e indicadores de impacto a la huella de carbono e hídrica por GIRS en las localidades. | B18: Caracterizacion de un escenario de riesgo asociado a la gestión integral de residuos solidos caracterizado por localidad | C18: Detalle del Personal | D18: Un coordinador profesional en Administración ambiental o afines con maestría en el campo de las ciencias ambientales y/o Gestión integral del Riesgo y con una experiencia no menor a 5 años Un profesional ambiental o afines con 3 años experiencia Un trabajador social o antropólogo con 3 años experiencia Ingeniero geodesta, catastral o afines con 3 años experiencia Dos técnicos o ingenieros sin experiencia de apoyo operativo | E18: =+SUM(H18:H20) -> 6 | F18: 12 | G18: =VLOOKUP(F18,HONORARIOS!$A$5:$G$25,2,0) -> TITULO PROFESIONAL MAS DE SEIS (6) AÑOS DE EXPERIENCIA PROFESIONAL | H18: 1 | I18: =VLOOKUP(F18,HONORARIOS!$A$5:$G$25,5,0) -> 6583522.5 | J18: =+I18*H18 -> 6583522.5 | K18: 6 | L18: =+J18*K18 -> 39501135 | O18: 1 | P18: =+(O18*I18)*K18 -> 39501135 | R18: Caracterizar el total de escenarios de riesgo por localidad asociados a la gestión integral de residuos sólidos en los CLGRCC priorizados. | S18: ITEM | T18: 2021 | V18: 2022 | X18: 2023 | Z18: 2024 | AB18: 2025 | AD18: 2026 | AF18: 2027 | AH18: 2028 | AJ18: 2029 | AL18: 2030 | AN18: 2031 | AP18: 2032 | AS18: ITEM | AT18: COSTO POR PERIODOS
F19: 11 | G19: =VLOOKUP(F19,HONORARIOS!$A$5:$G$25,2,0) -> TITULO PROFESIONAL DESDE TRES (3) HASTA SEIS (6) AÑOS DE EXPERIENCIA PROFESIONAL | H19: 3 | I19: =VLOOKUP(F19,HONORARIOS!$A$5:$G$25,5,0) -> 5705719.5 | J19: =+I19*H19 -> 17117158.5 | K19: 6 | L19: =+J19*K19 -> 102702951 | O19: 3 | P19: =+(O19*I19)*K19 -> 102702951 | T19: Proyeccion Actividad | U19: Proyeccion UAESP | V19: Proyeccion Actividad | W19: Proyeccion UAESP | X19: Proyeccion Actividad | Y19: Proyeccion UAESP | Z19: Proyeccion Actividad | AA19: Proyeccion UAESP | AB19: Proyeccion Actividad | AC19: Proyeccion UAESP | AD19: Proyeccion Actividad | AE19: Proyeccion UAESP | AF19: Proyeccion Actividad | AG19: Proyeccion UAESP | AH19: Proyeccion Actividad | AI19: Proyeccion UAESP | AJ19: Proyeccion Actividad | AK19: Proyeccion UAESP | AL19: Proyeccion Actividad | AM19: Proyeccion UAESP | AN19: Proyeccion Actividad | AO19: Proyeccion UAESP | AP19: Proyeccion Actividad | AQ19: Proyeccion UAESP | AT19: 2021 | AV19: 2022 | AX19: 2023 | AZ19: 2024 | BB19: 2025 | BD19: 2026 | BF19: 2027 | BH19: 2028 | BJ19: 2029 | BL19: 2030 | BN19: 2031 | BP19: 2032
F20: 9 | G20: =VLOOKUP(F20,HONORARIOS!$A$5:$G$25,2,0) -> TITULO PROFESIONAL SIN EXPERIENCIA PROFESIONAL | H20: 2 | I20: =VLOOKUP(F20,HONORARIOS!$A$5:$G$25,5,0) -> 3950113.5 | J20: =+I20*H20 -> 7900227 | K20: 6 | L20: =+J20*K20 -> 47401362 | O20: 2 | P20: =+(O20*I20)*K20 -> 47401362 | S20: Costos del Personal | T20: No Aplica | U20: =+IF(T20="Aplica","Aplica","No Aplica") -> No Aplica | V20: Aplica | W20: =+IF(V20="Aplica","Aplica","No Aplica") -> Aplica | X20: Aplica | Y20: =+IF(X20="Aplica","Aplica","No Aplica") -> Aplica | Z20: No Aplica | AA20: =+IF(Z20="Aplica","Aplica","No Aplica") -> No Aplica | AB20: No Aplica | AC20: =+IF(AB20="Aplica","Aplica","No Aplica") -> No Aplica | AD20: No Aplica | AE20: =+IF(AD20="Aplica","Aplica","No Aplica") -> No Aplica | AF20: No Aplica | AG20: =+IF(AF20="Aplica","Aplica","No Aplica") -> No Aplica | AH20: No Aplica | AI20: =+IF(AH20="Aplica","Aplica","No Aplica") -> No Aplica | AJ20: No Aplica | AK20: =+IF(AJ20="Aplica","Aplica","No Aplica") -> No Aplica | AL20: No Aplica | AM20: =+IF(AL20="Aplica","Aplica","No Aplica") -> No Aplica | AN20: No Aplica | AO20: =+IF(AN20="Aplica","Aplica","No Aplica") -> No Aplica | AP20: No Aplica | AQ20: =+IF(AP20="Aplica","Aplica","No Aplica") -> No Aplica | AS20: Costos del Personal | AT20: =IF(T20="aplica",($L21*T21)*AT17,0) -> 0 | AU20: =IF(U20="aplica",($P21*U21)*AT17,0) -> 0 | AV20: =IF(V20="aplica",($L21*V21)*AV17,0) -> 202266216.5 | AW20: =IF(W20="aplica",($P21*W21)*AV17,0) -> 202266216.5 | AX20: =IF(X20="aplica",($L21*X21)*AX17,0) -> 208725712.2 | AY20: =IF(Y20="aplica",($P21*Y21)*AX17,0) -> 208725712.2 | AZ20: =IF(Z20="aplica",($L21*Z21)*AZ17,0) -> 0 | BA20: =IF(AA20="aplica",($P21*AA21)*AZ17,0) -> 0 | BB20: =IF(AB20="aplica",($L21*AB21)*BB17,0) -> 0 | BC20: =IF(AC20="aplica",($P21*AC21)*BB17,0) -> 0 | BD20: =IF(AD20="aplica",($L21*AD21)*BD17,0) -> 0 | BE20: =IF(AE20="aplica",($P21*AE21)*BD17,0) -> 0 | BF20: =IF(AF20="aplica",($L21*AF21)*BF17,0) -> 0 | BG20: =IF(AG20="aplica",($P21*AG21)*BF17,0) -> 0 | BH20: =IF(AH20="aplica",($L21*AH21)*BH17,0) -> 0 | BI20: =IF(AI20="aplica",($P21*AI21)*BH17,0) -> 0 | BJ20: =IF(AJ20="aplica",($L21*AJ21)*BJ17,0) -> 0 | BK20: =IF(AK20="aplica",($P21*AK21)*BJ17,0) -> 0 | BL20: =IF(AL20="aplica",($L21*AL21)*BL17,0) -> 0 | BM20: =IF(AM20="aplica",($P21*AM21)*BL17,0) -> 0 | BN20: =IF(AN20="aplica",($L21*AN21)*BN17,0) -> 0 | BO20: =IF(AO20="aplica",($P21*AO21)*BN17,0) -> 0 | BP20: =IF(AP20="aplica",($L21*AP21)*BP17,0) -> 0 | BQ20: =IF(AQ20="aplica",($P21*AQ21)*BP17,0) -> 0
C21: Subtotal | L21: =SUM(L18:L20) -> 189605448 | N21: Subtotal Personal | P21: =SUM(P18:P20) -> 189605448 | S21: Porcentaje | T21: 1 | U21: 1 | V21: 1 | W21: 1 | X21: 1 | Y21: 1 | Z21: 1 | AA21: 1 | AB21: 1 | AC21: 1 | AD21: 1 | AE21: 1 | AF21: 1 | AG21: 1 | AH21: 1 | AI21: 1 | AJ21: 1 | AK21: 1 | AL21: 1 | AM21: 1 | AN21: 1 | AO21: 1 | AP21: 1 | AQ21: 1 | AS21: Costos Indirectos y Operacionales | AT21: =+IF(T22="Consultoria (25%)",AT20*25%,0)+IF(T22="Obra (30%)",AT20*30%,0)+IF(T22="Directo (20%)",AT20*20%,0)+IF(T22="No aplica",0,0)+IF(T22="Servicios (10%)",AT20*10%,0) -> 0 | AU21: =+IF(U22="Consultoria (25%)",AU20*25%,0)+IF(U22="Obra (30%)",AU20*30%,0)+IF(U22="Directo (20%)",AU20*20%,0)+IF(U22="No aplica",0,0)+IF(U22="Servicios (10%)",AU20*10%,0) -> 0 | AV21: =+IF(V22="Consultoria (25%)",AV20*25%,0)+IF(V22="Obra (30%)",AV20*30%,0)+IF(V22="Directo (20%)",AV20*20%,0)+IF(V22="No aplica",0,0)+IF(V22="Servicios (10%)",AV20*10%,0) -> 40453243.31 | AW21: =+IF(W22="Consultoria (25%)",AW20*25%,0)+IF(W22="Obra (30%)",AW20*30%,0)+IF(W22="Directo (20%)",AW20*20%,0)+IF(W22="No aplica",0,0)+IF(W22="Servicios (10%)",AW20*10%,0) -> 40453243.31 | AX21: =+IF(X22="Consultoria (25%)",AX20*25%,0)+IF(X22="Obra (30%)",AX20*30%,0)+IF(X22="Directo (20%)",AX20*20%,0)+IF(X22="No aplica",0,0)+IF(X22="Servicios (10%)",AX20*10%,0) -> 41745142.43 | AY21: =+IF(Y22="Consultoria (25%)",AY20*25%,0)+IF(Y22="Obra (30%)",AY20*30%,0)+IF(Y22="Directo (20%)",AY20*20%,0)+IF(Y22="No aplica",0,0)+IF(Y22="Servicios (10%)",AY20*10%,0) -> 41745142.43 | AZ21: =+IF(Z22="Consultoria (25%)",AZ20*25%,0)+IF(Z22="Obra (30%)",AZ20*30%,0)+IF(Z22="Directo (20%)",AZ20*20%,0)+IF(Z22="No aplica",0,0)+IF(Z22="Servicios (10%)",AZ20*10%,0) -> 0 | BA21: =+IF(AA22="Consultoria (25%)",BA20*25%,0)+IF(AA22="Obra (30%)",BA20*30%,0)+IF(AA22="Directo (20%)",BA20*20%,0)+IF(AA22="No aplica",0,0)+IF(AA22="Servicios (10%)",BA20*10%,0) -> 0 | BB21: =+IF(AB22="Consultoria (25%)",BB20*25%,0)+IF(AB22="Obra (30%)",BB20*30%,0)+IF(AB22="Directo (20%)",BB20*20%,0)+IF(AB22="No aplica",0,0)+IF(AB22="Servicios (10%)",BB20*10%,0) -> 0 | BC21: =+IF(AC22="Consultoria (25%)",BC20*25%,0)+IF(AC22="Obra (30%)",BC20*30%,0)+IF(AC22="Directo (20%)",BC20*20%,0)+IF(AC22="No aplica",0,0)+IF(AC22="Servicios (10%)",BC20*10%,0) -> 0 | BD21: =+IF(AD22="Consultoria (25%)",BD20*25%,0)+IF(AD22="Obra (30%)",BD20*30%,0)+IF(AD22="Directo (20%)",BD20*20%,0)+IF(AD22="No aplica",0,0)+IF(AD22="Servicios (10%)",BD20*10%,0) -> 0 | BE21: =+IF(AE22="Consultoria (25%)",BE20*25%,0)+IF(AE22="Obra (30%)",BE20*30%,0)+IF(AE22="Directo (20%)",BE20*20%,0)+IF(AE22="No aplica",0,0)+IF(AE22="Servicios (10%)",BE20*10%,0) -> 0 | BF21: =+IF(AF22="Consultoria (25%)",BF20*25%,0)+IF(AF22="Obra (30%)",BF20*30%,0)+IF(AF22="Directo (20%)",BF20*20%,0)+IF(AF22="No aplica",0,0)+IF(AF22="Servicios (10%)",BF20*10%,0) -> 0 | BG21: =+IF(AG22="Consultoria (25%)",BG20*25%,0)+IF(AG22="Obra (30%)",BG20*30%,0)+IF(AG22="Directo (20%)",BG20*20%,0)+IF(AG22="No aplica",0,0)+IF(AG22="Servicios (10%)",BG20*10%,0) -> 0 | BH21: =+IF(AH22="Consultoria (25%)",BH20*25%,0)+IF(AH22="Obra (30%)",BH20*30%,0)+IF(AH22="Directo (20%)",BH20*20%,0)+IF(AH22="No aplica",0,0)+IF(AH22="Servicios (10%)",BH20*10%,0) -> 0 | BI21: =+IF(AI22="Consultoria (25%)",BI20*25%,0)+IF(AI22="Obra (30%)",BI20*30%,0)+IF(AI22="Directo (20%)",BI20*20%,0)+IF(AI22="No aplica",0,0)+IF(AI22="Servicios (10%)",BI20*10%,0) -> 0 | BJ21: =+IF(AJ22="Consultoria (25%)",BJ20*25%,0)+IF(AJ22="Obra (30%)",BJ20*30%,0)+IF(AJ22="Directo (20%)",BJ20*20%,0)+IF(AJ22="No aplica",0,0)+IF(AJ22="Servicios (10%)",BJ20*10%,0) -> 0 | BK21: =+IF(AK22="Consultoria (25%)",BK20*25%,0)+IF(AK22="Obra (30%)",BK20*30%,0)+IF(AK22="Directo (20%)",BK20*20%,0)+IF(AK22="No aplica",0,0)+IF(AK22="Servicios (10%)",BK20*10%,0) -> 0 | BL21: =+IF(AL22="Consultoria (25%)",BL20*25%,0)+IF(AL22="Obra (30%)",BL20*30%,0)+IF(AL22="Directo (20%)",BL20*20%,0)+IF(AL22="No aplica",0,0)+IF(AL22="Servicios (10%)",BL20*10%,0) -> 0 | BM21: =+IF(AM22="Consultoria (25%)",BM20*25%,0)+IF(AM22="Obra (30%)",BM20*30%,0)+IF(AM22="Directo (20%)",BM20*20%,0)+IF(AM22="No aplica",0,0)+IF(AM22="Servicios (10%)",BM20*10%,0) -> 0 | BN21: =+IF(AN22="Consultoria (25%)",BN20*25%,0)+IF(AN22="Obra (30%)",BN20*30%,0)+IF(AN22="Directo (20%)",BN20*20%,0)+IF(AN22="No aplica",0,0)+IF(AN22="Servicios (10%)",BN20*10%,0) -> 0 | BO21: =+IF(AO22="Consultoria (25%)",BO20*25%,0)+IF(AO22="Obra (30%)",BO20*30%,0)+IF(AO22="Directo (20%)",BO20*20%,0)+IF(AO22="No aplica",0,0)+IF(AO22="Servicios (10%)",BO20*10%,0) -> 0 | BP21: =+IF(AP22="Consultoria (25%)",BP20*25%,0)+IF(AP22="Obra (30%)",BP20*30%,0)+IF(AP22="Directo (20%)",BP20*20%,0)+IF(AP22="No aplica",0,0)+IF(AP22="Servicios (10%)",BP20*10%,0) -> 0 | BQ21: =+IF(AQ22="Consultoria (25%)",BQ20*25%,0)+IF(AQ22="Obra (30%)",BQ20*30%,0)+IF(AQ22="Directo (20%)",BQ20*20%,0)+IF(AQ22="No aplica",0,0)+IF(AQ22="Servicios (10%)",BQ20*10%,0) -> 0
C22: Costos Indirectos y Operacionales | D22: Directo (20%) | L22: =+IF(D22="Consultoria (25%)",L21*25%,0)+IF(D22="Obra (30%)",L21*30%,0)+IF(D22="Directo (20%)",L21*20%,0)+IF(D22="No aplica",0,0)+IF(D22="Servicios (10%)",L21*10%,0) -> 37921089.6 | N22: Costos Indirectos y Operacionales | O22: Directo (20%) | P22: =+IF(O22="Consultoria (25%)",P21*25%,0)+IF(O22="Obra (30%)",P21*30%,0)+IF(O22="Directo (20%)",P21*20%,0)+IF(O22="No aplica",0,0)+IF(O22="Servicios (10%)",P21*10%,0) -> 37921089.6 | S22: Costos Indirectos y Operacionales | T22: Directo (20%) | U22: No Aplica | V22: Directo (20%) | W22: Directo (20%) | X22: Directo (20%) | Y22: Directo (20%) | Z22: Directo (20%) | AA22: No Aplica | AB22: Directo (20%) | AC22: No Aplica | AD22: Directo (20%) | AE22: No Aplica | AF22: Directo (20%) | AG22: No Aplica | AH22: Consultoria (25%) | AI22: Consultoria (25%) | AJ22: Directo (20%) | AK22: No Aplica | AL22: Directo (20%) | AM22: No Aplica | AN22: Directo (20%) | AO22: No Aplica | AP22: Directo (20%) | AQ22: No Aplica | AS22: Seguimiento e Interventoria (10%) | AT22: =+IF(T23="Aplica",AT20*10%,0) -> 0 | AU22: =+IF(U23="Aplica",AU20*10%,0) -> 0 | AV22: =+IF(V23="Aplica",AV20*10%,0) -> 0 | AW22: =+IF(W23="Aplica",AW20*10%,0) -> 0 | AX22: =+IF(X23="Aplica",AX20*10%,0) -> 0 | AY22: =+IF(Y23="Aplica",AY20*10%,0) -> 0 | AZ22: =+IF(Z23="Aplica",AZ20*10%,0) -> 0 | BA22: =+IF(AA23="Aplica",BA20*10%,0) -> 0 | BB22: =+IF(AB23="Aplica",BB20*10%,0) -> 0 | BC22: =+IF(AC23="Aplica",BC20*10%,0) -> 0 | BD22: =+IF(AD23="Aplica",BD20*10%,0) -> 0 | BE22: =+IF(AE23="Aplica",BE20*10%,0) -> 0 | BF22: =+IF(AF23="Aplica",BF20*10%,0) -> 0 | BG22: =+IF(AG23="Aplica",BG20*10%,0) -> 0 | BH22: =+IF(AH23="Aplica",BH20*10%,0) -> 0 | BI22: =+IF(AI23="Aplica",BI20*10%,0) -> 0 | BJ22: =+IF(AJ23="Aplica",BJ20*10%,0) -> 0 | BK22: =+IF(AK23="Aplica",BK20*10%,0) -> 0 | BL22: =+IF(AL23="Aplica",BL20*10%,0) -> 0 | BM22: =+IF(AM23="Aplica",BM20*10%,0) -> 0 | BN22: =+IF(AN23="Aplica",BN20*10%,0) -> 0 | BO22: =+IF(AO23="Aplica",BO20*10%,0) -> 0 | BP22: =+IF(AP23="Aplica",BP20*10%,0) -> 0 | BQ22: =+IF(AQ23="Aplica",BQ20*10%,0) -> 0
C23: Seguimiento e Interventoria (10%) | D23: No Aplica | L23: =+IF(D23="Aplica",L21*10%,0) -> 0 | N23: Seguimiento e Interventoria (10%) | O23: No Aplica | P23: =+IF(O23="Aplica",P21*10%,0) -> 0 | S23: Seguimiento e Interventoria (10%) | T23: No Aplica | U23: No Aplica | V23: No Aplica | W23: No Aplica | X23: No Aplica | Y23: No Aplica | Z23: No Aplica | AA23: No Aplica | AB23: Aplica | AC23: No Aplica | AD23: Aplica | AE23: No Aplica | AF23: Aplica | AG23: No Aplica | AH23: Aplica | AI23: Aplica | AJ23: No Aplica | AK23: No Aplica | AL23: Aplica | AM23: No Aplica | AN23: Aplica | AO23: No Aplica | AP23: Aplica | AQ23: No Aplica | AS23: Licencias y estudios de campo | AT23: =+IF(T24="Basicos 7%",AT20*7%,IF(T24="Detallados 15%",AT20*15%,IF(T24="Avanzados 25%",AT20*25%,0))) -> 0 | AU23: =+IF(U24="Basicos 7%",AU20*7%,IF(U24="Detallados 15%",AU20*15%,IF(U24="Avanzados 25%",AU20*25%,0))) -> 0 | AV23: =+IF(V24="Basicos 7%",AV20*7%,IF(V24="Detallados 15%",AV20*15%,IF(V24="Avanzados 25%",AV20*25%,0))) -> 0 | AW23: =+IF(W24="Basicos 7%",AW20*7%,IF(W24="Detallados 15%",AW20*15%,IF(W24="Avanzados 25%",AW20*25%,0))) -> 0 | AX23: =+IF(X24="Basicos 7%",AX20*7%,IF(X24="Detallados 15%",AX20*15%,IF(X24="Avanzados 25%",AX20*25%,0))) -> 0 | AY23: =+IF(Y24="Basicos 7%",AY20*7%,IF(Y24="Detallados 15%",AY20*15%,IF(Y24="Avanzados 25%",AY20*25%,0))) -> 0 | AZ23: =+IF(Z24="Basicos 7%",AZ20*7%,IF(Z24="Detallados 15%",AZ20*15%,IF(Z24="Avanzados 25%",AZ20*25%,0))) -> 0 | BA23: =+IF(AA24="Basicos 7%",BA20*7%,IF(AA24="Detallados 15%",BA20*15%,IF(AA24="Avanzados 25%",BA20*25%,0))) -> 0 | BB23: =+IF(AB24="Basicos 7%",BB20*7%,IF(AB24="Detallados 15%",BB20*15%,IF(AB24="Avanzados 25%",BB20*25%,0))) -> 0 | BC23: =+IF(AC24="Basicos 7%",BC20*7%,IF(AC24="Detallados 15%",BC20*15%,IF(AC24="Avanzados 25%",BC20*25%,0))) -> 0 | BD23: =+IF(AD24="Basicos 7%",BD20*7%,IF(AD24="Detallados 15%",BD20*15%,IF(AD24="Avanzados 25%",BD20*25%,0))) -> 0 | BE23: =+IF(AE24="Basicos 7%",BE20*7%,IF(AE24="Detallados 15%",BE20*15%,IF(AE24="Avanzados 25%",BE20*25%,0))) -> 0 | BF23: =+IF(AF24="Basicos 7%",BF20*7%,IF(AF24="Detallados 15%",BF20*15%,IF(AF24="Avanzados 25%",BF20*25%,0))) -> 0 | BG23: =+IF(AG24="Basicos 7%",BG20*7%,IF(AG24="Detallados 15%",BG20*15%,IF(AG24="Avanzados 25%",BG20*25%,0))) -> 0 | BH23: =+IF(AH24="Basicos 7%",BH20*7%,IF(AH24="Detallados 15%",BH20*15%,IF(AH24="Avanzados 25%",BH20*25%,0))) -> 0 | BI23: =+IF(AI24="Basicos 7%",BI20*7%,IF(AI24="Detallados 15%",BI20*15%,IF(AI24="Avanzados 25%",BI20*25%,0))) -> 0 | BJ23: =+IF(AJ24="Basicos 7%",BJ20*7%,IF(AJ24="Detallados 15%",BJ20*15%,IF(AJ24="Avanzados 25%",BJ20*25%,0))) -> 0 | BK23: =+IF(AK24="Basicos 7%",BK20*7%,IF(AK24="Detallados 15%",BK20*15%,IF(AK24="Avanzados 25%",BK20*25%,0))) -> 0 | BL23: =+IF(AL24="Basicos 7%",BL20*7%,IF(AL24="Detallados 15%",BL20*15%,IF(AL24="Avanzados 25%",BL20*25%,0))) -> 0 | BM23: =+IF(AM24="Basicos 7%",BM20*7%,IF(AM24="Detallados 15%",BM20*15%,IF(AM24="Avanzados 25%",BM20*25%,0))) -> 0 | BN23: =+IF(AN24="Basicos 7%",BN20*7%,IF(AN24="Detallados 15%",BN20*15%,IF(AN24="Avanzados 25%",BN20*25%,0))) -> 0 | BO23: =+IF(AO24="Basicos 7%",BO20*7%,IF(AO24="Detallados 15%",BO20*15%,IF(AO24="Avanzados 25%",BO20*25%,0))) -> 0 | BP23: =+IF(AP24="Basicos 7%",BP20*7%,IF(AP24="Detallados 15%",BP20*15%,IF(AP24="Avanzados 25%",BP20*25%,0))) -> 0 | BQ23: =+IF(AQ24="Basicos 7%",BQ20*7%,IF(AQ24="Detallados 15%",BQ20*15%,IF(AQ24="Avanzados 25%",BQ20*25%,0))) -> 0
C24: Licencias y estudios de campo | D24: No Aplica | L24: =+IF(D24="Basicos 7%",L21*7%,IF(D24="Detallados 15%",L21*15%,IF(D24="Avanzados 25%",L21*25%,0))) -> 0 | N24: Licencias y estudios de campo | O24: No Aplica | P24: =+IF(O24="Basicos 7%",P21*7%,IF(O24="Detallados 15%",P21*15%,IF(O24="Avanzados 25%",P21*25%,0))) -> 0 | S24: Licencias y estudios de campo | T24: No Aplica | U24: No Aplica | V24: No Aplica | W24: No Aplica | X24: No Aplica | Y24: No Aplica | Z24: No Aplica | AA24: No Aplica | AB24: Basicos 7% | AC24: No Aplica | AD24: Basicos 7% | AE24: No Aplica | AF24: Basicos 7% | AG24: No Aplica | AH24: No Aplica | AI24: No Aplica | AJ24: Basicos 7% | AK24: No Aplica | AL24: Basicos 7% | AM24: No Aplica | AN24: Basicos 7% | AO24: No Aplica | AP24: Basicos 7% | AQ24: No Aplica | AS24: Imprevistos (5%) | AT24: =+IF(T25="Aplica",AT20*5%,0) -> 0 | AU24: =+IF(U25="Aplica",AU20*5%,0) -> 0 | AV24: =+IF(V25="Aplica",AV20*5%,0) -> 0 | AW24: =+IF(W25="Aplica",AW20*5%,0) -> 0 | AX24: =+IF(X25="Aplica",AX20*5%,0) -> 0 | AY24: =+IF(Y25="Aplica",AY20*5%,0) -> 0 | AZ24: =+IF(Z25="Aplica",AZ20*5%,0) -> 0 | BA24: =+IF(AA25="Aplica",BA20*5%,0) -> 0 | BB24: =+IF(AB25="Aplica",BB20*5%,0) -> 0 | BC24: =+IF(AC25="Aplica",BC20*5%,0) -> 0 | BD24: =+IF(AD25="Aplica",BD20*5%,0) -> 0 | BE24: =+IF(AE25="Aplica",BE20*5%,0) -> 0 | BF24: =+IF(AF25="Aplica",BF20*5%,0) -> 0 | BG24: =+IF(AG25="Aplica",BG20*5%,0) -> 0 | BH24: =+IF(AH25="Aplica",BH20*5%,0) -> 0 | BI24: =+IF(AI25="Aplica",BI20*5%,0) -> 0 | BJ24: =+IF(AJ25="Aplica",BJ20*5%,0) -> 0 | BK24: =+IF(AK25="Aplica",BK20*5%,0) -> 0 | BL24: =+IF(AL25="Aplica",BL20*5%,0) -> 0 | BM24: =+IF(AM25="Aplica",BM20*5%,0) -> 0 | BN24: =+IF(AN25="Aplica",BN20*5%,0) -> 0 | BO24: =+IF(AO25="Aplica",BO20*5%,0) -> 0 | BP24: =+IF(AP25="Aplica",BP20*5%,0) -> 0 | BQ24: =+IF(AQ25="Aplica",BQ20*5%,0) -> 0
C25: Imprevistos (5%) | D25: No Aplica | L25: =+IF(D25="Aplica",L21*5%,0) -> 0 | N25: Imprevistos (5%) | O25: No Aplica | P25: =+IF(O25="Aplica",P21*5%,0) -> 0 | S25: Imprevistos (5%) | T25: No Aplica | U25: No Aplica | V25: No Aplica | W25: No Aplica | X25: No Aplica | Y25: No Aplica | Z25: No Aplica | AA25: No Aplica | AB25: No Aplica | AC25: No Aplica | AD25: No Aplica | AE25: No Aplica | AF25: No Aplica | AG25: No Aplica | AH25: Aplica | AI25: Aplica | AJ25: No Aplica | AK25: No Aplica | AL25: No Aplica | AM25: No Aplica | AN25: No Aplica | AO25: No Aplica | AP25: No Aplica | AQ25: No Aplica | AT25: =SUM(AT20:AT24) -> 0 | AU25: =SUM(AU20:AU24) -> 0 | AV25: =SUM(AV20:AV24) -> 242719459.8 | AW25: =SUM(AW20:AW24) -> 242719459.8 | AX25: =SUM(AX20:AX24) -> 250470854.6 | AY25: =SUM(AY20:AY24) -> 250470854.6 | AZ25: =SUM(AZ20:AZ24) -> 0 | BA25: =SUM(BA20:BA24) -> 0 | BB25: =SUM(BB20:BB24) -> 0 | BC25: =SUM(BC20:BC24) -> 0 | BD25: =SUM(BD20:BD24) -> 0 | BE25: =SUM(BE20:BE24) -> 0 | BF25: =SUM(BF20:BF24) -> 0 | BG25: =SUM(BG20:BG24) -> 0 | BH25: =SUM(BH20:BH24) -> 0 | BI25: =SUM(BI20:BI24) -> 0 | BJ25: =SUM(BJ20:BJ24) -> 0 | BK25: =SUM(BK20:BK24) -> 0 | BL25: =SUM(BL20:BL24) -> 0 | BM25: =SUM(BM20:BM24) -> 0 | BN25: =SUM(BN20:BN24) -> 0 | BO25: =SUM(BO20:BO24) -> 0 | BP25: =SUM(BP20:BP24) -> 0 | BQ25: =SUM(BQ20:BQ24) -> 0
A26: VALOR TOTAL ESTIMADO DE LA ACTIVIDAD | L26: =SUM(L21:L25) -> 227526537.6 | N26: Total Personal | P26: =SUM(P21:P25) -> 227526537.6
A29: COSTO DE LA ACTIVIDAD | N29: Personal Designado UAESP | AT29: =+R31 -> Realizar la construcción conjunta de un documento propuesta de protocolo unificado entre las entidades que definan las estrategias de respuesta; responsabilidades de las instituciones y actores comunitarios y académicos involucrados específicamente en la GIRS.
A30: ACTIVIDAD | B30: ALCANCE | C30: ITEM | D30: DESCRIPCION | E30: PERSONAL TOTAL | F30: CATEGORIA | G30: ESPECIFICACION | H30: CANTIDAD POR CATEGORIA | I30: VALOR UNITARIO (Cifras expresadas en Millones de pesos) | J30: VALOR MES * CANTIDAD (Cifras expresadas en Millones de pesos) | K30: TIEMPO DE DEDICACION (MESES) | L30: VALOR TOTAL 2020 (Cifras expresadas en Millones de pesos) | N30: Lista | O30: Cantida por Categoria | P30: Valor Mensual X Cantidad y X Tiempo | S30: ASIGNACION DE RECURSOS POR PERIODO | AT30: 1.032904259 | AV30: 1.066774287 | AX30: 1.100842377 | AZ30: 1.136036853 | BB30: 1.171957126 | BD30: 1.208667241 | BF30: 1.245965407 | BH30: 1.283811224 | BJ30: 1.322686854 | BL30: 1.363439894 | BN30: 1.404660131 | BP30: 1.447535633
A31: Realizar la construcción conjunta de un documento propuesta de protocolo unificado entre las entidades que definan las estrategias de respuesta; responsabilidades de las instituciones y actores comunitarios y académicos involucrados específicamente en la GIRS. | B31: Un documento protocolo unificado para atender las emergencias asociadas a la GIRS realizado , con actualización | C31: Detalle del Personal | D31: Un coordinador profesional en Administración ambiental o afines con maestría en el campo de las ciencias ambientales y/o Gestión integral del Riesgo y con una experiencia no menor a 5 años Un profesional ambiental o afines con 3 años experiencia Un trabajador social o antropólogo con 3 años experiencia Ingeniero geodesta, catastral o afines con 3 años experiencia Dos técnicos o ingenieros sin experiencia de apoyo operativo | E31: 16 | F31: 12 | G31: =VLOOKUP(F31,HONORARIOS!$A$5:$G$25,2,0) -> TITULO PROFESIONAL MAS DE SEIS (6) AÑOS DE EXPERIENCIA PROFESIONAL | H31: 1 | I31: =VLOOKUP(F31,HONORARIOS!$A$5:$G$25,5,0) -> 6583522.5 | J31: =+I31*H31 -> 6583522.5 | K31: 12 | L31: =+J31*K31 -> 79002270 | O31: 1 | P31: =+(O31*I31)*K31 -> 79002270 | R31: Realizar la construcción conjunta de un documento propuesta de protocolo unificado entre las entidades que definan las estrategias de respuesta; responsabilidades de las instituciones y actores comunitarios y académicos involucrados específicamente en la GIRS. | S31: ITEM | T31: 2021 | V31: 2022 | X31: 2023 | Z31: 2024 | AB31: 2025 | AD31: 2026 | AF31: 2027 | AH31: 2028 | AJ31: 2029 | AL31: 2030 | AN31: 2031 | AP31: 2032 | AS31: ITEM | AT31: COSTO POR PERIODOS
F32: 11 | G32: =VLOOKUP(F32,HONORARIOS!$A$5:$G$25,2,0) -> TITULO PROFESIONAL DESDE TRES (3) HASTA SEIS (6) AÑOS DE EXPERIENCIA PROFESIONAL | H32: 13 | I32: =VLOOKUP(F32,HONORARIOS!$A$5:$G$25,5,0) -> 5705719.5 | J32: =+I32*H32 -> 74174353.5 | K32: 12 | L32: =+J32*K32 -> 890092242 | O32: 3 | P32: =+(O32*I32)*K32 -> 205405902 | T32: Proyeccion Actividad | U32: Proyeccion UAESP | V32: Proyeccion Actividad | W32: Proyeccion UAESP | X32: Proyeccion Actividad | Y32: Proyeccion UAESP | Z32: Proyeccion Actividad | AA32: Proyeccion UAESP | AB32: Proyeccion Actividad | AC32: Proyeccion UAESP | AD32: Proyeccion Actividad | AE32: Proyeccion UAESP | AF32: Proyeccion Actividad | AG32: Proyeccion UAESP | AH32: Proyeccion Actividad | AI32: Proyeccion UAESP | AJ32: Proyeccion Actividad | AK32: Proyeccion UAESP | AL32: Proyeccion Actividad | AM32: Proyeccion UAESP | AN32: Proyeccion Actividad | AO32: Proyeccion UAESP | AP32: Proyeccion Actividad | AQ32: Proyeccion UAESP | AT32: 2021 | AV32: 2022 | AX32: 2023 | AZ32: 2024 | BB32: 2025 | BD32: 2026 | BF32: 2027 | BH32: 2028 | BJ32: 2029 | BL32: 2030 | BN32: 2031 | BP32: 2032
F33: 9 | G33: =VLOOKUP(F33,HONORARIOS!$A$5:$G$25,2,0) -> TITULO PROFESIONAL SIN EXPERIENCIA PROFESIONAL | H33: 2 | I33: =VLOOKUP(F33,HONORARIOS!$A$5:$G$25,5,0) -> 3950113.5 | J33: =+I33*H33 -> 7900227 | K33: 12 | L33: =+J33*K33 -> 94802724 | O33: 2 | P33: =+(O33*I33)*K33 -> 94802724 | S33: Costos del Personal | T33: No Aplica | U33: =+IF(T33="Aplica","Aplica","No Aplica") -> No Aplica | V33: Aplica | W33: =+IF(V33="Aplica","Aplica","No Aplica") -> Aplica | X33: Aplica | Y33: =+IF(X33="Aplica","Aplica","No Aplica") -> Aplica | Z33: Aplica | AA33: =+IF(Z33="Aplica","Aplica","No Aplica") -> Aplica | AB33: No Aplica | AC33: =+IF(AB33="Aplica","Aplica","No Aplica") -> No Aplica | AD33: No Aplica | AE33: =+IF(AD33="Aplica","Aplica","No Aplica") -> No Aplica | AF33: No Aplica | AG33: =+IF(AF33="Aplica","Aplica","No Aplica") -> No Aplica | AH33: No Aplica | AI33: =+IF(AH33="Aplica","Aplica","No Aplica") -> No Aplica | AJ33: No Aplica | AK33: =+IF(AJ33="Aplica","Aplica","No Aplica") -> No Aplica | AL33: No Aplica | AM33: =+IF(AL33="Aplica","Aplica","No Aplica") -> No Aplica | AN33: No Aplica | AO33: =+IF(AN33="Aplica","Aplica","No Aplica") -> No Aplica | AP33: No Aplica | AQ33: =+IF(AP33="Aplica","Aplica","No Aplica") -> No Aplica | AS33: Costos del Personal | AT33: =IF(T33="aplica",($L34*T34)*AT30,0) -> 0 | AU33: =IF(U33="aplica",($P34*U34)*AT30,0) -> 0 | AV33: =IF(V33="aplica",($L34*V34)*AV30,0) -> 1134938215 | AW33: =IF(W33="aplica",($P34*W34)*AV30,0) -> 404532433.1 | AX33: =IF(X33="aplica",($L34*X34)*AX30,0) -> 1171183163 | AY33: =IF(Y33="aplica",($P34*Y34)*AX30,0) -> 417451424.3 | AZ33: =IF(Z33="aplica",($L34*Z34)*AZ30,0) -> 1208626468 | BA33: =IF(AA33="aplica",($P34*AA34)*AZ30,0) -> 430797553 | BB33: =IF(AB33="aplica",($L34*AB34)*BB30,0) -> 0 | BC33: =IF(AC33="aplica",($P34*AC34)*BB30,0) -> 0 | BD33: =IF(AD33="aplica",($L34*AD34)*BD30,0) -> 0 | BE33: =IF(AE33="aplica",($P34*AE34)*BD30,0) -> 0 | BF33: =IF(AF33="aplica",($L34*AF34)*BF30,0) -> 0 | BG33: =IF(AG33="aplica",($P34*AG34)*BF30,0) -> 0 | BH33: =IF(AH33="aplica",($L34*AH34)*BH30,0) -> 0 | BI33: =IF(AI33="aplica",($P34*AI34)*BH30,0) -> 0 | BJ33: =IF(AJ33="aplica",($L34*AJ34)*BJ30,0) -> 0 | BK33: =IF(AK33="aplica",($P34*AK34)*BJ30,0) -> 0 | BL33: =IF(AL33="aplica",($L34*AL34)*BL30,0) -> 0 | BM33: =IF(AM33="aplica",($P34*AM34)*BL30,0) -> 0 | BN33: =IF(AN33="aplica",($L34*AN34)*BN30,0) -> 0 | BO33: =IF(AO33="aplica",($P34*AO34)*BN30,0) -> 0 | BP33: =IF(AP33="aplica",($L34*AP34)*BP30,0) -> 0 | BQ33: =IF(AQ33="aplica",($P34*AQ34)*BP30,0) -> 0
C34: Subtotal | L34: =SUM(L31:L33) -> 1063897236 | N34: Subtotal Personal | P34: =SUM(P31:P33) -> 379210896 | S34: Porcentaje | T34: 1 | U34: 1 | V34: 1 | W34: 1 | X34: 1 | Y34: 1 | Z34: 1 | AA34: 1 | AB34: 1 | AC34: 1 | AD34: 1 | AE34: 1 | AF34: 1 | AG34: 1 | AH34: 1 | AI34: 1 | AJ34: 1 | AK34: 1 | AL34: 1 | AM34: 1 | AN34: 1 | AO34: 1 | AP34: 1 | AQ34: 1 | AS34: Costos Indirectos y Operacionales | AT34: =+IF(T35="Consultoria (25%)",AT33*25%,0)+IF(T35="Obra (30%)",AT33*30%,0)+IF(T35="Directo (20%)",AT33*20%,0)+IF(T35="No aplica",0,0)+IF(T35="Servicios (10%)",AT33*10%,0) -> 0 | AU34: =+IF(U35="Consultoria (25%)",AU33*25%,0)+IF(U35="Obra (30%)",AU33*30%,0)+IF(U35="Directo (20%)",AU33*20%,0)+IF(U35="No aplica",0,0)+IF(U35="Servicios (10%)",AU33*10%,0) -> 0 | AV34: =+IF(V35="Consultoria (25%)",AV33*25%,0)+IF(V35="Obra (30%)",AV33*30%,0)+IF(V35="Directo (20%)",AV33*20%,0)+IF(V35="No aplica",0,0)+IF(V35="Servicios (10%)",AV33*10%,0) -> 113493821.5 | AW34: =+IF(W35="Consultoria (25%)",AW33*25%,0)+IF(W35="Obra (30%)",AW33*30%,0)+IF(W35="Directo (20%)",AW33*20%,0)+IF(W35="No aplica",0,0)+IF(W35="Servicios (10%)",AW33*10%,0) -> 40453243.31 | AX34: =+IF(X35="Consultoria (25%)",AX33*25%,0)+IF(X35="Obra (30%)",AX33*30%,0)+IF(X35="Directo (20%)",AX33*20%,0)+IF(X35="No aplica",0,0)+IF(X35="Servicios (10%)",AX33*10%,0) -> 117118316.3 | AY34: =+IF(Y35="Consultoria (25%)",AY33*25%,0)+IF(Y35="Obra (30%)",AY33*30%,0)+IF(Y35="Directo (20%)",AY33*20%,0)+IF(Y35="No aplica",0,0)+IF(Y35="Servicios (10%)",AY33*10%,0) -> 41745142.43 | AZ34: =+IF(Z35="Consultoria (25%)",AZ33*25%,0)+IF(Z35="Obra (30%)",AZ33*30%,0)+IF(Z35="Directo (20%)",AZ33*20%,0)+IF(Z35="No aplica",0,0)+IF(Z35="Servicios (10%)",AZ33*10%,0) -> 120862646.8 | BA34: =+IF(AA35="Consultoria (25%)",BA33*25%,0)+IF(AA35="Obra (30%)",BA33*30%,0)+IF(AA35="Directo (20%)",BA33*20%,0)+IF(AA35="No aplica",0,0)+IF(AA35="Servicios (10%)",BA33*10%,0) -> 43079755.3 | BB34: =+IF(AB35="Consultoria (25%)",BB33*25%,0)+IF(AB35="Obra (30%)",BB33*30%,0)+IF(AB35="Directo (20%)",BB33*20%,0)+IF(AB35="No aplica",0,0)+IF(AB35="Servicios (10%)",BB33*10%,0) -> 0 | BC34: =+IF(AC35="Consultoria (25%)",BC33*25%,0)+IF(AC35="Obra (30%)",BC33*30%,0)+IF(AC35="Directo (20%)",BC33*20%,0)+IF(AC35="No aplica",0,0)+IF(AC35="Servicios (10%)",BC33*10%,0) -> 0 | BD34: =+IF(AD35="Consultoria (25%)",BD33*25%,0)+IF(AD35="Obra (30%)",BD33*30%,0)+IF(AD35="Directo (20%)",BD33*20%,0)+IF(AD35="No aplica",0,0)+IF(AD35="Servicios (10%)",BD33*10%,0) -> 0 | BE34: =+IF(AE35="Consultoria (25%)",BE33*25%,0)+IF(AE35="Obra (30%)",BE33*30%,0)+IF(AE35="Directo (20%)",BE33*20%,0)+IF(AE35="No aplica",0,0)+IF(AE35="Servicios (10%)",BE33*10%,0) -> 0 | BF34: =+IF(AF35="Consultoria (25%)",BF33*25%,0)+IF(AF35="Obra (30%)",BF33*30%,0)+IF(AF35="Directo (20%)",BF33*20%,0)+IF(AF35="No aplica",0,0)+IF(AF35="Servicios (10%)",BF33*10%,0) -> 0 | BG34: =+IF(AG35="Consultoria (25%)",BG33*25%,0)+IF(AG35="Obra (30%)",BG33*30%,0)+IF(AG35="Directo (20%)",BG33*20%,0)+IF(AG35="No aplica",0,0)+IF(AG35="Servicios (10%)",BG33*10%,0) -> 0 | BH34: =+IF(AH35="Consultoria (25%)",BH33*25%,0)+IF(AH35="Obra (30%)",BH33*30%,0)+IF(AH35="Directo (20%)",BH33*20%,0)+IF(AH35="No aplica",0,0)+IF(AH35="Servicios (10%)",BH33*10%,0) -> 0 | BI34: =+IF(AI35="Consultoria (25%)",BI33*25%,0)+IF(AI35="Obra (30%)",BI33*30%,0)+IF(AI35="Directo (20%)",BI33*20%,0)+IF(AI35="No aplica",0,0)+IF(AI35="Servicios (10%)",BI33*10%,0) -> 0 | BJ34: =+IF(AJ35="Consultoria (25%)",BJ33*25%,0)+IF(AJ35="Obra (30%)",BJ33*30%,0)+IF(AJ35="Directo (20%)",BJ33*20%,0)+IF(AJ35="No aplica",0,0)+IF(AJ35="Servicios (10%)",BJ33*10%,0) -> 0 | BK34: =+IF(AK35="Consultoria (25%)",BK33*25%,0)+IF(AK35="Obra (30%)",BK33*30%,0)+IF(AK35="Directo (20%)",BK33*20%,0)+IF(AK35="No aplica",0,0)+IF(AK35="Servicios (10%)",BK33*10%,0) -> 0 | BL34: =+IF(AL35="Consultoria (25%)",BL33*25%,0)+IF(AL35="Obra (30%)",BL33*30%,0)+IF(AL35="Directo (20%)",BL33*20%,0)+IF(AL35="No aplica",0,0)+IF(AL35="Servicios (10%)",BL33*10%,0) -> 0 | BM34: =+IF(AM35="Consultoria (25%)",BM33*25%,0)+IF(AM35="Obra (30%)",BM33*30%,0)+IF(AM35="Directo (20%)",BM33*20%,0)+IF(AM35="No aplica",0,0)+IF(AM35="Servicios (10%)",BM33*10%,0) -> 0 | BN34: =+IF(AN35="Consultoria (25%)",BN33*25%,0)+IF(AN35="Obra (30%)",BN33*30%,0)+IF(AN35="Directo (20%)",BN33*20%,0)+IF(AN35="No aplica",0,0)+IF(AN35="Servicios (10%)",BN33*10%,0) -> 0 | BO34: =+IF(AO35="Consultoria (25%)",BO33*25%,0)+IF(AO35="Obra (30%)",BO33*30%,0)+IF(AO35="Directo (20%)",BO33*20%,0)+IF(AO35="No aplica",0,0)+IF(AO35="Servicios (10%)",BO33*10%,0) -> 0 | BP34: =+IF(AP35="Consultoria (25%)",BP33*25%,0)+IF(AP35="Obra (30%)",BP33*30%,0)+IF(AP35="Directo (20%)",BP33*20%,0)+IF(AP35="No aplica",0,0)+IF(AP35="Servicios (10%)",BP33*10%,0) -> 0 | BQ34: =+IF(AQ35="Consultoria (25%)",BQ33*25%,0)+IF(AQ35="Obra (30%)",BQ33*30%,0)+IF(AQ35="Directo (20%)",BQ33*20%,0)+IF(AQ35="No aplica",0,0)+IF(AQ35="Servicios (10%)",BQ33*10%,0) -> 0
C35: Costos Indirectos y Operacionales | D35: Servicios (10%) | L35: =+IF(D35="Consultoria (25%)",L34*25%,0)+IF(D35="Obra (30%)",L34*30%,0)+IF(D35="Directo (20%)",L34*20%,0)+IF(D35="No aplica",0,0)+IF(D35="Servicios (10%)",L34*10%,0) -> 106389723.6 | N35: Costos Indirectos y Operacionales | O35: Servicios (10%) | P35: =+IF(O35="Consultoria (25%)",P34*25%,0)+IF(O35="Obra (30%)",P34*30%,0)+IF(O35="Directo (20%)",P34*20%,0)+IF(O35="No aplica",0,0)+IF(O35="Servicios (10%)",P34*10%,0) -> 37921089.6 | S35: Costos Indirectos y Operacionales | T35: Servicios (10%) | U35: No Aplica | V35: Servicios (10%) | W35: Servicios (10%) | X35: Servicios (10%) | Y35: Servicios (10%) | Z35: Servicios (10%) | AA35: Servicios (10%) | AB35: Servicios (10%) | AC35: Servicios (10%) | AD35: Directo (20%) | AE35: No Aplica | AF35: Directo (20%) | AG35: No Aplica | AH35: Consultoria (25%) | AI35: Consultoria (25%) | AJ35: Directo (20%) | AK35: No Aplica | AL35: Directo (20%) | AM35: No Aplica | AN35: Directo (20%) | AO35: No Aplica | AP35: Directo (20%) | AQ35: No Aplica | AS35: Seguimiento e Interventoria (10%) | AT35: =+IF(T36="Aplica",AT33*10%,0) -> 0 | AU35: =+IF(U36="Aplica",AU33*10%,0) -> 0 | AV35: =+IF(V36="Aplica",AV33*10%,0) -> 0 | AW35: =+IF(W36="Aplica",AW33*10%,0) -> 0 | AX35: =+IF(X36="Aplica",AX33*10%,0) -> 0 | AY35: =+IF(Y36="Aplica",AY33*10%,0) -> 0 | AZ35: =+IF(Z36="Aplica",AZ33*10%,0) -> 0 | BA35: =+IF(AA36="Aplica",BA33*10%,0) -> 0 | BB35: =+IF(AB36="Aplica",BB33*10%,0) -> 0 | BC35: =+IF(AC36="Aplica",BC33*10%,0) -> 0 | BD35: =+IF(AD36="Aplica",BD33*10%,0) -> 0 | BE35: =+IF(AE36="Aplica",BE33*10%,0) -> 0 | BF35: =+IF(AF36="Aplica",BF33*10%,0) -> 0 | BG35: =+IF(AG36="Aplica",BG33*10%,0) -> 0 | BH35: =+IF(AH36="Aplica",BH33*10%,0) -> 0 | BI35: =+IF(AI36="Aplica",BI33*10%,0) -> 0 | BJ35: =+IF(AJ36="Aplica",BJ33*10%,0) -> 0 | BK35: =+IF(AK36="Aplica",BK33*10%,0) -> 0 | BL35: =+IF(AL36="Aplica",BL33*10%,0) -> 0 | BM35: =+IF(AM36="Aplica",BM33*10%,0) -> 0 | BN35: =+IF(AN36="Aplica",BN33*10%,0) -> 0 | BO35: =+IF(AO36="Aplica",BO33*10%,0) -> 0 | BP35: =+IF(AP36="Aplica",BP33*10%,0) -> 0 | BQ35: =+IF(AQ36="Aplica",BQ33*10%,0) -> 0
C36: Seguimiento e Interventoria (10%) | D36: No Aplica | L36: =+IF(D36="Aplica",L34*10%,0) -> 0 | N36: Seguimiento e Interventoria (10%) | O36: No Aplica | P36: =+IF(O36="Aplica",P34*10%,0) -> 0 | S36: Seguimiento e Interventoria (10%) | T36: No Aplica | U36: No Aplica | V36: No Aplica | W36: No Aplica | X36: No Aplica | Y36: No Aplica | Z36: No Aplica | AA36: No Aplica | AB36: No Aplica | AC36: NO | AD36: Aplica | AE36: NO | AF36: Aplica | AG36: No Aplica | AH36: Aplica | AI36: Aplica | AJ36: Aplica | AK36: No Aplica | AL36: Aplica | AM36: No Aplica | AN36: Aplica | AO36: No Aplica | AP36: Aplica | AQ36: No Aplica | AS36: Licencias y estudios de campo | AT36: =+IF(T37="Basicos 7%",AT33*7%,IF(T37="Detallados 15%",AT33*15%,IF(T37="Avanzados 25%",AT33*25%,0))) -> 0 | AU36: =+IF(U37="Basicos 7%",AU33*7%,IF(U37="Detallados 15%",AU33*15%,IF(U37="Avanzados 25%",AU33*25%,0))) -> 0 | AV36: =+IF(V37="Basicos 7%",AV33*7%,IF(V37="Detallados 15%",AV33*15%,IF(V37="Avanzados 25%",AV33*25%,0))) -> 0 | AW36: =+IF(W37="Basicos 7%",AW33*7%,IF(W37="Detallados 15%",AW33*15%,IF(W37="Avanzados 25%",AW33*25%,0))) -> 0 | AX36: =+IF(X37="Basicos 7%",AX33*7%,IF(X37="Detallados 15%",AX33*15%,IF(X37="Avanzados 25%",AX33*25%,0))) -> 0 | AY36: =+IF(Y37="Basicos 7%",AY33*7%,IF(Y37="Detallados 15%",AY33*15%,IF(Y37="Avanzados 25%",AY33*25%,0))) -> 0 | AZ36: =+IF(Z37="Basicos 7%",AZ33*7%,IF(Z37="Detallados 15%",AZ33*15%,IF(Z37="Avanzados 25%",AZ33*25%,0))) -> 0 | BA36: =+IF(AA37="Basicos 7%",BA33*7%,IF(AA37="Detallados 15%",BA33*15%,IF(AA37="Avanzados 25%",BA33*25%,0))) -> 0 | BB36: =+IF(AB37="Basicos 7%",BB33*7%,IF(AB37="Detallados 15%",BB33*15%,IF(AB37="Avanzados 25%",BB33*25%,0))) -> 0 | BC36: =+IF(AC37="Basicos 7%",BC33*7%,IF(AC37="Detallados 15%",BC33*15%,IF(AC37="Avanzados 25%",BC33*25%,0))) -> 0 | BD36: =+IF(AD37="Basicos 7%",BD33*7%,IF(AD37="Detallados 15%",BD33*15%,IF(AD37="Avanzados 25%",BD33*25%,0))) -> 0 | BE36: =+IF(AE37="Basicos 7%",BE33*7%,IF(AE37="Detallados 15%",BE33*15%,IF(AE37="Avanzados 25%",BE33*25%,0))) -> 0 | BF36: =+IF(AF37="Basicos 7%",BF33*7%,IF(AF37="Detallados 15%",BF33*15%,IF(AF37="Avanzados 25%",BF33*25%,0))) -> 0 | BG36: =+IF(AG37="Basicos 7%",BG33*7%,IF(AG37="Detallados 15%",BG33*15%,IF(AG37="Avanzados 25%",BG33*25%,0))) -> 0 | BH36: =+IF(AH37="Basicos 7%",BH33*7%,IF(AH37="Detallados 15%",BH33*15%,IF(AH37="Avanzados 25%",BH33*25%,0))) -> 0 | BI36: =+IF(AI37="Basicos 7%",BI33*7%,IF(AI37="Detallados 15%",BI33*15%,IF(AI37="Avanzados 25%",BI33*25%,0))) -> 0 | BJ36: =+IF(AJ37="Basicos 7%",BJ33*7%,IF(AJ37="Detallados 15%",BJ33*15%,IF(AJ37="Avanzados 25%",BJ33*25%,0))) -> 0 | BK36: =+IF(AK37="Basicos 7%",BK33*7%,IF(AK37="Detallados 15%",BK33*15%,IF(AK37="Avanzados 25%",BK33*25%,0))) -> 0 | BL36: =+IF(AL37="Basicos 7%",BL33*7%,IF(AL37="Detallados 15%",BL33*15%,IF(AL37="Avanzados 25%",BL33*25%,0))) -> 0 | BM36: =+IF(AM37="Basicos 7%",BM33*7%,IF(AM37="Detallados 15%",BM33*15%,IF(AM37="Avanzados 25%",BM33*25%,0))) -> 0 | BN36: =+IF(AN37="Basicos 7%",BN33*7%,IF(AN37="Detallados 15%",BN33*15%,IF(AN37="Avanzados 25%",BN33*25%,0))) -> 0 | BO36: =+IF(AO37="Basicos 7%",BO33*7%,IF(AO37="Detallados 15%",BO33*15%,IF(AO37="Avanzados 25%",BO33*25%,0))) -> 0 | BP36: =+IF(AP37="Basicos 7%",BP33*7%,IF(AP37="Detallados 15%",BP33*15%,IF(AP37="Avanzados 25%",BP33*25%,0))) -> 0 | BQ36: =+IF(AQ37="Basicos 7%",BQ33*7%,IF(AQ37="Detallados 15%",BQ33*15%,IF(AQ37="Avanzados 25%",BQ33*25%,0))) -> 0
C37: Licencias y estudios de campo | D37: No Aplica | L37: =+IF(D37="Basicos 7%",L34*7%,IF(D37="Detallados 15%",L34*15%,IF(D37="Avanzados 25%",L34*25%,0))) -> 0 | N37: Licencias y estudios de campo | O37: No Aplica | P37: =+IF(O37="Basicos 7%",P34*7%,IF(O37="Detallados 15%",P34*15%,IF(O37="Avanzados 25%",P34*25%,0))) -> 0 | S37: Licencias y estudios de campo | T37: No Aplica | U37: No Aplica | V37: No Aplica | W37: No Aplica | X37: No Aplica | Y37: No Aplica | Z37: No Aplica | AA37: No Aplica | AB37: No Aplica | AC37: No Aplica | AD37: Basicos 7% | AE37: No Aplica | AF37: Basicos 7% | AG37: No Aplica | AH37: No Aplica | AI37: No Aplica | AJ37: Basicos 7% | AK37: No Aplica | AL37: Basicos 7% | AM37: No Aplica | AN37: Basicos 7% | AO37: No Aplica | AP37: Basicos 7% | AQ37: No Aplica | AS37: Imprevistos (5%) | AT37: =+IF(T38="Aplica",AT33*5%,0) -> 0 | AU37: =+IF(U38="Aplica",AU33*5%,0) -> 0 | AV37: =+IF(V38="Aplica",AV33*5%,0) -> 0 | AW37: =+IF(W38="Aplica",AW33*5%,0) -> 0 | AX37: =+IF(X38="Aplica",AX33*5%,0) -> 0 | AY37: =+IF(Y38="Aplica",AY33*5%,0) -> 0 | AZ37: =+IF(Z38="Aplica",AZ33*5%,0) -> 0 | BA37: =+IF(AA38="Aplica",BA33*5%,0) -> 0 | BB37: =+IF(AB38="Aplica",BB33*5%,0) -> 0 | BC37: =+IF(AC38="Aplica",BC33*5%,0) -> 0 | BD37: =+IF(AD38="Aplica",BD33*5%,0) -> 0 | BE37: =+IF(AE38="Aplica",BE33*5%,0) -> 0 | BF37: =+IF(AF38="Aplica",BF33*5%,0) -> 0 | BG37: =+IF(AG38="Aplica",BG33*5%,0) -> 0 | BH37: =+IF(AH38="Aplica",BH33*5%,0) -> 0 | BI37: =+IF(AI38="Aplica",BI33*5%,0) -> 0 | BJ37: =+IF(AJ38="Aplica",BJ33*5%,0) -> 0 | BK37: =+IF(AK38="Aplica",BK33*5%,0) -> 0 | BL37: =+IF(AL38="Aplica",BL33*5%,0) -> 0 | BM37: =+IF(AM38="Aplica",BM33*5%,0) -> 0 | BN37: =+IF(AN38="Aplica",BN33*5%,0) -> 0 | BO37: =+IF(AO38="Aplica",BO33*5%,0) -> 0 | BP37: =+IF(AP38="Aplica",BP33*5%,0) -> 0 | BQ37: =+IF(AQ38="Aplica",BQ33*5%,0) -> 0
C38: Imprevistos (5%) | D38: No Aplica | L38: =+IF(D38="Aplica",L34*5%,0) -> 0 | N38: Imprevistos (5%) | O38: No Aplica | P38: =+IF(O38="Aplica",P34*5%,0) -> 0 | S38: Imprevistos (5%) | T38: No Aplica | U38: No Aplica | V38: No Aplica | W38: No Aplica | X38: No Aplica | Y38: No Aplica | Z38: No Aplica | AA38: No Aplica | AB38: No Aplica | AC38: No Aplica | AD38: Aplica | AE38: No Aplica | AF38: No Aplica | AG38: No Aplica | AH38: Aplica | AI38: Aplica | AJ38: No Aplica | AK38: No Aplica | AL38: No Aplica | AM38: No Aplica | AN38: No Aplica | AO38: No Aplica | AP38: No Aplica | AQ38: No Aplica | AT38: =SUM(AT33:AT37) -> 0 | AU38: =SUM(AU33:AU37) -> 0 | AV38: =SUM(AV33:AV37) -> 1248432036 | AW38: =SUM(AW33:AW37) -> 444985676.4 | AX38: =SUM(AX33:AX37) -> 1288301479 | AY38: =SUM(AY33:AY37) -> 459196566.7 | AZ38: =SUM(AZ33:AZ37) -> 1329489115 | BA38: =SUM(BA33:BA37) -> 473877308.3 | BB38: =SUM(BB33:BB37) -> 0 | BC38: =SUM(BC33:BC37) -> 0 | BD38: =SUM(BD33:BD37) -> 0 | BE38: =SUM(BE33:BE37) -> 0 | BF38: =SUM(BF33:BF37) -> 0 | BG38: =SUM(BG33:BG37) -> 0 | BH38: =SUM(BH33:BH37) -> 0 | BI38: =SUM(BI33:BI37) -> 0 | BJ38: =SUM(BJ33:BJ37) -> 0 | BK38: =SUM(BK33:BK37) -> 0 | BL38: =SUM(BL33:BL37) -> 0 | BM38: =SUM(BM33:BM37) -> 0 | BN38: =SUM(BN33:BN37) -> 0 | BO38: =SUM(BO33:BO37) -> 0 | BP38: =SUM(BP33:BP37) -> 0 | BQ38: =SUM(BQ33:BQ37) -> 0
A39: VALOR TOTAL ESTIMADO DE LA ACTIVIDAD | L39: =SUM(L34:L38) -> 1170286960 | N39: Total Personal | P39: =SUM(P34:P38) -> 417131985.6
A41: VALOR ESTIMADO DEL PROYECTO | L41: =+L13+L26+L39 -> 1871827117 | N41: VALOR ESTIMADO DEL PERSONAL | P41: =+P13+P26+P39 -> 1118672143 | AT41: =+AT12+AT25+AT38 -> 489610686.7 | AU41: =+AU12+AU25+AU38 -> 489610686.7 | AV41: 1491151496 | AW41: 687705136.2 | AX41: 1538772334 | AY41: 709667421.3 | AZ41: 1329489115 | BA41: 473877308.3 | BB41: 0 | BC41: 0 | BD41: 0 | BE41: 0 | BF41: 0 | BG41: 0 | BH41: 0 | BI41: 0 | BJ41: 0 | BK41: 0 | BL41: 0 | BM41: 0 | BN41: 0 | BO41: 0 | BP41: 0 | BQ41: 0
A45: Proyecto 2. Articular las estrategias interinstitucionales de respuesta del Plan de gestión integral del riesgo y cambio climático PGRCC del Distrito, con el plan de gestión integral de residuos sólidos PGIRS. | S45: Proyecto 2. Articular las estrategias interinstitucionales de respuesta del Plan de gestión integral del riesgo y cambio climático PGRCC del Distrito, con el plan de gestión integral de residuos sólidos PGIRS. | AT45: =+R47 -> Fortalecimiento de las competencias de respuesta ante los escenarios de riesgo
A46: COSTO DE LA ACTIVIDAD | N46: Personal Designado UAESP | S46: ASIGNACION DE RECURSOS POR PERIODO | AT46: 1.032904259 | AV46: 1.066774287 | AX46: 1.100842377 | AZ46: 1.136036853 | BB46: 1.171957126 | BD46: 1.208667241 | BF46: 1.245965407 | BH46: 1.283811224 | BJ46: 1.322686854 | BL46: 1.363439894 | BN46: 1.404660131 | BP46: 1.447535633
A47: ACTIVIDAD | B47: ALCANCE | C47: ITEM | D47: DESCRIPCION | E47: PERSONAL TOTAL | F47: CATEGORIA | G47: ESPECIFICACION | H47: CANTIDAD POR CATEGORIA | I47: VALOR UNITARIO (Cifras expresadas en Millones de pesos) | J47: VALOR MES * CANTIDAD (Cifras expresadas en Millones de pesos) | K47: TIEMPO DE DEDICACION (MESES) | L47: VALOR TOTAL 2020 (Cifras expresadas en Millones de pesos) | N47: Lista | O47: Cantida por Categoria | P47: Valor Mensual X Cantidad y X Tiempo | R47: Fortalecimiento de las competencias de respuesta ante los escenarios de riesgo | S47: ITEM | T47: 2021 | V47: 2022 | X47: 2023 | Z47: 2024 | AB47: 2025 | AD47: 2026 | AF47: 2027 | AH47: 2028 | AJ47: 2029 | AL47: 2030 | AN47: 2031 | AP47: 2032 | AS47: ITEM | AT47: COSTO POR PERIODOS
A48: Fortalecimiento de las competencias de respuesta ante los escenarios de riesgo | B48: Una Socializacion de los mecanismo de atencion frente al GIRS en el marco de los escenarios de riesgo | C48: Detalle del Personal | D48: Un profesional ambiental o afines con 3 años experiencia Un trabajador social o antropólogo con 3 años experiencia Ingeniero geodesta, catastral o afines con 3 años experiencia | E48: 3 | F48: 11 | G48: =VLOOKUP(F48,HONORARIOS!$A$5:$G$25,2,0) -> TITULO PROFESIONAL DESDE TRES (3) HASTA SEIS (6) AÑOS DE EXPERIENCIA PROFESIONAL | H48: 3 | I48: =VLOOKUP(F48,HONORARIOS!$A$5:$G$25,5,0) -> 5705719.5 | J48: =+I48*H48 -> 17117158.5 | K48: 4 | L48: =+J48*K48 -> 68468634 | O48: 3 | P48: =+(O48*I48)*K48 -> 68468634 | T48: Proyeccion Actividad | U48: Proyeccion UAESP | V48: Proyeccion Actividad | W48: Proyeccion UAESP | X48: Proyeccion Actividad | Y48: Proyeccion UAESP | Z48: Proyeccion Actividad | AA48: Proyeccion UAESP | AB48: Proyeccion Actividad | AC48: Proyeccion UAESP | AD48: Proyeccion Actividad | AE48: Proyeccion UAESP | AF48: Proyeccion Actividad | AG48: Proyeccion UAESP | AH48: Proyeccion Actividad | AI48: Proyeccion UAESP | AJ48: Proyeccion Actividad | AK48: Proyeccion UAESP | AL48: Proyeccion Actividad | AM48: Proyeccion UAESP | AN48: Proyeccion Actividad | AO48: Proyeccion UAESP | AP48: Proyeccion Actividad | AQ48: Proyeccion UAESP | AT48: 2021 | AV48: 2022 | AX48: 2023 | AZ48: 2024 | BB48: 2025 | BD48: 2026 | BF48: 2027 | BH48: 2028 | BJ48: 2029 | BL48: 2030 | BN48: 2031 | BP48: 2032
C49: Subtotal | L49: =SUM(L48:L48) -> 68468634 | N49: Subtotal Personal | P49: =SUM(P48:P48) -> 68468634 | S49: Costos del Personal | T49: Aplica | U49: =+IF(T49="Aplica","Aplica","No Aplica") -> Aplica | V49: Aplica | W49: =+IF(V49="Aplica","Aplica","No Aplica") -> Aplica | X49: Aplica | Y49: =+IF(X49="Aplica","Aplica","No Aplica") -> Aplica | Z49: Aplica | AA49: =+IF(Z49="Aplica","Aplica","No Aplica") -> Aplica | AB49: Aplica | AC49: =+IF(AB49="Aplica","Aplica","No Aplica") -> Aplica | AD49: Aplica | AE49: =+IF(AD49="Aplica","Aplica","No Aplica") -> Aplica | AF49: Aplica | AG49: =+IF(AF49="Aplica","Aplica","No Aplica") -> Aplica | AH49: Aplica | AI49: =+IF(AH49="Aplica","Aplica","No Aplica") -> Aplica | AJ49: Aplica | AK49: =+IF(AJ49="Aplica","Aplica","No Aplica") -> Aplica | AL49: Aplica | AM49: =+IF(AL49="Aplica","Aplica","No Aplica") -> Aplica | AN49: Aplica | AO49: =+IF(AN49="Aplica","Aplica","No Aplica") -> Aplica | AP49: Aplica | AQ49: =+IF(AP49="Aplica","Aplica","No Aplica") -> Aplica | AS49: Costos del Personal | AT49: =IF(T49="aplica",($L49*T50)*AT46,0) -> 70721543.63 | AU49: =IF(U49="aplica",($P49*U50)*AT46,0) -> 70721543.63 | AV49: =IF(V49="aplica",($L49*V50)*AV46,0) -> 73040578.19 | AW49: =IF(W49="aplica",($P49*W50)*AV46,0) -> 73040578.19 | AX49: =IF(X49="aplica",($L49*X50)*AX46,0) -> 75373173.84 | AY49: =IF(Y49="aplica",($P49*Y50)*AX46,0) -> 75373173.84 | AZ49: =IF(Z49="aplica",($L49*Z50)*AZ46,0) -> 77782891.52 | BA49: =IF(AA49="aplica",($P49*AA50)*AZ46,0) -> 77782891.52 | BB49: =IF(AB49="aplica",($L49*AB50)*BB46,0) -> 80242303.55 | BC49: =IF(AC49="aplica",($P49*AC50)*BB46,0) -> 80242303.55 | BD49: =IF(AD49="aplica",($L49*AD50)*BD46,0) -> 82755794.93 | BE49: =IF(AE49="aplica",($P49*AE50)*BD46,0) -> 82755794.93 | BF49: =IF(AF49="aplica",($L49*AF50)*BF46,0) -> 85309549.41 | BG49: =IF(AG49="aplica",($P49*AG50)*BF46,0) -> 85309549.41 | BH49: =IF(AH49="aplica",($L49*AH50)*BH46,0) -> 87900800.82 | BI49: =IF(AI49="aplica",($P49*AI50)*BH46,0) -> 87900800.82 | BJ49: =IF(AJ49="aplica",($L49*AJ50)*BJ46,0) -> 90562562.14 | BK49: =IF(AK49="aplica",($P49*AK50)*BJ46,0) -> 90562562.14 | BL49: =IF(AL49="aplica",($L49*AL50)*BL46,0) -> 93352867.09 | BM49: =IF(AM49="aplica",($P49*AM50)*BL46,0) -> 93352867.09 | BN49: =IF(AN49="aplica",($L49*AN50)*BN46,0) -> 96175160.4 | BO49: =IF(AO49="aplica",($P49*AO50)*BN46,0) -> 96175160.4 | BP49: =IF(AP49="aplica",($L49*AP50)*BP46,0) -> 99110787.43 | BQ49: =IF(AQ49="aplica",($P49*AQ50)*BP46,0) -> 99110787.43
C50: Costos Indirectos y Operacionales | D50: Directo (20%) | L50: =+IF(D50="Consultoria (25%)",L49*25%,0)+IF(D50="Obra (30%)",L49*30%,0)+IF(D50="Directo (20%)",L49*20%,0)+IF(D50="No aplica",0,0)+IF(D50="Servicios (10%)",L49*10%,0) -> 13693726.8 | N50: Costos Indirectos y Operacionales | O50: Servicios (10%) | P50: =+IF(O50="Consultoria (25%)",P49*25%,0)+IF(O50="Obra (30%)",P49*30%,0)+IF(O50="Directo (20%)",P49*20%,0)+IF(O50="No aplica",0,0)+IF(O50="Servicios (10%)",P49*10%,0) -> 6846863.4 | S50: Porcentaje | T50: 1 | U50: 1 | V50: 1 | W50: 1 | X50: 1 | Y50: 1 | Z50: 1 | AA50: 1 | AB50: 1 | AC50: 1 | AD50: 1 | AE50: 1 | AF50: 1 | AG50: 1 | AH50: 1 | AI50: 1 | AJ50: 1 | AK50: 1 | AL50: 1 | AM50: 1 | AN50: 1 | AO50: 1 | AP50: 1 | AQ50: 1 | AS50: Costos Indirectos y Operacionales | AT50: =+IF(T51="Consultoria (25%)",AT49*25%,0)+IF(T51="Obra (30%)",AT49*30%,0)+IF(T51="Directo (20%)",AT49*20%,0)+IF(T51="No aplica",0,0)+IF(T51="Servicios (10%)",AT49*10%,0) -> 7072154.363 | AU50: =+IF(U51="Consultoria (25%)",AU49*25%,0)+IF(U51="Obra (30%)",AU49*30%,0)+IF(U51="Directo (20%)",AU49*20%,0)+IF(U51="No aplica",0,0)+IF(U51="Servicios (10%)",AU49*10%,0) -> 7072154.363 | AV50: =+IF(V51="Consultoria (25%)",AV49*25%,0)+IF(V51="Obra (30%)",AV49*30%,0)+IF(V51="Directo (20%)",AV49*20%,0)+IF(V51="No aplica",0,0)+IF(V51="Servicios (10%)",AV49*10%,0) -> 7304057.819 | AW50: =+IF(W51="Consultoria (25%)",AW49*25%,0)+IF(W51="Obra (30%)",AW49*30%,0)+IF(W51="Directo (20%)",AW49*20%,0)+IF(W51="No aplica",0,0)+IF(W51="Servicios (10%)",AW49*10%,0) -> 7304057.819 | AX50: =+IF(X51="Consultoria (25%)",AX49*25%,0)+IF(X51="Obra (30%)",AX49*30%,0)+IF(X51="Directo (20%)",AX49*20%,0)+IF(X51="No aplica",0,0)+IF(X51="Servicios (10%)",AX49*10%,0) -> 7537317.384 | AY50: =+IF(Y51="Consultoria (25%)",AY49*25%,0)+IF(Y51="Obra (30%)",AY49*30%,0)+IF(Y51="Directo (20%)",AY49*20%,0)+IF(Y51="No aplica",0,0)+IF(Y51="Servicios (10%)",AY49*10%,0) -> 7537317.384 | AZ50: =+IF(Z51="Consultoria (25%)",AZ49*25%,0)+IF(Z51="Obra (30%)",AZ49*30%,0)+IF(Z51="Directo (20%)",AZ49*20%,0)+IF(Z51="No aplica",0,0)+IF(Z51="Servicios (10%)",AZ49*10%,0) -> 7778289.152 | BA50: =+IF(AA51="Consultoria (25%)",BA49*25%,0)+IF(AA51="Obra (30%)",BA49*30%,0)+IF(AA51="Directo (20%)",BA49*20%,0)+IF(AA51="No aplica",0,0)+IF(AA51="Servicios (10%)",BA49*10%,0) -> 7778289.152 | BB50: =+IF(AB51="Consultoria (25%)",BB49*25%,0)+IF(AB51="Obra (30%)",BB49*30%,0)+IF(AB51="Directo (20%)",BB49*20%,0)+IF(AB51="No aplica",0,0)+IF(AB51="Servicios (10%)",BB49*10%,0) -> 8024230.355 | BC50: =+IF(AC51="Consultoria (25%)",BC49*25%,0)+IF(AC51="Obra (30%)",BC49*30%,0)+IF(AC51="Directo (20%)",BC49*20%,0)+IF(AC51="No aplica",0,0)+IF(AC51="Servicios (10%)",BC49*10%,0) -> 8024230.355 | BD50: =+IF(AD51="Consultoria (25%)",BD49*25%,0)+IF(AD51="Obra (30%)",BD49*30%,0)+IF(AD51="Directo (20%)",BD49*20%,0)+IF(AD51="No aplica",0,0)+IF(AD51="Servicios (10%)",BD49*10%,0) -> 8275579.493 | BE50: =+IF(AE51="Consultoria (25%)",BE49*25%,0)+IF(AE51="Obra (30%)",BE49*30%,0)+IF(AE51="Directo (20%)",BE49*20%,0)+IF(AE51="No aplica",0,0)+IF(AE51="Servicios (10%)",BE49*10%,0) -> 8275579.493 | BF50: =+IF(AF51="Consultoria (25%)",BF49*25%,0)+IF(AF51="Obra (30%)",BF49*30%,0)+IF(AF51="Directo (20%)",BF49*20%,0)+IF(AF51="No aplica",0,0)+IF(AF51="Servicios (10%)",BF49*10%,0) -> 8530954.941 | BG50: =+IF(AG51="Consultoria (25%)",BG49*25%,0)+IF(AG51="Obra (30%)",BG49*30%,0)+IF(AG51="Directo (20%)",BG49*20%,0)+IF(AG51="No aplica",0,0)+IF(AG51="Servicios (10%)",BG49*10%,0) -> 8530954.941 | BH50: =+IF(AH51="Consultoria (25%)",BH49*25%,0)+IF(AH51="Obra (30%)",BH49*30%,0)+IF(AH51="Directo (20%)",BH49*20%,0)+IF(AH51="No aplica",0,0)+IF(AH51="Servicios (10%)",BH49*10%,0) -> 8790080.082 | BI50: =+IF(AI51="Consultoria (25%)",BI49*25%,0)+IF(AI51="Obra (30%)",BI49*30%,0)+IF(AI51="Directo (20%)",BI49*20%,0)+IF(AI51="No aplica",0,0)+IF(AI51="Servicios (10%)",BI49*10%,0) -> 8790080.082 | BJ50: =+IF(AJ51="Consultoria (25%)",BJ49*25%,0)+IF(AJ51="Obra (30%)",BJ49*30%,0)+IF(AJ51="Directo (20%)",BJ49*20%,0)+IF(AJ51="No aplica",0,0)+IF(AJ51="Servicios (10%)",BJ49*10%,0) -> 9056256.214 | BK50: =+IF(AK51="Consultoria (25%)",BK49*25%,0)+IF(AK51="Obra (30%)",BK49*30%,0)+IF(AK51="Directo (20%)",BK49*20%,0)+IF(AK51="No aplica",0,0)+IF(AK51="Servicios (10%)",BK49*10%,0) -> 9056256.214 | BL50: =+IF(AL51="Consultoria (25%)",BL49*25%,0)+IF(AL51="Obra (30%)",BL49*30%,0)+IF(AL51="Directo (20%)",BL49*20%,0)+IF(AL51="No aplica",0,0)+IF(AL51="Servicios (10%)",BL49*10%,0) -> 9335286.709 | BM50: =+IF(AM51="Consultoria (25%)",BM49*25%,0)+IF(AM51="Obra (30%)",BM49*30%,0)+IF(AM51="Directo (20%)",BM49*20%,0)+IF(AM51="No aplica",0,0)+IF(AM51="Servicios (10%)",BM49*10%,0) -> 9335286.709 | BN50: =+IF(AN51="Consultoria (25%)",BN49*25%,0)+IF(AN51="Obra (30%)",BN49*30%,0)+IF(AN51="Directo (20%)",BN49*20%,0)+IF(AN51="No aplica",0,0)+IF(AN51="Servicios (10%)",BN49*10%,0) -> 9617516.04 | BO50: =+IF(AO51="Consultoria (25%)",BO49*25%,0)+IF(AO51="Obra (30%)",BO49*30%,0)+IF(AO51="Directo (20%)",BO49*20%,0)+IF(AO51="No aplica",0,0)+IF(AO51="Servicios (10%)",BO49*10%,0) -> 9617516.04 | BP50: =+IF(AP51="Consultoria (25%)",BP49*25%,0)+IF(AP51="Obra (30%)",BP49*30%,0)+IF(AP51="Directo (20%)",BP49*20%,0)+IF(AP51="No aplica",0,0)+IF(AP51="Servicios (10%)",BP49*10%,0) -> 9911078.743 | BQ50: =+IF(AQ51="Consultoria (25%)",BQ49*25%,0)+IF(AQ51="Obra (30%)",BQ49*30%,0)+IF(AQ51="Directo (20%)",BQ49*20%,0)+IF(AQ51="No aplica",0,0)+IF(AQ51="Servicios (10%)",BQ49*10%,0) -> 9911078.743
C51: Seguimiento e Interventoria (10%) | D51: No Aplica | L51: =+IF(D51="Aplica",L49*10%,0) -> 0 | N51: Seguimiento e Interventoria (10%) | O51: No Aplica | P51: =+IF(O51="Aplica",P49*10%,0) -> 0 | S51: Costos Indirectos y Operacionales | T51: Servicios (10%) | U51: Servicios (10%) | V51: Servicios (10%) | W51: Servicios (10%) | X51: Servicios (10%) | Y51: Servicios (10%) | Z51: Servicios (10%) | AA51: Servicios (10%) | AB51: Servicios (10%) | AC51: Servicios (10%) | AD51: Servicios (10%) | AE51: Servicios (10%) | AF51: Servicios (10%) | AG51: Servicios (10%) | AH51: Servicios (10%) | AI51: Servicios (10%) | AJ51: Servicios (10%) | AK51: Servicios (10%) | AL51: Servicios (10%) | AM51: Servicios (10%) | AN51: Servicios (10%) | AO51: Servicios (10%) | AP51: Servicios (10%) | AQ51: Servicios (10%) | AS51: Seguimiento e Interventoria (10%) | AT51: =+IF(T52="Aplica",AT49*10%,0) -> 0 | AU51: =+IF(U52="Aplica",AU49*10%,0) -> 0 | AV51: =+IF(V52="Aplica",AV49*10%,0) -> 0 | AW51: =+IF(W52="Aplica",AW49*10%,0) -> 0 | AX51: =+IF(X52="Aplica",AX49*10%,0) -> 0 | AY51: =+IF(Y52="Aplica",AY49*10%,0) -> 0 | AZ51: =+IF(Z52="Aplica",AZ49*10%,0) -> 0 | BA51: =+IF(AA52="Aplica",BA49*10%,0) -> 0 | BB51: =+IF(AB52="Aplica",BB49*10%,0) -> 0 | BC51: =+IF(AC52="Aplica",BC49*10%,0) -> 0 | BD51: =+IF(AD52="Aplica",BD49*10%,0) -> 0 | BE51: =+IF(AE52="Aplica",BE49*10%,0) -> 0 | BF51: =+IF(AF52="Aplica",BF49*10%,0) -> 0 | BG51: =+IF(AG52="Aplica",BG49*10%,0) -> 0 | BH51: =+IF(AH52="Aplica",BH49*10%,0) -> 0 | BI51: =+IF(AI52="Aplica",BI49*10%,0) -> 0 | BJ51: =+IF(AJ52="Aplica",BJ49*10%,0) -> 0 | BK51: =+IF(AK52="Aplica",BK49*10%,0) -> 0 | BL51: =+IF(AL52="Aplica",BL49*10%,0) -> 0 | BM51: =+IF(AM52="Aplica",BM49*10%,0) -> 0 | BN51: =+IF(AN52="Aplica",BN49*10%,0) -> 0 | BO51: =+IF(AO52="Aplica",BO49*10%,0) -> 0 | BP51: =+IF(AP52="Aplica",BP49*10%,0) -> 0 | BQ51: =+IF(AQ52="Aplica",BQ49*10%,0) -> 0
C52: Licencias y estudios de campo | D52: No Aplica | L52: =+IF(D52="Basicos 7%",L49*7%,IF(D52="Detallados 15%",L49*15%,IF(D52="Avanzados 25%",L49*25%,0))) -> 0 | N52: Licencias y estudios de campo | O52: No Aplica | P52: =+IF(O52="Basicos 7%",P49*7%,IF(O52="Detallados 15%",P49*15%,IF(O52="Avanzados 25%",P49*25%,0))) -> 0 | S52: Seguimiento e Interventoria (10%) | T52: No Aplica | U52: No Aplica | V52: No Aplica | W52: No Aplica | X52: No Aplica | Y52: No Aplica | Z52: No Aplica | AA52: No Aplica | AB52: No Aplica | AC52: No Aplica | AD52: No Aplica | AE52: No Aplica | AF52: No Aplica | AG52: No Aplica | AH52: No Aplica | AI52: No Aplica | AJ52: No Aplica | AK52: No Aplica | AL52: No Aplica | AM52: No Aplica | AN52: No Aplica | AO52: No Aplica | AP52: No Aplica | AQ52: No Aplica | AS52: Licencias y estudios de campo | AT52: =+IF(T53="Basicos 7%",AT49*7%,IF(T53="Detallados 15%",AT49*15%,IF(T53="Avanzados 25%",AT49*25%,0))) -> 0 | AU52: =+IF(U53="Basicos 7%",AU49*7%,IF(U53="Detallados 15%",AU49*15%,IF(U53="Avanzados 25%",AU49*25%,0))) -> 0 | AV52: =+IF(V53="Basicos 7%",AV49*7%,IF(V53="Detallados 15%",AV49*15%,IF(V53="Avanzados 25%",AV49*25%,0))) -> 0 | AW52: =+IF(W53="Basicos 7%",AW49*7%,IF(W53="Detallados 15%",AW49*15%,IF(W53="Avanzados 25%",AW49*25%,0))) -> 0 | AX52: =+IF(X53="Basicos 7%",AX49*7%,IF(X53="Detallados 15%",AX49*15%,IF(X53="Avanzados 25%",AX49*25%,0))) -> 0 | AY52: =+IF(Y53="Basicos 7%",AY49*7%,IF(Y53="Detallados 15%",AY49*15%,IF(Y53="Avanzados 25%",AY49*25%,0))) -> 0 | AZ52: =+IF(Z53="Basicos 7%",AZ49*7%,IF(Z53="Detallados 15%",AZ49*15%,IF(Z53="Avanzados 25%",AZ49*25%,0))) -> 0 | BA52: =+IF(AA53="Basicos 7%",BA49*7%,IF(AA53="Detallados 15%",BA49*15%,IF(AA53="Avanzados 25%",BA49*25%,0))) -> 0 | BB52: =+IF(AB53="Basicos 7%",BB49*7%,IF(AB53="Detallados 15%",BB49*15%,IF(AB53="Avanzados 25%",BB49*25%,0))) -> 0 | BC52: =+IF(AC53="Basicos 7%",BC49*7%,IF(AC53="Detallados 15%",BC49*15%,IF(AC53="Avanzados 25%",BC49*25%,0))) -> 0 | BD52: =+IF(AD53="Basicos 7%",BD49*7%,IF(AD53="Detallados 15%",BD49*15%,IF(AD53="Avanzados 25%",BD49*25%,0))) -> 0 | BE52: =+IF(AE53="Basicos 7%",BE49*7%,IF(AE53="Detallados 15%",BE49*15%,IF(AE53="Avanzados 25%",BE49*25%,0))) -> 0 | BF52: =+IF(AF53="Basicos 7%",BF49*7%,IF(AF53="Detallados 15%",BF49*15%,IF(AF53="Avanzados 25%",BF49*25%,0))) -> 0 | BG52: =+IF(AG53="Basicos 7%",BG49*7%,IF(AG53="Detallados 15%",BG49*15%,IF(AG53="Avanzados 25%",BG49*25%,0))) -> 0 | BH52: =+IF(AH53="Basicos 7%",BH49*7%,IF(AH53="Detallados 15%",BH49*15%,IF(AH53="Avanzados 25%",BH49*25%,0))) -> 0 | BI52: =+IF(AI53="Basicos 7%",BI49*7%,IF(AI53="Detallados 15%",BI49*15%,IF(AI53="Avanzados 25%",BI49*25%,0))) -> 0 | BJ52: =+IF(AJ53="Basicos 7%",BJ49*7%,IF(AJ53="Detallados 15%",BJ49*15%,IF(AJ53="Avanzados 25%",BJ49*25%,0))) -> 0 | BK52: =+IF(AK53="Basicos 7%",BK49*7%,IF(AK53="Detallados 15%",BK49*15%,IF(AK53="Avanzados 25%",BK49*25%,0))) -> 0 | BL52: =+IF(AL53="Basicos 7%",BL49*7%,IF(AL53="Detallados 15%",BL49*15%,IF(AL53="Avanzados 25%",BL49*25%,0))) -> 0 | BM52: =+IF(AM53="Basicos 7%",BM49*7%,IF(AM53="Detallados 15%",BM49*15%,IF(AM53="Avanzados 25%",BM49*25%,0))) -> 0 | BN52: =+IF(AN53="Basicos 7%",BN49*7%,IF(AN53="Detallados 15%",BN49*15%,IF(AN53="Avanzados 25%",BN49*25%,0))) -> 0 | BO52: =+IF(AO53="Basicos 7%",BO49*7%,IF(AO53="Detallados 15%",BO49*15%,IF(AO53="Avanzados 25%",BO49*25%,0))) -> 0 | BP52: =+IF(AP53="Basicos 7%",BP49*7%,IF(AP53="Detallados 15%",BP49*15%,IF(AP53="Avanzados 25%",BP49*25%,0))) -> 0 | BQ52: =+IF(AQ53="Basicos 7%",BQ49*7%,IF(AQ53="Detallados 15%",BQ49*15%,IF(AQ53="Avanzados 25%",BQ49*25%,0))) -> 0
C53: Imprevistos (5%) | D53: No Aplica | L53: =+IF(D53="Aplica",L49*5%,0) -> 0 | N53: Imprevistos (5%) | O53: No Aplica | P53: =+IF(O53="Aplica",P49*5%,0) -> 0 | S53: Licencias y estudios de campo | T53: No Aplica | U53: No Aplica | V53: No Aplica | W53: No Aplica | X53: No Aplica | Y53: No Aplica | Z53: No Aplica | AA53: No Aplica | AB53: No Aplica | AC53: No Aplica | AD53: No Aplica | AE53: No Aplica | AF53: No Aplica | AG53: No Aplica | AH53: No Aplica | AI53: No Aplica | AJ53: No Aplica | AK53: No Aplica | AL53: No Aplica | AM53: No Aplica | AN53: No Aplica | AO53: No Aplica | AP53: No Aplica | AQ53: No Aplica | AS53: Imprevistos (5%) | AT53: =+IF(T54="Aplica",AT49*5%,0) -> 0 | AU53: =+IF(U54="Aplica",AU49*5%,0) -> 0 | AV53: =+IF(V54="Aplica",AV49*5%,0) -> 0 | AW53: =+IF(W54="Aplica",AW49*5%,0) -> 0 | AX53: =+IF(X54="Aplica",AX49*5%,0) -> 0 | AY53: =+IF(Y54="Aplica",AY49*5%,0) -> 0 | AZ53: =+IF(Z54="Aplica",AZ49*5%,0) -> 0 | BA53: =+IF(AA54="Aplica",BA49*5%,0) -> 0 | BB53: =+IF(AB54="Aplica",BB49*5%,0) -> 0 | BC53: =+IF(AC54="Aplica",BC49*5%,0) -> 0 | BD53: =+IF(AD54="Aplica",BD49*5%,0) -> 0 | BE53: =+IF(AE54="Aplica",BE49*5%,0) -> 0 | BF53: =+IF(AF54="Aplica",BF49*5%,0) -> 0 | BG53: =+IF(AG54="Aplica",BG49*5%,0) -> 0 | BH53: =+IF(AH54="Aplica",BH49*5%,0) -> 0 | BI53: =+IF(AI54="Aplica",BI49*5%,0) -> 0 | BJ53: =+IF(AJ54="Aplica",BJ49*5%,0) -> 0 | BK53: =+IF(AK54="Aplica",BK49*5%,0) -> 0 | BL53: =+IF(AL54="Aplica",BL49*5%,0) -> 0 | BM53: =+IF(AM54="Aplica",BM49*5%,0) -> 0 | BN53: =+IF(AN54="Aplica",BN49*5%,0) -> 0 | BO53: =+IF(AO54="Aplica",BO49*5%,0) -> 0 | BP53: =+IF(AP54="Aplica",BP49*5%,0) -> 0 | BQ53: =+IF(AQ54="Aplica",BQ49*5%,0) -> 0
A54: VALOR TOTAL ESTIMADO DE LA ACTIVIDAD | L54: =SUM(L49:L53) -> 82162360.8 | N54: Total Personal | P54: =SUM(P49:P53) -> 75315497.4 | S54: Imprevistos (5%) | T54: No Aplica | U54: No Aplica | V54: No Aplica | W54: No Aplica | X54: No Aplica | Y54: No Aplica | Z54: No Aplica | AA54: No Aplica | AB54: No Aplica | AC54: No Aplica | AD54: No Aplica | AE54: No Aplica | AF54: No Aplica | AG54: No Aplica | AH54: No Aplica | AI54: No Aplica | AJ54: No Aplica | AK54: No Aplica | AL54: No Aplica | AM54: No Aplica | AN54: No Aplica | AO54: No Aplica | AP54: No Aplica | AQ54: No Aplica | AT54: =SUM(AT49:AT53) -> 77793698 | AU54: =SUM(AU49:AU53) -> 77793698 | AV54: =SUM(AV49:AV53) -> 80344636.01 | AW54: =SUM(AW49:AW53) -> 80344636.01 | AX54: =SUM(AX49:AX53) -> 82910491.22 | AY54: =SUM(AY49:AY53) -> 82910491.22 | AZ54: =SUM(AZ49:AZ53) -> 85561180.67 | BA54: =SUM(BA49:BA53) -> 85561180.67 | BB54: =SUM(BB49:BB53) -> 88266533.91 | BC54: =SUM(BC49:BC53) -> 88266533.91 | BD54: =SUM(BD49:BD53) -> 91031374.43 | BE54: =SUM(BE49:BE53) -> 91031374.43 | BF54: =SUM(BF49:BF53) -> 93840504.35 | BG54: =SUM(BG49:BG53) -> 93840504.35 | BH54: =SUM(BH49:BH53) -> 96690880.9 | BI54: =SUM(BI49:BI53) -> 96690880.9 | BJ54: =SUM(BJ49:BJ53) -> 99618818.35 | BK54: =SUM(BK49:BK53) -> 99618818.35 | BL54: =SUM(BL49:BL53) -> 102688153.8 | BM54: =SUM(BM49:BM53) -> 102688153.8 | BN54: =SUM(BN49:BN53) -> 105792676.4 | BO54: =SUM(BO49:BO53) -> 105792676.4 | BP54: =SUM(BP49:BP53) -> 109021866.2 | BQ54: =SUM(BQ49:BQ53) -> 109021866.2
A57: COSTO DE LA ACTIVIDAD | N57: Personal Designado UAESP
A58: ACTIVIDAD | B58: ALCANCE | C58: ITEM | D58: DESCRIPCION | E58: PERSONAL TOTAL | F58: CATEGORIA | G58: ESPECIFICACION | H58: CANTIDAD POR CATEGORIA | I58: VALOR UNITARIO (Cifras expresadas en Millones de pesos) | J58: VALOR MES * CANTIDAD (Cifras expresadas en Millones de pesos) | K58: TIEMPO DE DEDICACION (MESES) | L58: VALOR TOTAL 2020 (Cifras expresadas en Millones de pesos) | N58: Lista | O58: Cantida por Categoria | P58: Valor Mensual X Cantidad y X Tiempo | S58: ASIGNACION DE RECURSOS POR PERIODO | AT58: =+R59 -> Analizar y definir las variables de los simulacros de gestión del riesgo asociada a los residuos sólidos
A59: Analizar y definir las variables de los simulacros de gestión del riesgo asociada a los residuos sólidos | B59: Un documento técnico de las variables a medir en el simulacro | C59: Detalle del Personal | D59: Un coordinador profesional en ciencias ambiental especialización y 3 años experiencia específica. Un profesional ambiental o afines con 3 años experiencia Un trabajador social o antropólogo con 3 años experiencia Ingeniero geodesta, catastral o afines con 3 años experiencia | E59: 4 | F59: 11 | G59: =VLOOKUP(F59,HONORARIOS!$A$5:$G$25,2,0) -> TITULO PROFESIONAL DESDE TRES (3) HASTA SEIS (6) AÑOS DE EXPERIENCIA PROFESIONAL | H59: 1 | I59: =VLOOKUP(F59,HONORARIOS!$A$5:$G$25,5,0) -> 5705719.5 | J59: =+I59*H59 -> 5705719.5 | K59: 4 | L59: =+J59*K59 -> 22822878 | O59: 1 | P59: =+(O59*I59)*K59 -> 22822878 | R59: Analizar y definir las variables de los simulacros de gestión del riesgo asociada a los residuos sólidos | S59: ITEM | T59: 2021 | V59: 2022 | X59: 2023 | Z59: 2024 | AB59: 2025 | AD59: 2026 | AF59: 2027 | AH59: 2028 | AJ59: 2029 | AL59: 2030 | AN59: 2031 | AP59: 2032 | AT59: 1.032904259 | AV59: 1.066774287 | AX59: 1.100842377 | AZ59: 1.136036853 | BB59: 1.171957126 | BD59: 1.208667241 | BF59: 1.245965407 | BH59: 1.283811224 | BJ59: 1.322686854 | BL59: 1.363439894 | BN59: 1.404660131 | BP59: 1.447535633
F60: 10 | G60: =VLOOKUP(F60,HONORARIOS!$A$5:$G$25,2,0) -> TITULO PROFESIONAL DESDE UNO (1) HASTA TRES (3) AÑOS DE EXPERIENCIA PROFESIONAL | H60: 3 | I60: =VLOOKUP(F60,HONORARIOS!$A$5:$G$25,5,0) -> 4827916.5 | J60: =+I60*H60 -> 14483749.5 | K60: 4 | L60: =+J60*K60 -> 57934998 | O60: 3 | P60: =+(O60*I60)*K60 -> 57934998 | T60: Proyeccion Actividad | U60: Proyeccion UAESP | V60: Proyeccion Actividad | W60: Proyeccion UAESP | X60: Proyeccion Actividad | Y60: Proyeccion UAESP | Z60: Proyeccion Actividad | AA60: Proyeccion UAESP | AB60: Proyeccion Actividad | AC60: Proyeccion UAESP | AD60: Proyeccion Actividad | AE60: Proyeccion UAESP | AF60: Proyeccion Actividad | AG60: Proyeccion UAESP | AH60: Proyeccion Actividad | AI60: Proyeccion UAESP | AJ60: Proyeccion Actividad | AK60: Proyeccion UAESP | AL60: Proyeccion Actividad | AM60: Proyeccion UAESP | AN60: Proyeccion Actividad | AO60: Proyeccion UAESP | AP60: Proyeccion Actividad | AQ60: Proyeccion UAESP | AS60: ITEM | AT60: COSTO POR PERIODOS
C61: Subtotal | L61: =SUM(L59:L60) -> 80757876 | N61: Subtotal Personal | P61: =SUM(P59:P60) -> 80757876 | S61: Costos del Personal | T61: No Aplica | U61: =+IF(T61="Aplica","Aplica","No Aplica") -> No Aplica | V61: No Aplica | W61: =+IF(V61="Aplica","Aplica","No Aplica") -> No Aplica | X61: Aplica | Y61: =+IF(X61="Aplica","Aplica","No Aplica") -> Aplica | Z61: No Aplica | AA61: =+IF(Z61="Aplica","Aplica","No Aplica") -> No Aplica | AB61: No Aplica | AC61: =+IF(AB61="Aplica","Aplica","No Aplica") -> No Aplica | AD61: No Aplica | AE61: =+IF(AD61="Aplica","Aplica","No Aplica") -> No Aplica | AF61: No Aplica | AG61: =+IF(AF61="Aplica","Aplica","No Aplica") -> No Aplica | AH61: No Aplica | AI61: =+IF(AH61="Aplica","Aplica","No Aplica") -> No Aplica | AJ61: No Aplica | AK61: =+IF(AJ61="Aplica","Aplica","No Aplica") -> No Aplica | AL61: No Aplica | AM61: =+IF(AL61="Aplica","Aplica","No Aplica") -> No Aplica | AN61: No Aplica | AO61: =+IF(AN61="Aplica","Aplica","No Aplica") -> No Aplica | AP61: No Aplica | AQ61: =+IF(AP61="Aplica","Aplica","No Aplica") -> No Aplica | AT61: 2021 | AV61: 2022 | AX61: 2023 | AZ61: 2024 | BB61: 2025 | BD61: 2026 | BF61: 2027 | BH61: 2028 | BJ61: 2029 | BL61: 2030 | BN61: 2031 | BP61: 2032
C62: Costos Indirectos y Operacionales | D62: Directo (20%) | L62: =+IF(D62="Consultoria (25%)",L61*25%,0)+IF(D62="Obra (30%)",L61*30%,0)+IF(D62="Directo (20%)",L61*20%,0)+IF(D62="No aplica",0,0)+IF(D62="Servicios (10%)",L61*10%,0) -> 16151575.2 | N62: Costos Indirectos y Operacionales | O62: Directo (20%) | P62: =+IF(O62="Consultoria (25%)",P61*25%,0)+IF(O62="Obra (30%)",P61*30%,0)+IF(O62="Directo (20%)",P61*20%,0)+IF(O62="No aplica",0,0)+IF(O62="Servicios (10%)",P61*10%,0) -> 16151575.2 | S62: Porcentaje | T62: 1 | U62: 1 | V62: 1 | W62: 1 | X62: 1 | Y62: 1 | Z62: 1 | AA62: 1 | AB62: 1 | AC62: 1 | AD62: 1 | AE62: 1 | AF62: 1 | AG62: 1 | AH62: 1 | AI62: 1 | AJ62: 1 | AK62: 1 | AL62: 1 | AM62: 1 | AN62: 1 | AO62: 1 | AP62: 1 | AQ62: 1 | AS62: Costos del Personal | AT62: =IF(T61="aplica",($L61*T62)*AT59,0) -> 0 | AU62: =IF(U61="aplica",($P61*U62)*AT59,0) -> 0 | AV62: =IF(V61="aplica",($L61*V62)*AV59,0) -> 0 | AW62: =IF(W61="aplica",($P61*W62)*AV59,0) -> 0 | AX62: =IF(X61="aplica",($L61*X62)*AX59,0) -> 88901692.22 | AY62: =IF(Y61="aplica",($P61*Y62)*AX59,0) -> 88901692.22 | AZ62: =IF(Z61="aplica",($L61*Z62)*AZ59,0) -> 0 | BA62: =IF(AA61="aplica",($P61*AA62)*AZ59,0) -> 0 | BB62: =IF(AB61="aplica",($L61*AB62)*BB59,0) -> 0 | BC62: =IF(AC61="aplica",($P61*AC62)*BB59,0) -> 0 | BD62: =IF(AD61="aplica",($L61*AD62)*BD59,0) -> 0 | BE62: =IF(AE61="aplica",($P61*AE62)*BD59,0) -> 0 | BF62: =IF(AF61="aplica",($L61*AF62)*BF59,0) -> 0 | BG62: =IF(AG61="aplica",($P61*AG62)*BF59,0) -> 0 | BH62: =IF(AH61="aplica",($L61*AH62)*BH59,0) -> 0 | BI62: =IF(AI61="aplica",($P61*AI62)*BH59,0) -> 0 | BJ62: =IF(AJ61="aplica",($L61*AJ62)*BJ59,0) -> 0 | BK62: =IF(AK61="aplica",($P61*AK62)*BJ59,0) -> 0 | BL62: =IF(AL61="aplica",($L61*AL62)*BL59,0) -> 0 | BM62: =IF(AM61="aplica",($P61*AM62)*BL59,0) -> 0 | BN62: =IF(AN61="aplica",($L61*AN62)*BN59,0) -> 0 | BO62: =IF(AO61="aplica",($P61*AO62)*BN59,0) -> 0 | BP62: =IF(AP61="aplica",($L61*AP62)*BP59,0) -> 0 | BQ62: =IF(AQ61="aplica",($P61*AQ62)*BP59,0) -> 0
C63: Seguimiento e Interventoria (10%) | D63: No Aplica | L63: =+IF(D63="Aplica",L61*10%,0) -> 0 | N63: Seguimiento e Interventoria (10%) | O63: No Aplica | P63: =+IF(O63="Aplica",P61*10%,0) -> 0 | S63: Costos Indirectos y Operacionales | T63: Directo (20%) | U63: No Aplica | V63: Directo (20%) | W63: Consultoria (25%) | X63: Directo (20%) | Y63: Directo (20%) | Z63: Directo (20%) | AA63: No Aplica | AB63: Directo (20%) | AC63: No Aplica | AD63: Directo (20%) | AE63: No Aplica | AF63: Directo (20%) | AG63: No Aplica | AH63: Consultoria (25%) | AI63: Consultoria (25%) | AJ63: Directo (20%) | AK63: No Aplica | AL63: Directo (20%) | AM63: No Aplica | AN63: Directo (20%) | AO63: No Aplica | AP63: Directo (20%) | AQ63: No Aplica | AS63: Costos Indirectos y Operacionales | AT63: =+IF(T63="Consultoria (25%)",AT62*25%,0)+IF(T63="Obra (30%)",AT62*30%,0)+IF(T63="Directo (20%)",AT62*20%,0)+IF(T63="No aplica",0,0)+IF(T63="Servicios (10%)",AT62*10%,0) -> 0 | AU63: 0 | AV63: 0 | AW63: 0 | AX63: 17780338.44 | AY63: 17780338.44 | AZ63: 0 | BA63: 0 | BB63: 0 | BC63: 0 | BD63: 0 | BE63: 0 | BF63: 0 | BG63: 0 | BH63: 0 | BI63: 0 | BJ63: 0 | BK63: 0 | BL63: 0 | BM63: 0 | BN63: 0 | BO63: 0 | BP63: 0 | BQ63: 0
C64: Licencias y estudios de campo | D64: No Aplica | L64: =+IF(D64="Basicos 7%",L61*7%,IF(D64="Detallados 15%",L61*15%,IF(D64="Avanzados 25%",L61*25%,0))) -> 0 | N64: Licencias y estudios de campo | O64: No Aplica | P64: =+IF(O64="Basicos 7%",P61*7%,IF(O64="Detallados 15%",P61*15%,IF(O64="Avanzados 25%",P61*25%,0))) -> 0 | S64: Seguimiento e Interventoria (10%) | T64: No Aplica | U64: No Aplica | V64: Aplica | W64: Aplica | X64: No Aplica | Y64: No Aplica | Z64: Aplica | AA64: No Aplica | AB64: Aplica | AC64: No Aplica | AD64: Aplica | AE64: No Aplica | AF64: Aplica | AG64: No Aplica | AH64: Aplica | AI64: Aplica | AJ64: Aplica | AK64: No Aplica | AL64: Aplica | AM64: No Aplica | AN64: Aplica | AO64: No Aplica | AP64: Aplica | AQ64: No Aplica | AS64: Seguimiento e Interventoria (10%) | AT64: =+IF(T64="Aplica",AT62*10%,0) -> 0 | AU64: 0 | AV64: 0 | AW64: 0 | AX64: 0 | AY64: 0 | AZ64: 0 | BA64: 0 | BB64: 0 | BC64: 0 | BD64: 0 | BE64: 0 | BF64: 0 | BG64: 0 | BH64: 0 | BI64: 0 | BJ64: 0 | BK64: 0 | BL64: 0 | BM64: 0 | BN64: 0 | BO64: 0 | BP64: 0 | BQ64: 0
C65: Imprevistos (5%) | D65: No Aplica | L65: =+IF(D65="Aplica",L61*5%,0) -> 0 | N65: Imprevistos (5%) | O65: No Aplica | P65: =+IF(O65="Aplica",P61*5%,0) -> 0 | S65: Licencias y estudios de campo | T65: No Aplica | U65: No Aplica | V65: No Aplica | W65: No Aplica | X65: No Aplica | Y65: No Aplica | Z65: Basicos 7% | AA65: No Aplica | AB65: Basicos 7% | AC65: No Aplica | AD65: Basicos 7% | AE65: No Aplica | AF65: Basicos 7% | AG65: No Aplica | AH65: No Aplica | AI65: No Aplica | AJ65: Basicos 7% | AK65: No Aplica | AL65: Basicos 7% | AM65: No Aplica | AN65: Basicos 7% | AO65: No Aplica | AP65: Basicos 7% | AQ65: No Aplica | AS65: Licencias y estudios de campo | AT65: =+IF(T65="Basicos 7%",AT62*7%,IF(T65="Detallados 15%",AT62*15%,IF(T65="Avanzados 25%",AT62*25%,0))) -> 0 | AU65: 0 | AV65: 0 | AW65: 0 | AX65: 0 | AY65: 0 | AZ65: 0 | BA65: 0 | BB65: 0 | BC65: 0 | BD65: 0 | BE65: 0 | BF65: 0 | BG65: 0 | BH65: 0 | BI65: 0 | BJ65: 0 | BK65: 0 | BL65: 0 | BM65: 0 | BN65: 0 | BO65: 0 | BP65: 0 | BQ65: 0
A66: VALOR TOTAL ESTIMADO DE LA ACTIVIDAD | L66: =SUM(L61:L65) -> 96909451.2 | N66: Total Personal | P66: =SUM(P61:P65) -> 96909451.2 | S66: Imprevistos (5%) | T66: No Aplica | U66: No Aplica | V66: Aplica | W66: Aplica | X66: No Aplica | Y66: No Aplica | Z66: No Aplica | AA66: No Aplica | AB66: No Aplica | AC66: No Aplica | AD66: No Aplica | AE66: No Aplica | AF66: No Aplica | AG66: No Aplica | AH66: Aplica | AI66: Aplica | AJ66: No Aplica | AK66: No Aplica | AL66: No Aplica | AM66: No Aplica | AN66: No Aplica | AO66: No Aplica | AP66: No Aplica | AQ66: No Aplica | AS66: Imprevistos (5%) | AT66: =+IF(T66="Aplica",AT62*5%,0) -> 0 | AU66: 0 | AV66: 0 | AW66: 0 | AX66: 0 | AY66: 0 | AZ66: 0 | BA66: 0 | BB66: 0 | BC66: 0 | BD66: 0 | BE66: 0 | BF66: 0 | BG66: 0 | BH66: 0 | BI66: 0 | BJ66: 0 | BK66: 0 | BL66: 0 | BM66: 0 | BN66: 0 | BO66: 0 | BP66: 0 | BQ66: 0
AT67: =SUM(AT62:AT66) -> 0 | AU67: =SUM(AU62:AU66) -> 0 | AV67: =SUM(AV62:AV66) -> 0 | AW67: =SUM(AW62:AW66) -> 0 | AX67: =SUM(AX62:AX66) -> 106682030.7 | AY67: =SUM(AY62:AY66) -> 106682030.7 | AZ67: =SUM(AZ62:AZ66) -> 0 | BA67: =SUM(BA62:BA66) -> 0 | BB67: =SUM(BB62:BB66) -> 0 | BC67: =SUM(BC62:BC66) -> 0 | BD67: =SUM(BD62:BD66) -> 0 | BE67: =SUM(BE62:BE66) -> 0 | BF67: =SUM(BF62:BF66) -> 0 | BG67: =SUM(BG62:BG66) -> 0 | BH67: =SUM(BH62:BH66) -> 0 | BI67: =SUM(BI62:BI66) -> 0 | BJ67: =SUM(BJ62:BJ66) -> 0 | BK67: =SUM(BK62:BK66) -> 0 | BL67: =SUM(BL62:BL66) -> 0 | BM67: =SUM(BM62:BM66) -> 0 | BN67: =SUM(BN62:BN66) -> 0 | BO67: =SUM(BO62:BO66) -> 0 | BP67: =SUM(BP62:BP66) -> 0 | BQ67: =SUM(BQ62:BQ66) -> 0
A69: VALOR ESTIMADO DEL PROYECTO | L69: =+L54+L66 -> 179071812 | N69: VALOR ESTIMADO DEL PERSONAL | P69: =+P54+P66 -> 172224948.6 | AT69: =+AT54+AT67 -> 77793698 | AU69: 77793698 | AV69: 80344636.01 | AW69: 80344636.01 | AX69: 189592521.9 | AY69: 189592521.9 | AZ69: 85561180.67 | BA69: 85561180.67 | BB69: 88266533.91 | BC69: 88266533.91 | BD69: 91031374.43 | BE69: 91031374.43 | BF69: 93840504.35 | BG69: 93840504.35 | BH69: 96690880.9 | BI69: 96690880.9 | BJ69: 99618818.35 | BK69: 99618818.35 | BL69: 102688153.8 | BM69: 102688153.8 | BN69: 105792676.4 | BO69: 105792676.4 | BP69: 109021866.2 | BQ69: 109021866.2
A71: Proyecto 3. Armonizar la gestión y la ejecución del Plan de gestión del riesgo y cambio climático -PGRCC, con el plan de gestión integral de residuos sólidos PGIRS. | S71: Proyecto 3. Armonizar la gestión y la ejecución del Plan de gestión del riesgo y cambio climático -PGRCC, con el plan de gestión integral de residuos sólidos PGIRS. | AT71: =+R73 -> Generar indicadores de impacto y de gestión para medir la efectividad de la armonización entre los planes y programas
A72: COSTO DE LA ACTIVIDAD | N72: Personal Designado UAESP | AT72: 1.032904259 | AV72: 1.066774287 | AX72: 1.100842377 | AZ72: 1.136036853 | BB72: 1.171957126 | BD72: 1.208667241 | BF72: 1.245965407 | BH72: 1.283811224 | BJ72: 1.322686854 | BL72: 1.363439894 | BN72: 1.404660131 | BP72: 1.447535633
A73: ACTIVIDAD | B73: ALCANCE | C73: ITEM | D73: DESCRIPCION | E73: PERSONAL TOTAL | F73: CATEGORIA | G73: ESPECIFICACION | H73: CANTIDAD POR CATEGORIA | I73: VALOR UNITARIO (Cifras expresadas en Millones de pesos) | J73: VALOR MES * CANTIDAD (Cifras expresadas en Millones de pesos) | K73: TIEMPO DE DEDICACION (MESES) | L73: VALOR TOTAL 2020 (Cifras expresadas en Millones de pesos) | N73: Lista | O73: Cantida por Categoria | P73: Valor Mensual X Cantidad y X Tiempo | R73: Generar indicadores de impacto y de gestión para medir la efectividad de la armonización entre los planes y programas | S73: ASIGNACION DE RECURSOS POR PERIODO | AS73: ITEM | AT73: COSTO POR PERIODOS
A74: Generar indicadores de impacto y de gestión para medir la efectividad de la armonización entre los planes y programas | B74: Un indicador de impacto y por escenario | C74: Detalle del Personal | D74: Un coordinador profesional en ciencias ambiental especialización y 3 años experiencia específica. Un profesional ambiental o afines con 3 años experiencia Un trabajador social o antropólogo con 3 años experiencia Ingeniero geodesta, catastral o afines con 3 años experiencia | E74: =+SUM(H74:H75) -> 4 | F74: 11 | G74: =VLOOKUP(F74,HONORARIOS!$A$5:$G$25,2,0) -> TITULO PROFESIONAL DESDE TRES (3) HASTA SEIS (6) AÑOS DE EXPERIENCIA PROFESIONAL | H74: 1 | I74: =VLOOKUP(F74,HONORARIOS!$A$5:$G$25,5,0) -> 5705719.5 | J74: =+I74*H74 -> 5705719.5 | K74: 4 | L74: =+J74*K74 -> 22822878 | O74: 1 | P74: =+(O74*I74)*K74 -> 22822878 | S74: ITEM | T74: 2021 | V74: 2022 | X74: 2023 | Z74: 2024 | AB74: 2025 | AD74: 2026 | AF74: 2027 | AH74: 2028 | AJ74: 2029 | AL74: 2030 | AN74: 2031 | AP74: 2032 | AT74: 2021 | AV74: 2022 | AX74: 2023 | AZ74: 2024 | BB74: 2025 | BD74: 2026 | BF74: 2027 | BH74: 2028 | BJ74: 2029 | BL74: 2030 | BN74: 2031 | BP74: 2032
F75: 10 | G75: =VLOOKUP(F75,HONORARIOS!$A$5:$G$25,2,0) -> TITULO PROFESIONAL DESDE UNO (1) HASTA TRES (3) AÑOS DE EXPERIENCIA PROFESIONAL | H75: 3 | I75: =VLOOKUP(F75,HONORARIOS!$A$5:$G$25,5,0) -> 4827916.5 | J75: =+I75*H75 -> 14483749.5 | K75: 4 | L75: =+J75*K75 -> 57934998 | O75: 3 | P75: =+(O75*I75)*K75 -> 57934998 | T75: Proyeccion Actividad | U75: Proyeccion UAESP | V75: Proyeccion Actividad | W75: Proyeccion UAESP | X75: Proyeccion Actividad | Y75: Proyeccion UAESP | Z75: Proyeccion Actividad | AA75: Proyeccion UAESP | AB75: Proyeccion Actividad | AC75: Proyeccion UAESP | AD75: Proyeccion Actividad | AE75: Proyeccion UAESP | AF75: Proyeccion Actividad | AG75: Proyeccion UAESP | AH75: Proyeccion Actividad | AI75: Proyeccion UAESP | AJ75: Proyeccion Actividad | AK75: Proyeccion UAESP | AL75: Proyeccion Actividad | AM75: Proyeccion UAESP | AN75: Proyeccion Actividad | AO75: Proyeccion UAESP | AP75: Proyeccion Actividad | AQ75: Proyeccion UAESP | AS75: Costos del Personal | AT75: =IF(T76="aplica",($L76*T77)*AT72,0) -> 0 | AU75: =IF(U76="aplica",($P76*U77)*AT72,0) -> 0 | AV75: =IF(V76="aplica",($L76*V77)*AV72,0) -> 86150425.56 | AW75: =IF(W76="aplica",($P76*W77)*AV72,0) -> 86150425.56 | AX75: =IF(X76="aplica",($L76*X77)*AX72,0) -> 0 | AY75: =IF(Y76="aplica",($P76*Y77)*AX72,0) -> 0 | AZ75: =IF(Z76="aplica",($L76*Z77)*AZ72,0) -> 0 | BA75: =IF(AA76="aplica",($P76*AA77)*AZ72,0) -> 0 | BB75: =IF(AB76="aplica",($L76*AB77)*BB72,0) -> 0 | BC75: =IF(AC76="aplica",($P76*AC77)*BB72,0) -> 0 | BD75: =IF(AD76="aplica",($L76*AD77)*BD72,0) -> 0 | BE75: =IF(AE76="aplica",($P76*AE77)*BD72,0) -> 0 | BF75: =IF(AF76="aplica",($L76*AF77)*BF72,0) -> 0 | BG75: =IF(AG76="aplica",($P76*AG77)*BF72,0) -> 0 | BH75: =IF(AH76="aplica",($L76*AH77)*BH72,0) -> 0 | BI75: =IF(AI76="aplica",($P76*AI77)*BH72,0) -> 0 | BJ75: =IF(AJ76="aplica",($L76*AJ77)*BJ72,0) -> 0 | BK75: =IF(AK76="aplica",($P76*AK77)*BJ72,0) -> 0 | BL75: =IF(AL76="aplica",($L76*AL77)*BL72,0) -> 0 | BM75: =IF(AM76="aplica",($P76*AM77)*BL72,0) -> 0 | BN75: =IF(AN76="aplica",($L76*AN77)*BN72,0) -> 0 | BO75: =IF(AO76="aplica",($P76*AO77)*BN72,0) -> 0 | BP75: =IF(AP76="aplica",($L76*AP77)*BP72,0) -> 0 | BQ75: =IF(AQ76="aplica",($P76*AQ77)*BP72,0) -> 0
C76: Subtotal | L76: =SUM(L74:L75) -> 80757876 | N76: Subtotal Personal | P76: =SUM(P74:P75) -> 80757876 | S76: Costos del Personal | T76: No Aplica | U76: =+IF(T76="Aplica","Aplica","No Aplica") -> No Aplica | V76: Aplica | W76: =+IF(V76="Aplica","Aplica","No Aplica") -> Aplica | X76: No Aplica | Y76: =+IF(X76="Aplica","Aplica","No Aplica") -> No Aplica | Z76: No Aplica | AA76: =+IF(Z76="Aplica","Aplica","No Aplica") -> No Aplica | AB76: No Aplica | AC76: =+IF(AB76="Aplica","Aplica","No Aplica") -> No Aplica | AD76: No Aplica | AE76: =+IF(AD76="Aplica","Aplica","No Aplica") -> No Aplica | AF76: No Aplica | AG76: =+IF(AF76="Aplica","Aplica","No Aplica") -> No Aplica | AH76: No Aplica | AI76: =+IF(AH76="Aplica","Aplica","No Aplica") -> No Aplica | AJ76: No Aplica | AK76: =+IF(AJ76="Aplica","Aplica","No Aplica") -> No Aplica | AL76: No Aplica | AM76: =+IF(AL76="Aplica","Aplica","No Aplica") -> No Aplica | AN76: No Aplica | AO76: =+IF(AN76="Aplica","Aplica","No Aplica") -> No Aplica | AP76: No Aplica | AQ76: =+IF(AP76="Aplica","Aplica","No Aplica") -> No Aplica | AS76: Costos Indirectos y Operacionales | AT76: =+IF(T78="Consultoria (25%)",AT75*25%,0)+IF(T78="Obra (30%)",AT75*30%,0)+IF(T78="Directo (20%)",AT75*20%,0)+IF(T78="No aplica",0,0)+IF(T78="Servicios (10%)",AT75*10%,0) -> 0 | AU76: 0 | AV76: 17230085.11 | AW76: 17230085.11 | AX76: 0 | AY76: 0 | AZ76: 0 | BA76: 0 | BB76: 0 | BC76: 0 | BD76: 0 | BE76: 0 | BF76: 0 | BG76: 0 | BH76: 0 | BI76: 0 | BJ76: 0 | BK76: 0 | BL76: 0 | BM76: 0 | BN76: 0 | BO76: 0 | BP76: 0 | BQ76: 0
C77: Costos Indirectos y Operacionales | D77: Directo (20%) | L77: =+IF(D77="Consultoria (25%)",L76*25%,0)+IF(D77="Obra (30%)",L76*30%,0)+IF(D77="Directo (20%)",L76*20%,0)+IF(D77="No aplica",0,0)+IF(D77="Servicios (10%)",L76*10%,0) -> 16151575.2 | N77: Costos Indirectos y Operacionales | O77: Directo (20%) | P77: =+IF(O77="Consultoria (25%)",P76*25%,0)+IF(O77="Obra (30%)",P76*30%,0)+IF(O77="Directo (20%)",P76*20%,0)+IF(O77="No aplica",0,0)+IF(O77="Servicios (10%)",P76*10%,0) -> 16151575.2 | S77: Porcentaje | T77: 1 | U77: 1 | V77: 1 | W77: 1 | X77: 1 | Y77: 1 | Z77: 1 | AA77: 1 | AB77: 1 | AC77: 1 | AD77: 1 | AE77: 1 | AF77: 1 | AG77: 1 | AH77: 1 | AI77: 1 | AJ77: 1 | AK77: 1 | AL77: 1 | AM77: 1 | AN77: 1 | AO77: 1 | AP77: 1 | AQ77: 1 | AS77: Seguimiento e Interventoria (10%) | AT77: =+IF(T79="Aplica",AT75*10%,0) -> 0 | AU77: 0 | AV77: 0 | AW77: 0 | AX77: 0 | AY77: 0 | AZ77: 0 | BA77: 0 | BB77: 0 | BC77: 0 | BD77: 0 | BE77: 0 | BF77: 0 | BG77: 0 | BH77: 0 | BI77: 0 | BJ77: 0 | BK77: 0 | BL77: 0 | BM77: 0 | BN77: 0 | BO77: 0 | BP77: 0 | BQ77: 0
C78: Seguimiento e Interventoria (10%) | D78: No Aplica | L78: =+IF(D78="Aplica",L76*10%,0) -> 0 | N78: Seguimiento e Interventoria (10%) | O78: No Aplica | P78: =+IF(O78="Aplica",P76*10%,0) -> 0 | S78: Costos Indirectos y Operacionales | T78: Consultoria (25%) | U78: No Aplica | V78: Directo (20%) | W78: Directo (20%) | X78: Consultoria (25%) | Y78: No Aplica | Z78: Directo (20%) | AA78: Directo (20%) | AB78: Directo (20%) | AC78: No Aplica | AD78: Directo (20%) | AE78: No Aplica | AF78: Directo (20%) | AG78: No Aplica | AH78: Consultoria (25%) | AI78: Consultoria (25%) | AJ78: Directo (20%) | AK78: No Aplica | AL78: Directo (20%) | AM78: No Aplica | AN78: Directo (20%) | AO78: No Aplica | AP78: Directo (20%) | AQ78: No Aplica | AS78: Licencias y estudios de campo | AT78: =+IF(T80="Basicos 7%",AT75*7%,IF(T80="Detallados 15%",AT75*15%,IF(T80="Avanzados 25%",AT75*25%,0))) -> 0 | AU78: 0 | AV78: 0 | AW78: 0 | AX78: 0 | AY78: 0 | AZ78: 0 | BA78: 0 | BB78: 0 | BC78: 0 | BD78: 0 | BE78: 0 | BF78: 0 | BG78: 0 | BH78: 0 | BI78: 0 | BJ78: 0 | BK78: 0 | BL78: 0 | BM78: 0 | BN78: 0 | BO78: 0 | BP78: 0 | BQ78: 0
C79: Licencias y estudios de campo | D79: No Aplica | L79: =+IF(D79="Basicos 7%",L76*7%,IF(D79="Detallados 15%",L76*15%,IF(D79="Avanzados 25%",L76*25%,0))) -> 0 | N79: Licencias y estudios de campo | O79: No Aplica | P79: =+IF(O79="Basicos 7%",P76*7%,IF(O79="Detallados 15%",P76*15%,IF(O79="Avanzados 25%",P76*25%,0))) -> 0 | S79: Seguimiento e Interventoria (10%) | T79: No Aplica | U79: No Aplica | V79: No Aplica | W79: No Aplica | X79: No Aplica | Y79: No Aplica | Z79: No Aplica | AA79: No Aplica | AB79: Aplica | AC79: No Aplica | AD79: Aplica | AE79: No Aplica | AF79: Aplica | AG79: No Aplica | AH79: Aplica | AI79: Aplica | AJ79: Aplica | AK79: No Aplica | AL79: Aplica | AM79: No Aplica | AN79: Aplica | AO79: No Aplica | AP79: Aplica | AQ79: No Aplica | AS79: Imprevistos (5%) | AT79: =+IF(T81="Aplica",AT75*5%,0) -> 0 | AU79: 0 | AV79: 0 | AW79: 0 | AX79: 0 | AY79: 0 | AZ79: 0 | BA79: 0 | BB79: 0 | BC79: 0 | BD79: 0 | BE79: 0 | BF79: 0 | BG79: 0 | BH79: 0 | BI79: 0 | BJ79: 0 | BK79: 0 | BL79: 0 | BM79: 0 | BN79: 0 | BO79: 0 | BP79: 0 | BQ79: 0
C80: Imprevistos (5%) | D80: No Aplica | L80: =+IF(D80="Aplica",L76*5%,0) -> 0 | N80: Imprevistos (5%) | O80: No Aplica | P80: =+IF(O80="Aplica",P76*5%,0) -> 0 | S80: Licencias y estudios de campo | T80: No Aplica | U80: No Aplica | V80: No Aplica | W80: No Aplica | X80: No Aplica | Y80: No Aplica | Z80: No Aplica | AA80: No Aplica | AB80: Basicos 7% | AC80: No Aplica | AD80: Basicos 7% | AE80: No Aplica | AF80: Basicos 7% | AG80: No Aplica | AH80: No Aplica | AI80: No Aplica | AJ80: Basicos 7% | AK80: No Aplica | AL80: Basicos 7% | AM80: No Aplica | AN80: Basicos 7% | AO80: No Aplica | AP80: Basicos 7% | AQ80: No Aplica | AT80: =SUM(AT75:AT79) -> 0 | AU80: =SUM(AU75:AU79) -> 0 | AV80: =SUM(AV75:AV79) -> 103380510.7 | AW80: =SUM(AW75:AW79) -> 103380510.7 | AX80: =SUM(AX75:AX79) -> 0 | AY80: =SUM(AY75:AY79) -> 0 | AZ80: =SUM(AZ75:AZ79) -> 0 | BA80: =SUM(BA75:BA79) -> 0 | BB80: =SUM(BB75:BB79) -> 0 | BC80: =SUM(BC75:BC79) -> 0 | BD80: =SUM(BD75:BD79) -> 0 | BE80: =SUM(BE75:BE79) -> 0 | BF80: =SUM(BF75:BF79) -> 0 | BG80: =SUM(BG75:BG79) -> 0 | BH80: =SUM(BH75:BH79) -> 0 | BI80: =SUM(BI75:BI79) -> 0 | BJ80: =SUM(BJ75:BJ79) -> 0 | BK80: =SUM(BK75:BK79) -> 0 | BL80: =SUM(BL75:BL79) -> 0 | BM80: =SUM(BM75:BM79) -> 0 | BN80: =SUM(BN75:BN79) -> 0 | BO80: =SUM(BO75:BO79) -> 0 | BP80: =SUM(BP75:BP79) -> 0 | BQ80: =SUM(BQ75:BQ79) -> 0
A81: VALOR TOTAL ESTIMADO DE LA ACTIVIDAD | L81: =SUM(L76:L80) -> 96909451.2 | N81: Total Personal | P81: =SUM(P76:P80) -> 96909451.2 | S81: Imprevistos (5%) | T81: No Aplica | U81: No Aplica | V81: No Aplica | W81: No Aplica | X81: No Aplica | Y81: No Aplica | Z81: No Aplica | AA81: No Aplica | AB81: No Aplica | AC81: No Aplica | AD81: No Aplica | AE81: No Aplica | AF81: No Aplica | AG81: No Aplica | AH81: Aplica | AI81: Aplica | AJ81: No Aplica | AK81: No Aplica | AL81: No Aplica | AM81: No Aplica | AN81: No Aplica | AO81: No Aplica | AP81: No Aplica | AQ81: No Aplica
AT83: =+R85 -> Prospectar el abordaje de los escenarios identificados, priorizados y caracterizados con sus alternativas de solución
A84: COSTO DE LA ACTIVIDAD | N84: Personal Designado UAESP | AT84: 1.032904259 | AV84: 1.066774287 | AX84: 1.100842377 | AZ84: 1.136036853 | BB84: 1.171957126 | BD84: 1.208667241 | BF84: 1.245965407 | BH84: 1.283811224 | BJ84: 1.322686854 | BL84: 1.363439894 | BN84: 1.404660131 | BP84: 1.447535633
A85: ACTIVIDAD | B85: ALCANCE | C85: ITEM | D85: DESCRIPCION | E85: PERSONAL TOTAL | F85: CATEGORIA | G85: ESPECIFICACION | H85: CANTIDAD POR CATEGORIA | I85: VALOR UNITARIO (Cifras expresadas en Millones de pesos) | J85: VALOR MES * CANTIDAD (Cifras expresadas en Millones de pesos) | K85: TIEMPO DE DEDICACION (MESES) | L85: VALOR TOTAL 2020 (Cifras expresadas en Millones de pesos) | N85: Lista | O85: Cantida por Categoria | P85: Valor Mensual X Cantidad y X Tiempo | R85: Prospectar el abordaje de los escenarios identificados, priorizados y caracterizados con sus alternativas de solución | S85: ASIGNACION DE RECURSOS POR PERIODO | AS85: ITEM | AT85: COSTO POR PERIODOS
A86: Prospectar el abordaje de los escenarios identificados, priorizados y caracterizados con sus alternativas de solución | B86: 1 Documento Tecnico que compile las caracterizaciones de los escenarios y prospecte su intervencion para su remediacion | C86: Detalle del Personal | D86: Un coordinador profesional o afines con especialización Gestión integral del Riesgo, ingeniería industrial, gerencia de proyectos, administración de empresas y con una experiencia no menor a 5 años Dos profesional en ciencias ambiental o afines con 3 años experiencia en identificación de riesgos. Un trabajador social o antropólogo con 3 años experiencia | E86: 4 | F86: 14 | G86: =VLOOKUP(F86,HONORARIOS!$A$5:$G$25,2,0) -> TITULO PROFESIONAL Y TITULO DE POSGRADO DESDE TRES (3) HASTA SEIS (6) AÑOS DE EXPERIENCIA PROFESIONAL | H86: 1 | I86: =VLOOKUP(F86,HONORARIOS!$A$5:$G$25,5,0) -> 7900227 | J86: =+I86*H86 -> 7900227 | K86: 8 | L86: =+J86*K86 -> 63201816 | O86: 1 | P86: =+(O86*I86)*K86 -> 63201816 | S86: ITEM | T86: 2021 | V86: 2022 | X86: 2023 | Z86: 2024 | AB86: 2025 | AD86: 2026 | AF86: 2027 | AH86: 2028 | AJ86: 2029 | AL86: 2030 | AN86: 2031 | AP86: 2032 | AT86: 2021 | AV86: 2022 | AX86: 2023 | AZ86: 2024 | BB86: 2025 | BD86: 2026 | BF86: 2027 | BH86: 2028 | BJ86: 2029 | BL86: 2030 | BN86: 2031 | BP86: 2032
F87: 11 | G87: =VLOOKUP(F87,HONORARIOS!$A$5:$G$25,2,0) -> TITULO PROFESIONAL DESDE TRES (3) HASTA SEIS (6) AÑOS DE EXPERIENCIA PROFESIONAL | H87: 2 | I87: =VLOOKUP(F87,HONORARIOS!$A$5:$G$25,5,0) -> 5705719.5 | J87: =+I87*H87 -> 11411439 | K87: 8 | L87: =+J87*K87 -> 91291512 | O87: 2 | P87: =+(O87*I87)*K87 -> 91291512 | T87: Proyeccion Actividad | U87: Proyeccion UAESP | V87: Proyeccion Actividad | W87: Proyeccion UAESP | X87: Proyeccion Actividad | Y87: Proyeccion UAESP | Z87: Proyeccion Actividad | AA87: Proyeccion UAESP | AB87: Proyeccion Actividad | AC87: Proyeccion UAESP | AD87: Proyeccion Actividad | AE87: Proyeccion UAESP | AF87: Proyeccion Actividad | AG87: Proyeccion UAESP | AH87: Proyeccion Actividad | AI87: Proyeccion UAESP | AJ87: Proyeccion Actividad | AK87: Proyeccion UAESP | AL87: Proyeccion Actividad | AM87: Proyeccion UAESP | AN87: Proyeccion Actividad | AO87: Proyeccion UAESP | AP87: Proyeccion Actividad | AQ87: Proyeccion UAESP | AS87: Costos del Personal | AT87: =IF(T88="aplica",($L89*T89)*AT84,0) -> 0 | AU87: =IF(U88="aplica",($P89*U89)*AT84,0) -> 0 | AV87: =IF(V88="aplica",($L89*V89)*AV84,0) -> 0 | AW87: =IF(W88="aplica",($P89*W89)*AV84,0) -> 0 | AX87: =IF(X88="aplica",($L89*X89)*AX84,0) -> 0 | AY87: =IF(Y88="aplica",($P89*Y89)*AX84,0) -> 0 | AZ87: =IF(Z88="aplica",($L89*Z89)*AZ84,0) -> 219387642.7 | BA87: =IF(AA88="aplica",($P89*AA89)*AZ84,0) -> 219387642.7 | BB87: =IF(AB88="aplica",($L89*AB89)*BB84,0) -> 0 | BC87: =IF(AC88="aplica",($P89*AC89)*BB84,0) -> 0 | BD87: =IF(AD88="aplica",($L89*AD89)*BD84,0) -> 0 | BE87: =IF(AE88="aplica",($P89*AE89)*BD84,0) -> 0 | BF87: =IF(AF88="aplica",($L89*AF89)*BF84,0) -> 0 | BG87: =IF(AG88="aplica",($P89*AG89)*BF84,0) -> 0 | BH87: =IF(AH88="aplica",($L89*AH89)*BH84,0) -> 0 | BI87: =IF(AI88="aplica",($P89*AI89)*BH84,0) -> 0 | BJ87: =IF(AJ88="aplica",($L89*AJ89)*BJ84,0) -> 0 | BK87: =IF(AK88="aplica",($P89*AK89)*BJ84,0) -> 0 | BL87: =IF(AL88="aplica",($L89*AL89)*BL84,0) -> 0 | BM87: =IF(AM88="aplica",($P89*AM89)*BL84,0) -> 0 | BN87: =IF(AN88="aplica",($L89*AN89)*BN84,0) -> 0 | BO87: =IF(AO88="aplica",($P89*AO89)*BN84,0) -> 0 | BP87: =IF(AP88="aplica",($L89*AP89)*BP84,0) -> 0 | BQ87: =IF(AQ88="aplica",($P89*AQ89)*BP84,0) -> 0
F88: 10 | G88: =VLOOKUP(F88,HONORARIOS!$A$5:$G$25,2,0) -> TITULO PROFESIONAL DESDE UNO (1) HASTA TRES (3) AÑOS DE EXPERIENCIA PROFESIONAL | H88: 1 | I88: =VLOOKUP(F88,HONORARIOS!$A$5:$G$25,5,0) -> 4827916.5 | J88: =+I88*H88 -> 4827916.5 | K88: 8 | L88: =+J88*K88 -> 38623332 | O88: 1 | P88: =+(O88*I88)*K88 -> 38623332 | S88: Costos del Personal | T88: No Aplica | U88: =+IF(T88="Aplica","Aplica","No Aplica") -> No Aplica | V88: No Aplica | W88: =+IF(V88="Aplica","Aplica","No Aplica") -> No Aplica | X88: No Aplica | Y88: =+IF(X88="Aplica","Aplica","No Aplica") -> No Aplica | Z88: Aplica | AA88: =+IF(Z88="Aplica","Aplica","No Aplica") -> Aplica | AB88: No Aplica | AC88: =+IF(AB88="Aplica","Aplica","No Aplica") -> No Aplica | AD88: No Aplica | AE88: =+IF(AD88="Aplica","Aplica","No Aplica") -> No Aplica | AF88: No Aplica | AG88: =+IF(AF88="Aplica","Aplica","No Aplica") -> No Aplica | AH88: No Aplica | AI88: =+IF(AH88="Aplica","Aplica","No Aplica") -> No Aplica | AJ88: No Aplica | AK88: =+IF(AJ88="Aplica","Aplica","No Aplica") -> No Aplica | AL88: No Aplica | AM88: =+IF(AL88="Aplica","Aplica","No Aplica") -> No Aplica | AN88: No Aplica | AO88: =+IF(AN88="Aplica","Aplica","No Aplica") -> No Aplica | AP88: No Aplica | AQ88: =+IF(AP88="Aplica","Aplica","No Aplica") -> No Aplica | AS88: Costos Indirectos y Operacionales | AT88: =+IF(T90="Consultoria (25%)",AT87*25%,0)+IF(T90="Obra (30%)",AT87*30%,0)+IF(T90="Directo (20%)",AT87*20%,0)+IF(T90="No aplica",0,0)+IF(T90="Servicios (10%)",AT87*10%,0) -> 0 | AU88: 0 | AV88: 0 | AW88: 0 | AX88: 0 | AY88: 0 | AZ88: 43877528.55 | BA88: 43877528.55 | BB88: 0 | BC88: 0 | BD88: 0 | BE88: 0 | BF88: 0 | BG88: 0 | BH88: 0 | BI88: 0 | BJ88: 0 | BK88: 0 | BL88: 0 | BM88: 0 | BN88: 0 | BO88: 0 | BP88: 0 | BQ88: 0
C89: Subtotal | L89: =SUM(L86:L88) -> 193116660 | N89: Subtotal Personal | P89: =SUM(P86:P88) -> 193116660 | S89: Porcentaje | T89: 1 | U89: 1 | V89: 1 | W89: 1 | X89: 1 | Y89: 1 | Z89: 1 | AA89: 1 | AB89: 1 | AC89: 1 | AD89: 1 | AE89: 1 | AF89: 1 | AG89: 1 | AH89: 1 | AI89: 1 | AJ89: 1 | AK89: 1 | AL89: 1 | AM89: 1 | AN89: 1 | AO89: 1 | AP89: 1 | AQ89: 1 | AS89: Seguimiento e Interventoria (10%) | AT89: =+IF(T91="Aplica",AT87*10%,0) -> 0 | AU89: 0 | AV89: 0 | AW89: 0 | AX89: 0 | AY89: 0 | AZ89: 0 | BA89: 0 | BB89: 0 | BC89: 0 | BD89: 0 | BE89: 0 | BF89: 0 | BG89: 0 | BH89: 0 | BI89: 0 | BJ89: 0 | BK89: 0 | BL89: 0 | BM89: 0 | BN89: 0 | BO89: 0 | BP89: 0 | BQ89: 0
C90: Costos Indirectos y Operacionales | D90: Directo (20%) | L90: =+IF(D90="Consultoria (25%)",L89*25%,0)+IF(D90="Obra (30%)",L89*30%,0)+IF(D90="Directo (20%)",L89*20%,0)+IF(D90="No aplica",0,0)+IF(D90="Servicios (10%)",L89*10%,0) -> 38623332 | N90: Costos Indirectos y Operacionales | O90: Directo (20%) | P90: =+IF(O90="Consultoria (25%)",P89*25%,0)+IF(O90="Obra (30%)",P89*30%,0)+IF(O90="Directo (20%)",P89*20%,0)+IF(O90="No aplica",0,0)+IF(O90="Servicios (10%)",P89*10%,0) -> 38623332 | S90: Costos Indirectos y Operacionales | T90: Consultoria (25%) | U90: No Aplica | V90: Consultoria (25%) | W90: Consultoria (25%) | X90: Consultoria (25%) | Y90: No Aplica | Z90: Directo (20%) | AA90: Directo (20%) | AB90: Directo (20%) | AC90: No Aplica | AD90: Directo (20%) | AE90: No Aplica | AF90: Directo (20%) | AG90: No Aplica | AH90: Consultoria (25%) | AI90: Consultoria (25%) | AJ90: Directo (20%) | AK90: No Aplica | AL90: Directo (20%) | AM90: No Aplica | AN90: Directo (20%) | AO90: No Aplica | AP90: Directo (20%) | AQ90: No Aplica | AS90: Licencias y estudios de campo | AT90: =+IF(T92="Basicos 7%",AT87*7%,IF(T92="Detallados 15%",AT87*15%,IF(T92="Avanzados 25%",AT87*25%,0))) -> 0 | AU90: 0 | AV90: 0 | AW90: 0 | AX90: 0 | AY90: 0 | AZ90: 0 | BA90: 0 | BB90: 0 | BC90: 0 | BD90: 0 | BE90: 0 | BF90: 0 | BG90: 0 | BH90: 0 | BI90: 0 | BJ90: 0 | BK90: 0 | BL90: 0 | BM90: 0 | BN90: 0 | BO90: 0 | BP90: 0 | BQ90: 0
C91: Seguimiento e Interventoria (10%) | D91: No Aplica | L91: =+IF(D91="Aplica",L89*10%,0) -> 0 | N91: Seguimiento e Interventoria (10%) | O91: No Aplica | P91: =+IF(O91="Aplica",P89*10%,0) -> 0 | S91: Seguimiento e Interventoria (10%) | T91: No Aplica | U91: No Aplica | V91: Aplica | W91: Aplica | X91: No Aplica | Y91: NO | Z91: No Aplica | AA91: No Aplica | AB91: No Aplica | AC91: No Aplica | AD91: Aplica | AE91: No Aplica | AF91: Aplica | AG91: No Aplica | AH91: Aplica | AI91: Aplica | AJ91: Aplica | AK91: No Aplica | AL91: Aplica | AM91: No Aplica | AN91: No Aplica | AO91: No Aplica | AP91: Aplica | AQ91: No Aplica | AS91: Imprevistos (5%) | AT91: =+IF(T93="Aplica",AT87*5%,0) -> 0 | AU91: 0 | AV91: 0 | AW91: 0 | AX91: 0 | AY91: 0 | AZ91: 0 | BA91: 0 | BB91: 0 | BC91: 0 | BD91: 0 | BE91: 0 | BF91: 0 | BG91: 0 | BH91: 0 | BI91: 0 | BJ91: 0 | BK91: 0 | BL91: 0 | BM91: 0 | BN91: 0 | BO91: 0 | BP91: 0 | BQ91: 0
C92: Licencias y estudios de campo | D92: No Aplica | L92: =+IF(D92="Basicos 7%",L89*7%,IF(D92="Detallados 15%",L89*15%,IF(D92="Avanzados 25%",L89*25%,0))) -> 0 | N92: Licencias y estudios de campo | O92: No Aplica | P92: =+IF(O92="Basicos 7%",P89*7%,IF(O92="Detallados 15%",P89*15%,IF(O92="Avanzados 25%",P89*25%,0))) -> 0 | S92: Licencias y estudios de campo | T92: No Aplica | U92: No Aplica | V92: No Aplica | W92: No Aplica | X92: No Aplica | Y92: No Aplica | Z92: No Aplica | AA92: No Aplica | AB92: Basicos 7% | AC92: No Aplica | AD92: Basicos 7% | AE92: No Aplica | AF92: Basicos 7% | AG92: No Aplica | AH92: No Aplica | AI92: No Aplica | AJ92: Basicos 7% | AK92: No Aplica | AL92: Basicos 7% | AM92: No Aplica | AN92: Basicos 7% | AO92: No Aplica | AP92: Basicos 7% | AQ92: No Aplica | AT92: =SUM(AT87:AT91) -> 0 | AU92: =SUM(AU87:AU91) -> 0 | AV92: =SUM(AV87:AV91) -> 0 | AW92: =SUM(AW87:AW91) -> 0 | AX92: =SUM(AX87:AX91) -> 0 | AY92: =SUM(AY87:AY91) -> 0 | AZ92: =SUM(AZ87:AZ91) -> 263265171.3 | BA92: =SUM(BA87:BA91) -> 263265171.3 | BB92: =SUM(BB87:BB91) -> 0 | BC92: =SUM(BC87:BC91) -> 0 | BD92: =SUM(BD87:BD91) -> 0 | BE92: =SUM(BE87:BE91) -> 0 | BF92: =SUM(BF87:BF91) -> 0 | BG92: =SUM(BG87:BG91) -> 0 | BH92: =SUM(BH87:BH91) -> 0 | BI92: =SUM(BI87:BI91) -> 0 | BJ92: =SUM(BJ87:BJ91) -> 0 | BK92: =SUM(BK87:BK91) -> 0 | BL92: =SUM(BL87:BL91) -> 0 | BM92: =SUM(BM87:BM91) -> 0 | BN92: =SUM(BN87:BN91) -> 0 | BO92: =SUM(BO87:BO91) -> 0 | BP92: =SUM(BP87:BP91) -> 0 | BQ92: =SUM(BQ87:BQ91) -> 0
C93: Imprevistos (5%) | D93: No Aplica | L93: =+IF(D93="Aplica",L89*5%,0) -> 0 | N93: Imprevistos (5%) | O93: No Aplica | P93: =+IF(O93="Aplica",P89*5%,0) -> 0 | S93: Imprevistos (5%) | T93: No Aplica | U93: No Aplica | V93: Aplica | W93: Aplica | X93: No Aplica | Y93: NO | Z93: No Aplica | AA93: No Aplica | AB93: No Aplica | AC93: No Aplica | AD93: No Aplica | AE93: No Aplica | AF93: No Aplica | AG93: No Aplica | AH93: Aplica | AI93: Aplica | AJ93: No Aplica | AK93: No Aplica | AL93: No Aplica | AM93: No Aplica | AN93: No Aplica | AO93: No Aplica | AP93: No Aplica | AQ93: No Aplica
A94: VALOR TOTAL ESTIMADO DE LA ACTIVIDAD | L94: =SUM(L89:L93) -> 231739992 | N94: Total Personal | P94: =SUM(P89:P93) -> 231739992
AT96: =+R98 -> Armonizar los planes de emergencia y contingencia de los prestadores de aseo con el PGRCC del Distrito.
A97: COSTO DE LA ACTIVIDAD | N97: Personal Designado UAESP | AT97: 1.032904259 | AV97: 1.066774287 | AX97: 1.100842377 | AZ97: 1.136036853 | BB97: 1.171957126 | BD97: 1.208667241 | BF97: 1.245965407 | BH97: 1.283811224 | BJ97: 1.322686854 | BL97: 1.363439894 | BN97: 1.404660131 | BP97: 1.447535633
A98: ACTIVIDAD | B98: ALCANCE | C98: ITEM | D98: DESCRIPCION | E98: PERSONAL TOTAL | F98: CATEGORIA | G98: ESPECIFICACION | H98: CANTIDAD POR CATEGORIA | I98: VALOR UNITARIO (Cifras expresadas en Millones de pesos) | J98: VALOR MES * CANTIDAD (Cifras expresadas en Millones de pesos) | K98: TIEMPO DE DEDICACION (MESES) | L98: VALOR TOTAL 2020 (Cifras expresadas en Millones de pesos) | N98: Lista | O98: Cantida por Categoria | P98: Valor Mensual X Cantidad y X Tiempo | R98: Armonizar los planes de emergencia y contingencia de los prestadores de aseo con el PGRCC del Distrito. | S98: ASIGNACION DE RECURSOS POR PERIODO | AS98: ITEM | AT98: COSTO POR PERIODOS
A99: Armonizar los planes de emergencia y contingencia de los prestadores de aseo con el PGRCC del Distrito. | B99: Un documento que oriente la armonizacion de los planes de emergencia y contingencia de los prestadores de aseo con el PGRCC del Distrito. | C99: Detalle del Personal | D99: Un coordinador profesional o afines con especialización Gestión integral del Riesgo, ingeniería industrial, gerencia de proyectos, administración de empresas y con una experiencia no menor a 5 años Dos profesional en ciencias ambiental o afines con 3 años experiencia en identificación de riesgos. Un trabajador social o antropólogo con 3 años experiencia | E99: 4 | F99: 14 | G99: =VLOOKUP(F99,HONORARIOS!$A$5:$G$25,2,0) -> TITULO PROFESIONAL Y TITULO DE POSGRADO DESDE TRES (3) HASTA SEIS (6) AÑOS DE EXPERIENCIA PROFESIONAL | H99: 1 | I99: =VLOOKUP(F99,HONORARIOS!$A$5:$G$25,5,0) -> 7900227 | J99: =+I99*H99 -> 7900227 | K99: 6 | L99: =+J99*K99 -> 47401362 | O99: 1 | P99: =+(O99*I99)*K99 -> 47401362 | S99: ITEM | T99: 2021 | V99: 2022 | X99: 2023 | Z99: 2024 | AB99: 2025 | AD99: 2026 | AF99: 2027 | AH99: 2028 | AJ99: 2029 | AL99: 2030 | AN99: 2031 | AP99: 2032 | AT99: 2021 | AV99: 2022 | AX99: 2023 | AZ99: 2024 | BB99: 2025 | BD99: 2026 | BF99: 2027 | BH99: 2028 | BJ99: 2029 | BL99: 2030 | BN99: 2031 | BP99: 2032
F100: 11 | G100: =VLOOKUP(F100,HONORARIOS!$A$5:$G$25,2,0) -> TITULO PROFESIONAL DESDE TRES (3) HASTA SEIS (6) AÑOS DE EXPERIENCIA PROFESIONAL | H100: 2 | I100: =VLOOKUP(F100,HONORARIOS!$A$5:$G$25,5,0) -> 5705719.5 | J100: =+I100*H100 -> 11411439 | K100: 6 | L100: =+J100*K100 -> 68468634 | O100: 2 | P100: =+(O100*I100)*K100 -> 68468634 | T100: Proyeccion Actividad | U100: Proyeccion UAESP | V100: Proyeccion Actividad | W100: Proyeccion UAESP | X100: Proyeccion Actividad | Y100: Proyeccion UAESP | Z100: Proyeccion Actividad | AA100: Proyeccion UAESP | AB100: Proyeccion Actividad | AC100: Proyeccion UAESP | AD100: Proyeccion Actividad | AE100: Proyeccion UAESP | AF100: Proyeccion Actividad | AG100: Proyeccion UAESP | AH100: Proyeccion Actividad | AI100: Proyeccion UAESP | AJ100: Proyeccion Actividad | AK100: Proyeccion UAESP | AL100: Proyeccion Actividad | AM100: Proyeccion UAESP | AN100: Proyeccion Actividad | AO100: Proyeccion UAESP | AP100: Proyeccion Actividad | AQ100: Proyeccion UAESP | AS100: Costos del Personal | AT100: =IF(T101="aplica",($L102*T102)*AT97,0) -> 149603265.4 | AU100: =IF(U101="aplica",($P102*U102)*AT97,0) -> 149603265.4 | AV100: =IF(V101="SI",$L102*#REF!,0) -> 0 | AW100: =IF(W101="SI",$P102*#REF!,0) -> 0 | AX100: =IF(X101="SI",$L102*#REF!,0) -> 0 | AY100: =IF(Y101="SI",$P102*#REF!,0) -> 0 | AZ100: =IF(Z101="SI",$L102*#REF!,0) -> 0 | BA100: =IF(AA101="SI",$P102*#REF!,0) -> 0 | BB100: =IF(AB101="SI",$L102*#REF!,0) -> 0 | BC100: =IF(AC101="SI",$P102*#REF!,0) -> 0 | BD100: =IF(AD101="SI",$L102*#REF!,0) -> 0 | BE100: =IF(AE101="SI",$P102*#REF!,0) -> 0 | BF100: =IF(AF101="SI",$L102*#REF!,0) -> 0 | BG100: =IF(AG101="SI",$P102*#REF!,0) -> 0 | BH100: =IF(AH101="SI",$L102*#REF!,0) -> 0 | BI100: =IF(AI101="SI",$P102*#REF!,0) -> 0 | BJ100: =IF(AJ101="SI",$L102*#REF!,0) -> 0 | BK100: =IF(AK101="SI",$P102*#REF!,0) -> 0 | BL100: =IF(AL101="SI",$L102*#REF!,0) -> 0 | BM100: =IF(AM101="SI",$P102*#REF!,0) -> 0 | BN100: =IF(AN101="SI",$L102*#REF!,0) -> 0 | BO100: =IF(AO101="SI",$P102*#REF!,0) -> 0 | BP100: =IF(AP101="SI",$L102*#REF!,0) -> 0 | BQ100: =IF(AQ101="SI",$P102*#REF!,0) -> 0
F101: 10 | G101: =VLOOKUP(F101,HONORARIOS!$A$5:$G$25,2,0) -> TITULO PROFESIONAL DESDE UNO (1) HASTA TRES (3) AÑOS DE EXPERIENCIA PROFESIONAL | H101: 1 | I101: =VLOOKUP(F101,HONORARIOS!$A$5:$G$25,5,0) -> 4827916.5 | J101: =+I101*H101 -> 4827916.5 | K101: 6 | L101: =+J101*K101 -> 28967499 | O101: 1 | P101: =+(O101*I101)*K101 -> 28967499 | S101: Costos del Personal | T101: Aplica | U101: =+IF(T101="Aplica","Aplica","No Aplica") -> Aplica | V101: No Aplica | W101: =+IF(V101="Aplica","Aplica","No Aplica") -> No Aplica | X101: No Aplica | Y101: =+IF(X101="Aplica","Aplica","No Aplica") -> No Aplica | Z101: No Aplica | AA101: =+IF(Z101="Aplica","Aplica","No Aplica") -> No Aplica | AB101: No Aplica | AC101: =+IF(AB101="Aplica","Aplica","No Aplica") -> No Aplica | AD101: No Aplica | AE101: =+IF(AD101="Aplica","Aplica","No Aplica") -> No Aplica | AF101: No Aplica | AG101: =+IF(AF101="Aplica","Aplica","No Aplica") -> No Aplica | AH101: No Aplica | AI101: =+IF(AH101="Aplica","Aplica","No Aplica") -> No Aplica | AJ101: No Aplica | AK101: =+IF(AJ101="Aplica","Aplica","No Aplica") -> No Aplica | AL101: No Aplica | AM101: =+IF(AL101="Aplica","Aplica","No Aplica") -> No Aplica | AN101: No Aplica | AO101: =+IF(AN101="Aplica","Aplica","No Aplica") -> No Aplica | AP101: No Aplica | AQ101: =+IF(AP101="Aplica","Aplica","No Aplica") -> No Aplica | AS101: Costos Indirectos y Operacionales | AT101: =+IF(T103="Consultoria (25%)",AT100*25%,0)+IF(T103="Obra (30%)",AT100*30%,0)+IF(T103="Directo (20%)",AT100*20%,0)+IF(T103="No aplica",0,0)+IF(T103="Servicios (10%)",AT100*10%,0) -> 29920653.08 | AU101: 29920653.08 | AV101: 0 | AW101: 0 | AX101: 0 | AY101: 0 | AZ101: 0 | BA101: 0 | BB101: 0 | BC101: 0 | BD101: 0 | BE101: 0 | BF101: 0 | BG101: 0 | BH101: 0 | BI101: 0 | BJ101: 0 | BK101: 0 | BL101: 0 | BM101: 0 | BN101: 0 | BO101: 0 | BP101: 0 | BQ101: 0
C102: Subtotal | L102: =SUM(L99:L101) -> 144837495 | N102: Subtotal Personal | P102: =SUM(P99:P101) -> 144837495 | S102: Porcentaje | T102: 1 | U102: 1 | V102: 1 | W102: 1 | X102: 1 | Y102: 1 | Z102: 1 | AA102: 1 | AB102: 1 | AC102: 1 | AD102: 1 | AE102: 1 | AF102: 1 | AG102: 1 | AH102: 1 | AI102: 1 | AJ102: 1 | AK102: 1 | AL102: 1 | AM102: 1 | AN102: 1 | AO102: 1 | AP102: 1 | AQ102: 1 | AS102: Seguimiento e Interventoria (10%) | AT102: =+IF(T104="Aplica",AT100*10%,0) -> 0 | AU102: =+IF(U104="Aplica",AU100*10%,0) -> 0 | AV102: =+IF(V104="si",AV100*10%,0) -> 0 | AW102: 0 | AX102: 0 | AY102: 0 | AZ102: 0 | BA102: 0 | BB102: 0 | BC102: 0 | BD102: 0 | BE102: 0 | BF102: 0 | BG102: 0 | BH102: 0 | BI102: 0 | BJ102: 0 | BK102: 0 | BL102: 0 | BM102: 0 | BN102: 0 | BO102: 0 | BP102: 0 | BQ102: 0
C103: Costos Indirectos y Operacionales | D103: Directo (20%) | L103: =+IF(D103="Consultoria (25%)",L102*25%,0)+IF(D103="Obra (30%)",L102*30%,0)+IF(D103="Directo (20%)",L102*20%,0)+IF(D103="No aplica",0,0)+IF(D103="Servicios (10%)",L102*10%,0) -> 28967499 | N103: Costos Indirectos y Operacionales | O103: Directo (20%) | P103: =+IF(O103="Consultoria (25%)",P102*25%,0)+IF(O103="Obra (30%)",P102*30%,0)+IF(O103="Directo (20%)",P102*20%,0)+IF(O103="No aplica",0,0)+IF(O103="Servicios (10%)",P102*10%,0) -> 28967499 | S103: Costos Indirectos y Operacionales | T103: Directo (20%) | U103: Directo (20%) | V103: Consultoria (25%) | W103: Consultoria (25%) | X103: Consultoria (25%) | Y103: No Aplica | Z103: Directo (20%) | AA103: No Aplica | AB103: Directo (20%) | AC103: No Aplica | AD103: Directo (20%) | AE103: No Aplica | AF103: Directo (20%) | AG103: No Aplica | AH103: Consultoria (25%) | AI103: Consultoria (25%) | AJ103: Directo (20%) | AK103: No Aplica | AL103: Directo (20%) | AM103: No Aplica | AN103: Directo (20%) | AO103: No Aplica | AP103: Directo (20%) | AQ103: No Aplica | AS103: Licencias y estudios de campo | AT103: =+IF(T105="Basicos 7%",AT100*7%,IF(T105="Detallados 15%",AT100*15%,IF(T105="Avanzados 25%",AT100*25%,0))) -> 0 | AU103: 0 | AV103: 0 | AW103: 0 | AX103: 0 | AY103: 0 | AZ103: 0 | BA103: 0 | BB103: 0 | BC103: 0 | BD103: 0 | BE103: 0 | BF103: 0 | BG103: 0 | BH103: 0 | BI103: 0 | BJ103: 0 | BK103: 0 | BL103: 0 | BM103: 0 | BN103: 0 | BO103: 0 | BP103: 0 | BQ103: 0
C104: Seguimiento e Interventoria (10%) | D104: No Aplica | L104: =+IF(D104="Aplica",L102*10%,0) -> 0 | N104: Seguimiento e Interventoria (10%) | O104: No Aplica | P104: =+IF(O104="Aplica",P102*10%,0) -> 0 | S104: Seguimiento e Interventoria (10%) | T104: No Aplica | U104: No Aplica | V104: Aplica | W104: Aplica | X104: No Aplica | Y104: No Aplica | Z104: Aplica | AA104: No Aplica | AB104: Aplica | AC104: No Aplica | AD104: Aplica | AE104: No Aplica | AF104: Aplica | AG104: No Aplica | AH104: Aplica | AI104: Aplica | AJ104: Aplica | AK104: No Aplica | AL104: Aplica | AM104: No Aplica | AN104: Aplica | AO104: No Aplica | AP104: Aplica | AQ104: No Aplica | AS104: Imprevistos (5%) | AT104: =+IF(T106="Aplica",AT100*5%,0) -> 0 | AU104: =+IF(U106="Aplica",AU100*5%,0) -> 0 | AV104: =+IF(V106="si",AV100*5%,0) -> 0 | AW104: 0 | AX104: 0 | AY104: 0 | AZ104: 0 | BA104: 0 | BB104: 0 | BC104: 0 | BD104: 0 | BE104: 0 | BF104: 0 | BG104: 0 | BH104: 0 | BI104: 0 | BJ104: 0 | BK104: 0 | BL104: 0 | BM104: 0 | BN104: 0 | BO104: 0 | BP104: 0 | BQ104: 0
C105: Licencias y estudios de campo | D105: No Aplica | L105: =+IF(D105="Basicos 7%",L102*7%,IF(D105="Detallados 15%",L102*15%,IF(D105="Avanzados 25%",L102*25%,0))) -> 0 | N105: Licencias y estudios de campo | O105: No Aplica | P105: =+IF(O105="Basicos 7%",P102*7%,IF(O105="Detallados 15%",P102*15%,IF(O105="Avanzados 25%",P102*25%,0))) -> 0 | S105: Licencias y estudios de campo | T105: No Aplica | U105: No Aplica | V105: No Aplica | W105: No Aplica | X105: No Aplica | Y105: No Aplica | Z105: Basicos 7% | AA105: No Aplica | AB105: Basicos 7% | AC105: No Aplica | AD105: Basicos 7% | AE105: No Aplica | AF105: Basicos 7% | AG105: No Aplica | AH105: No Aplica | AI105: No Aplica | AJ105: Basicos 7% | AK105: No Aplica | AL105: Basicos 7% | AM105: No Aplica | AN105: Basicos 7% | AO105: No Aplica | AP105: Basicos 7% | AQ105: No Aplica | AT105: =SUM(AT100:AT104) -> 179523918.5 | AU105: =SUM(AU100:AU104) -> 179523918.5 | AV105: =SUM(AV100:AV104) -> 0 | AW105: 0 | AX105: 0 | AY105: 0 | AZ105: 0 | BA105: 0 | BB105: 0 | BC105: 0 | BD105: 0 | BE105: 0 | BF105: 0 | BG105: 0 | BH105: 0 | BI105: 0 | BJ105: 0 | BK105: 0 | BL105: 0 | BM105: 0 | BN105: 0 | BO105: 0 | BP105: 0 | BQ105: 0
C106: Imprevistos (5%) | D106: No Aplica | L106: =+IF(D106="Aplica",L102*5%,0) -> 0 | N106: Imprevistos (5%) | O106: No Aplica | P106: =+IF(O106="Aplica",P102*5%,0) -> 0 | S106: Imprevistos (5%) | T106: No Aplica | U106: No Aplica | V106: Aplica | W106: Aplica | X106: No Aplica | Y106: No Aplica | Z106: No Aplica | AA106: No Aplica | AB106: No Aplica | AC106: No Aplica | AD106: No Aplica | AE106: No Aplica | AF106: No Aplica | AG106: No Aplica | AH106: Aplica | AI106: Aplica | AJ106: No Aplica | AK106: No Aplica | AL106: No Aplica | AM106: No Aplica | AN106: No Aplica | AO106: No Aplica | AP106: No Aplica | AQ106: No Aplica
A107: VALOR TOTAL ESTIMADO DE LA ACTIVIDAD | L107: =SUM(L102:L106) -> 173804994 | N107: Total Personal | P107: =SUM(P102:P106) -> 173804994
AT108: =+AT80+AT92+AT105 -> 179523918.5 | AU108: 179523918.5 | AV108: 103380510.7 | AW108: 103380510.7 | AX108: 0 | AY108: 0 | AZ108: 263265171.3 | BA108: 263265171.3 | BB108: 0 | BC108: 0 | BD108: 0 | BE108: 0 | BF108: 0 | BG108: 0 | BH108: 0 | BI108: 0 | BJ108: 0 | BK108: 0 | BL108: 0 | BM108: 0 | BN108: 0 | BO108: 0 | BP108: 0 | BQ108: 0
A109: VALOR ESTIMADO DEL PROYECTO | L109: =+L81+L94+L107 -> 502454437.2 | N109: VALOR ESTIMADO DEL PERSONAL | P109: =+P81+P94+P107 -> 502454437.2
A110: VALOR ESTIMADO DEL PROGRAMA | L110: =+L41+L69+L109 -> 2553353366 | N110: VALOR ESTIMADO EN EL PROGRAMA | P110: =+P41+P69+P109 -> 1793351529 | AT110: =SUM(AT108+AT69+AT41) -> 746928303.2 | AU110: =SUM(AU108+AU69+AU41) -> 746928303.2 | AV110: 1674876643 | AW110: 871430282.9 | AX110: 1728364855 | AY110: 899259943.2 | AZ110: 1678315467 | BA110: 822703660.3 | BB110: 88266533.91 | BC110: 88266533.91 | BD110: 91031374.43 | BE110: 91031374.43 | BF110: 93840504.35 | BG110: 93840504.35 | BH110: 96690880.9 | BI110: 96690880.9 | BJ110: 99618818.35 | BK110: 99618818.35 | BL110: 102688153.8 | BM110: 102688153.8 | BN110: 105792676.4 | BO110: 105792676.4 | BP110: 109021866.2 | BQ110: 109021866.2
N112: * Se debe dividir en las subdirecciones 3 misionales y oficina asesora de planeación

Sheet Programa C&P
AT2: =+A6 -> Generación de inventario de actores y entidades involucradas en el mantenimento y preservación de zonas verdes objeto de corte de césped en la ciudad
A3: Proyecto 1. Determinar con rigurosidad técnico científica la frecuencia de intervención de corte de césped de acuerdo con el crecimiento del mismo en las diferentes zonas del Distrito | S3: Proyecto 1. Determinar con rigurosidad técnico científica la frecuencia de intervención de corte de césped de acuerdo con el crecimiento del mismo en las diferentes zonas del Distrito | AS3: 1 | AT3: 1.032904259 | AV3: 1.066774287 | AX3: 1.100842377 | AZ3: 1.136036853 | BB3: 1.171957126 | BD3: 1.208667241 | BF3: 1.245965407 | BH3: 1.283811224 | BJ3: 1.322686854 | BL3: 1.363439894 | BN3: 1.404660131 | BP3: 1.447535633
A4: COSTO DE LA ACTIVIDAD | N4: Personal Designado UAESP | S4: ASIGNACION DE RECURSOS POR PERIODO | AS4: ITEM | AT4: COSTO POR PERIODOS
A5: ACTIVIDAD | B5: ALCANCE | C5: ITEM | D5: DESCRIPCION | E5: PERSONAL TOTAL | F5: CATEGORIA | G5: ESPECIFICACION | H5: CANTIDAD POR CATEGORIA | I5: VALOR UNITARIO (Cifras expresadas en Millones de pesos) | J5: VALOR MES * CANTIDAD (Cifras expresadas en Millones de pesos) | K5: TIEMPO DE DEDICACION (MESES) | L5: VALOR TOTAL 2020 (Cifras expresadas en Millones de pesos) | N5: Lista | O5: Cantida por Categoria | P5: Valor Mensual X Cantidad y X Tiempo | R5: Generación de inventario de actores y entidades involucradas en el mantenimento y preservación de zonas verdes objeto de corte de césped en la ciudad | S5: ITEM | T5: 2021 | V5: 2022 | X5: 2023 | Z5: 2024 | AB5: 2025 | AD5: 2026 | AF5: 2027 | AH5: 2028 | AJ5: 2029 | AL5: 2030 | AN5: 2031 | AP5: 2032 | AT5: 2021 | AV5: 2022 | AX5: 2023 | AZ5: 2024 | BB5: 2025 | BD5: 2026 | BF5: 2027 | BH5: 2028 | BJ5: 2029 | BL5: 2030 | BN5: 2031 | BP5: 2032
A6: Generación de inventario de actores y entidades involucradas en el mantenimento y preservación de zonas verdes objeto de corte de césped en la ciudad | B6: Un Inventario que permita mapear los actores y variables involucrados en la provisión, mantenimiento y preservación de zonas verdes. | C6: Detalle del Personal | D6: Ing. forestal, agrónomo, agrológico o afines y 3 años de experiencia | E6: =+H6 -> 5 | F6: 10 | G6: =VLOOKUP(F6,HONORARIOS!$A$5:$G$25,2,0) -> TITULO PROFESIONAL DESDE UNO (1) HASTA TRES (3) AÑOS DE EXPERIENCIA PROFESIONAL | H6: 5 | I6: =VLOOKUP(F6,HONORARIOS!$A$5:$G$25,5,0) -> 4827916.5 | J6: =+I6*H6 -> 24139582.5 | K6: 0.03 | L6: =+SUM(J6:J6)*K6 -> 724187.475 | O6: 5 | P6: =+(O6*I6)*K6 -> 724187.475 | S6: Costos del Personal | T6: Aplica | U6: =+IF(T6="Aplica","Aplica","No Aplica") -> Aplica | V6: No Aplica | W6: =+IF(V6="Aplica","Aplica","No Aplica") -> No Aplica | X6: No Aplica | Y6: =+IF(X6="Aplica","Aplica","No Aplica") -> No Aplica | Z6: No Aplica | AA6: =+IF(Z6="Aplica","Aplica","No Aplica") -> No Aplica | AB6: No Aplica | AC6: =+IF(AB6="Aplica","Aplica","No Aplica") -> No Aplica | AD6: Aplica | AE6: =+IF(AD6="Aplica","Aplica","No Aplica") -> Aplica | AF6: No Aplica | AG6: =+IF(AF6="Aplica","Aplica","No Aplica") -> No Aplica | AH6: No Aplica | AI6: =+IF(AH6="Aplica","Aplica","No Aplica") -> No Aplica | AJ6: No Aplica | AK6: =+IF(AJ6="Aplica","Aplica","No Aplica") -> No Aplica | AL6: No Aplica | AM6: =+IF(AL6="Aplica","Aplica","No Aplica") -> No Aplica | AN6: No Aplica | AO6: =+IF(AN6="Aplica","Aplica","No Aplica") -> No Aplica | AP6: No Aplica | AQ6: =+IF(AP6="Aplica","Aplica","No Aplica") -> No Aplica | AS6: Costos del Personal | AT6: =IF(T6="aplica",($L7*T7)*AT3,0) -> 748016.3269 | AU6: =IF(U6="aplica",($P7*U7)*AT3,0) -> 748016.3269 | AV6: =IF(V6="aplica",($L7*V7)*AV3,0) -> 0 | AW6: =IF(W6="aplica",($P7*W7)*AV3,0) -> 0 | AX6: =IF(X6="aplica",($L7*X7)*AX3,0) -> 0 | AY6: =IF(Y6="aplica",($P7*Y7)*AX3,0) -> 0 | AZ6: =IF(Z6="aplica",($L7*Z7)*AZ3,0) -> 0 | BA6: =IF(AA6="aplica",($P7*AA7)*AZ3,0) -> 0 | BB6: =IF(AB6="aplica",($L7*AB7)*BB3,0) -> 0 | BC6: =IF(AC6="aplica",($P7*AC7)*BB3,0) -> 0 | BD6: =IF(AD6="aplica",($L7*AD7)*BD3,0) -> 875301.6772 | BE6: =IF(AE6="aplica",($P7*AE7)*BD3,0) -> 875301.6772 | BF6: =IF(AF6="aplica",($L7*AF7)*BF3,0) -> 0 | BG6: =IF(AG6="aplica",($P7*AG7)*BF3,0) -> 0 | BH6: =IF(AH6="aplica",($L7*AH7)*BH3,0) -> 0 | BI6: =IF(AI6="aplica",($P7*AI7)*BH3,0) -> 0 | BJ6: =IF(AJ6="aplica",($L7*AJ7)*BJ3,0) -> 0 | BK6: =IF(AK6="aplica",($P7*AK7)*BJ3,0) -> 0 | BL6: =IF(AL6="aplica",($L7*AL7)*BL3,0) -> 0 | BM6: =IF(AM6="aplica",($P7*AM7)*BL3,0) -> 0 | BN6: =IF(AN6="aplica",($L7*AN7)*BN3,0) -> 0 | BO6: =IF(AO6="aplica",($P7*AO7)*BN3,0) -> 0 | BP6: =IF(AP6="aplica",($L7*AP7)*BP3,0) -> 0 | BQ6: =IF(AQ6="aplica",($P7*AQ7)*BP3,0) -> 0
C7: Subtotal | L7: =SUM(L6) -> 724187.475 | N7: Subtotal Personal | P7: =+P6 -> 724187.475 | S7: Porcentaje | T7: 1 | U7: 1 | V7: 1 | W7: 1 | X7: 1 | Y7: 1 | Z7: 1 | AA7: 1 | AB7: 1 | AC7: 1 | AD7: 1 | AE7: 1 | AF7: 1 | AG7: 1 | AH7: 1 | AI7: 1 | AJ7: 1 | AK7: 1 | AL7: 1 | AM7: 1 | AN7: 1 | AO7: 1 | AP7: 1 | AQ7: 1 | AS7: Costos Indirectos y Operacionales | AT7: =+IF(T8="Consultoria (25%)",AT6*25%,0)+IF(T8="Obra (30%)",AT6*30%,0)+IF(T8="Directo (20%)",AT6*20%,0)+IF(T8="No aplica",0,0)+IF(T8="Servicios (10%)",AT6*10%,0) -> 74801.63269 | AU7: 74801.63269 | AV7: 0 | AW7: 0 | AX7: 0 | AY7: 0 | AZ7: 0 | BA7: 0 | BB7: 0 | BC7: 0 | BD7: 87530.16772 | BE7: 87530.16772 | BF7: 0 | BG7: 0 | BH7: 0 | BI7: 0 | BJ7: 0 | BK7: 0 | BL7: 0 | BM7: 0 | BN7: 0 | BO7: 0 | BP7: 0 | BQ7: 0
C8: Costos Indirectos y Operacionales | D8: Servicios (10%) | L8: =+IF(D8="Consultoria (25%)",L7*25%,0)+IF(D8="Obra (30%)",L7*30%,0)+IF(D8="Directo (20%)",L7*20%,0)+IF(D8="No aplica",0,0)+IF(D8="Servicios (10%)",L7*10%,0) -> 72418.7475 | N8: Costos Indirectos y Operacionales | O8: Servicios (10%) | P8: =+IF(O8="Consultoria (25%)",P7*25%,0)+IF(O8="Obra (30%)",P7*30%,0)+IF(O8="Directo (20%)",P7*20%,0)+IF(O8="No aplica",0,0)+IF(O8="Servicios (10%)",P7*10%,0) -> 72418.7475 | S8: Costos Indirectos y Operacionales | T8: Servicios (10%) | U8: Servicios (10%) | V8: Consultoria (25%) | W8: No Aplica | X8: Consultoria (25%) | Y8: No Aplica | Z8: Directo (20%) | AA8: No Aplica | AB8: Directo (20%) | AC8: No Aplica | AD8: Servicios (10%) | AE8: Servicios (10%) | AF8: Servicios (10%) | AG8: Servicios (10%) | AH8: Consultoria (25%) | AI8: No Aplica | AJ8: Directo (20%) | AK8: No Aplica | AL8: Directo (20%) | AM8: No Aplica | AN8: Directo (20%) | AO8: No Aplica | AP8: Directo (20%) | AQ8: No Aplica | AS8: Seguimiento e Interventoria (10%) | AT8: =+IF(T9="Aplica",AT6*10%,0) -> 0 | AU8: 0 | AV8: 0 | AW8: 0 | AX8: 0 | AY8: 0 | AZ8: 0 | BA8: 0 | BB8: 0 | BC8: 0 | BD8: 0 | BE8: 0 | BF8: 0 | BG8: 0 | BH8: 0 | BI8: 0 | BJ8: 0 | BK8: 0 | BL8: 0 | BM8: 0 | BN8: 0 | BO8: 0 | BP8: 0 | BQ8: 0
C9: Seguimiento e Interventoria (10%) | D9: No Aplica | L9: =+IF(D9="Aplica",L7*10%,0) -> 0 | N9: Seguimiento e Interventoria (10%) | O9: No Aplica | P9: =+IF(O9="Aplica",P7*10%,0) -> 0 | S9: Seguimiento e Interventoria (10%) | T9: No Aplica | U9: No Aplica | V9: Aplica | W9: No Aplica | X9: No Aplica | Y9: No Aplica | Z9: No Aplica | AA9: No Aplica | AB9: Aplica | AC9: No Aplica | AD9: No Aplica | AE9: No Aplica | AF9: No Aplica | AG9: No Aplica | AH9: Aplica | AI9: No Aplica | AJ9: Aplica | AK9: No Aplica | AL9: Aplica | AM9: No Aplica | AN9: Aplica | AO9: No Aplica | AP9: Aplica | AQ9: No Aplica | AS9: Licencias y estudios de campo | AT9: =+IF(T10="Basicos 7%",AT6*7%,IF(T10="Detallados 15%",AT6*15%,IF(T10="Avanzados 25%",AT6*25%,0))) -> 0 | AU9: 0 | AV9: 0 | AW9: 0 | AX9: 0 | AY9: 0 | AZ9: 0 | BA9: 0 | BB9: 0 | BC9: 0 | BD9: 0 | BE9: 0 | BF9: 0 | BG9: 0 | BH9: 0 | BI9: 0 | BJ9: 0 | BK9: 0 | BL9: 0 | BM9: 0 | BN9: 0 | BO9: 0 | BP9: 0 | BQ9: 0
C10: Licencias y estudios de campo | D10: No Aplica | L10: =+IF(D10="Basicos 7%",L7*7%,IF(D10="Detallados 15%",L7*15%,IF(D10="Avanzados 25%",L7*25%,0))) -> 0 | N10: Licencias y estudios de campo | O10: No Aplica | P10: =+IF(O10="Basicos 7%",P7*7%,IF(O10="Detallados 15%",P7*15%,IF(O10="Avanzados 25%",P7*25%,0))) -> 0 | S10: Licencias y estudios de campo | T10: No Aplica | U10: No Aplica | V10: No Aplica | W10: No Aplica | X10: No Aplica | Y10: No Aplica | Z10: Basicos 7% | AA10: No Aplica | AB10: Basicos 7% | AC10: No Aplica | AD10: No Aplica | AE10: No Aplica | AF10: No Aplica | AG10: No Aplica | AH10: No Aplica | AI10: No Aplica | AJ10: Basicos 7% | AK10: No Aplica | AL10: Basicos 7% | AM10: No Aplica | AN10: Basicos 7% | AO10: No Aplica | AP10: Basicos 7% | AQ10: No Aplica | AS10: Imprevistos (5%) | AT10: =+IF(T11="Aplica",AT6*5%,0) -> 0 | AU10: 0 | AV10: 0 | AW10: 0 | AX10: 0 | AY10: 0 | AZ10: 0 | BA10: 0 | BB10: 0 | BC10: 0 | BD10: 0 | BE10: 0 | BF10: 0 | BG10: 0 | BH10: 0 | BI10: 0 | BJ10: 0 | BK10: 0 | BL10: 0 | BM10: 0 | BN10: 0 | BO10: 0 | BP10: 0 | BQ10: 0
C11: Imprevistos (5%) | D11: No Aplica | L11: =+IF(D11="Aplica",L7*5%,0) -> 0 | N11: Imprevistos (5%) | O11: No Aplica | P11: =+IF(O11="Aplica",P7*5%,0) -> 0 | S11: Imprevistos (5%) | T11: No Aplica | U11: No Aplica | V11: No Aplica | W11: No Aplica | X11: No Aplica | Y11: No Aplica | Z11: No Aplica | AA11: No Aplica | AB11: No Aplica | AC11: No Aplica | AD11: No Aplica | AE11: No Aplica | AF11: No Aplica | AG11: No Aplica | AH11: No Aplica | AI11: No Aplica | AJ11: No Aplica | AK11: No Aplica | AL11: No Aplica | AM11: No Aplica | AN11: No Aplica | AO11: No Aplica | AP11: No Aplica | AQ11: No Aplica | AT11: =SUM(AT6:AT10) -> 822817.9596 | AU11: 822817.9596 | AV11: =SUM(AV6:AV10) -> 0 | AW11: 0 | AX11: 0 | AY11: 0 | AZ11: 0 | BA11: 0 | BB11: 0 | BC11: 0 | BD11: 962831.8449 | BE11: 962831.8449 | BF11: 0 | BG11: 0 | BH11: 0 | BI11: 0 | BJ11: 0 | BK11: 0 | BL11: 0 | BM11: 0 | BN11: 0 | BO11: 0 | BP11: 0 | BQ11: 0
A12: VALOR TOTAL ESTIMADO DE LA ACTIVIDAD | L12: =SUM(L7:L11) -> 796606.2225 | N12: Total Personal | P12: =SUM(P7:P11) -> 796606.2225
AT13: =+A17 -> Generación de mesas técnicas interinstitucionales encaminadas a la construcción de una metodología en el seguimiento del corte de césped en la ciudad
AS14: 2 | AT14: 1.032904259 | AV14: 1.066774287 | AX14: 1.100842377 | AZ14: 1.136036853 | BB14: 1.171957126 | BD14: 1.208667241 | BF14: 1.245965407 | BH14: 1.283811224 | BJ14: 1.322686854 | BL14: 1.363439894 | BN14: 1.404660131 | BP14: 1.447535633
A15: COSTO DE LA ACTIVIDAD | N15: Personal Designado UAESP | S15: ASIGNACION DE RECURSOS POR PERIODO | AS15: ITEM | AT15: COSTO POR PERIODOS
A16: ACTIVIDAD | B16: ALCANCE | C16: ITEM | D16: DESCRIPCION | E16: PERSONAL TOTAL | F16: CATEGORIA | G16: ESPECIFICACION | H16: CANTIDAD POR CATEGORIA | I16: VALOR UNITARIO (Cifras expresadas en Millones de pesos) | J16: VALOR MES * CANTIDAD (Cifras expresadas en Millones de pesos) | K16: TIEMPO DE DEDICACION (MESES) | L16: VALOR TOTAL 2020 (Cifras expresadas en Millones de pesos) | N16: Lista | O16: Cantida por Categoria | P16: Valor Mensual X Cantidad y X Tiempo | R16: Generación de mesas técnicas interinstitucionales encaminadas a la construcción de una metodología en el seguimiento del corte de césped en la ciudad | S16: ITEM | T16: 2021 | V16: 2022 | X16: 2023 | Z16: 2024 | AB16: 2025 | AD16: 2026 | AF16: 2027 | AH16: 2028 | AJ16: 2029 | AL16: 2030 | AN16: 2031 | AP16: 2032 | AT16: 2021 | AV16: 2022 | AX16: 2023 | AZ16: 2024 | BB16: 2025 | BD16: 2026 | BF16: 2027 | BH16: 2028 | BJ16: 2029 | BL16: 2030 | BN16: 2031 | BP16: 2032
A17: Generación de mesas técnicas interinstitucionales encaminadas a la construcción de una metodología en el seguimiento del corte de césped en la ciudad | B17: Dos mesas al año | C17: Detalle del Personal | D17: Ing. forestal, agrónomo, agrológico o afines y 3 años de experiencia | E17: 9 | F17: 10 | G17: =VLOOKUP(F17,HONORARIOS!$A$5:$G$25,2,0) -> TITULO PROFESIONAL DESDE UNO (1) HASTA TRES (3) AÑOS DE EXPERIENCIA PROFESIONAL | H17: 9 | I17: =VLOOKUP(F17,HONORARIOS!$A$5:$G$25,5,0) -> 4827916.5 | J17: =+I17*H17 -> 43451248.5 | K17: 0.04 | L17: =+J17*K17 -> 1738049.94 | O17: 5 | P17: =+(O17*I17)*K17 -> 965583.3 | S17: Costos del Personal | T17: Aplica | U17: =+IF(T17="Aplica","Aplica","No Aplica") -> Aplica | V17: Aplica | W17: =+IF(V17="Aplica","Aplica","No Aplica") -> Aplica | X17: Aplica | Y17: =+IF(X17="Aplica","Aplica","No Aplica") -> Aplica | Z17: Aplica | AA17: =+IF(Z17="Aplica","Aplica","No Aplica") -> Aplica | AB17: Aplica | AC17: =+IF(AB17="Aplica","Aplica","No Aplica") -> Aplica | AD17: No Aplica | AE17: =+IF(AD17="Aplica","Aplica","No Aplica") -> No Aplica | AF17: No Aplica | AG17: =+IF(AF17="Aplica","Aplica","No Aplica") -> No Aplica | AH17: No Aplica | AI17: =+IF(AH17="Aplica","Aplica","No Aplica") -> No Aplica | AJ17: No Aplica | AK17: =+IF(AJ17="Aplica","Aplica","No Aplica") -> No Aplica | AL17: No Aplica | AM17: =+IF(AL17="Aplica","Aplica","No Aplica") -> No Aplica | AN17: No Aplica | AO17: =+IF(AN17="Aplica","Aplica","No Aplica") -> No Aplica | AP17: No Aplica | AQ17: =+IF(AP17="Aplica","Aplica","No Aplica") -> No Aplica | AS17: Costos del Personal | AT17: =IF(T17="aplica",($L18*T18)*AT14,0) -> 1795239.185 | AU17: =IF(U17="aplica",($P18*U18)*AT14,0) -> 997355.1025 | AV17: =IF(V17="aplica",($L18*V18)*AV14,0) -> 1854106.985 | AW17: =IF(W17="aplica",($P18*W18)*AV14,0) -> 1030059.436 | AX17: =IF(X17="aplica",($L18*X18)*AX14,0) -> 1913319.028 | AY17: =IF(Y17="aplica",($P18*Y18)*AX14,0) -> 1062955.016 | AZ17: =IF(Z17="aplica",($L18*Z18)*AZ14,0) -> 1974488.785 | BA17: =IF(AA17="aplica",($P18*AA18)*AZ14,0) -> 1096938.214 | BB17: =IF(AB17="aplica",($L18*AB18)*BB14,0) -> 2036920.013 | BC17: =IF(AC17="aplica",($P18*AC18)*BB14,0) -> 1131622.23 | BD17: =IF(AD17="aplica",($L18*AD18)*BD14,0) -> 0 | BE17: =IF(AE17="aplica",($P18*AE18)*BD14,0) -> 0 | BF17: =IF(AF17="aplica",($L18*AF18)*BF14,0) -> 0 | BG17: =IF(AG17="aplica",($P18*AG18)*BF14,0) -> 0 | BH17: =IF(AH17="aplica",($L18*AH18)*BH14,0) -> 0 | BI17: =IF(AI17="aplica",($P18*AI18)*BH14,0) -> 0 | BJ17: =IF(AJ17="aplica",($L18*AJ18)*BJ14,0) -> 0 | BK17: =IF(AK17="aplica",($P18*AK18)*BJ14,0) -> 0 | BL17: =IF(AL17="aplica",($L18*AL18)*BL14,0) -> 0 | BM17: =IF(AM17="aplica",($P18*AM18)*BL14,0) -> 0 | BN17: =IF(AN17="aplica",($L18*AN18)*BN14,0) -> 0 | BO17: =IF(AO17="aplica",($P18*AO18)*BN14,0) -> 0 | BP17: =IF(AP17="aplica",($L18*AP18)*BP14,0) -> 0 | BQ17: =IF(AQ17="aplica",($P18*AQ18)*BP14,0) -> 0
C18: Subtotal | L18: =SUM(L17) -> 1738049.94 | N18: Subtotal Personal | P18: =+P17 -> 965583.3 | S18: Porcentaje | T18: 1 | U18: 1 | V18: 1 | W18: 1 | X18: 1 | Y18: 1 | Z18: 1 | AA18: 1 | AB18: 1 | AC18: 1 | AD18: 1 | AE18: 1 | AF18: 1 | AG18: 1 | AH18: 1 | AI18: 1 | AJ18: 1 | AK18: 1 | AL18: 1 | AM18: 1 | AN18: 1 | AO18: 1 | AP18: 1 | AQ18: 1 | AS18: Costos Indirectos y Operacionales | AT18: =+IF(T19="Consultoria (25%)",AT17*25%,0)+IF(T19="Obra (30%)",AT17*30%,0)+IF(T19="Directo (20%)",AT17*20%,0)+IF(T19="No aplica",0,0)+IF(T19="Servicios (10%)",AT17*10%,0) -> 179523.9185 | AU18: 99735.51025 | AV18: 185410.6985 | AW18: 103005.9436 | AX18: 191331.9028 | AY18: 106295.5016 | AZ18: 197448.8785 | BA18: 109693.8214 | BB18: 203692.0013 | BC18: 113162.223 | BD18: 0 | BE18: 0 | BF18: 0 | BG18: 0 | BH18: 0 | BI18: 0 | BJ18: 0 | BK18: 0 | BL18: 0 | BM18: 0 | BN18: 0 | BO18: 0 | BP18: 0 | BQ18: 0
C19: Costos Indirectos y Operacionales | D19: Servicios (10%) | L19: =+IF(D19="Consultoria (25%)",L18*25%,0)+IF(D19="Obra (30%)",L18*30%,0)+IF(D19="Directo (20%)",L18*20%,0)+IF(D19="No aplica",0,0)+IF(D19="Servicios (10%)",L18*10%,0) -> 173804.994 | N19: Costos Indirectos y Operacionales | O19: Servicios (10%) | P19: =+IF(O19="Consultoria (25%)",P18*25%,0)+IF(O19="Obra (30%)",P18*30%,0)+IF(O19="Directo (20%)",P18*20%,0)+IF(O19="No aplica",0,0)+IF(O19="Servicios (10%)",P18*10%,0) -> 96558.33 | S19: Costos Indirectos y Operacionales | T19: Servicios (10%) | U19: Servicios (10%) | V19: Servicios (10%) | W19: Servicios (10%) | X19: Servicios (10%) | Y19: Servicios (10%) | Z19: Servicios (10%) | AA19: Servicios (10%) | AB19: Servicios (10%) | AC19: Servicios (10%) | AD19: Directo (20%) | AE19: No Aplica | AF19: Directo (20%) | AG19: No Aplica | AH19: Consultoria (25%) | AI19: No Aplica | AJ19: Directo (20%) | AK19: No Aplica | AL19: Directo (20%) | AM19: No Aplica | AN19: Directo (20%) | AO19: No Aplica | AP19: Directo (20%) | AQ19: No Aplica | AS19: Seguimiento e Interventoria (10%) | AT19: =+IF(T20="Aplica",AT17*10%,0) -> 0 | AU19: 0 | AV19: 0 | AW19: 0 | AX19: 0 | AY19: 0 | AZ19: 0 | BA19: 0 | BB19: 0 | BC19: 0 | BD19: 0 | BE19: 0 | BF19: 0 | BG19: 0 | BH19: 0 | BI19: 0 | BJ19: 0 | BK19: 0 | BL19: 0 | BM19: 0 | BN19: 0 | BO19: 0 | BP19: 0 | BQ19: 0
C20: Seguimiento e Interventoria (10%) | D20: No Aplica | L20: =+IF(D20="Aplica",L18*10%,0) -> 0 | N20: Seguimiento e Interventoria (10%) | O20: No Aplica | P20: =+IF(O20="Aplica",P18*10%,0) -> 0 | S20: Seguimiento e Interventoria (10%) | T20: No Aplica | U20: No Aplica | V20: No Aplica | W20: No Aplica | X20: No Aplica | Y20: No Aplica | Z20: No Aplica | AA20: No Aplica | AB20: No Aplica | AC20: No Aplica | AD20: No Aplica | AE20: No Aplica | AF20: No Aplica | AG20: No Aplica | AH20: No Aplica | AI20: No Aplica | AJ20: No Aplica | AK20: No Aplica | AL20: No Aplica | AM20: No Aplica | AN20: No Aplica | AO20: No Aplica | AP20: No Aplica | AQ20: No Aplica | AS20: Licencias y estudios de campo | AT20: =+IF(T21="Basicos 7%",AT17*7%,IF(T21="Detallados 15%",AT17*15%,IF(T21="Avanzados 25%",AT17*25%,0))) -> 0 | AU20: 0 | AV20: 0 | AW20: 0 | AX20: 0 | AY20: 0 | AZ20: 0 | BA20: 0 | BB20: 0 | BC20: 0 | BD20: 0 | BE20: 0 | BF20: 0 | BG20: 0 | BH20: 0 | BI20: 0 | BJ20: 0 | BK20: 0 | BL20: 0 | BM20: 0 | BN20: 0 | BO20: 0 | BP20: 0 | BQ20: 0
C21: Licencias y estudios de campo | D21: No Aplica | L21: =+IF(D21="Basicos 7%",L18*7%,IF(D21="Detallados 15%",L18*15%,IF(D21="Avanzados 25%",L18*25%,0))) -> 0 | N21: Licencias y estudios de campo | O21: No Aplica | P21: =+IF(O21="Basicos 7%",P18*7%,IF(O21="Detallados 15%",P18*15%,IF(O21="Avanzados 25%",P18*25%,0))) -> 0 | S21: Licencias y estudios de campo | T21: No Aplica | U21: No Aplica | V21: No Aplica | W21: No Aplica | X21: No Aplica | Y21: No Aplica | Z21: No Aplica | AA21: No Aplica | AB21: No Aplica | AC21: No Aplica | AD21: No Aplica | AE21: No Aplica | AF21: No Aplica | AG21: No Aplica | AH21: No Aplica | AI21: No Aplica | AJ21: No Aplica | AK21: No Aplica | AL21: No Aplica | AM21: No Aplica | AN21: No Aplica | AO21: No Aplica | AP21: No Aplica | AQ21: No Aplica | AS21: Imprevistos (5%) | AT21: =+IF(T22="Aplica",AT17*5%,0) -> 0 | AU21: 0 | AV21: 0 | AW21: 0 | AX21: 0 | AY21: 0 | AZ21: 0 | BA21: 0 | BB21: 0 | BC21: 0 | BD21: 0 | BE21: 0 | BF21: 0 | BG21: 0 | BH21: 0 | BI21: 0 | BJ21: 0 | BK21: 0 | BL21: 0 | BM21: 0 | BN21: 0 | BO21: 0 | BP21: 0 | BQ21: 0
C22: Imprevistos (5%) | D22: No Aplica | L22: =+IF(D22="Aplica",L18*5%,0) -> 0 | N22: Imprevistos (5%) | O22: No Aplica | P22: =+IF(O22="Aplica",P18*5%,0) -> 0 | S22: Imprevistos (5%) | T22: No Aplica | U22: No Aplica | V22: No Aplica | W22: No Aplica | X22: No Aplica | Y22: No Aplica | Z22: No Aplica | AA22: No Aplica | AB22: No Aplica | AC22: No Aplica | AD22: No Aplica | AE22: No Aplica | AF22: No Aplica | AG22: No Aplica | AH22: No Aplica | AI22: No Aplica | AJ22: No Aplica | AK22: No Aplica | AL22: No Aplica | AM22: No Aplica | AN22: No Aplica | AO22: No Aplica | AP22: No Aplica | AQ22: No Aplica | AT22: =SUM(AT17:AT21) -> 1974763.103 | AU22: 1097090.613 | AV22: =SUM(AV17:AV21) -> 2039517.683 | AW22: 1133065.38 | AX22: 2104650.931 | AY22: 1169250.517 | AZ22: 2171937.663 | BA22: 1206632.035 | BB22: 2240612.015 | BC22: 1244784.453 | BD22: 0 | BE22: 0 | BF22: 0 | BG22: 0 | BH22: 0 | BI22: 0 | BJ22: 0 | BK22: 0 | BL22: 0 | BM22: 0 | BN22: 0 | BO22: 0 | BP22: 0 | BQ22: 0
A23: VALOR TOTAL ESTIMADO DE LA ACTIVIDAD | L23: =SUM(L18:L22) -> 1911854.934 | N23: Total Personal | P23: =SUM(P18:P22) -> 1062141.63
AT24: =+A28 -> Construcción de una metodología que permita realizar el seguimiento con rigurosidad técnica al corte de césped en la ciudad
AS25: 3 | AT25: 1.032904259 | AV25: 1.066774287 | AX25: 1.100842377 | AZ25: 1.136036853 | BB25: 1.171957126 | BD25: 1.208667241 | BF25: 1.245965407 | BH25: 1.283811224 | BJ25: 1.322686854 | BL25: 1.363439894 | BN25: 1.404660131 | BP25: 1.447535633
A26: COSTO DE LA ACTIVIDAD | N26: Personal Designado UAESP | S26: ASIGNACION DE RECURSOS POR PERIODO | AS26: ITEM | AT26: COSTO POR PERIODOS
A27: ACTIVIDAD | B27: ALCANCE | C27: ITEM | D27: DESCRIPCION | E27: PERSONAL TOTAL | F27: CATEGORIA | G27: ESPECIFICACION | H27: CANTIDAD POR CATEGORIA | I27: VALOR UNITARIO (Cifras expresadas en Millones de pesos) | J27: VALOR MES * CANTIDAD (Cifras expresadas en Millones de pesos) | K27: TIEMPO DE DEDICACION (MESES) | L27: VALOR TOTAL 2020 (Cifras expresadas en Millones de pesos) | N27: Lista | O27: Cantida por Categoria | P27: Valor Mensual X Cantidad y X Tiempo | R27: Construcción de una metodología que permita realizar el seguimiento con rigurosidad técnica al corte de césped en la ciudad | S27: ITEM | T27: 2021 | V27: 2022 | X27: 2023 | Z27: 2024 | AB27: 2025 | AD27: 2026 | AF27: 2027 | AH27: 2028 | AJ27: 2029 | AL27: 2030 | AN27: 2031 | AP27: 2032 | AT27: 2021 | AV27: 2022 | AX27: 2023 | AZ27: 2024 | BB27: 2025 | BD27: 2026 | BF27: 2027 | BH27: 2028 | BJ27: 2029 | BL27: 2030 | BN27: 2031 | BP27: 2032
A28: Construcción de una metodología que permita realizar el seguimiento con rigurosidad técnica al corte de césped en la ciudad | B28: Una metodologia | C28: Detalle del Personal | D28: Ing. forestal, agrónomo, agrológico o afines y 3 años de experiencia | E28: 9 | F28: 10 | G28: =VLOOKUP(F28,HONORARIOS!$A$5:$G$25,2,0) -> TITULO PROFESIONAL DESDE UNO (1) HASTA TRES (3) AÑOS DE EXPERIENCIA PROFESIONAL | H28: 9 | I28: =VLOOKUP(F28,HONORARIOS!$A$5:$G$25,5,0) -> 4827916.5 | J28: =+I28*H28 -> 43451248.5 | K28: 0.06 | L28: =+J28*K28 -> 2607074.91 | O28: 5 | P28: =+(O28*I28)*K28 -> 1448374.95 | S28: Costos del Personal | T28: Aplica | U28: =+IF(T28="Aplica","Aplica","No Aplica") -> Aplica | V28: No Aplica | W28: =+IF(V28="Aplica","Aplica","No Aplica") -> No Aplica | X28: No Aplica | Y28: =+IF(X28="Aplica","Aplica","No Aplica") -> No Aplica | Z28: No Aplica | AA28: =+IF(Z28="Aplica","Aplica","No Aplica") -> No Aplica | AB28: No Aplica | AC28: =+IF(AB28="Aplica","Aplica","No Aplica") -> No Aplica | AD28: No Aplica | AE28: =+IF(AD28="Aplica","Aplica","No Aplica") -> No Aplica | AF28: No Aplica | AG28: =+IF(AF28="Aplica","Aplica","No Aplica") -> No Aplica | AH28: No Aplica | AI28: =+IF(AH28="Aplica","Aplica","No Aplica") -> No Aplica | AJ28: No Aplica | AK28: =+IF(AJ28="Aplica","Aplica","No Aplica") -> No Aplica | AL28: No Aplica | AM28: =+IF(AL28="Aplica","Aplica","No Aplica") -> No Aplica | AN28: No Aplica | AO28: =+IF(AN28="Aplica","Aplica","No Aplica") -> No Aplica | AP28: No Aplica | AQ28: =+IF(AP28="Aplica","Aplica","No Aplica") -> No Aplica | AS28: Costos del Personal | AT28: =IF(T28="aplica",($L29*T29)*AT25,0) -> 2692858.777 | AU28: =IF(U28="aplica",($P29*U29)*AT25,0) -> 1496032.654 | AV28: =IF(V28="aplica",($L29*V29)*AV25,0) -> 0 | AW28: =IF(W28="aplica",($P29*W29)*AV25,0) -> 0 | AX28: =IF(X28="aplica",($L29*X29)*AX25,0) -> 0 | AY28: =IF(Y28="aplica",($P29*Y29)*AX25,0) -> 0 | AZ28: =IF(Z28="aplica",($L29*Z29)*AZ25,0) -> 0 | BA28: =IF(AA28="aplica",($P29*AA29)*AZ25,0) -> 0 | BB28: =IF(AB28="aplica",($L29*AB29)*BB25,0) -> 0 | BC28: =IF(AC28="aplica",($P29*AC29)*BB25,0) -> 0 | BD28: =IF(AD28="aplica",($L29*AD29)*BD25,0) -> 0 | BE28: =IF(AE28="aplica",($P29*AE29)*BD25,0) -> 0 | BF28: =IF(AF28="aplica",($L29*AF29)*BF25,0) -> 0 | BG28: =IF(AG28="aplica",($P29*AG29)*BF25,0) -> 0 | BH28: =IF(AH28="aplica",($L29*AH29)*BH25,0) -> 0 | BI28: =IF(AI28="aplica",($P29*AI29)*BH25,0) -> 0 | BJ28: =IF(AJ28="aplica",($L29*AJ29)*BJ25,0) -> 0 | BK28: =IF(AK28="aplica",($P29*AK29)*BJ25,0) -> 0 | BL28: =IF(AL28="aplica",($L29*AL29)*BL25,0) -> 0 | BM28: =IF(AM28="aplica",($P29*AM29)*BL25,0) -> 0 | BN28: =IF(AN28="aplica",($L29*AN29)*BN25,0) -> 0 | BO28: =IF(AO28="aplica",($P29*AO29)*BN25,0) -> 0 | BP28: =IF(AP28="aplica",($L29*AP29)*BP25,0) -> 0 | BQ28: =IF(AQ28="aplica",($P29*AQ29)*BP25,0) -> 0
C29: Subtotal | L29: =SUM(L28) -> 2607074.91 | N29: Subtotal Personal | P29: =+P28 -> 1448374.95 | S29: Porcentaje | T29: 1 | U29: 1 | V29: 1 | W29: 1 | X29: 1 | Y29: 1 | Z29: 1 | AA29: 1 | AB29: 1 | AC29: 1 | AD29: 1 | AE29: 1 | AF29: 1 | AG29: 1 | AH29: 1 | AI29: 1 | AJ29: 1 | AK29: 1 | AL29: 1 | AM29: 1 | AN29: 1 | AO29: 1 | AP29: 1 | AQ29: 1 | AS29: Costos Indirectos y Operacionales | AT29: =+IF(T30="Consultoria (25%)",AT28*25%,0)+IF(T30="Obra (30%)",AT28*30%,0)+IF(T30="Directo (20%)",AT28*20%,0)+IF(T30="No aplica",0,0)+IF(T30="Servicios (10%)",AT28*10%,0) -> 269285.8777 | AU29: 149603.2654 | AV29: 0 | AW29: 0 | AX29: 0 | AY29: 0 | AZ29: 0 | BA29: 0 | BB29: 0 | BC29: 0 | BD29: 0 | BE29: 0 | BF29: 0 | BG29: 0 | BH29: 0 | BI29: 0 | BJ29: 0 | BK29: 0 | BL29: 0 | BM29: 0 | BN29: 0 | BO29: 0 | BP29: 0 | BQ29: 0
C30: Costos Indirectos y Operacionales | D30: Servicios (10%) | L30: =+IF(D30="Consultoria (25%)",L29*25%,0)+IF(D30="Obra (30%)",L29*30%,0)+IF(D30="Directo (20%)",L29*20%,0)+IF(D30="No aplica",0,0)+IF(D30="Servicios (10%)",L29*10%,0) -> 260707.491 | N30: Costos Indirectos y Operacionales | O30: Servicios (10%) | P30: =+IF(O30="Consultoria (25%)",P29*25%,0)+IF(O30="Obra (30%)",P29*30%,0)+IF(O30="Directo (20%)",P29*20%,0)+IF(O30="No aplica",0,0)+IF(O30="Servicios (10%)",P29*10%,0) -> 144837.495 | S30: Costos Indirectos y Operacionales | T30: Servicios (10%) | U30: Servicios (10%) | V30: Consultoria (25%) | W30: No Aplica | X30: Consultoria (25%) | Y30: No Aplica | Z30: Directo (20%) | AA30: No Aplica | AB30: Directo (20%) | AC30: No Aplica | AD30: Directo (20%) | AE30: No Aplica | AF30: Directo (20%) | AG30: No Aplica | AH30: Consultoria (25%) | AI30: No Aplica | AJ30: Directo (20%) | AK30: No Aplica | AL30: Directo (20%) | AM30: No Aplica | AN30: Directo (20%) | AO30: No Aplica | AP30: Directo (20%) | AQ30: No Aplica | AS30: Seguimiento e Interventoria (10%) | AT30: =+IF(T31="Aplica",AT28*10%,0) -> 0 | AU30: 0 | AV30: 0 | AW30: 0 | AX30: 0 | AY30: 0 | AZ30: 0 | BA30: 0 | BB30: 0 | BC30: 0 | BD30: 0 | BE30: 0 | BF30: 0 | BG30: 0 | BH30: 0 | BI30: 0 | BJ30: 0 | BK30: 0 | BL30: 0 | BM30: 0 | BN30: 0 | BO30: 0 | BP30: 0 | BQ30: 0
C31: Seguimiento e Interventoria (10%) | D31: No Aplica | L31: =+IF(D31="Aplica",L29*10%,0) -> 0 | N31: Seguimiento e Interventoria (10%) | O31: No Aplica | P31: =+IF(O31="Aplica",P29*10%,0) -> 0 | S31: Seguimiento e Interventoria (10%) | T31: No Aplica | U31: No Aplica | V31: No Aplica | W31: No Aplica | X31: No Aplica | Y31: No Aplica | Z31: Aplica | AA31: No Aplica | AB31: Aplica | AC31: No Aplica | AD31: Aplica | AE31: No Aplica | AF31: Aplica | AG31: No Aplica | AH31: Aplica | AI31: No Aplica | AJ31: No Aplica | AK31: No Aplica | AL31: Aplica | AM31: No Aplica | AN31: Aplica | AO31: No Aplica | AP31: Aplica | AQ31: No Aplica | AS31: Licencias y estudios de campo | AT31: =+IF(T32="Basicos 7%",AT28*7%,IF(T32="Detallados 15%",AT28*15%,IF(T32="Avanzados 25%",AT28*25%,0))) -> 0 | AU31: 0 | AV31: 0 | AW31: 0 | AX31: 0 | AY31: 0 | AZ31: 0 | BA31: 0 | BB31: 0 | BC31: 0 | BD31: 0 | BE31: 0 | BF31: 0 | BG31: 0 | BH31: 0 | BI31: 0 | BJ31: 0 | BK31: 0 | BL31: 0 | BM31: 0 | BN31: 0 | BO31: 0 | BP31: 0 | BQ31: 0
C32: Licencias y estudios de campo | D32: No Aplica | L32: =+IF(D32="Basicos 7%",L29*7%,IF(D32="Detallados 15%",L29*15%,IF(D32="Avanzados 25%",L29*25%,0))) -> 0 | N32: Licencias y estudios de campo | O32: No Aplica | P32: =+IF(O32="Basicos 7%",P29*7%,IF(O32="Detallados 15%",P29*15%,IF(O32="Avanzados 25%",P29*25%,0))) -> 0 | S32: Licencias y estudios de campo | T32: No Aplica | U32: No Aplica | V32: No Aplica | W32: No Aplica | X32: No Aplica | Y32: No Aplica | Z32: Basicos 7% | AA32: No Aplica | AB32: Basicos 7% | AC32: No Aplica | AD32: Basicos 7% | AE32: No Aplica | AF32: Basicos 7% | AG32: No Aplica | AH32: No Aplica | AI32: No Aplica | AJ32: Basicos 7% | AK32: No Aplica | AL32: Basicos 7% | AM32: No Aplica | AN32: Basicos 7% | AO32: No Aplica | AP32: Basicos 7% | AQ32: No Aplica | AS32: Imprevistos (5%) | AT32: =+IF(T33="Aplica",AT28*5%,0) -> 0 | AU32: 0 | AV32: 0 | AW32: 0 | AX32: 0 | AY32: 0 | AZ32: 0 | BA32: 0 | BB32: 0 | BC32: 0 | BD32: 0 | BE32: 0 | BF32: 0 | BG32: 0 | BH32: 0 | BI32: 0 | BJ32: 0 | BK32: 0 | BL32: 0 | BM32: 0 | BN32: 0 | BO32: 0 | BP32: 0 | BQ32: 0
C33: Imprevistos (5%) | D33: No Aplica | L33: =+IF(D33="Aplica",L29*5%,0) -> 0 | N33: Imprevistos (5%) | O33: No Aplica | P33: =+IF(O33="Aplica",P29*5%,0) -> 0 | S33: Imprevistos (5%) | T33: No Aplica | U33: No Aplica | V33: No Aplica | W33: No Aplica | X33: No Aplica | Y33: No Aplica | Z33: No Aplica | AA33: No Aplica | AB33: No Aplica | AC33: No Aplica | AD33: No Aplica | AE33: No Aplica | AF33: No Aplica | AG33: No Aplica | AH33: No Aplica | AI33: No Aplica | AJ33: No Aplica | AK33: No Aplica | AL33: No Aplica | AM33: No Aplica | AN33: No Aplica | AO33: No Aplica | AP33: No Aplica | AQ33: No Aplica | AT33: =SUM(AT28:AT32) -> 2962144.655 | AU33: 1645635.919 | AV33: =SUM(AV28:AV32) -> 0 | AW33: 0 | AX33: 0 | AY33: 0 | AZ33: 0 | BA33: 0 | BB33: 0 | BC33: 0 | BD33: 0 | BE33: 0 | BF33: 0 | BG33: 0 | BH33: 0 | BI33: 0 | BJ33: 0 | BK33: 0 | BL33: 0 | BM33: 0 | BN33: 0 | BO33: 0 | BP33: 0 | BQ33: 0
A34: VALOR TOTAL ESTIMADO DE LA ACTIVIDAD | L34: =SUM(L29:L33) -> 2867782.401 | N34: Total Personal | P34: =SUM(P29:P33) -> 1593212.445
AT36: =+A39 -> Aplicación y seguimiento de la metodología propuesta con el fin de evidenciar el seguimiento al corte de césped en el Distrito Capital
A37: COSTO DE LA ACTIVIDAD | N37: Personal Designado UAESP | S37: ASIGNACION DE RECURSOS POR PERIODO | AS37: 4 | AT37: 1.032904259 | AV37: 1.066774287 | AX37: 1.100842377 | AZ37: 1.136036853 | BB37: 1.171957126 | BD37: 1.208667241 | BF37: 1.245965407 | BH37: 1.283811224 | BJ37: 1.322686854 | BL37: 1.363439894 | BN37: 1.404660131 | BP37: 1.447535633
A38: ACTIVIDAD | B38: ALCANCE | C38: ITEM | D38: DESCRIPCION | E38: PERSONAL TOTAL | F38: CATEGORIA | G38: ESPECIFICACION | H38: CANTIDAD POR CATEGORIA | I38: VALOR UNITARIO (Cifras expresadas en Millones de pesos) | J38: VALOR MES * CANTIDAD (Cifras expresadas en Millones de pesos) | K38: TIEMPO DE DEDICACION (MESES) | L38: VALOR TOTAL 2020 (Cifras expresadas en Millones de pesos) | N38: Lista | O38: Cantida por Categoria | P38: Valor Mensual X Cantidad y X Tiempo | R38: Aplicación y seguimiento de la metodología propuesta con el fin de evidenciar el seguimiento al corte de césped en el Distrito Capital | S38: ITEM | T38: 2021 | V38: 2022 | X38: 2023 | Z38: 2024 | AB38: 2025 | AD38: 2026 | AF38: 2027 | AH38: 2028 | AJ38: 2029 | AL38: 2030 | AN38: 2031 | AP38: 2032 | AS38: ITEM | AT38: COSTO POR PERIODOS
A39: Aplicación y seguimiento de la metodología propuesta con el fin de evidenciar el seguimiento al corte de césped en el Distrito Capital | B39: 1 metodología aplicada mensual 2 informes de seguimiento anual | C39: Detalle del Personal | D39: Estudiantes de último semestre con una duración de seis meses con dedicación de medio tiempo completo, profesionales y Corte y Poda por dos horas a la semana | E39: 7 | F39: 6 | G39: =VLOOKUP(F39,HONORARIOS!$A$5:$G$25,2,0) -> FORMACION TECNICA O 2 AÑOS DE EDUCACION SUPERIOR DESDE UNO (1) HASTA TRES (3) AÑOS DE EXPERIENCIA | H39: 2 | I39: 3511212 | J39: =+H39*I39 -> 7022424 | K39: 6 | L39: =+J39*K39 -> 42134544 | O39: 2 | P39: =+(O39*I39)*K39 -> 42134544 | T39: Proyeccion Actividad | U39: Proyeccion UAESP | V39: Proyeccion Actividad | W39: Proyeccion UAESP | X39: Proyeccion Actividad | Y39: Proyeccion UAESP | Z39: Proyeccion Actividad | AA39: Proyeccion UAESP | AB39: Proyeccion Actividad | AC39: Proyeccion UAESP | AD39: Proyeccion Actividad | AE39: Proyeccion UAESP | AF39: Proyeccion Actividad | AG39: Proyeccion UAESP | AH39: Proyeccion Actividad | AI39: Proyeccion UAESP | AJ39: Proyeccion Actividad | AK39: Proyeccion UAESP | AL39: Proyeccion Actividad | AM39: Proyeccion UAESP | AN39: Proyeccion Actividad | AO39: Proyeccion UAESP | AP39: Proyeccion Actividad | AQ39: Proyeccion UAESP | AT39: 2021 | AV39: 2022 | AX39: 2023 | AZ39: 2024 | BB39: 2025 | BD39: 2026 | BF39: 2027 | BH39: 2028 | BJ39: 2029 | BL39: 2030 | BN39: 2031 | BP39: 2032
D40: Ing. forestal, agrónomo, agrológico o afines y 3 años de experiencia | F40: 10 | G40: =VLOOKUP(F40,HONORARIOS!$A$5:$G$25,2,0) -> TITULO PROFESIONAL DESDE UNO (1) HASTA TRES (3) AÑOS DE EXPERIENCIA PROFESIONAL | H40: 5 | I40: =VLOOKUP(F40,HONORARIOS!$A$5:$G$25,5,0) -> 4827916.5 | J40: =+I40*H40 -> 24139582.5 | K40: 0.1 | L40: =+J40*K40 -> 2413958.25 | O40: 5 | P40: =+(O40*I40)*K40 -> 2413958.25 | S40: Costos del Personal | T40: No Aplica | U40: =+IF(T40="Aplica","Aplica","No Aplica") -> No Aplica | V40: Aplica | W40: =+IF(V40="Aplica","Aplica","No Aplica") -> Aplica | X40: Aplica | Y40: =+IF(X40="Aplica","Aplica","No Aplica") -> Aplica | Z40: Aplica | AA40: =+IF(Z40="Aplica","Aplica","No Aplica") -> Aplica | AB40: Aplica | AC40: =+IF(AB40="Aplica","Aplica","No Aplica") -> Aplica | AD40: Aplica | AE40: =+IF(AD40="Aplica","Aplica","No Aplica") -> Aplica | AF40: Aplica | AG40: =+IF(AF40="Aplica","Aplica","No Aplica") -> Aplica | AH40: Aplica | AI40: =+IF(AH40="Aplica","Aplica","No Aplica") -> Aplica | AJ40: Aplica | AK40: =+IF(AJ40="Aplica","Aplica","No Aplica") -> Aplica | AL40: Aplica | AM40: =+IF(AL40="Aplica","Aplica","No Aplica") -> Aplica | AN40: Aplica | AO40: =+IF(AN40="Aplica","Aplica","No Aplica") -> Aplica | AP40: Aplica | AQ40: =+IF(AP40="Aplica","Aplica","No Aplica") -> Aplica | AS40: Costos del Personal | AT40: =IF(T40="aplica",($L41*T41)*AT37,0) -> 0 | AU40: =IF(U40="aplica",($P41*U41)*AT37,0) -> 0 | AV40: =IF(V40="aplica",($L41*V41)*AV37,0) -> 47523196.71 | AW40: =IF(W40="aplica",($P41*W41)*AV37,0) -> 47523196.71 | AX40: =IF(X40="aplica",($L41*X41)*AX37,0) -> 49040879.13 | AY40: =IF(Y40="aplica",($P41*Y41)*AX37,0) -> 49040879.13 | AZ40: =IF(Z40="aplica",($L41*Z41)*AZ37,0) -> 50608740.31 | BA40: =IF(AA40="aplica",($P41*AA41)*AZ37,0) -> 50608740.31 | BB40: =IF(AB40="aplica",($L41*AB41)*BB37,0) -> 52208934.68 | BC40: =IF(AC40="aplica",($P41*AC41)*BB37,0) -> 52208934.68 | BD40: =IF(AD40="aplica",($L41*AD41)*BD37,0) -> 53844315.29 | BE40: =IF(AE40="aplica",($P41*AE41)*BD37,0) -> 53844315.29 | BF40: =IF(AF40="aplica",($L41*AF41)*BF37,0) -> 55505892.72 | BG40: =IF(AG40="aplica",($P41*AG41)*BF37,0) -> 55505892.72 | BH40: =IF(AH40="aplica",($L41*AH41)*BH37,0) -> 57191867.2 | BI40: =IF(AI40="aplica",($P41*AI41)*BH37,0) -> 57191867.2 | BJ40: =IF(AJ40="aplica",($L41*AJ41)*BJ37,0) -> 58923718.31 | BK40: =IF(AK40="aplica",($P41*AK41)*BJ37,0) -> 58923718.31 | BL40: =IF(AL40="aplica",($L41*AL41)*BL37,0) -> 60739205.19 | BM40: =IF(AM40="aplica",($P41*AM41)*BL37,0) -> 60739205.19 | BN40: =IF(AN40="aplica",($L41*AN41)*BN37,0) -> 62575505 | BO40: =IF(AO40="aplica",($P41*AO41)*BN37,0) -> 62575505 | BP40: =IF(AP40="aplica",($L41*AP41)*BP37,0) -> 64485544.39 | BQ40: =IF(AQ40="aplica",($P41*AQ41)*BP37,0) -> 64485544.39
C41: Subtotal | L41: =+SUM(L39:L40) -> 44548502.25 | N41: Subtotal Personal | P41: =SUM(P39:P40) -> 44548502.25 | S41: Porcentaje | T41: 1 | U41: 1 | V41: 1 | W41: 1 | X41: 1 | Y41: 1 | Z41: 1 | AA41: 1 | AB41: 1 | AC41: 1 | AD41: 1 | AE41: 1 | AF41: 1 | AG41: 1 | AH41: 1 | AI41: 1 | AJ41: 1 | AK41: 1 | AL41: 1 | AM41: 1 | AN41: 1 | AO41: 1 | AP41: 1 | AQ41: 1 | AS41: Costos Indirectos y Operacionales | AT41: =+IF(T42="Consultoria (25%)",AT40*25%,0)+IF(T42="Obra (30%)",AT40*30%,0)+IF(T42="Directo (20%)",AT40*20%,0)+IF(T42="No aplica",0,0)+IF(T42="Servicios (10%)",AT40*10%,0) -> 0 | AU41: 0 | AV41: 9504639.342 | AW41: 9504639.342 | AX41: 9808175.826 | AY41: 9808175.826 | AZ41: 10121748.06 | BA41: 10121748.06 | BB41: 10441786.94 | BC41: 10441786.94 | BD41: 10768863.06 | BE41: 10768863.06 | BF41: 11101178.54 | BG41: 11101178.54 | BH41: 11438373.44 | BI41: 11438373.44 | BJ41: 11784743.66 | BK41: 11784743.66 | BL41: 12147841.04 | BM41: 12147841.04 | BN41: 12515101 | BO41: 12515101 | BP41: 12897108.88 | BQ41: 12897108.88
C42: Costos Indirectos y Operacionales | D42: Directo (20%) | L42: =+IF(D42="Consultoria (25%)",L41*25%,0)+IF(D42="Obra (30%)",L41*30%,0)+IF(D42="Directo (20%)",L41*20%,0)+IF(D42="No aplica",0,0)+IF(D42="Servicios (10%)",L41*10%,0) -> 8909700.45 | N42: Costos Indirectos y Operacionales | O42: Directo (20%) | P42: =+IF(O42="Consultoria (25%)",P41*25%,0)+IF(O42="Obra (30%)",P41*30%,0)+IF(O42="Directo (20%)",P41*20%,0)+IF(O42="No aplica",0,0)+IF(O42="Servicios (10%)",P41*10%,0) -> 8909700.45 | S42: Costos Indirectos y Operacionales | T42: Directo (20%) | U42: No Aplica | V42: Directo (20%) | W42: Directo (20%) | X42: Directo (20%) | Y42: Directo (20%) | Z42: Directo (20%) | AA42: Directo (20%) | AB42: Directo (20%) | AC42: Directo (20%) | AD42: Directo (20%) | AE42: Directo (20%) | AF42: Directo (20%) | AG42: Directo (20%) | AH42: Directo (20%) | AI42: Directo (20%) | AJ42: Directo (20%) | AK42: Directo (20%) | AL42: Directo (20%) | AM42: Directo (20%) | AN42: Directo (20%) | AO42: Directo (20%) | AP42: Directo (20%) | AQ42: Directo (20%) | AS42: Seguimiento e Interventoria (10%) | AT42: =+IF(T43="Aplica",AT40*10%,0) -> 0 | AU42: 0 | AV42: 0 | AW42: 0 | AX42: 0 | AY42: 0 | AZ42: 0 | BA42: 0 | BB42: 0 | BC42: 0 | BD42: 0 | BE42: 0 | BF42: 0 | BG42: 0 | BH42: 0 | BI42: 0 | BJ42: 0 | BK42: 0 | BL42: 0 | BM42: 0 | BN42: 0 | BO42: 0 | BP42: 0 | BQ42: 0
C43: Seguimiento e Interventoria (10%) | D43: No Aplica | L43: =+IF(D43="Aplica",L41*10%,0) -> 0 | N43: Seguimiento e Interventoria (10%) | O43: No Aplica | P43: =+IF(O43="Aplica",P41*10%,0) -> 0 | S43: Seguimiento e Interventoria (10%) | T43: No Aplica | U43: No Aplica | V43: No Aplica | W43: No Aplica | X43: No Aplica | Y43: No Aplica | Z43: No Aplica | AA43: No Aplica | AB43: No Aplica | AC43: No Aplica | AD43: No Aplica | AE43: No Aplica | AF43: No Aplica | AG43: No Aplica | AH43: No Aplica | AI43: No Aplica | AJ43: No Aplica | AK43: No Aplica | AL43: No Aplica | AM43: No Aplica | AN43: No Aplica | AO43: No Aplica | AP43: No Aplica | AQ43: No Aplica | AS43: Licencias y estudios de campo | AT43: =+IF(T44="Basicos 7%",AT40*7%,IF(T44="Detallados 15%",AT40*15%,IF(T44="Avanzados 25%",AT40*25%,0))) -> 0 | AU43: 0 | AV43: 0 | AW43: 0 | AX43: 0 | AY43: 0 | AZ43: 0 | BA43: 0 | BB43: 0 | BC43: 0 | BD43: 0 | BE43: 0 | BF43: 0 | BG43: 0 | BH43: 0 | BI43: 0 | BJ43: 0 | BK43: 0 | BL43: 0 | BM43: 0 | BN43: 0 | BO43: 0 | BP43: 0 | BQ43: 0
C44: Licencias y estudios de campo | D44: No Aplica | L44: =+IF(D44="Basicos 7%",L41*7%,IF(D44="Detallados 15%",L41*15%,IF(D44="Avanzados 25%",L41*25%,0))) -> 0 | N44: Licencias y estudios de campo | O44: No Aplica | P44: =+IF(O44="Basicos 7%",P41*7%,IF(O44="Detallados 15%",P41*15%,IF(O44="Avanzados 25%",P41*25%,0))) -> 0 | S44: Licencias y estudios de campo | T44: No Aplica | U44: No Aplica | V44: No Aplica | W44: No Aplica | X44: No Aplica | Y44: No Aplica | Z44: No Aplica | AA44: No Aplica | AB44: No Aplica | AC44: No Aplica | AD44: No Aplica | AE44: No Aplica | AF44: No Aplica | AG44: No Aplica | AH44: No Aplica | AI44: No Aplica | AJ44: No Aplica | AK44: No Aplica | AL44: No Aplica | AM44: No Aplica | AN44: No Aplica | AO44: No Aplica | AP44: No Aplica | AQ44: No Aplica | AS44: Imprevistos (5%) | AT44: =+IF(T45="Aplica",AT40*5%,0) -> 0 | AU44: 0 | AV44: 0 | AW44: 0 | AX44: 0 | AY44: 0 | AZ44: 0 | BA44: 0 | BB44: 0 | BC44: 0 | BD44: 0 | BE44: 0 | BF44: 0 | BG44: 0 | BH44: 0 | BI44: 0 | BJ44: 0 | BK44: 0 | BL44: 0 | BM44: 0 | BN44: 0 | BO44: 0 | BP44: 0 | BQ44: 0
C45: Imprevistos (5%) | D45: No Aplica | L45: =+IF(D45="Aplica",L41*5%,0) -> 0 | N45: Imprevistos (5%) | O45: No Aplica | P45: =+IF(O45="Aplica",P41*5%,0) -> 0 | S45: Imprevistos (5%) | T45: No Aplica | U45: No Aplica | V45: No Aplica | W45: No Aplica | X45: No Aplica | Y45: No Aplica | Z45: No Aplica | AA45: No Aplica | AB45: No Aplica | AC45: No Aplica | AD45: No Aplica | AE45: No Aplica | AF45: No Aplica | AG45: No Aplica | AH45: No Aplica | AI45: No Aplica | AJ45: No Aplica | AK45: No Aplica | AL45: No Aplica | AM45: No Aplica | AN45: No Aplica | AO45: No Aplica | AP45: No Aplica | AQ45: No Aplica | AT45: =SUM(AT40:AT44) -> 0 | AU45: 0 | AV45: 57027836.05 | AW45: 57027836.05 | AX45: 58849054.96 | AY45: 58849054.96 | AZ45: 60730488.38 | BA45: 60730488.38 | BB45: 62650721.62 | BC45: 62650721.62 | BD45: 64613178.35 | BE45: 64613178.35 | BF45: 66607071.27 | BG45: 66607071.27 | BH45: 68630240.64 | BI45: 68630240.64 | BJ45: 70708461.98 | BK45: 70708461.98 | BL45: 72887046.23 | BM45: 72887046.23 | BN45: 75090606 | BO45: 75090606 | BP45: 77382653.26 | BQ45: 77382653.26
A46: VALOR TOTAL ESTIMADO DE LA ACTIVIDAD | L46: =SUM(L41:L45) -> 53458202.7 | N46: Total Personal | P46: =SUM(P41:P45) -> 53458202.7
AT48: =+A51 -> Compilación, análisis de resultados y construcción de un documento técnico con los resultados obtenidos de la aplicación de la metodología propuesta para identificar con rigurosidad técnica cientifica el crecimiento de césped en el Distrito Capital
A49: COSTO DE LA ACTIVIDAD | N49: Personal Designado UAESP | S49: ASIGNACION DE RECURSOS POR PERIODO | AS49: 5 | AT49: 1.032904259 | AV49: 1.066774287 | AX49: 1.100842377 | AZ49: 1.136036853 | BB49: 1.171957126 | BD49: 1.208667241 | BF49: 1.245965407 | BH49: 1.283811224 | BJ49: 1.322686854 | BL49: 1.363439894 | BN49: 1.404660131 | BP49: 1.447535633
A50: ACTIVIDAD | B50: ALCANCE | C50: ITEM | D50: DESCRIPCION | E50: PERSONAL TOTAL | F50: CATEGORIA | G50: ESPECIFICACION | H50: CANTIDAD POR CATEGORIA | I50: VALOR UNITARIO (Cifras expresadas en Millones de pesos) | J50: VALOR MES * CANTIDAD (Cifras expresadas en Millones de pesos) | K50: TIEMPO DE DEDICACION (MESES) | L50: VALOR TOTAL 2020 (Cifras expresadas en Millones de pesos) | N50: Lista | O50: Cantida por Categoria | P50: Valor Mensual X Cantidad y X Tiempo | R50: Compilación, análisis de resultados y construcción de un documento técnico con los resultados obtenidos de la aplicación de la metodología propuesta para identificar con rigurosidad técnica cientifica el crecimiento de césped en el Distrito Capital | S50: ITEM | T50: 2021 | V50: 2022 | X50: 2023 | Z50: 2024 | AB50: 2025 | AD50: 2026 | AF50: 2027 | AH50: 2028 | AJ50: 2029 | AL50: 2030 | AN50: 2031 | AP50: 2032 | AS50: ITEM | AT50: COSTO POR PERIODOS
A51: Compilación, análisis de resultados y construcción de un documento técnico con los resultados obtenidos de la aplicación de la metodología propuesta para identificar con rigurosidad técnica cientifica el crecimiento de césped en el Distrito Capital | B51: Un documento | C51: Detalle del Personal | D51: Estudiantes de último semestre con una duración de seis meses con dedicación de tiempo completo, profesionales y Corte y Poda por dos horas a la semana | E51: 7 | F51: 6 | G51: =VLOOKUP(F51,HONORARIOS!$A$5:$G$25,2,0) -> FORMACION TECNICA O 2 AÑOS DE EDUCACION SUPERIOR DESDE UNO (1) HASTA TRES (3) AÑOS DE EXPERIENCIA | H51: 2 | I51: =VLOOKUP(F51,HONORARIOS!$A$5:$G$25,5,0) -> 3072310.5 | J51: =+I51*H51 -> 6144621 | K51: 6 | L51: =+J51*K51 -> 36867726 | O51: 2 | P51: =+(O51*I51)*K51 -> 36867726 | T51: Proyeccion Actividad | U51: Proyeccion UAESP | V51: Proyeccion Actividad | W51: Proyeccion UAESP | X51: Proyeccion Actividad | Y51: Proyeccion UAESP | Z51: Proyeccion Actividad | AA51: Proyeccion UAESP | AB51: Proyeccion Actividad | AC51: Proyeccion UAESP | AD51: Proyeccion Actividad | AE51: Proyeccion UAESP | AF51: Proyeccion Actividad | AG51: Proyeccion UAESP | AH51: Proyeccion Actividad | AI51: Proyeccion UAESP | AJ51: Proyeccion Actividad | AK51: Proyeccion UAESP | AL51: Proyeccion Actividad | AM51: Proyeccion UAESP | AN51: Proyeccion Actividad | AO51: Proyeccion UAESP | AP51: Proyeccion Actividad | AQ51: Proyeccion UAESP | AT51: 2021 | AV51: 2022 | AX51: 2023 | AZ51: 2024 | BB51: 2025 | BD51: 2026 | BF51: 2027 | BH51: 2028 | BJ51: 2029 | BL51: 2030 | BN51: 2031 | BP51: 2032
F52: 10 | G52: =VLOOKUP(F52,HONORARIOS!$A$5:$G$25,2,0) -> TITULO PROFESIONAL DESDE UNO (1) HASTA TRES (3) AÑOS DE EXPERIENCIA PROFESIONAL | H52: 5 | I52: =VLOOKUP(F52,HONORARIOS!$A$5:$G$25,5,0) -> 4827916.5 | J52: =+I52*H52 -> 24139582.5 | K52: 0.2 | L52: =+J52*K52 -> 4827916.5 | O52: 5 | P52: =+(O52*I52)*K52 -> 4827916.5 | S52: Costos del Personal | T52: No Aplica | U52: =+IF(T52="Aplica","Aplica","No Aplica") -> No Aplica | V52: No Aplica | W52: =+IF(V52="Aplica","Aplica","No Aplica") -> No Aplica | X52: No Aplica | Y52: =+IF(X52="Aplica","Aplica","No Aplica") -> No Aplica | Z52: No Aplica | AA52: =+IF(Z52="Aplica","Aplica","No Aplica") -> No Aplica | AB52: No Aplica | AC52: =+IF(AB52="Aplica","Aplica","No Aplica") -> No Aplica | AD52: Aplica | AE52: =+IF(AD52="Aplica","Aplica","No Aplica") -> Aplica | AF52: No Aplica | AG52: =+IF(AF52="Aplica","Aplica","No Aplica") -> No Aplica | AH52: No Aplica | AI52: =+IF(AH52="Aplica","Aplica","No Aplica") -> No Aplica | AJ52: No Aplica | AK52: =+IF(AJ52="Aplica","Aplica","No Aplica") -> No Aplica | AL52: No Aplica | AM52: =+IF(AL52="Aplica","Aplica","No Aplica") -> No Aplica | AN52: No Aplica | AO52: =+IF(AN52="Aplica","Aplica","No Aplica") -> No Aplica | AP52: No Aplica | AQ52: =+IF(AP52="Aplica","Aplica","No Aplica") -> No Aplica | AS52: Costos del Personal | AT52: =IF(T52="aplica",($L53*T53)*AT49,0) -> 0 | AU52: =IF(U52="aplica",($P53*U53)*AT49,0) -> 0 | AV52: =IF(V52="aplica",($L53*V53)*AV49,0) -> 0 | AW52: =IF(W52="aplica",($P53*W53)*AV49,0) -> 0 | AX52: =IF(X52="aplica",($L53*X53)*AX49,0) -> 0 | AY52: =IF(Y52="aplica",($P53*Y53)*AX49,0) -> 0 | AZ52: =IF(Z52="aplica",($L53*Z53)*AZ49,0) -> 0 | BA52: =IF(AA52="aplica",($P53*AA53)*AZ49,0) -> 0 | BB52: =IF(AB52="aplica",($L53*AB53)*BB49,0) -> 0 | BC52: =IF(AC52="aplica",($P53*AC53)*BB49,0) -> 0 | BD52: =IF(AD52="aplica",($L53*AD53)*BD49,0) -> 50396157.17 | BE52: =IF(AE52="aplica",($P53*AE53)*BD49,0) -> 50396157.17 | BF52: =IF(AF52="aplica",($L53*AF53)*BF49,0) -> 0 | BG52: =IF(AG52="aplica",($P53*AG53)*BF49,0) -> 0 | BH52: =IF(AH52="aplica",($L53*AH53)*BH49,0) -> 0 | BI52: =IF(AI52="aplica",($P53*AI53)*BH49,0) -> 0 | BJ52: =IF(AJ52="aplica",($L53*AJ53)*BJ49,0) -> 0 | BK52: =IF(AK52="aplica",($P53*AK53)*BJ49,0) -> 0 | BL52: =IF(AL52="aplica",($L53*AL53)*BL49,0) -> 0 | BM52: =IF(AM52="aplica",($P53*AM53)*BL49,0) -> 0 | BN52: =IF(AN52="aplica",($L53*AN53)*BN49,0) -> 0 | BO52: =IF(AO52="aplica",($P53*AO53)*BN49,0) -> 0 | BP52: =IF(AP52="aplica",($L53*AP53)*BP49,0) -> 0 | BQ52: =IF(AQ52="aplica",($P53*AQ53)*BP49,0) -> 0
C53: Subtotal | L53: =SUM(L51:L52) -> 41695642.5 | N53: Subtotal Personal | P53: =SUM(P51:P52) -> 41695642.5 | S53: Porcentaje | T53: 1 | U53: 1 | V53: 1 | W53: 1 | X53: 1 | Y53: 1 | Z53: 1 | AA53: 1 | AB53: 1 | AC53: 1 | AD53: 1 | AE53: 1 | AF53: 1 | AG53: 1 | AH53: 1 | AI53: 1 | AJ53: 1 | AK53: 1 | AL53: 1 | AM53: 1 | AN53: 1 | AO53: 1 | AP53: 1 | AQ53: 1 | AS53: Costos Indirectos y Operacionales | AT53: =+IF(T54="Consultoria (25%)",AT52*25%,0)+IF(T54="Obra (30%)",AT52*30%,0)+IF(T54="Directo (20%)",AT52*20%,0)+IF(T54="No aplica",0,0)+IF(T54="Servicios (10%)",AT52*10%,0) -> 0 | AU53: 0 | AV53: 0 | AW53: 0 | AX53: 0 | AY53: 0 | AZ53: 0 | BA53: 0 | BB53: 0 | BC53: 0 | BD53: 10079231.43 | BE53: 10079231.43 | BF53: 0 | BG53: 0 | BH53: 0 | BI53: 0 | BJ53: 0 | BK53: 0 | BL53: 0 | BM53: 0 | BN53: 0 | BO53: 0 | BP53: 0 | BQ53: 0
C54: Costos Indirectos y Operacionales | D54: Directo (20%) | L54: =+IF(D54="Consultoria (25%)",L53*25%,0)+IF(D54="Obra (30%)",L53*30%,0)+IF(D54="Directo (20%)",L53*20%,0)+IF(D54="No aplica",0,0)+IF(D54="Servicios (10%)",L53*10%,0) -> 8339128.5 | N54: Costos Indirectos y Operacionales | O54: Directo (20%) | P54: =+IF(O54="Consultoria (25%)",P53*25%,0)+IF(O54="Obra (30%)",P53*30%,0)+IF(O54="Directo (20%)",P53*20%,0)+IF(O54="No aplica",0,0)+IF(O54="Servicios (10%)",P53*10%,0) -> 8339128.5 | S54: Costos Indirectos y Operacionales | T54: Consultoria (25%) | U54: Directo (20%) | V54: Consultoria (25%) | W54: Directo (20%) | X54: Consultoria (25%) | Y54: Directo (20%) | Z54: Directo (20%) | AA54: Directo (20%) | AB54: Directo (20%) | AC54: Directo (20%) | AD54: Directo (20%) | AE54: Directo (20%) | AF54: Directo (20%) | AG54: Directo (20%) | AH54: Consultoria (25%) | AI54: Directo (20%) | AJ54: Directo (20%) | AK54: Directo (20%) | AL54: Directo (20%) | AM54: Directo (20%) | AN54: Directo (20%) | AO54: Directo (20%) | AP54: No Aplica | AQ54: Directo (20%) | AS54: Seguimiento e Interventoria (10%) | AT54: =+IF(T55="Aplica",AT52*10%,0) -> 0 | AU54: 0 | AV54: 0 | AW54: 0 | AX54: 0 | AY54: 0 | AZ54: 0 | BA54: 0 | BB54: 0 | BC54: 0 | BD54: 0 | BE54: 0 | BF54: 0 | BG54: 0 | BH54: 0 | BI54: 0 | BJ54: 0 | BK54: 0 | BL54: 0 | BM54: 0 | BN54: 0 | BO54: 0 | BP54: 0 | BQ54: 0
C55: Seguimiento e Interventoria (10%) | D55: No Aplica | L55: =+IF(D55="Aplica",L53*10%,0) -> 0 | N55: Seguimiento e Interventoria (10%) | O55: No Aplica | P55: =+IF(O55="Aplica",P53*10%,0) -> 0 | S55: Seguimiento e Interventoria (10%) | T55: No Aplica | U55: No Aplica | V55: Aplica | W55: Aplica | X55: No Aplica | Y55: Aplica | Z55: Aplica | AA55: Aplica | AB55: No Aplica | AC55: Aplica | AD55: No Aplica | AE55: No Aplica | AF55: Aplica | AG55: Aplica | AH55: Aplica | AI55: Aplica | AJ55: Aplica | AK55: Aplica | AL55: Aplica | AM55: Aplica | AN55: Aplica | AO55: Aplica | AP55: Aplica | AQ55: Aplica | AS55: Licencias y estudios de campo | AT55: =+IF(T56="Basicos 7%",AT52*7%,IF(T56="Detallados 15%",AT52*15%,IF(T56="Avanzados 25%",AT52*25%,0))) -> 0 | AU55: 0 | AV55: 0 | AW55: 0 | AX55: 0 | AY55: 0 | AZ55: 0 | BA55: 0 | BB55: 0 | BC55: 0 | BD55: 0 | BE55: 0 | BF55: 0 | BG55: 0 | BH55: 0 | BI55: 0 | BJ55: 0 | BK55: 0 | BL55: 0 | BM55: 0 | BN55: 0 | BO55: 0 | BP55: 0 | BQ55: 0
C56: Licencias y estudios de campo | D56: No Aplica | L56: =+IF(D56="Basicos 7%",L53*7%,IF(D56="Detallados 15%",L53*15%,IF(D56="Avanzados 25%",L53*25%,0))) -> 0 | N56: Licencias y estudios de campo | O56: No Aplica | P56: =+IF(O56="Basicos 7%",P53*7%,IF(O56="Detallados 15%",P53*15%,IF(O56="Avanzados 25%",P53*25%,0))) -> 0 | S56: Licencias y estudios de campo | T56: No Aplica | U56: Basicos 7% | V56: No Aplica | W56: Basicos 7% | X56: No Aplica | Y56: Basicos 7% | Z56: Basicos 7% | AA56: Basicos 7% | AB56: Basicos 7% | AC56: Basicos 7% | AD56: No Aplica | AE56: No Aplica | AF56: Basicos 7% | AG56: Basicos 7% | AH56: No Aplica | AI56: Basicos 7% | AJ56: Basicos 7% | AK56: Basicos 7% | AL56: Basicos 7% | AM56: Basicos 7% | AN56: Basicos 7% | AO56: Basicos 7% | AP56: Basicos 7% | AQ56: Basicos 7% | AS56: Imprevistos (5%) | AT56: =+IF(T57="Aplica",AT52*5%,0) -> 0 | AU56: 0 | AV56: 0 | AW56: 0 | AX56: 0 | AY56: 0 | AZ56: 0 | BA56: 0 | BB56: 0 | BC56: 0 | BD56: 0 | BE56: 0 | BF56: 0 | BG56: 0 | BH56: 0 | BI56: 0 | BJ56: 0 | BK56: 0 | BL56: 0 | BM56: 0 | BN56: 0 | BO56: 0 | BP56: 0 | BQ56: 0
C57: Imprevistos (5%) | D57: No Aplica | L57: =+IF(D57="Aplica",L53*5%,0) -> 0 | N57: Imprevistos (5%) | O57: No Aplica | P57: =+IF(O57="Aplica",P53*5%,0) -> 0 | S57: Imprevistos (5%) | T57: No Aplica | U57: Aplica | V57: No Aplica | W57: Aplica | X57: No Aplica | Y57: Aplica | Z57: No Aplica | AA57: Aplica | AB57: No Aplica | AC57: Aplica | AD57: No Aplica | AE57: No Aplica | AF57: No Aplica | AG57: Aplica | AH57: No Aplica | AI57: Aplica | AJ57: No Aplica | AK57: Aplica | AL57: No Aplica | AM57: Aplica | AN57: No Aplica | AO57: Aplica | AP57: No Aplica | AQ57: Aplica | AT57: =SUM(AT52:AT56) -> 0 | AU57: 0 | AV57: 0 | AW57: 0 | AX57: 0 | AY57: 0 | AZ57: 0 | BA57: 0 | BB57: 0 | BC57: 0 | BD57: 60475388.61 | BE57: 60475388.61 | BF57: 0 | BG57: 0 | BH57: 0 | BI57: 0 | BJ57: 0 | BK57: 0 | BL57: 0 | BM57: 0 | BN57: 0 | BO57: 0 | BP57: 0 | BQ57: 0
A58: VALOR TOTAL ESTIMADO DE LA ACTIVIDAD | L58: =SUM(L53:L57) -> 50034771 | N58: Total Personal | P58: =SUM(P53:P57) -> 50034771
AT59: =+AT11+AT22+AT33+AT45+AT57 -> 5759725.717 | AU59: =+AU11+AU22+AU33+AU45+AU57 -> 3565544.492 | AV59: 59067353.73 | AW59: 58160901.43 | AX59: 60953705.89 | AY59: 60018305.47 | AZ59: 62902426.04 | BA59: 61937120.41 | BB59: 64891333.63 | BC59: 63895506.07 | BD59: 126051398.8 | BE59: 126051398.8 | BF59: 66607071.27 | BG59: 66607071.27 | BH59: 68630240.64 | BI59: 68630240.64 | BJ59: 70708461.98 | BK59: 70708461.98 | BL59: 72887046.23 | BM59: 72887046.23 | BN59: 75090606 | BO59: 75090606 | BP59: 77382653.26 | BQ59: 77382653.26
A60: VALOR ESTIMADO DEL PROYECTO | L60: =+L12+L23+L34+L46+L58 -> 109069217.3 | N60: VALOR ESTIMADO DEL PERSONAL | P60: =+P12+P23+P34+P46+P58 -> 106944934
AT61: =+A65 -> Generación de mesas técnicas semestrales interinstitucionales para retroalimentar el seguimiento del Plan de Podas vigentes por parte de la autoridad
A62: Proyecto 2.Ajustar Planes de podas al escenario actual de árboles presentes en el espacio público urbanoProyecto | S62: Proyecto 2.Ajustar Planes de podas al escenario actual de árboles presentes en el espacio público urbanoProyecto | AS62: 1 | AT62: 1.032904259 | AV62: 1.066774287 | AX62: 1.100842377 | AZ62: 1.136036853 | BB62: 1.171957126 | BD62: 1.208667241 | BF62: 1.245965407 | BH62: 1.283811224 | BJ62: 1.322686854 | BL62: 1.363439894 | BN62: 1.404660131 | BP62: 1.447535633
A63: COSTO DE LA ACTIVIDAD | N63: Personal Designado UAESP | S63: ASIGNACION DE RECURSOS POR PERIODO | AS63: ITEM | AT63: COSTO POR PERIODOS
A64: ACTIVIDAD | B64: ALCANCE | C64: ITEM | D64: DESCRIPCION | E64: PERSONAL TOTAL | F64: CATEGORIA | G64: ESPECIFICACION | H64: CANTIDAD POR CATEGORIA | I64: VALOR UNITARIO (Cifras expresadas en Miles de pesos) | J64: VALOR MES * CANTIDAD (Cifras expresadas en Miles de pesos) | K64: TIEMPO DE DEDICACION (MESES) | L64: VALOR TOTAL 2020 (Cifras expresadas en Miles de pesos) | N64: Lista | O64: Cantida por Categoria | P64: Valor Mensual X Cantidad y X Tiempo | R64: Generación de mesas técnicas semestrales interinstitucionales para retroalimentar el seguimiento del Plan de Podas vigentes por parte de la autoridad | S64: ITEM | T64: 2021 | V64: 2022 | X64: 2023 | Z64: 2024 | AB64: 2025 | AD64: 2026 | AF64: 2027 | AH64: 2028 | AJ64: 2029 | AL64: 2030 | AN64: 2031 | AP64: 2032 | AT64: 2021 | AV64: 2022 | AX64: 2023 | AZ64: 2024 | BB64: 2025 | BD64: 2026 | BF64: 2027 | BH64: 2028 | BJ64: 2029 | BL64: 2030 | BN64: 2031 | BP64: 2032
A65: Generación de mesas técnicas semestrales interinstitucionales para retroalimentar el seguimiento del Plan de Podas vigentes por parte de la autoridad | B65: Dos mesas técnicas anuales para validar y retroalimentar el segumiento a los Planes de Podas vigentes ejecutados por los prestadores | C65: Detalle del Personal | D65: Ing. forestal con 3 años de experiencia | E65: 11 | F65: 10 | G65: =VLOOKUP(F65,HONORARIOS!$A$5:$G$25,2,0) -> TITULO PROFESIONAL DESDE UNO (1) HASTA TRES (3) AÑOS DE EXPERIENCIA PROFESIONAL | H65: 11 | I65: =VLOOKUP(F65,HONORARIOS!$A$5:$G$25,5,0) -> 4827916.5 | J65: =+I65*H65 -> 53107081.5 | K65: 0.3 | L65: =+J65*K65 -> 15932124.45 | O65: 5 | P65: =+(O65*I65)*K65 -> 7241874.75 | S65: Costos del Personal | T65: Aplica | U65: =+IF(T65="Aplica","Aplica","No Aplica") -> Aplica | V65: Aplica | W65: =+IF(V65="Aplica","Aplica","No Aplica") -> Aplica | X65: Aplica | Y65: =+IF(X65="Aplica","Aplica","No Aplica") -> Aplica | Z65: Aplica | AA65: =+IF(Z65="Aplica","Aplica","No Aplica") -> Aplica | AB65: Aplica | AC65: =+IF(AB65="Aplica","Aplica","No Aplica") -> Aplica | AD65: Aplica | AE65: =+IF(AD65="Aplica","Aplica","No Aplica") -> Aplica | AF65: Aplica | AG65: =+IF(AF65="Aplica","Aplica","No Aplica") -> Aplica | AH65: Aplica | AI65: =+IF(AH65="Aplica","Aplica","No Aplica") -> Aplica | AJ65: Aplica | AK65: =+IF(AJ65="Aplica","Aplica","No Aplica") -> Aplica | AL65: Aplica | AM65: =+IF(AL65="Aplica","Aplica","No Aplica") -> Aplica | AN65: Aplica | AO65: =+IF(AN65="Aplica","Aplica","No Aplica") -> Aplica | AP65: Aplica | AQ65: =+IF(AP65="Aplica","Aplica","No Aplica") -> Aplica | AS65: Costos del Personal | AT65: =IF(T65="aplica",($L66*T66)*AT62,0) -> 16456359.19 | AU65: =IF(U65="aplica",($P66*U66)*AT62,0) -> 7480163.269 | AV65: =IF(V65="aplica",($L66*V66)*AV62,0) -> 16995980.69 | AW65: =IF(W65="aplica",($P66*W66)*AV62,0) -> 7725445.77 | AX65: =IF(X65="aplica",($L66*X66)*AX62,0) -> 17538757.76 | AY65: =IF(Y65="aplica",($P66*Y66)*AX62,0) -> 7972162.617 | AZ65: =IF(Z65="aplica",($L66*Z66)*AZ62,0) -> 18099480.53 | BA65: =IF(AA65="aplica",($P66*AA66)*AZ62,0) -> 8227036.603 | BB65: =IF(AB65="aplica",($L66*AB66)*BB62,0) -> 18671766.79 | BC65: =IF(AC65="aplica",($P66*AC66)*BB62,0) -> 8487166.722 | BD65: =IF(AD65="aplica",($L66*AD66)*BD62,0) -> 19256636.9 | BE65: =IF(AE65="aplica",($P66*AE66)*BD62,0) -> 8753016.772 | BF65: =IF(AF65="aplica",($L66*AF66)*BF62,0) -> 19850875.92 | BG65: =IF(AG65="aplica",($P66*AG66)*BF62,0) -> 9023125.418 | BH65: =IF(AH65="aplica",($L66*AH66)*BH62,0) -> 20453840.19 | BI65: =IF(AI65="aplica",($P66*AI66)*BH62,0) -> 9297200.086 | BJ65: =IF(AJ65="aplica",($L66*AJ66)*BJ62,0) -> 21073211.57 | BK65: =IF(AK65="aplica",($P66*AK66)*BJ62,0) -> 9578732.534 | BL65: =IF(AL65="aplica",($L66*AL66)*BL62,0) -> 21722494.07 | BM65: =IF(AM65="aplica",($P66*AM66)*BL62,0) -> 9873860.942 | BN65: =IF(AN65="aplica",($L66*AN66)*BN62,0) -> 22379220.02 | BO65: =IF(AO65="aplica",($P66*AO66)*BN62,0) -> 10172372.73 | BP65: =IF(AP65="aplica",($L66*AP66)*BP62,0) -> 23062317.84 | BQ65: =IF(AQ65="aplica",($P66*AQ66)*BP62,0) -> 10482871.75
C66: Subtotal | L66: =SUM(L65:L65) -> 15932124.45 | N66: Subtotal Personal | P66: =+P65 -> 7241874.75 | S66: Porcentaje | T66: 1 | U66: 1 | V66: 1 | W66: 1 | X66: 1 | Y66: 1 | Z66: 1 | AA66: 1 | AB66: 1 | AC66: 1 | AD66: 1 | AE66: 1 | AF66: 1 | AG66: 1 | AH66: 1 | AI66: 1 | AJ66: 1 | AK66: 1 | AL66: 1 | AM66: 1 | AN66: 1 | AO66: 1 | AP66: 1 | AQ66: 1 | AS66: Costos Indirectos y Operacionales | AT66: =+IF(T67="Consultoria (25%)",AT65*25%,0)+IF(T67="Obra (30%)",AT65*30%,0)+IF(T67="Directo (20%)",AT65*20%,0)+IF(T67="No aplica",0,0)+IF(T67="Servicios (10%)",AT65*10%,0) -> 1645635.919 | AU66: 748016.3269 | AV66: 1699598.069 | AW66: 772544.577 | AX66: 1753875.776 | AY66: 797216.2617 | AZ66: 1809948.053 | BA66: 822703.6603 | BB66: 1867176.679 | BC66: 848716.6722 | BD66: 1925663.69 | BE66: 875301.6772 | BF66: 1985087.592 | BG66: 902312.5418 | BH66: 2045384.019 | BI66: 929720.0086 | BJ66: 2107321.157 | BK66: 957873.2534 | BL66: 2172249.407 | BM66: 987386.0942 | BN66: 2237922.002 | BO66: 1017237.273 | BP66: 2306231.784 | BQ66: 1048287.175
C67: Costos Indirectos y Operacionales | D67: Servicios (10%) | L67: =+IF(D67="Consultoria (25%)",L66*25%,0)+IF(D67="Obra (30%)",L66*30%,0)+IF(D67="Directo (20%)",L66*20%,0)+IF(D67="No aplica",0,0)+IF(D67="Servicios (10%)",L66*10%,0) -> 1593212.445 | N67: Costos Indirectos y Operacionales | O67: Servicios (10%) | P67: =+IF(O67="Consultoria (25%)",P66*25%,0)+IF(O67="Obra (30%)",P66*30%,0)+IF(O67="Directo (20%)",P66*20%,0)+IF(O67="No aplica",0,0)+IF(O67="Servicios (10%)",P66*10%,0) -> 724187.475 | S67: Costos Indirectos y Operacionales | T67: Servicios (10%) | U67: Servicios (10%) | V67: Servicios (10%) | W67: Servicios (10%) | X67: Servicios (10%) | Y67: Servicios (10%) | Z67: Servicios (10%) | AA67: Servicios (10%) | AB67: Servicios (10%) | AC67: Servicios (10%) | AD67: Servicios (10%) | AE67: Servicios (10%) | AF67: Servicios (10%) | AG67: Servicios (10%) | AH67: Servicios (10%) | AI67: Servicios (10%) | AJ67: Servicios (10%) | AK67: Servicios (10%) | AL67: Servicios (10%) | AM67: Servicios (10%) | AN67: Servicios (10%) | AO67: Servicios (10%) | AP67: Servicios (10%) | AQ67: Servicios (10%) | AS67: Seguimiento e Interventoria (10%) | AT67: =+IF(T68="Aplica",AT65*10%,0) -> 0 | AU67: 0 | AV67: 0 | AW67: 0 | AX67: 0 | AY67: 0 | AZ67: 0 | BA67: 0 | BB67: 0 | BC67: 0 | BD67: 0 | BE67: 0 | BF67: 0 | BG67: 0 | BH67: 0 | BI67: 0 | BJ67: 0 | BK67: 0 | BL67: 0 | BM67: 0 | BN67: 0 | BO67: 0 | BP67: 0 | BQ67: 0
C68: Seguimiento e Interventoria (10%) | D68: No Aplica | L68: =+IF(D68="Aplica",L66*10%,0) -> 0 | N68: Seguimiento e Interventoria (10%) | O68: No Aplica | P68: =+IF(O68="Aplica",P66*10%,0) -> 0 | S68: Seguimiento e Interventoria (10%) | T68: No Aplica | U68: No Aplica | V68: No Aplica | W68: No Aplica | X68: No Aplica | Y68: No Aplica | Z68: No Aplica | AA68: No Aplica | AB68: No Aplica | AC68: No Aplica | AD68: No Aplica | AE68: No Aplica | AF68: No Aplica | AG68: No Aplica | AH68: No Aplica | AI68: No Aplica | AJ68: No Aplica | AK68: No Aplica | AL68: No Aplica | AM68: No Aplica | AN68: No Aplica | AO68: No Aplica | AP68: No Aplica | AQ68: No Aplica | AS68: Licencias y estudios de campo | AT68: =+IF(T69="Basicos 7%",AT65*7%,IF(T69="Detallados 15%",AT65*15%,IF(T69="Avanzados 25%",AT65*25%,0))) -> 0 | AU68: 0 | AV68: 0 | AW68: 0 | AX68: 0 | AY68: 0 | AZ68: 0 | BA68: 0 | BB68: 0 | BC68: 0 | BD68: 0 | BE68: 0 | BF68: 0 | BG68: 0 | BH68: 0 | BI68: 0 | BJ68: 0 | BK68: 0 | BL68: 0 | BM68: 0 | BN68: 0 | BO68: 0 | BP68: 0 | BQ68: 0
C69: Licencias y estudios de campo | D69: No Aplica | L69: =+IF(D69="Basicos 7%",L66*7%,IF(D69="Detallados 15%",L66*15%,IF(D69="Avanzados 25%",L66*25%,0))) -> 0 | N69: Licencias y estudios de campo | O69: No Aplica | P69: =+IF(O69="Basicos 7%",P66*7%,IF(O69="Detallados 15%",P66*15%,IF(O69="Avanzados 25%",P66*25%,0))) -> 0 | S69: Licencias y estudios de campo | T69: No Aplica | U69: No Aplica | V69: No Aplica | W69: No Aplica | X69: No Aplica | Y69: No Aplica | Z69: No Aplica | AA69: No Aplica | AB69: No Aplica | AC69: No Aplica | AD69: No Aplica | AE69: No Aplica | AF69: No Aplica | AG69: No Aplica | AH69: No Aplica | AI69: No Aplica | AJ69: No Aplica | AK69: No Aplica | AL69: No Aplica | AM69: No Aplica | AN69: No Aplica | AO69: No Aplica | AP69: No Aplica | AQ69: No Aplica | AS69: Imprevistos (5%) | AT69: =+IF(T70="Aplica",AT65*5%,0) -> 0 | AU69: 0 | AV69: 0 | AW69: 0 | AX69: 0 | AY69: 0 | AZ69: 0 | BA69: 0 | BB69: 0 | BC69: 0 | BD69: 0 | BE69: 0 | BF69: 0 | BG69: 0 | BH69: 0 | BI69: 0 | BJ69: 0 | BK69: 0 | BL69: 0 | BM69: 0 | BN69: 0 | BO69: 0 | BP69: 0 | BQ69: 0
C70: Imprevistos (5%) | D70: No Aplica | L70: =+IF(D70="Aplica",L66*5%,0) -> 0 | N70: Imprevistos (5%) | O70: No Aplica | P70: =+IF(O70="Aplica",P66*5%,0) -> 0 | S70: Imprevistos (5%) | T70: No Aplica | U70: No Aplica | V70: No Aplica | W70: No Aplica | X70: No Aplica | Y70: No Aplica | Z70: No Aplica | AA70: No Aplica | AB70: No Aplica | AC70: No Aplica | AD70: No Aplica | AE70: No Aplica | AF70: No Aplica | AG70: No Aplica | AH70: No Aplica | AI70: No Aplica | AJ70: No Aplica | AK70: No Aplica | AL70: No Aplica | AM70: No Aplica | AN70: No Aplica | AO70: No Aplica | AP70: No Aplica | AQ70: No Aplica | AT70: =SUM(AT65:AT69) -> 18101995.11 | AU70: 8228179.596 | AV70: =SUM(AV65:AV69) -> 18695578.76 | AW70: 8497990.347 | AX70: 19292633.53 | AY70: 8769378.879 | AZ70: 19909428.58 | BA70: 9049740.263 | BB70: 20538943.47 | BC70: 9335883.394 | BD70: 21182300.59 | BE70: 9628318.449 | BF70: 21835963.51 | BG70: 9925437.96 | BH70: 22499224.21 | BI70: 10226920.1 | BJ70: 23180532.73 | BK70: 10536605.79 | BL70: 23894743.48 | BM70: 10861247.04 | BN70: 24617142.02 | BO70: 11189610.01 | BP70: 25368549.63 | BQ70: 11531158.92
A71: VALOR TOTAL ESTIMADO DE LA ACTIVIDAD | L71: =SUM(L66:L70) -> 17525336.89 | N71: Total Personal | P71: =SUM(P66:P70) -> 7966062.225 | AT71: =SUM(AT66:AT70) -> 19747631.03 | AU71: 8976195.923 | AV71: 20395176.83 | AW71: 9270534.924 | AX71: 21046509.31 | AY71: 9566595.141 | AZ71: 21719376.63 | BA71: 9872443.923 | BB71: 22406120.15 | BC71: 10184600.07 | BD71: 23107964.28 | BE71: 10503620.13 | BF71: 23821051.1 | BG71: 10827750.5 | BH71: 24544608.23 | BI71: 11156640.1 | BJ71: 25287853.89 | BK71: 11494479.04 | BL71: 26066992.89 | BM71: 11848633.13 | BN71: 26855064.02 | BO71: 12206847.28 | BP71: 27674781.41 | BQ71: 12579446.1
AT72: =+A76 -> Diseño e implementación de una metodologia estandarizada que permita ajustar los Planes de Podas aprobados y vigentes de acuerdo a las dinamicas de la ciudad
AS73: 2 | AT73: 1.032904259 | AV73: 1.066774287 | AX73: 1.100842377 | AZ73: 1.136036853 | BB73: 1.171957126 | BD73: 1.208667241 | BF73: 1.245965407 | BH73: 1.283811224 | BJ73: 1.322686854 | BL73: 1.363439894 | BN73: 1.404660131 | BP73: 1.447535633
A74: COSTO DE LA ACTIVIDAD | N74: Personal Designado UAESP | S74: ASIGNACION DE RECURSOS POR PERIODO | AS74: ITEM | AT74: COSTO POR PERIODOS
A75: ACTIVIDAD | B75: ALCANCE | C75: ITEM | D75: DESCRIPCION | E75: PERSONAL TOTAL | F75: CATEGORIA | G75: ESPECIFICACION | H75: CANTIDAD POR CATEGORIA | I75: VALOR UNITARIO (Cifras expresadas en Miles de pesos) | J75: VALOR MES * CANTIDAD (Cifras expresadas en Miles de pesos) | K75: TIEMPO DE DEDICACION (MESES) | L75: VALOR TOTAL 2020 (Cifras expresadas en Miles de pesos) | N75: Lista | O75: Cantida por Categoria | P75: Valor Mensual X Cantidad y X Tiempo | R75: Diseño e implementación de una metodologia estandarizada que permita ajustar los Planes de Podas aprobados y vigentes de acuerdo a las dinamicas de la ciudad | S75: ITEM | T75: 2021 | V75: 2022 | X75: 2023 | Z75: 2024 | AB75: 2025 | AD75: 2026 | AF75: 2027 | AH75: 2028 | AJ75: 2029 | AL75: 2030 | AN75: 2031 | AP75: 2032 | AT75: 2021 | AV75: 2022 | AX75: 2023 | AZ75: 2024 | BB75: 2025 | BD75: 2026 | BF75: 2027 | BH75: 2028 | BJ75: 2029 | BL75: 2030 | BN75: 2031 | BP75: 2032
A76: Diseño e implementación de una metodologia estandarizada que permita ajustar los Planes de Podas aprobados y vigentes de acuerdo a las dinamicas de la ciudad | B76: Una metodologia estandarizada que permita ajustar los Planes de Podas aprobados y vigentes de acuerdo a las dinamicas de la ciudad | C76: Detalle del Personal | D76: Ing. forestal con 3 años de experiencia | E76: 11 | F76: 10 | G76: =VLOOKUP(F76,HONORARIOS!$A$5:$G$25,2,0) -> TITULO PROFESIONAL DESDE UNO (1) HASTA TRES (3) AÑOS DE EXPERIENCIA PROFESIONAL | H76: 11 | I76: =VLOOKUP(F76,HONORARIOS!$A$5:$G$25,5,0) -> 4827916.5 | J76: =+H76*I76 -> 53107081.5 | K76: 0.13 | L76: =+J76*K76 -> 6903920.595 | O76: 5 | P76: =+(O76*I76)*K76 -> 3138145.725 | S76: Costos del Personal | T76: Aplica | U76: =+IF(T76="Aplica","Aplica","No Aplica") -> Aplica | V76: No Aplica | W76: =+IF(V76="Aplica","Aplica","No Aplica") -> No Aplica | X76: No Aplica | Y76: =+IF(X76="Aplica","Aplica","No Aplica") -> No Aplica | Z76: No Aplica | AA76: =+IF(Z76="Aplica","Aplica","No Aplica") -> No Aplica | AB76: No Aplica | AC76: =+IF(AB76="Aplica","Aplica","No Aplica") -> No Aplica | AD76: No Aplica | AE76: =+IF(AD76="Aplica","Aplica","No Aplica") -> No Aplica | AF76: No Aplica | AG76: =+IF(AF76="Aplica","Aplica","No Aplica") -> No Aplica | AH76: No Aplica | AI76: =+IF(AH76="Aplica","Aplica","No Aplica") -> No Aplica | AJ76: No Aplica | AK76: =+IF(AJ76="Aplica","Aplica","No Aplica") -> No Aplica | AL76: No Aplica | AM76: =+IF(AL76="Aplica","Aplica","No Aplica") -> No Aplica | AN76: No Aplica | AO76: =+IF(AN76="Aplica","Aplica","No Aplica") -> No Aplica | AP76: No Aplica | AQ76: =+IF(AP76="Aplica","Aplica","No Aplica") -> No Aplica | AS76: Costos del Personal | AT76: =IF(T76="aplica",($L77*T77)*AT73,0) -> 7131088.983 | AU76: =IF(U76="aplica",($P77*U77)*AT73,0) -> 3241404.083 | AV76: =IF(V76="aplica",($L77*V77)*AV73,0) -> 0 | AW76: =IF(W76="aplica",($P77*W77)*AV73,0) -> 0 | AX76: =IF(X76="aplica",($L77*X77)*AX73,0) -> 0 | AY76: =IF(Y76="aplica",($P77*Y77)*AX73,0) -> 0 | AZ76: =IF(Z76="aplica",($L77*Z77)*AZ73,0) -> 0 | BA76: =IF(AA76="aplica",($P77*AA77)*AZ73,0) -> 0 | BB76: =IF(AB76="aplica",($L77*AB77)*BB73,0) -> 0 | BC76: =IF(AC76="aplica",($P77*AC77)*BB73,0) -> 0 | BD76: =IF(AD76="aplica",($L77*AD77)*BD73,0) -> 0 | BE76: =IF(AE76="aplica",($P77*AE77)*BD73,0) -> 0 | BF76: =IF(AF76="aplica",($L77*AF77)*BF73,0) -> 0 | BG76: =IF(AG76="aplica",($P77*AG77)*BF73,0) -> 0 | BH76: =IF(AH76="aplica",($L77*AH77)*BH73,0) -> 0 | BI76: =IF(AI76="aplica",($P77*AI77)*BH73,0) -> 0 | BJ76: =IF(AJ76="aplica",($L77*AJ77)*BJ73,0) -> 0 | BK76: =IF(AK76="aplica",($P77*AK77)*BJ73,0) -> 0 | BL76: =IF(AL76="aplica",($L77*AL77)*BL73,0) -> 0 | BM76: =IF(AM76="aplica",($P77*AM77)*BL73,0) -> 0 | BN76: =IF(AN76="aplica",($L77*AN77)*BN73,0) -> 0 | BO76: =IF(AO76="aplica",($P77*AO77)*BN73,0) -> 0 | BP76: =IF(AP76="aplica",($L77*AP77)*BP73,0) -> 0 | BQ76: =IF(AQ76="aplica",($P77*AQ77)*BP73,0) -> 0
C77: Subtotal | L77: =SUM(L76:L76) -> 6903920.595 | N77: Subtotal Personal | P77: =+P76 -> 3138145.725 | S77: Porcentaje | T77: 1 | U77: 1 | V77: 1 | W77: 1 | X77: 1 | Y77: 1 | Z77: 1 | AA77: 1 | AB77: 1 | AC77: 1 | AD77: 1 | AE77: 1 | AF77: 1 | AG77: 1 | AH77: 1 | AI77: 1 | AJ77: 1 | AK77: 1 | AL77: 1 | AM77: 1 | AN77: 1 | AO77: 1 | AP77: 1 | AQ77: 1 | AS77: Costos Indirectos y Operacionales | AT77: =+IF(T78="Consultoria (25%)",AT76*25%,0)+IF(T78="Obra (30%)",AT76*30%,0)+IF(T78="Directo (20%)",AT76*20%,0)+IF(T78="No aplica",0,0)+IF(T78="Servicios (10%)",AT76*10%,0) -> 713108.8983 | AU77: 324140.4083 | AV77: 0 | AW77: 0 | AX77: 0 | AY77: 0 | AZ77: 0 | BA77: 0 | BB77: 0 | BC77: 0 | BD77: 0 | BE77: 0 | BF77: 0 | BG77: 0 | BH77: 0 | BI77: 0 | BJ77: 0 | BK77: 0 | BL77: 0 | BM77: 0 | BN77: 0 | BO77: 0 | BP77: 0 | BQ77: 0
C78: Costos Indirectos y Operacionales | D78: Servicios (10%) | L78: =+IF(D78="Consultoria (25%)",L77*25%,0)+IF(D78="Obra (30%)",L77*30%,0)+IF(D78="Directo (20%)",L77*20%,0)+IF(D78="No aplica",0,0)+IF(D78="Servicios (10%)",L77*10%,0) -> 690392.0595 | N78: Costos Indirectos y Operacionales | O78: Servicios (10%) | P78: =+IF(O78="Consultoria (25%)",P77*25%,0)+IF(O78="Obra (30%)",P77*30%,0)+IF(O78="Directo (20%)",P77*20%,0)+IF(O78="No aplica",0,0)+IF(O78="Servicios (10%)",P77*10%,0) -> 313814.5725 | S78: Costos Indirectos y Operacionales | T78: Servicios (10%) | U78: Servicios (10%) | V78: Consultoria (25%) | W78: Servicios (10%) | X78: Consultoria (25%) | Y78: Servicios (10%) | Z78: Directo (20%) | AA78: Servicios (10%) | AB78: Directo (20%) | AC78: Servicios (10%) | AD78: Directo (20%) | AE78: Servicios (10%) | AF78: Directo (20%) | AG78: Servicios (10%) | AH78: Consultoria (25%) | AI78: Servicios (10%) | AJ78: Directo (20%) | AK78: Servicios (10%) | AL78: Directo (20%) | AM78: Servicios (10%) | AN78: Directo (20%) | AO78: Servicios (10%) | AP78: Directo (20%) | AQ78: Servicios (10%) | AS78: Seguimiento e Interventoria (10%) | AT78: =+IF(T79="Aplica",AT76*10%,0) -> 0 | AU78: 0 | AV78: 0 | AW78: 0 | AX78: 0 | AY78: 0 | AZ78: 0 | BA78: 0 | BB78: 0 | BC78: 0 | BD78: 0 | BE78: 0 | BF78: 0 | BG78: 0 | BH78: 0 | BI78: 0 | BJ78: 0 | BK78: 0 | BL78: 0 | BM78: 0 | BN78: 0 | BO78: 0 | BP78: 0 | BQ78: 0
C79: Seguimiento e Interventoria (10%) | D79: No Aplica | L79: =+IF(D79="Aplica",L77*10%,0) -> 0 | N79: Seguimiento e Interventoria (10%) | O79: No Aplica | P79: =+IF(O79="Aplica",P77*10%,0) -> 0 | S79: Seguimiento e Interventoria (10%) | T79: No Aplica | U79: No Aplica | V79: Aplica | W79: No Aplica | X79: No Aplica | Y79: No Aplica | Z79: Aplica | AA79: No Aplica | AB79: Aplica | AC79: No Aplica | AD79: Aplica | AE79: No Aplica | AF79: Aplica | AG79: No Aplica | AH79: Aplica | AI79: No Aplica | AJ79: Aplica | AK79: No Aplica | AL79: Aplica | AM79: No Aplica | AN79: Aplica | AO79: No Aplica | AP79: Aplica | AQ79: No Aplica | AS79: Licencias y estudios de campo | AT79: =+IF(T80="Basicos 7%",AT76*7%,IF(T80="Detallados 15%",AT76*15%,IF(T80="Avanzados 25%",AT76*25%,0))) -> 0 | AU79: 0 | AV79: 0 | AW79: 0 | AX79: 0 | AY79: 0 | AZ79: 0 | BA79: 0 | BB79: 0 | BC79: 0 | BD79: 0 | BE79: 0 | BF79: 0 | BG79: 0 | BH79: 0 | BI79: 0 | BJ79: 0 | BK79: 0 | BL79: 0 | BM79: 0 | BN79: 0 | BO79: 0 | BP79: 0 | BQ79: 0
C80: Licencias y estudios de campo | D80: No Aplica | L80: =+IF(D80="Basicos 7%",L77*7%,IF(D80="Detallados 15%",L77*15%,IF(D80="Avanzados 25%",L77*25%,0))) -> 0 | N80: Licencias y estudios de campo | O80: No Aplica | P80: =+IF(O80="Basicos 7%",P77*7%,IF(O80="Detallados 15%",P77*15%,IF(O80="Avanzados 25%",P77*25%,0))) -> 0 | S80: Licencias y estudios de campo | T80: No Aplica | U80: No Aplica | V80: No Aplica | W80: No Aplica | X80: No Aplica | Y80: No Aplica | Z80: Basicos 7% | AA80: No Aplica | AB80: Basicos 7% | AC80: No Aplica | AD80: Basicos 7% | AE80: No Aplica | AF80: Basicos 7% | AG80: No Aplica | AH80: No Aplica | AI80: No Aplica | AJ80: Basicos 7% | AK80: No Aplica | AL80: Basicos 7% | AM80: No Aplica | AN80: Basicos 7% | AO80: No Aplica | AP80: Basicos 7% | AQ80: No Aplica | AS80: Imprevistos (5%) | AT80: =+IF(T81="Aplica",AT76*5%,0) -> 0 | AU80: 0 | AV80: 0 | AW80: 0 | AX80: 0 | AY80: 0 | AZ80: 0 | BA80: 0 | BB80: 0 | BC80: 0 | BD80: 0 | BE80: 0 | BF80: 0 | BG80: 0 | BH80: 0 | BI80: 0 | BJ80: 0 | BK80: 0 | BL80: 0 | BM80: 0 | BN80: 0 | BO80: 0 | BP80: 0 | BQ80: 0
C81: Imprevistos (5%) | D81: No Aplica | L81: =+IF(D81="Aplica",L77*5%,0) -> 0 | N81: Imprevistos (5%) | O81: No Aplica | P81: =+IF(O81="Aplica",P77*5%,0) -> 0 | S81: Imprevistos (5%) | T81: No Aplica | U81: No Aplica | V81: No Aplica | W81: No Aplica | X81: No Aplica | Y81: No Aplica | Z81: No Aplica | AA81: No Aplica | AB81: No Aplica | AC81: No Aplica | AD81: No Aplica | AE81: No Aplica | AF81: No Aplica | AG81: No Aplica | AH81: No Aplica | AI81: No Aplica | AJ81: No Aplica | AK81: No Aplica | AL81: No Aplica | AM81: No Aplica | AN81: No Aplica | AO81: No Aplica | AP81: No Aplica | AQ81: No Aplica | AT81: =SUM(AT76:AT80) -> 7844197.881 | AU81: 3565544.492 | AV81: =SUM(AV76:AV80) -> 0 | AW81: 0 | AX81: 0 | AY81: 0 | AZ81: 0 | BA81: 0 | BB81: 0 | BC81: 0 | BD81: 0 | BE81: 0 | BF81: 0 | BG81: 0 | BH81: 0 | BI81: 0 | BJ81: 0 | BK81: 0 | BL81: 0 | BM81: 0 | BN81: 0 | BO81: 0 | BP81: 0 | BQ81: 0
A82: VALOR TOTAL ESTIMADO DE LA ACTIVIDAD | L82: =SUM(L77:L81) -> 7594312.655 | N82: Total Personal | P82: =SUM(P77:P81) -> 3451960.298
A84: VALOR ESTIMADO DEL PROYECTO | L84: =+L71+L82 -> 25119649.55 | N84: VALOR ESTIMADO DEL PERSONAL | P84: =+P71+P82 -> 11418022.52 | AT84: =+AT70+AT81 -> 25946192.99 | AU84: =+AU70+AU81 -> 11793724.09 | AV84: 18695578.76 | AW84: 8497990.347 | AX84: 19292633.53 | AY84: 8769378.879 | AZ84: 19909428.58 | BA84: 9049740.263 | BB84: 20538943.47 | BC84: 9335883.394 | BD84: 21182300.59 | BE84: 9628318.449 | BF84: 21835963.51 | BG84: 9925437.96 | BH84: 22499224.21 | BI84: 10226920.1 | BJ84: 23180532.73 | BK84: 10536605.79 | BL84: 23894743.48 | BM84: 10861247.04 | BN84: 24617142.02 | BO84: 11189610.01 | BP84: 25368549.63 | BQ84: 11531158.92
A85: VALOR ESTIMADO DEL PROGRAMA | L85: =+L84+L60 -> 134188866.8 | N85: VALOR ESTIMADO EN EL PROGRAMA | P85: =+P84+P60 -> 118362956.5
L86: =+letras(L85) -> Ciento Treinta y Cuatro Millones Ciento Ochenta y Ocho Mil Ochocientos Sesenta y Siete | P86: =+letras(P85) -> Ciento Dieciocho Millones Trescientos Sesenta y Dos Mil Novecientos Cincuenta y Siete | AT86: =SUM(AT84+AT59) -> 31705918.71 | AU86: =SUM(AU84+AU59) -> 15359268.58 | AV86: 77762932.5 | AW86: 66658891.78 | AX86: 80246339.42 | AY86: 68787684.35 | AZ86: 82811854.62 | BA86: 70986860.68 | BB86: 85430277.1 | BC86: 73231389.47 | BD86: 147233699.4 | BE86: 135679717.3 | BF86: 88443034.78 | BG86: 76532509.23 | BH86: 91129464.85 | BI86: 78857160.73 | BJ86: 93888994.71 | BK86: 81245067.76 | BL86: 96781789.71 | BM86: 83748293.26 | BN86: 99707748.02 | BO86: 86280216.01 | BP86: 102751202.9 | BQ86: 88913812.18

Sheet Programa Especiales
A2: Proyecto 1. Lograr una metodología eficiente para la gestión de residuos sólidos especiales arrojados clandestinamente en el espacio público y puntos críricos en el Distrito. | S2: Proyecto 1. Lograr una metodología eficiente para la gestión de residuos sólidos especiales arrojados clandestinamente en el espacio público y puntos críricos en el Distrito.
A3: COSTO DE LA ACTIVIDAD | N3: Personal Designado UAESP | AT3: =+R5 -> Realizar un diagnóstico que describa estado actual, su caracterización y los costos de gestión de los residuos sólidos especiales arrojados clandestinamente en el espacio público.
A4: ACTIVIDAD | B4: ALCANCE | C4: ITEM | D4: DESCRIPCION | E4: PERSONAL TOTAL | F4: CATEGORIA | G4: ESPECIFICACION | H4: CANTIDAD POR CATEGORIA | I4: VALOR UNITARIO (Cifras expresadas en Millones de pesos) | J4: VALOR MES * CANTIDAD (Cifras expresadas en Millones de pesos) | K4: TIEMPO DE DEDICACION (MESES) | L4: VALOR TOTAL 2020 (Cifras expresadas en Millones de pesos) | N4: Lista | O4: Cantida por Categoria | P4: Valor Mensual X Cantidad y X Tiempo | S4: ASIGNACION DE RECURSOS POR PERIODO | AT4: 1.032904259 | AV4: 1.066774287 | AX4: 1.100842377 | AZ4: 1.136036853 | BB4: 1.171957126 | BD4: 1.208667241 | BF4: 1.245965407 | BH4: 1.283811224 | BJ4: 1.322686854 | BL4: 1.363439894 | BN4: 1.404660131 | BP4: 1.447535633
A5: Realizar un diagnóstico que describa estado actual, su caracterización y los costos de gestión de los residuos sólidos especiales arrojados clandestinamente en el espacio público. | B5: Un documento técnico de diagnóstico que describa estado actual, su caracterización y los costos gestión de los residuos sólidos especiales arrojados clandestinamente en el espacio público, que será actualizado cada dos años | C5: Detalle del Personal | D5: 1 Coordinador ingenierios ambientales Ingeniero de sistemas con experiencia en base de datos Técnico en sistemas de apoyo Trabajadores sociales o anotropológos Dos Ingenieros catastrales o geodestas 10 técnicos o ingenieros sin experiencia | E5: =+SUM(H5:H7) -> 16 | F5: 12 | G5: =VLOOKUP(F5,HONORARIOS!$A$5:$G$25,2,0) -> TITULO PROFESIONAL MAS DE SEIS (6) AÑOS DE EXPERIENCIA PROFESIONAL | H5: 1 | I5: =VLOOKUP(F5,HONORARIOS!$A$5:$G$25,5,0) -> 6583522.5 | J5: =+I5*H5 -> 6583522.5 | K5: 12 | L5: =+J5*K5 -> 79002270 | O5: 1 | P5: =+(O5*I5)*K5 -> 79002270 | R5: Realizar un diagnóstico que describa estado actual, su caracterización y los costos de gestión de los residuos sólidos especiales arrojados clandestinamente en el espacio público. | S5: ITEM | T5: 2021 | V5: 2022 | X5: 2023 | Z5: 2024 | AB5: 2025 | AD5: 2026 | AF5: 2027 | AH5: 2028 | AJ5: 2029 | AL5: 2030 | AN5: 2031 | AP5: 2032 | AS5: ITEM | AT5: COSTO POR PERIODOS
F6: 10 | G6: =VLOOKUP(F6,HONORARIOS!$A$5:$G$25,2,0) -> TITULO PROFESIONAL DESDE UNO (1) HASTA TRES (3) AÑOS DE EXPERIENCIA PROFESIONAL | H6: 8 | I6: =VLOOKUP(F6,HONORARIOS!$A$5:$G$25,5,0) -> 4827916.5 | J6: =+I6*H6 -> 38623332 | K6: 12 | L6: =+J6*K6 -> 463479984 | O6: 8 | P6: =+(O6*I6)*K6 -> 463479984 | T6: Proyeccion Actividad | U6: Proyeccion UAESP | V6: Proyeccion Actividad | W6: Proyeccion UAESP | X6: Proyeccion Actividad | Y6: Proyeccion UAESP | Z6: Proyeccion Actividad | AA6: Proyeccion UAESP | AB6: Proyeccion Actividad | AC6: Proyeccion UAESP | AD6: Proyeccion Actividad | AE6: Proyeccion UAESP | AF6: Proyeccion Actividad | AG6: Proyeccion UAESP | AH6: Proyeccion Actividad | AI6: Proyeccion UAESP | AJ6: Proyeccion Actividad | AK6: Proyeccion UAESP | AL6: Proyeccion Actividad | AM6: Proyeccion UAESP | AN6: Proyeccion Actividad | AO6: Proyeccion UAESP | AP6: Proyeccion Actividad | AQ6: Proyeccion UAESP | AT6: 2021 | AV6: 2022 | AX6: 2023 | AZ6: 2024 | BB6: 2025 | BD6: 2026 | BF6: 2027 | BH6: 2028 | BJ6: 2029 | BL6: 2030 | BN6: 2031 | BP6: 2032
F7: 6 | G7: =VLOOKUP(F7,HONORARIOS!$A$5:$G$25,2,0) -> FORMACION TECNICA O 2 AÑOS DE EDUCACION SUPERIOR DESDE UNO (1) HASTA TRES (3) AÑOS DE EXPERIENCIA | H7: 7 | I7: =VLOOKUP(F7,HONORARIOS!$A$5:$G$25,5,0) -> 3072310.5 | J7: =+I7*H7 -> 21506173.5 | K7: 6 | L7: =+J7*K7 -> 129037041 | O7: 7 | P7: =+(O7*I7)*K7 -> 129037041 | S7: Costos del Personal | T7: Aplica | U7: =+IF(T7="Aplica","Aplica","No Aplica") -> Aplica | V7: No Aplica | W7: =+IF(V7="Aplica","Aplica","No Aplica") -> No Aplica | X7: Aplica | Y7: =+IF(X7="Aplica","Aplica","No Aplica") -> Aplica | Z7: No Aplica | AA7: =+IF(Z7="Aplica","Aplica","No Aplica") -> No Aplica | AB7: Aplica | AC7: =+IF(AB7="Aplica","Aplica","No Aplica") -> Aplica | AD7: No Aplica | AE7: =+IF(AD7="Aplica","Aplica","No Aplica") -> No Aplica | AF7: Aplica | AG7: =+IF(AF7="Aplica","Aplica","No Aplica") -> Aplica | AH7: No Aplica | AI7: =+IF(AH7="Aplica","Aplica","No Aplica") -> No Aplica | AJ7: Aplica | AK7: =+IF(AJ7="Aplica","Aplica","No Aplica") -> Aplica | AL7: No Aplica | AM7: =+IF(AL7="Aplica","Aplica","No Aplica") -> No Aplica | AN7: Aplica | AO7: =+IF(AN7="Aplica","Aplica","No Aplica") -> Aplica | AP7: No Aplica | AQ7: =+IF(AP7="Aplica","Aplica","No Aplica") -> No Aplica | AS7: Costos del Personal | AT7: =IF(T7="aplica",($L8*T8)*AT4,0) -> 693615139.5 | AU7: =IF(U7="aplica",($P8*U8)*AT4,0) -> 693615139.5 | AV7: =IF(V7="aplica",($L8*V8)*AV4,0) -> 0 | AW7: =IF(W7="aplica",($P8*W8)*AV4,0) -> 0 | AX7: =IF(X7="aplica",($L8*X8)*AX4,0) -> 517465828.1 | AY7: =IF(Y7="aplica",($P8*Y8)*AX4,0) -> 517465828.1 | AZ7: =IF(Z7="aplica",($L8*Z8)*AZ4,0) -> 0 | BA7: =IF(AA7="aplica",($P8*AA8)*AZ4,0) -> 0 | BB7: =IF(AB7="aplica",($L8*AB8)*BB4,0) -> 550894276.3 | BC7: =IF(AC7="aplica",($P8*AC8)*BB4,0) -> 550894276.3 | BD7: =IF(AD7="aplica",($L8*AD8)*BD4,0) -> 0 | BE7: =IF(AE7="aplica",($P8*AE8)*BD4,0) -> 0 | BF7: =IF(AF7="aplica",($L8*AF8)*BF4,0) -> 585682868.1 | BG7: =IF(AG7="aplica",($P8*AG8)*BF4,0) -> 585682868.1 | BH7: =IF(AH7="aplica",($L8*AH8)*BH4,0) -> 0 | BI7: =IF(AI7="aplica",($P8*AI8)*BH4,0) -> 0 | BJ7: =IF(AJ7="aplica",($L8*AJ8)*BJ4,0) -> 621746820.8 | BK7: =IF(AK7="aplica",($P8*AK8)*BJ4,0) -> 621746820.8 | BL7: =IF(AL7="aplica",($L8*AL8)*BL4,0) -> 0 | BM7: =IF(AM7="aplica",($P8*AM8)*BL4,0) -> 0 | BN7: =IF(AN7="aplica",($L8*AN8)*BN4,0) -> 660279466.6 | BO7: =IF(AO7="aplica",($P8*AO8)*BN4,0) -> 660279466.6 | BP7: =IF(AP7="aplica",($L8*AP8)*BP4,0) -> 0 | BQ7: =IF(AQ7="aplica",($P8*AQ8)*BP4,0) -> 0
C8: Subtotal | L8: =SUM(L5:L7) -> 671519295 | N8: Subtotal Personal | P8: =SUM(P5:P7) -> 671519295 | S8: Porcentaje | T8: 1 | U8: 1 | V8: 1 | W8: 1 | X8: 0.7 | Y8: 0.7 | Z8: 1 | AA8: 1 | AB8: 0.7 | AC8: 0.7 | AD8: 1 | AE8: 1 | AF8: 0.7 | AG8: 0.7 | AH8: 1 | AI8: 1 | AJ8: 0.7 | AK8: 0.7 | AL8: 1 | AM8: 1 | AN8: 0.7 | AO8: 0.7 | AP8: 1 | AQ8: 1 | AS8: Costos Indirectos y Operacionales | AT8: =+IF(T9="Consultoria (25%)",AT7*25%,0)+IF(T9="Obra (30%)",AT7*30%,0)+IF(T9="Directo (20%)",AT7*20%,0)+IF(T9="No aplica",0,0)+IF(T9="Servicios (10%)",AT7*10%,0) -> 173403784.9 | AU8: 173403784.9 | AV8: =+IF(V9="Consultoria (25%)",AV7*25%,0)+IF(V9="Obra (30%)",AV7*30%,0)+IF(V9="Directo (20%)",AV7*20%,0)+IF(V9="No aplica",0,0)+IF(V9="Servicios (10%)",AV7*10%,0) -> 0 | AW8: =+IF(W9="Consultoria (25%)",AW7*25%,0)+IF(W9="Obra (30%)",AW7*30%,0)+IF(W9="Directo (20%)",AW7*20%,0)+IF(W9="No aplica",0,0)+IF(W9="Servicios (10%)",AW7*10%,0) -> 0 | AX8: =+IF(X9="Consultoria (25%)",AX7*25%,0)+IF(X9="Obra (30%)",AX7*30%,0)+IF(X9="Directo (20%)",AX7*20%,0)+IF(X9="No aplica",0,0)+IF(X9="Servicios (10%)",AX7*10%,0) -> 129366457 | AY8: =+IF(Y9="Consultoria (25%)",AY7*25%,0)+IF(Y9="Obra (30%)",AY7*30%,0)+IF(Y9="Directo (20%)",AY7*20%,0)+IF(Y9="No aplica",0,0)+IF(Y9="Servicios (10%)",AY7*10%,0) -> 129366457 | AZ8: =+IF(Z9="Consultoria (25%)",AZ7*25%,0)+IF(Z9="Obra (30%)",AZ7*30%,0)+IF(Z9="Directo (20%)",AZ7*20%,0)+IF(Z9="No aplica",0,0)+IF(Z9="Servicios (10%)",AZ7*10%,0) -> 0 | BA8: =+IF(AA9="Consultoria (25%)",BA7*25%,0)+IF(AA9="Obra (30%)",BA7*30%,0)+IF(AA9="Directo (20%)",BA7*20%,0)+IF(AA9="No aplica",0,0)+IF(AA9="Servicios (10%)",BA7*10%,0) -> 0 | BB8: =+IF(AB9="Consultoria (25%)",BB7*25%,0)+IF(AB9="Obra (30%)",BB7*30%,0)+IF(AB9="Directo (20%)",BB7*20%,0)+IF(AB9="No aplica",0,0)+IF(AB9="Servicios (10%)",BB7*10%,0) -> 137723569.1 | BC8: =+IF(AC9="Consultoria (25%)",BC7*25%,0)+IF(AC9="Obra (30%)",BC7*30%,0)+IF(AC9="Directo (20%)",BC7*20%,0)+IF(AC9="No aplica",0,0)+IF(AC9="Servicios (10%)",BC7*10%,0) -> 137723569.1 | BD8: =+IF(AD9="Consultoria (25%)",BD7*25%,0)+IF(AD9="Obra (30%)",BD7*30%,0)+IF(AD9="Directo (20%)",BD7*20%,0)+IF(AD9="No aplica",0,0)+IF(AD9="Servicios (10%)",BD7*10%,0) -> 0 | BE8: =+IF(AE9="Consultoria (25%)",BE7*25%,0)+IF(AE9="Obra (30%)",BE7*30%,0)+IF(AE9="Directo (20%)",BE7*20%,0)+IF(AE9="No aplica",0,0)+IF(AE9="Servicios (10%)",BE7*10%,0) -> 0 | BF8: =+IF(AF9="Consultoria (25%)",BF7*25%,0)+IF(AF9="Obra (30%)",BF7*30%,0)+IF(AF9="Directo (20%)",BF7*20%,0)+IF(AF9="No aplica",0,0)+IF(AF9="Servicios (10%)",BF7*10%,0) -> 146420717 | BG8: =+IF(AG9="Consultoria (25%)",BG7*25%,0)+IF(AG9="Obra (30%)",BG7*30%,0)+IF(AG9="Directo (20%)",BG7*20%,0)+IF(AG9="No aplica",0,0)+IF(AG9="Servicios (10%)",BG7*10%,0) -> 146420717 | BH8: =+IF(AH9="Consultoria (25%)",BH7*25%,0)+IF(AH9="Obra (30%)",BH7*30%,0)+IF(AH9="Directo (20%)",BH7*20%,0)+IF(AH9="No aplica",0,0)+IF(AH9="Servicios (10%)",BH7*10%,0) -> 0 | BI8: =+IF(AI9="Consultoria (25%)",BI7*25%,0)+IF(AI9="Obra (30%)",BI7*30%,0)+IF(AI9="Directo (20%)",BI7*20%,0)+IF(AI9="No aplica",0,0)+IF(AI9="Servicios (10%)",BI7*10%,0) -> 0 | BJ8: =+IF(AJ9="Consultoria (25%)",BJ7*25%,0)+IF(AJ9="Obra (30%)",BJ7*30%,0)+IF(AJ9="Directo (20%)",BJ7*20%,0)+IF(AJ9="No aplica",0,0)+IF(AJ9="Servicios (10%)",BJ7*10%,0) -> 155436705.2 | BK8: =+IF(AK9="Consultoria (25%)",BK7*25%,0)+IF(AK9="Obra (30%)",BK7*30%,0)+IF(AK9="Directo (20%)",BK7*20%,0)+IF(AK9="No aplica",0,0)+IF(AK9="Servicios (10%)",BK7*10%,0) -> 155436705.2 | BL8: =+IF(AL9="Consultoria (25%)",BL7*25%,0)+IF(AL9="Obra (30%)",BL7*30%,0)+IF(AL9="Directo (20%)",BL7*20%,0)+IF(AL9="No aplica",0,0)+IF(AL9="Servicios (10%)",BL7*10%,0) -> 0 | BM8: =+IF(AM9="Consultoria (25%)",BM7*25%,0)+IF(AM9="Obra (30%)",BM7*30%,0)+IF(AM9="Directo (20%)",BM7*20%,0)+IF(AM9="No aplica",0,0)+IF(AM9="Servicios (10%)",BM7*10%,0) -> 0 | BN8: =+IF(AN9="Consultoria (25%)",BN7*25%,0)+IF(AN9="Obra (30%)",BN7*30%,0)+IF(AN9="Directo (20%)",BN7*20%,0)+IF(AN9="No aplica",0,0)+IF(AN9="Servicios (10%)",BN7*10%,0) -> 165069866.6 | BO8: =+IF(AO9="Consultoria (25%)",BO7*25%,0)+IF(AO9="Obra (30%)",BO7*30%,0)+IF(AO9="Directo (20%)",BO7*20%,0)+IF(AO9="No aplica",0,0)+IF(AO9="Servicios (10%)",BO7*10%,0) -> 165069866.6 | BP8: =+IF(AP9="Consultoria (25%)",BP7*25%,0)+IF(AP9="Obra (30%)",BP7*30%,0)+IF(AP9="Directo (20%)",BP7*20%,0)+IF(AP9="No aplica",0,0)+IF(AP9="Servicios (10%)",BP7*10%,0) -> 0 | BQ8: =+IF(AQ9="Consultoria (25%)",BQ7*25%,0)+IF(AQ9="Obra (30%)",BQ7*30%,0)+IF(AQ9="Directo (20%)",BQ7*20%,0)+IF(AQ9="No aplica",0,0)+IF(AQ9="Servicios (10%)",BQ7*10%,0) -> 0
C9: Costos Indirectos y Operacionales | D9: Consultoria (25%) | L9: =+IF(D9="Consultoria (25%)",L8*25%,0)+IF(D9="Obra (30%)",L8*30%,0)+IF(D9="Directo (20%)",L8*20%,0)+IF(D9="No aplica",0,0)+IF(D9="Servicios (10%)",L8*10%,0) -> 167879823.8 | N9: Costos Indirectos y Operacionales | O9: Consultoria (25%) | P9: =+IF(O9="Consultoria (25%)",P8*25%,0)+IF(O9="Obra (30%)",P8*30%,0)+IF(O9="Directo (20%)",P8*20%,0)+IF(O9="No aplica",0,0)+IF(O9="Servicios (10%)",P8*10%,0) -> 167879823.8 | S9: Costos Indirectos y Operacionales | T9: Consultoria (25%) | U9: Consultoria (25%) | V9: Consultoria (25%) | W9: Consultoria (25%) | X9: Consultoria (25%) | Y9: Consultoria (25%) | Z9: Consultoria (25%) | AA9: Consultoria (25%) | AB9: Consultoria (25%) | AC9: Consultoria (25%) | AD9: Consultoria (25%) | AE9: Consultoria (25%) | AF9: Consultoria (25%) | AG9: Consultoria (25%) | AH9: Consultoria (25%) | AI9: Consultoria (25%) | AJ9: Consultoria (25%) | AK9: Consultoria (25%) | AL9: Consultoria (25%) | AM9: Consultoria (25%) | AN9: Consultoria (25%) | AO9: Consultoria (25%) | AP9: Consultoria (25%) | AQ9: Consultoria (25%) | AS9: Seguimiento e Interventoria (10%) | AT9: =+IF(T10="Aplica",AT7*10%,0) -> 69361513.95 | AU9: 69361513.95 | AV9: =+IF(V10="Aplica",AV7*10%,0) -> 0 | AW9: =+IF(W10="Aplica",AW7*10%,0) -> 0 | AX9: =+IF(X10="Aplica",AX7*10%,0) -> 51746582.81 | AY9: =+IF(Y10="Aplica",AY7*10%,0) -> 51746582.81 | AZ9: =+IF(Z10="Aplica",AZ7*10%,0) -> 0 | BA9: =+IF(AA10="Aplica",BA7*10%,0) -> 0 | BB9: =+IF(AB10="Aplica",BB7*10%,0) -> 55089427.63 | BC9: =+IF(AC10="Aplica",BC7*10%,0) -> 55089427.63 | BD9: =+IF(AD10="Aplica",BD7*10%,0) -> 0 | BE9: =+IF(AE10="Aplica",BE7*10%,0) -> 0 | BF9: =+IF(AF10="Aplica",BF7*10%,0) -> 58568286.81 | BG9: =+IF(AG10="Aplica",BG7*10%,0) -> 58568286.81 | BH9: =+IF(AH10="Aplica",BH7*10%,0) -> 0 | BI9: =+IF(AI10="Aplica",BI7*10%,0) -> 0 | BJ9: =+IF(AJ10="Aplica",BJ7*10%,0) -> 62174682.08 | BK9: =+IF(AK10="Aplica",BK7*10%,0) -> 62174682.08 | BL9: =+IF(AL10="Aplica",BL7*10%,0) -> 0 | BM9: =+IF(AM10="Aplica",BM7*10%,0) -> 0 | BN9: =+IF(AN10="Aplica",BN7*10%,0) -> 66027946.66 | BO9: =+IF(AO10="Aplica",BO7*10%,0) -> 66027946.66 | BP9: =+IF(AP10="Aplica",BP7*10%,0) -> 0 | BQ9: =+IF(AQ10="Aplica",BQ7*10%,0) -> 0
C10: Seguimiento e Interventoria (10%) | D10: Aplica | E10: EN EL PRIMER AÑO DOCE MESES Y CON 16 PERSONAS Y CADA DOS AÑOS DOS MESES Y SOLO UN PROFESIONAL GRADO 12 , 5 GRADO 10 Y 5 TÉCNICOS | L10: =+IF(D10="Aplica",L8*10%,0) -> 67151929.5 | N10: Seguimiento e Interventoria (10%) | O10: Aplica | P10: =+IF(O10="Aplica",P8*10%,0) -> 67151929.5 | S10: Seguimiento e Interventoria (10%) | T10: Aplica | U10: Aplica | V10: Aplica | W10: Aplica | X10: Aplica | Y10: Aplica | Z10: Aplica | AA10: Aplica | AB10: Aplica | AC10: Aplica | AD10: Aplica | AE10: Aplica | AF10: Aplica | AG10: Aplica | AH10: Aplica | AI10: Aplica | AJ10: Aplica | AK10: Aplica | AL10: Aplica | AM10: Aplica | AN10: Aplica | AO10: Aplica | AP10: Aplica | AQ10: Aplica | AS10: Licencias y estudios de campo | AT10: =+IF(T11="Basicos 7%",AT7*7%,IF(T11="Detallados 15%",AT7*15%,IF(T11="Avanzados 25%",AT7*25%,0))) -> 48553059.76 | AU10: 48553059.76 | AV10: =+IF(V11="Basicos 7%",AV7*7%,IF(V11="Detallados 15%",AV7*15%,IF(V11="Avanzados 25%",AV7*25%,0))) -> 0 | AW10: =+IF(W11="Basicos 7%",AW7*7%,IF(W11="Detallados 15%",AW7*15%,IF(W11="Avanzados 25%",AW7*25%,0))) -> 0 | AX10: =+IF(X11="Basicos 7%",AX7*7%,IF(X11="Detallados 15%",AX7*15%,IF(X11="Avanzados 25%",AX7*25%,0))) -> 36222607.96 | AY10: =+IF(Y11="Basicos 7%",AY7*7%,IF(Y11="Detallados 15%",AY7*15%,IF(Y11="Avanzados 25%",AY7*25%,0))) -> 36222607.96 | AZ10: =+IF(Z11="Basicos 7%",AZ7*7%,IF(Z11="Detallados 15%",AZ7*15%,IF(Z11="Avanzados 25%",AZ7*25%,0))) -> 0 | BA10: =+IF(AA11="Basicos 7%",BA7*7%,IF(AA11="Detallados 15%",BA7*15%,IF(AA11="Avanzados 25%",BA7*25%,0))) -> 0 | BB10: =+IF(AB11="Basicos 7%",BB7*7%,IF(AB11="Detallados 15%",BB7*15%,IF(AB11="Avanzados 25%",BB7*25%,0))) -> 38562599.34 | BC10: =+IF(AC11="Basicos 7%",BC7*7%,IF(AC11="Detallados 15%",BC7*15%,IF(AC11="Avanzados 25%",BC7*25%,0))) -> 38562599.34 | BD10: =+IF(AD11="Basicos 7%",BD7*7%,IF(AD11="Detallados 15%",BD7*15%,IF(AD11="Avanzados 25%",BD7*25%,0))) -> 0 | BE10: =+IF(AE11="Basicos 7%",BE7*7%,IF(AE11="Detallados 15%",BE7*15%,IF(AE11="Avanzados 25%",BE7*25%,0))) -> 0 | BF10: =+IF(AF11="Basicos 7%",BF7*7%,IF(AF11="Detallados 15%",BF7*15%,IF(AF11="Avanzados 25%",BF7*25%,0))) -> 40997800.76 | BG10: =+IF(AG11="Basicos 7%",BG7*7%,IF(AG11="Detallados 15%",BG7*15%,IF(AG11="Avanzados 25%",BG7*25%,0))) -> 40997800.76 | BH10: =+IF(AH11="Basicos 7%",BH7*7%,IF(AH11="Detallados 15%",BH7*15%,IF(AH11="Avanzados 25%",BH7*25%,0))) -> 0 | BI10: =+IF(AI11="Basicos 7%",BI7*7%,IF(AI11="Detallados 15%",BI7*15%,IF(AI11="Avanzados 25%",BI7*25%,0))) -> 0 | BJ10: =+IF(AJ11="Basicos 7%",BJ7*7%,IF(AJ11="Detallados 15%",BJ7*15%,IF(AJ11="Avanzados 25%",BJ7*25%,0))) -> 43522277.46 | BK10: =+IF(AK11="Basicos 7%",BK7*7%,IF(AK11="Detallados 15%",BK7*15%,IF(AK11="Avanzados 25%",BK7*25%,0))) -> 43522277.46 | BL10: =+IF(AL11="Basicos 7%",BL7*7%,IF(AL11="Detallados 15%",BL7*15%,IF(AL11="Avanzados 25%",BL7*25%,0))) -> 0 | BM10: =+IF(AM11="Basicos 7%",BM7*7%,IF(AM11="Detallados 15%",BM7*15%,IF(AM11="Avanzados 25%",BM7*25%,0))) -> 0 | BN10: =+IF(AN11="Basicos 7%",BN7*7%,IF(AN11="Detallados 15%",BN7*15%,IF(AN11="Avanzados 25%",BN7*25%,0))) -> 46219562.66 | BO10: =+IF(AO11="Basicos 7%",BO7*7%,IF(AO11="Detallados 15%",BO7*15%,IF(AO11="Avanzados 25%",BO7*25%,0))) -> 46219562.66 | BP10: =+IF(AP11="Basicos 7%",BP7*7%,IF(AP11="Detallados 15%",BP7*15%,IF(AP11="Avanzados 25%",BP7*25%,0))) -> 0 | BQ10: =+IF(AQ11="Basicos 7%",BQ7*7%,IF(AQ11="Detallados 15%",BQ7*15%,IF(AQ11="Avanzados 25%",BQ7*25%,0))) -> 0
